Workbook

Sheet INE (hidden)
B2: República de Guatemala
B3: Estimaciones y proyecciones de la población total a nivel municipal
B4: Período 2015 - 2030
B5: (al 30 de junio de cada año)
A6: Departamento y municipio | C6: Años
C7: 2015 | D7: TC | E7: 2016 | F7: TC | G7: 2017 | H7: TC | I7: 2018 | J7: TC | K7: 2019 | L7: TC | M7: 2020 | N7: TC | O7: 2021 | P7: TC | Q7: 2022 | R7: TC | S7: 2023 | T7: TC | U7: 2024 | V7: TC | W7: 2025 | X7: TC | Y7: 2026 | Z7: TC | AA7: 2027 | AB7: TC | AC7: 2028 | AD7: TC | AE7: 2029 | AF7: TC | AG7: 2030
B8: Total Nacional | C8: 15567419 | D8: =+(((E8/C8)^(1/1))-1)*100 -> 1.671895643 | E8: 15827690 | F8: =+(((G8/E8)^(1/1))-1)*100 -> 1.640972245 | G8: 16087418 | H8: =+(((I8/G8)^(1/1))-1)*100 -> 1.613260748 | I8: 16346950 | J8: =+(((K8/I8)^(1/1))-1)*100 -> 1.572623639 | K8: 16604026 | L8: =+(((M8/K8)^(1/1))-1)*100 -> 1.531598421 | M8: 16858333 | N8: =+(((O8/M8)^(1/1))-1)*100 -> 1.491327761 | O8: 17109746 | P8: =+(((Q8/O8)^(1/1))-1)*100 -> 1.450284534 | Q8: 17357886 | R8: =+(((S8/Q8)^(1/1))-1)*100 -> 1.408840915 | S8: 17602431 | T8: =+(((U8/S8)^(1/1))-1)*100 -> 1.367430442 | U8: 17843132 | V8: =+(((W8/U8)^(1/1))-1)*100 -> 1.326437534 | W8: 18079810 | X8: =+(((Y8/W8)^(1/1))-1)*100 -> 1.286313296 | Y8: 18312373 | Z8: =+(((AA8/Y8)^(1/1))-1)*100 -> 1.247227762 | AA8: 18540770 | AB8: =+(((AC8/AA8)^(1/1))-1)*100 -> 1.209302526 | AC8: 18764984 | AD8: =+(((AE8/AC8)^(1/1))-1)*100 -> 1.172833401 | AE8: 18985066 | AF8: =+(((AG8/AE8)^(1/1))-1)*100 -> 1.137715297 | AG8: 19201062
A9: 1 | B9: Guatemala | C9: 3293500 | D9: =+(((E9/C9)^(1/1))-1)*100 -> 1.401062699 | E9: 3339644 | F9: =+(((G9/E9)^(1/1))-1)*100 -> 1.362660212 | G9: 3385152 | H9: =+(((I9/G9)^(1/1))-1)*100 -> 1.30387055 | I9: 3429290 | J9: =+(((K9/I9)^(1/1))-1)*100 -> 1.271429363 | K9: 3472891 | L9: =+(((M9/K9)^(1/1))-1)*100 -> 1.234821364 | M9: 3515775 | N9: =+(((O9/M9)^(1/1))-1)*100 -> 1.198427089 | O9: 3557909 | P9: =+(((Q9/O9)^(1/1))-1)*100 -> 1.16214327 | Q9: 3599257 | R9: =+(((S9/Q9)^(1/1))-1)*100 -> 1.124343163 | S9: 3639725 | T9: =+(((U9/S9)^(1/1))-1)*100 -> 1.08802176 | U9: 3679326 | V9: =+(((W9/U9)^(1/1))-1)*100 -> 1.051333858 | W9: 3718008 | X9: =+(((Y9/W9)^(1/1))-1)*100 -> 1.015301742 | Y9: 3755757 | Z9: =+(((AA9/Y9)^(1/1))-1)*100 -> 0.9790835776 | AA9: 3792529 | AB9: =+(((AC9/AA9)^(1/1))-1)*100 -> 0.9449103751 | AC9: 3828365 | AD9: =+(((AE9/AC9)^(1/1))-1)*100 -> 0.9104408801 | AE9: 3863220 | AF9: =+(((AG9/AE9)^(1/1))-1)*100 -> 0.878981782 | AG9: 3897177
A10: 101 | B10: Guatemala | C10: 1142188 | D10: =+(((E10/C10)^(1/1))-1)*100 -> 1.019271784 | E10: 1153830 | F10: =+(((G10/E10)^(1/1))-1)*100 -> 0.9775270187 | G10: 1165109 | H10: =+(((I10/G10)^(1/1))-1)*100 -> 0.9121893316 | I10: 1175737 | J10: =+(((K10/I10)^(1/1))-1)*100 -> 0.8706028644 | K10: 1185973 | L10: =+(((M10/K10)^(1/1))-1)*100 -> 0.822447054 | M10: 1195727 | N10: =+(((O10/M10)^(1/1))-1)*100 -> 0.7725007464 | O10: 1204964 | P10: =+(((Q10/O10)^(1/1))-1)*100 -> 0.7209344014 | Q10: 1213651 | R10: =+(((S10/Q10)^(1/1))-1)*100 -> 0.6664189293 | S10: 1221739 | T10: =+(((U10/S10)^(1/1))-1)*100 -> 0.6119146561 | U10: 1229215 | V10: =+(((W10/U10)^(1/1))-1)*100 -> 0.5558832263 | W10: 1236048 | X10: =+(((Y10/W10)^(1/1))-1)*100 -> 0.4992524562 | Y10: 1242219 | Z10: =+(((AA10/Y10)^(1/1))-1)*100 -> 0.4414680503 | AA10: 1247703 | AB10: =+(((AC10/AA10)^(1/1))-1)*100 -> 0.3847069375 | AC10: 1252503 | AD10: =+(((AE10/AC10)^(1/1))-1)*100 -> 0.3266259642 | AE10: 1256594 | AF10: =+(((AG10/AE10)^(1/1))-1)*100 -> 0.2704930948 | AG10: 1259993
A11: 102 | B11: Santa Catarina Pinula | C11: 84215 | D11: 0.6150923232 | E11: 84733 | F11: 0.5912690451 | G11: 85234 | H11: 0.5455569374 | I11: 85699 | J11: 0.5239267669 | K11: 86148 | L11: 0.495658634 | M11: 86575 | N11: 0.4678024834 | O11: 86980 | P11: 0.439181421 | Q11: 87362 | R11: 0.4063551659 | S11: 87717 | T11: 0.3762098567 | U11: 88047 | V11: 0.3441343828 | W11: 88350 | X11: 0.3146576118 | Y11: 88628 | Z11: 0.2820778986 | AA11: 88878 | AB11: 0.2531560116 | AC11: 89103 | AD11: 0.2233370369 | AE11: 89302 | AF11: 0.1970840519 | AG11: 89478
A12: 103 | B12: San José Pinula | C12: 84770 | D12: 0.8894656128 | E12: 85524 | F12: 0.8664234601 | G12: 86265 | H12: 0.8218860488 | I12: 86974 | J12: 0.7979396141 | K12: 87668 | L12: 0.772231601 | M12: 88345 | N12: 0.7425434377 | O12: 89001 | P12: 0.7134751295 | Q12: 89636 | R12: 0.6816457673 | S12: 90247 | T12: 0.6515452037 | U12: 90835 | V12: 0.6209060384 | W12: 91399 | X12: 0.5897219882 | Y12: 91938 | Z12: 0.5579847288 | AA12: 92451 | AB12: 0.528928838 | AC12: 92940 | AD12: 0.4981708629 | AE12: 93403 | AF12: 0.4710769461 | AG12: 93843
A13: 104 | B13: San José del Golfo | C13: 8078 | D13: 0.7551374103 | E13: 8139 | F13: 0.7126182578 | G13: 8197 | H13: 0.683176772 | I13: 8253 | J13: 0.6543075245 | K13: 8307 | L13: 0.6139400506 | M13: 8358 | N13: 0.6101938263 | O13: 8409 | P13: 0.5589249614 | Q13: 8456 | R13: 0.5439924314 | S13: 8502 | T13: 0.5057633498 | U13: 8545 | V13: 0.4681100059 | W13: 8585 | X13: 0.4426324985 | Y13: 8623 | Z13: 0.4174881132 | AA13: 8659 | AB13: 0.3811063633 | AC13: 8692 | AD13: 0.3566497929 | AE13: 8723 | AF13: 0.3324544308 | AG13: 8752
A14: 105 | B14: Palencia | C14: 72175 | D14: 0.6082438517 | E14: 72614 | F14: 0.5852865839 | G14: 73039 | H14: 0.538068703 | I14: 73432 | J14: 0.518847369 | K14: 73813 | L14: 0.4904285153 | M14: 74175 | N14: 0.4610717897 | O14: 74517 | P14: 0.4321161614 | Q14: 74839 | R14: 0.4008605139 | S14: 75139 | T14: 0.3699809686 | U14: 75417 | V14: 0.3394460135 | W14: 75673 | X14: 0.3065822684 | Y14: 75905 | Z14: 0.2779790528 | AA14: 76116 | AB14: 0.2456776499 | AC14: 76303 | AD14: 0.2175537004 | AE14: 76469 | AF14: 0.1909270423 | AG14: 76615
A15: 106 | B15: Chinautla | C15: 116768 | D15: 0.9934228556 | E15: 117928 | F15: 0.9717793908 | G15: 119074 | H15: 0.9246351009 | I15: 120175 | J15: 0.9020178906 | K15: 121259 | L15: 0.87581128 | M15: 122321 | N15: 0.8461343514 | O15: 123356 | P15: 0.8179577807 | Q15: 124365 | R15: 0.7855908013 | S15: 125342 | T15: 0.7555328621 | U15: 126289 | V15: 0.7237368259 | W15: 127203 | X15: 0.6933798731 | Y15: 128085 | Z15: 0.661279619 | AA15: 128932 | AB15: 0.6328917569 | AC15: 129748 | AD15: 0.6019360607 | AE15: 130529 | AF15: 0.5753510714 | AG15: 131280
A16: 107 | B16: San Pedro Ayampuc | C16: 60608 | D16: 1.772043295 | E16: 61682 | F16: 1.736325022 | G16: 62753 | H16: 1.676413877 | I16: 63805 | J16: 1.644071781 | K16: 64854 | L16: 1.603601937 | M16: 65894 | N16: 1.566151698 | O16: 66926 | P16: 1.524071362 | Q16: 67946 | R16: 1.483531039 | S16: 68954 | T16: 1.441540737 | U16: 69948 | V16: 1.401040773 | W16: 70928 | X16: 1.361944507 | Y16: 71894 | Z16: 1.319998887 | AA16: 72843 | AB16: 1.282209684 | AC16: 73777 | AD16: 1.244290226 | AE16: 74695 | AF16: 1.210255037 | AG16: 75599
A17: 108 | B17: Mixco | C17: 446877 | D17: 2.211570522 | E17: 456760 | F17: 2.1869253 | G17: 466749 | H17: 2.139693925 | I17: 476736 | J17: 2.116685126 | K17: 486827 | L17: 2.088010731 | M17: 496992 | N17: 2.057980813 | O17: 507220 | P17: 2.027719727 | Q17: 517505 | R17: 1.994763336 | S17: 527828 | T17: 1.962950052 | U17: 538189 | V17: 1.930362754 | W17: 548578 | X17: 1.897815807 | Y17: 558989 | Z17: 1.86551077 | AA17: 569417 | AB17: 1.834683545 | AC17: 579864 | AD17: 1.803698798 | AE17: 590323 | AF17: 1.775299285 | AG17: 600803
A18: 109 | B18: San Pedro Sacatepéquez | C18: 50756 | D18: 1.637244858 | E18: 51587 | F18: 1.616686374 | G18: 52421 | H18: 1.571889128 | I18: 53245 | J18: 1.551319373 | K18: 54071 | L18: 1.527621091 | M18: 54897 | N18: 1.504635955 | O18: 55723 | P18: 1.475153886 | Q18: 56545 | R18: 1.44486692 | S18: 57362 | T18: 1.417314599 | U18: 58175 | V18: 1.388912763 | W18: 58983 | X18: 1.36140922 | Y18: 59786 | Z18: 1.331415382 | AA18: 60582 | AB18: 1.30566835 | AC18: 61373 | AD18: 1.277434703 | AE18: 62157 | AF18: 1.254886819 | AG18: 62937
A19: 110 | B19: San Juan Sacatepéquez | C19: 261052 | D19: 1.341112116 | E19: 264553 | F19: 1.317694375 | G19: 268039 | H19: 1.271829846 | I19: 271448 | J19: 1.249963161 | K19: 274841 | L19: 1.222161177 | M19: 278200 | N19: 1.193386053 | O19: 281520 | P19: 1.164393294 | Q19: 284798 | R19: 1.132732674 | S19: 288024 | T19: 1.102338694 | U19: 291199 | V19: 1.070402027 | W19: 294316 | X19: 1.039698827 | Y19: 297376 | Z19: 1.008151297 | AA19: 300374 | AB19: 0.9787797879 | AC19: 303314 | AD19: 0.9491813764 | AE19: 306193 | AF19: 0.9219675172 | AG19: 309016
A20: 111 | B20: San Raymundo | C20: 37606 | D20: 0.5717172792 | E20: 37821 | F20: 0.5473149837 | G20: 38028 | H20: 0.4996318502 | I20: 38218 | J20: 0.478831964 | K20: 38401 | L20: 0.4531132002 | M20: 38575 | N20: 0.4251458198 | O20: 38739 | P20: 0.3923694468 | Q20: 38891 | R20: 0.3651230362 | S20: 39033 | T20: 0.3304895857 | U20: 39162 | V20: 0.3038659925 | W20: 39281 | X20: 0.2698505639 | Y20: 39387 | Z20: 0.238657425 | AA20: 39481 | AB20: 0.2102277045 | AC20: 39564 | AD20: 0.1769285209 | AE20: 39634 | AF20: 0.1539082606 | AG20: 39695
A21: 112 | B21: Chuarrancho | C21: 16123 | D21: 0.279104385 | E21: 16168 | F21: 0.5752102919 | G21: 16261 | H21: 0.7564110448 | I21: 16384 | J21: 0.9094238281 | K21: 16533 | L21: 0.991955483 | M21: 16697 | N21: 1.048092472 | O21: 16872 | P21: 1.096491228 | Q21: 17057 | R21: 1.102186785 | S21: 17245 | T21: 1.107567411 | U21: 17436 | V21: 1.101169993 | W21: 17628 | X21: 1.08917631 | Y21: 17820 | Z21: 1.071829405 | AA21: 18011 | AB21: 1.049358725 | AC21: 18200 | AD21: 1.032967033 | AE21: 18388 | AF21: 1.006090929 | AG21: 18573
A22: 113 | B22: Fraijanes | C22: 56956 | D22: 2.215745488 | E22: 58218 | F22: 1.877426226 | G22: 59311 | H22: 1.647249246 | I22: 60288 | J22: 1.511080149 | K22: 61199 | L22: 1.418323829 | M22: 62067 | N22: 1.351765028 | O22: 62906 | P22: 1.295583887 | Q22: 63721 | R22: 1.252334395 | S22: 64519 | T22: 1.213595995 | U22: 65302 | V22: 1.17607424 | W22: 66070 | X22: 1.14272741 | Y22: 66825 | Z22: 1.110362888 | AA22: 67567 | AB22: 1.078929063 | AC22: 68296 | AD22: 1.04837765 | AE22: 69012 | AF22: 1.021561468 | AG22: 69717
A23: 114 | B23: Amatitlán | C23: 138168 | D23: 1.489491054 | E23: 140226 | F23: 1.467630825 | G23: 142284 | H23: 1.420398639 | I23: 144305 | J23: 1.39911992 | K23: 146324 | L23: 1.370930264 | M23: 148330 | N23: 1.342951527 | O23: 150322 | P23: 1.313181038 | Q23: 152296 | R23: 1.281714556 | S23: 154248 | T23: 1.250583476 | U23: 156177 | V23: 1.219769876 | W23: 158082 | X23: 1.188623626 | Y23: 159961 | Z23: 1.156531905 | AA23: 161811 | AB23: 1.127859045 | AC23: 163636 | AD23: 1.097557995 | AE23: 165432 | AF23: 1.07053049 | AG23: 167203
A24: 115 | B24: Villa Nueva | C24: 425783 | D24: 1.899794027 | E24: 433872 | F24: 1.887423019 | G24: 442061 | H24: 1.852459276 | I24: 450250 | J24: 1.842309828 | K24: 458545 | L24: 1.826865411 | M24: 466922 | N24: 1.809938277 | O24: 475373 | P24: 1.793118246 | Q24: 483897 | R24: 1.773724574 | S24: 492480 | T24: 1.755807342 | U24: 501127 | V24: 1.737084611 | W24: 509832 | X24: 1.718997631 | Y24: 518596 | Z24: 1.70074586 | AA24: 527416 | AB24: 1.684628453 | AC24: 536301 | AD24: 1.668279567 | AE24: 545248 | AF24: 1.655210106 | AG24: 554273
A25: 116 | B25: Villa Canales | C25: 160276 | D25: 0.7449649355 | E25: 161470 | F25: 0.7221155633 | G25: 162636 | H25: 0.6763570181 | I25: 163736 | J25: 0.6541017247 | K25: 164807 | L25: 0.6261869945 | M25: 165839 | N25: 0.5981705148 | O25: 166831 | P25: 0.5682397156 | Q25: 167779 | R25: 0.5370159555 | S25: 168680 | T25: 0.5062840882 | U25: 169534 | V25: 0.4742411552 | W25: 170338 | X25: 0.4438234569 | Y25: 171094 | Z25: 0.4120541924 | AA25: 171799 | AB25: 0.3824236462 | AC25: 172456 | AD25: 0.3531335529 | AE25: 173065 | AF25: 0.3258891168 | AG25: 173629
A26: 117 | B26: San Miguel Petapa | C26: 131101 | D26: 2.607150212 | E26: 134519 | F26: 2.358031207 | G26: 137691 | H26: 2.116332948 | I26: 140605 | J26: 1.931652502 | K26: 143321 | L26: 1.772245519 | M26: 145861 | N26: 1.637860703 | O26: 148250 | P26: 1.526475548 | Q26: 150513 | R26: 1.430441224 | S26: 152666 | T26: 1.351315945 | U26: 154729 | V26: 1.282888146 | W26: 156714 | X26: 1.223247444 | Y26: 158631 | Z26: 1.171271693 | AA26: 160489 | AB26: 1.125310769 | AC26: 162295 | AD26: 1.083212668 | AE26: 164053 | AF26: 1.047222544 | AG26: 165771
A27: 2 | B27: El Progreso | C27: 185607 | D27: 0.9148361861 | E27: 187305 | F27: 0.8355356237 | G27: 188870 | H27: 0.7873140255 | I27: 190357 | J27: 0.7233776536 | K27: 191734 | L27: 0.6962771339 | M27: 193069 | N27: 0.683175445 | O27: 194388 | P27: 0.6610490359 | Q27: 195673 | R27: 0.6357545497 | S27: 196917 | T27: 0.6154877436 | U27: 198129 | V27: 0.592543242 | W27: 199303 | X27: 0.5669759111 | Y27: 200433 | Z27: 0.5498096621 | AA27: 201535 | AB27: 0.5195127397 | AC27: 202582 | AD27: 0.4990571719 | AE27: 203593 | AF27: 0.4803701503 | AG27: 204571
A28: 201 | B28: Guastatoya | C28: 25803 | D28: 1.0347634 | E28: 26070 | F28: 0.9474491753 | G28: 26317 | H28: 0.9005585743 | I28: 26554 | J28: 0.8285004143 | K28: 26774 | L28: 0.8030178531 | M28: 26989 | N28: 0.7855052058 | O28: 27201 | P28: 0.7573250983 | Q28: 27407 | R28: 0.7333892801 | S28: 27608 | T28: 0.7063170096 | U28: 27803 | V28: 0.6797827573 | W28: 27992 | X28: 0.6466133181 | Y28: 28173 | Z28: 0.6282611011 | AA28: 28350 | AB28: 0.5925925926 | AC28: 28518 | AD28: 0.5680622765 | AE28: 28680 | AF28: 0.5439330544 | AG28: 28836
A29: 202 | B29: Morazán | C29: 12442 | D29: 0.3214917216 | E29: 12482 | F29: 0.2804037814 | G29: 12517 | H29: 0.2636414476 | I29: 12550 | J29: 0.2310756972 | K29: 12579 | L29: 0.2305429684 | M29: 12608 | N29: 0.2458756345 | O29: 12639 | P29: 0.2610966057 | Q29: 12672 | R29: 0.2446338384 | S29: 12703 | T29: 0.2597811541 | U29: 12736 | V29: 0.2512562814 | W29: 12768 | X29: 0.2506265664 | Y29: 12800 | Z29: 0.2421875 | AA29: 12831 | AB29: 0.2338087444 | AC29: 12861 | AD29: 0.2254879092 | AE29: 12890 | AF29: 0.2172226532 | AG29: 12918
A30: 203 | B30: San Agustín Acasaguastlán | C30: 52014 | D30: 1.074710655 | E30: 52573 | F30: 0.9986114545 | G30: 53098 | H30: 0.9548382237 | I30: 53605 | J30: 0.9010353512 | K30: 54088 | L30: 0.8781984913 | M30: 54563 | N30: 0.8723860492 | O30: 55039 | P30: 0.85212304 | Q30: 55508 | R30: 0.8341140016 | S30: 55971 | T30: 0.816494256 | U30: 56428 | V30: 0.7974764301 | W30: 56878 | X30: 0.7753437181 | Y30: 57319 | Z30: 0.7606552801 | AA30: 57755 | AB30: 0.730672669 | AC30: 58177 | AD30: 0.7133403235 | AE30: 58592 | AF30: 0.6963407974 | AG30: 59000
A31: 204 | B31: San Cristóbal Acasaguastlán | C31: 7692 | D31: 0.5720228809 | E31: 7736 | F31: 0.5429162358 | G31: 7778 | H31: 0.5399845719 | I31: 7820 | J31: 0.4987212276 | K31: 7859 | L31: 0.5089706069 | M31: 7899 | N31: 0.5063932143 | O31: 7939 | P31: 0.5038417937 | Q31: 7979 | R31: 0.4887830555 | S31: 8018 | T31: 0.4614617111 | U31: 8055 | V31: 0.4593420236 | W31: 8092 | X31: 0.4325259516 | Y31: 8127 | Z31: 0.4306632214 | AA31: 8162 | AB31: 0.4043126685 | AC31: 8195 | AD31: 0.3782794387 | AE31: 8226 | AF31: 0.3646973012 | AG31: 8256
A32: 205 | B32: El Jícaro | C32: 13476 | D32: 0.07420599584 | E32: 13486 | F32: 0.04449058283 | G32: 13492 | H32: 0.03705899792 | I32: 13497 | J32: 0.01481810773 | K32: 13499 | L32: 0.02222386843 | M32: 13502 | N32: 0.05184417123 | O32: 13509 | P32: 0.06662225183 | Q32: 13518 | R32: 0.06657789614 | S32: 13527 | T32: 0.08871146596 | U32: 13539 | V32: 0.08863283847 | W32: 13551 | X32: 0.09593387942 | Y32: 13564 | Z32: 0.08846947803 | AA32: 13576 | AB32: 0.09575721862 | AC32: 13589 | AD32: 0.08830671867 | AE32: 13601 | AF32: 0.09558120726 | AG32: 13614
A33: 206 | B33: Sansare | C33: 13107 | D33: 0.7476920729 | E33: 13205 | F33: 0.666414237 | G33: 13293 | H33: 0.6319115324 | I33: 13377 | J33: 0.5756148613 | K33: 13454 | L33: 0.557455032 | M33: 13529 | N33: 0.5395816394 | O33: 13602 | P33: 0.5293339215 | Q33: 13674 | R33: 0.5119204329 | S33: 13744 | T33: 0.4947613504 | U33: 13812 | V33: 0.4778453519 | W33: 13878 | X33: 0.4467502522 | Y33: 13940 | Z33: 0.4447632712 | AA33: 14002 | AB33: 0.3999428653 | AC33: 14058 | AD33: 0.3983496941 | AE33: 14114 | AF33: 0.3755136744 | AG33: 14167
A34: 207 | B34: Sanarate | C34: 40710 | D34: 0.7049864898 | E34: 40997 | F34: 0.6512671659 | G34: 41264 | H34: 0.6155486623 | I34: 41518 | J34: 0.5612023701 | K34: 41751 | L34: 0.5413043999 | M34: 41977 | N34: 0.5383900708 | O34: 42203 | P34: 0.5189204559 | Q34: 42422 | R34: 0.4997407006 | S34: 42634 | T34: 0.4831824366 | U34: 42840 | V34: 0.464519141 | W34: 43039 | X34: 0.4414600711 | Y34: 43229 | Z34: 0.4279534572 | AA34: 43414 | AB34: 0.4030957756 | AC34: 43589 | AD34: 0.3808300259 | AE34: 43755 | AF34: 0.3656724946 | AG34: 43915
A35: 208 | B35: San Antonio La Paz | C35: 20363 | D35: 1.929971026 | E35: 20756 | F35: 1.710348815 | G35: 21111 | H35: 1.539481787 | I35: 21436 | J35: 1.371524538 | K35: 21730 | L35: 1.251725725 | M35: 22002 | N35: 1.154440505 | O35: 22256 | P35: 1.06488138 | Q35: 22493 | R35: 0.9736362424 | S35: 22712 | T35: 0.8982035928 | U35: 22916 | V35: 0.8247512655 | W35: 23105 | X35: 0.7617398831 | Y35: 23281 | Z35: 0.7044370946 | AA35: 23445 | AB35: 0.6397952655 | AC35: 23595 | AD35: 0.5933460479 | AE35: 23735 | AF35: 0.5477143459 | AG35: 23865
A36: 3 | B36: Sacatepéquez | C36: 356513 | D36: 2.006939438 | E36: 363668 | F36: 1.906409142 | G36: 370601 | H36: 1.785748015 | I36: 377219 | J36: 1.68973461 | K36: 383593 | L36: 1.64705821 | M36: 389911 | N36: 1.604468712 | O36: 396167 | P36: 1.562472392 | Q36: 402357 | R36: 1.520788752 | S36: 408476 | T36: 1.475239671 | U36: 414502 | V36: 1.436663756 | W36: 420457 | X36: 1.395386449 | Y36: 426324 | Z36: 1.351554217 | AA36: 432086 | AB36: 1.312933074 | AC36: 437759 | AD36: 1.27376022 | AE36: 443335 | AF36: 1.2347322 | AG36: 448809
A37: 301 | B37: Antigua Guatemala | C37: 55089 | D37: 0.9185136779 | E37: 55595 | F37: 1.12600054 | G37: 56221 | H37: 1.204176375 | I37: 56898 | J37: 1.237301838 | K37: 57602 | L37: 1.277733412 | M37: 58338 | N37: 1.290753883 | O37: 59091 | P37: 1.284459562 | Q37: 59850 | R37: 1.266499582 | S37: 60608 | T37: 1.240760296 | U37: 61360 | V37: 1.212516297 | W37: 62104 | X37: 1.183498647 | Y37: 62839 | Z37: 1.145785261 | AA37: 63559 | AB37: 1.113925644 | AC37: 64267 | AD37: 1.081425926 | AE37: 64962 | AF37: 1.04522644 | AG37: 65641
A38: 302 | B38: Jocotenango | C38: 21351 | D38: 1.859397686 | E38: 21748 | F38: 1.742688983 | G38: 22127 | H38: 1.613413477 | I38: 22484 | J38: 1.512186444 | K38: 22824 | L38: 1.472134595 | M38: 23160 | N38: 1.433506045 | O38: 23492 | P38: 1.39621999 | Q38: 23820 | R38: 1.360201511 | S38: 24144 | T38: 1.321239231 | U38: 24463 | V38: 1.29174672 | W38: 24779 | X38: 1.247023689 | Y38: 25088 | Z38: 1.215720663 | AA38: 25393 | AB38: 1.177489859 | AC38: 25692 | AD38: 1.144325082 | AE38: 25986 | AF38: 1.108289079 | AG38: 26274
A39: 303 | B39: Pastores | C39: 17737 | D39: 2.289000395 | E39: 18143 | F39: 1.962189274 | G39: 18499 | H39: 1.719011838 | I39: 18817 | J39: 1.551788277 | K39: 19109 | L39: 1.465278141 | M39: 19389 | N39: 1.40285729 | O39: 19661 | P39: 1.358018412 | Q39: 19928 | R39: 1.314733039 | S39: 20190 | T39: 1.263001486 | U39: 20445 | V39: 1.22768403 | W39: 20696 | X39: 1.193467337 | Y39: 20943 | Z39: 1.150742492 | AA39: 21184 | AB39: 1.123489426 | AC39: 21422 | AD39: 1.078330688 | AE39: 21653 | AF39: 1.048353577 | AG39: 21880
A40: 304 | B40: Sumpango | C40: 40889 | D40: 2.272004696 | E40: 41818 | F40: 2.147400641 | G40: 42716 | H40: 2.017979212 | I40: 43578 | J40: 1.920693928 | K40: 44415 | L40: 1.877744005 | M40: 45249 | N40: 1.840924661 | O40: 46082 | P40: 1.801137103 | Q40: 46912 | R40: 1.765006821 | S40: 47740 | T40: 1.72601592 | U40: 48564 | V40: 1.692611811 | W40: 49386 | X40: 1.656339853 | Y40: 50204 | Z40: 1.615409131 | AA40: 51015 | AB40: 1.579927472 | AC40: 51821 | AD40: 1.545705409 | AE40: 52622 | AF40: 1.510774961 | AG40: 53417
A41: 305 | B41: Santo Domingo Xenacoj | C41: 12429 | D41: 2.807949151 | E41: 12778 | F41: 2.692127093 | G41: 13122 | H41: 2.552964487 | I41: 13457 | J41: 2.452255332 | K41: 13787 | L41: 2.422571988 | M41: 14121 | N41: 2.365271581 | O41: 14455 | P41: 2.338291249 | Q41: 14793 | R41: 2.305144325 | S41: 15134 | T41: 2.259812343 | U41: 15476 | V41: 2.222796588 | W41: 15820 | X41: 2.18710493 | Y41: 16166 | Z41: 2.152666089 | AA41: 16514 | AB41: 2.113358363 | AC41: 16863 | AD41: 2.081480164 | AE41: 17214 | AF41: 2.044847217 | AG41: 17566
A42: 306 | B42: Santiago Sacatepéquez | C42: 33338 | D42: 2.000719899 | E42: 34005 | F42: 1.879135421 | G42: 34644 | H42: 1.749220644 | I42: 35250 | J42: 1.65106383 | K42: 35832 | L42: 1.610292476 | M42: 36409 | N42: 1.573786701 | O42: 36982 | P42: 1.533178303 | Q42: 37549 | R42: 1.496710964 | S42: 38111 | T42: 1.458896382 | U42: 38667 | V42: 1.424987716 | W42: 39218 | X42: 1.38966801 | Y42: 39763 | Z42: 1.347986822 | AA42: 40299 | AB42: 1.317650562 | AC42: 40830 | AD42: 1.278471712 | AE42: 41352 | AF42: 1.245405301 | AG42: 41867
A43: 307 | B43: San Bartolomé Milpas Altas | C43: 7751 | D43: 2.451296607 | E43: 7941 | F43: 2.103009697 | G43: 8108 | H43: 1.825357671 | I43: 8256 | J43: 1.635174419 | K43: 8391 | L43: 1.525443928 | M43: 8519 | N43: 1.443831436 | O43: 8642 | P43: 1.388567461 | Q43: 8762 | R43: 1.335311573 | S43: 8879 | T43: 1.28392837 | U43: 8993 | V43: 1.245413099 | W43: 9105 | X43: 1.197144426 | Y43: 9214 | Z43: 1.161276319 | AA43: 9321 | AB43: 1.115760112 | AC43: 9425 | AD43: 1.082228117 | AE43: 9527 | AF43: 1.049648368 | AG43: 9627
A44: 308 | B44: San Lucas Sacatepéquez | C44: 26381 | D44: 1.739888556 | E44: 26840 | F44: 1.616989568 | G44: 27274 | H44: 1.492263694 | I44: 27681 | J44: 1.390845706 | K44: 28066 | L44: 1.35038837 | M44: 28445 | N44: 1.31481807 | O44: 28819 | P44: 1.276935355 | Q44: 29187 | R44: 1.240278206 | S44: 29549 | T44: 1.194625876 | U44: 29902 | V44: 1.16714601 | W44: 30251 | X44: 1.130541139 | Y44: 30593 | Z44: 1.095021737 | AA44: 30928 | AB44: 1.054061045 | AC44: 31254 | AD44: 1.027068535 | AE44: 31575 | AF44: 0.9881235154 | AG44: 31887
A45: 309 | B45: Santa Lucía Milpas Altas | C45: 15182 | D45: 3.056250823 | E45: 15646 | F45: 2.697174997 | G45: 16068 | H45: 2.358725417 | I45: 16447 | J45: 2.097646987 | K45: 16792 | L45: 1.929490233 | M45: 17116 | N45: 1.787800888 | O45: 17422 | P45: 1.664562048 | Q45: 17712 | R45: 1.563911472 | S45: 17989 | T45: 1.467563511 | U45: 18253 | V45: 1.397030625 | W45: 18508 | X45: 1.323751891 | Y45: 18753 | Z45: 1.253132832 | AA45: 18988 | AB45: 1.206024858 | AC45: 19217 | AD45: 1.144819691 | AE45: 19437 | AF45: 1.100992952 | AG45: 19651
A46: 310 | B46: Magdalena Milpas Altas | C46: 12102 | D46: 1.156833581 | E46: 12242 | F46: 1.021074988 | G46: 12367 | H46: 0.8975499313 | I46: 12478 | J46: 0.8014104824 | K46: 12578 | L46: 0.7632373986 | M46: 12674 | N46: 0.7258955342 | O46: 12766 | P46: 0.6814977283 | Q46: 12853 | R46: 0.6457636349 | S46: 12936 | T46: 0.6184291899 | U46: 13016 | V46: 0.5762138906 | W46: 13091 | X46: 0.5423573447 | Y46: 13162 | Z46: 0.5014435496 | AA46: 13228 | AB46: 0.4687027517 | AC46: 13290 | AD46: 0.4364183597 | AE46: 13348 | AF46: 0.3895714714 | AG46: 13400
A47: 311 | B47: Santa María de Jesús | C47: 24780 | D47: 1.553672316 | E47: 25165 | F47: 1.430558315 | G47: 25525 | H47: 1.300685602 | I47: 25857 | J47: 1.202769076 | K47: 26168 | L47: 1.161724243 | M47: 26472 | N47: 1.121940163 | O47: 26769 | P47: 1.090814001 | Q47: 27061 | R47: 1.053176158 | S47: 27346 | T47: 1.009288379 | U47: 27622 | V47: 0.9774817175 | W47: 27892 | X47: 0.9393374444 | Y47: 28154 | Z47: 0.9057327556 | AA47: 28409 | AB47: 0.8694427822 | AC47: 28656 | AD47: 0.8340312674 | AE47: 28895 | AF47: 0.8029070773 | AG47: 29127
A48: 312 | B48: Ciudad Vieja | C48: 35075 | D48: 3.062009979 | E48: 36149 | F48: 2.871448726 | G48: 37187 | H48: 2.672977116 | I48: 38181 | J48: 2.511720489 | K48: 39140 | L48: 2.409299949 | M48: 40083 | N48: 2.312701145 | O48: 41010 | P48: 2.218970983 | Q48: 41920 | R48: 2.135019084 | S48: 42815 | T48: 2.043676282 | U48: 43690 | V48: 1.963836118 | W48: 44548 | X48: 1.885606537 | Y48: 45388 | Z48: 1.802238477 | AA48: 46206 | AB48: 1.729212656 | AC48: 47005 | AD48: 1.657270503 | AE48: 47784 | AF48: 1.586305039 | AG48: 48542
A49: 313 | B49: San Miguel Dueñas | C49: 13491 | D49: 2.727744422 | E49: 13859 | F49: 2.590374486 | G49: 14218 | H49: 2.41946828 | I49: 14562 | J49: 2.307375361 | K49: 14898 | L49: 2.235199356 | M49: 15231 | N49: 2.173199396 | O49: 15562 | P49: 2.120550058 | Q49: 15892 | R49: 2.051346589 | S49: 16218 | T49: 1.991614256 | U49: 16541 | V49: 1.940632368 | W49: 16862 | X49: 1.879966789 | Y49: 17179 | Z49: 1.816170906 | AA49: 17491 | AB49: 1.766622835 | AC49: 17800 | AD49: 1.707865169 | AE49: 18104 | AF49: 1.657092355 | AG49: 18404
A50: 314 | B50: San Juan Alotenango | C50: 25878 | D50: 1.657778808 | E50: 26307 | F50: 1.531911658 | G50: 26710 | H50: 1.407712467 | I50: 27086 | J50: 1.303256295 | K50: 27439 | L50: 1.268267794 | M50: 27787 | N50: 1.230791377 | O50: 28129 | P50: 1.190941733 | Q50: 28464 | R50: 1.152332771 | S50: 28792 | T50: 1.118366213 | U50: 29114 | V50: 1.081953699 | W50: 29429 | X50: 1.0465867 | Y50: 29737 | Z50: 1.008844201 | AA50: 30037 | AB50: 0.9721343676 | AC50: 30329 | AD50: 0.9396946817 | AE50: 30614 | AF50: 0.9015483112 | AG50: 30890
A51: 315 | B51: San Antonio Aguas Calientes | C51: 11018 | D51: 2.677436921 | E51: 11313 | F51: 2.554583223 | G51: 11602 | H51: 2.421996208 | I51: 11883 | J51: 2.33106118 | K51: 12160 | L51: 2.286184211 | M51: 12438 | N51: 2.235086027 | O51: 12716 | P51: 2.209814407 | Q51: 12997 | R51: 2.169731476 | S51: 13279 | T51: 2.131184577 | U51: 13562 | V51: 2.094086418 | W51: 13846 | X51: 2.058356204 | Y51: 14131 | Z51: 2.016842403 | AA51: 14416 | AB51: 1.990843507 | AC51: 14703 | AD51: 1.951982589 | AE51: 14990 | AF51: 1.91460974 | AG51: 15277
A52: 316 | B52: Santa Catarina Barahona | C52: 4022 | D52: 2.411735455 | E52: 4119 | F52: 2.282107308 | G52: 4213 | H52: 2.159981011 | I52: 4304 | J52: 2.044609665 | K52: 4392 | L52: 2.003642987 | M52: 4480 | N52: 1.986607143 | O52: 4569 | P52: 1.9260232 | Q52: 4657 | R52: 1.911101568 | S52: 4746 | T52: 1.854193005 | U52: 4834 | V52: 1.82043856 | W52: 4922 | X52: 1.787891101 | Y52: 5010 | Z52: 1.756487026 | AA52: 5098 | AB52: 1.706551589 | AC52: 5185 | AD52: 1.677917068 | AE52: 5272 | AF52: 1.650227618 | AG52: 5359
A53: 4 | B53: Chimaltenango | C53: 665056 | D53: 2.101477169 | E53: 679032 | F53: 2.06013855 | G53: 693021 | H53: 1.98854003 | I53: 706802 | J53: 1.886949952 | K53: 720139 | L53: 1.832840604 | M53: 733338 | N53: 1.776534149 | O53: 746366 | P53: 1.721809407 | Q53: 759217 | R53: 1.668824592 | S53: 771887 | T53: 1.614096364 | U53: 784346 | V53: 1.563468163 | W53: 796609 | X53: 1.513917116 | Y53: 808669 | Z53: 1.464010615 | AA53: 820508 | AB53: 1.41790208 | AC53: 832142 | AD53: 1.373563647 | AE53: 843572 | AF53: 1.330414001 | AG53: 854795
A54: 401 | B54: Chimaltenango | C54: 102730 | D54: 1.97897401 | E54: 104763 | F54: 1.956797724 | G54: 106813 | H54: 1.900517727 | I54: 108843 | J54: 1.813621455 | K54: 110817 | L54: 1.769584089 | M54: 112778 | N54: 1.72196705 | O54: 114720 | P54: 1.675383543 | Q54: 116642 | R54: 1.628058504 | S54: 118541 | T54: 1.578356855 | U54: 120412 | V54: 1.532239312 | W54: 122257 | X54: 1.485395519 | Y54: 124073 | Z54: 1.438669171 | AA54: 125858 | AB54: 1.394428642 | AC54: 127613 | AD54: 1.35252678 | AE54: 129339 | AF54: 1.309736429 | AG54: 131033
A55: 402 | B55: San José Poaquil | C55: 30322 | D55: 1.810566585 | E55: 30871 | F55: 1.771889476 | G55: 31418 | H55: 1.699662614 | I55: 31952 | J55: 1.596144216 | K55: 32462 | L55: 1.543342986 | M55: 32963 | N55: 1.489548888 | O55: 33454 | P55: 1.428827644 | Q55: 33932 | R55: 1.379229046 | S55: 34400 | T55: 1.322674419 | U55: 34855 | V55: 1.268110745 | W55: 35297 | X55: 1.218233844 | Y55: 35727 | Z55: 1.167184482 | AA55: 36144 | AB55: 1.120517928 | AC55: 36549 | AD55: 1.069796711 | AE55: 36940 | AF55: 1.031402274 | AG55: 37321
A56: 403 | B56: San Martín Jilotepeque | C56: 84520 | D56: 1.858731661 | E56: 86091 | F56: 1.819005471 | G56: 87657 | H56: 1.748862042 | I56: 89190 | J56: 1.647045633 | K56: 90659 | L56: 1.592781743 | M56: 92103 | N56: 1.535237723 | O56: 93517 | P56: 1.479944823 | Q56: 94901 | R56: 1.425696252 | S56: 96254 | T56: 1.368254826 | U56: 97571 | V56: 1.318014574 | W56: 98857 | X56: 1.266475819 | Y56: 100109 | Z56: 1.214676003 | AA56: 101325 | AB56: 1.166543301 | AC56: 102507 | AD56: 1.121874604 | AE56: 103657 | AF56: 1.076627724 | AG56: 104773
A57: 404 | B57: San Juan Comalapa | C57: 51449 | D57: 2.614239344 | E57: 52794 | F57: 2.574156154 | G57: 54153 | H57: 2.502169778 | I57: 55508 | J57: 2.401455646 | K57: 56841 | L57: 2.345138193 | M57: 58174 | N57: 2.287963695 | O57: 59505 | P57: 2.233425763 | Q57: 60834 | R57: 2.174770687 | S57: 62157 | T57: 2.122045787 | U57: 63476 | V57: 2.066922932 | W57: 64788 | X57: 2.015805396 | Y57: 66094 | Z57: 1.96386964 | AA57: 67392 | AB57: 1.9171415 | AC57: 68684 | AD57: 1.869431017 | AE57: 69968 | AF57: 1.82369083 | AG57: 71244
A58: 405 | B58: Santa Apolonia | C58: 21523 | D58: 1.607582586 | E58: 21869 | F58: 1.563857515 | G58: 22211 | H58: 1.503759398 | I58: 22545 | J58: 1.392770016 | K58: 22859 | L58: 1.34301588 | M58: 23166 | N58: 1.286367953 | O58: 23464 | P58: 1.223150358 | Q58: 23751 | R58: 1.178897731 | S58: 24031 | T58: 1.115226166 | U58: 24299 | V58: 1.070002881 | W58: 24559 | X58: 1.01388493 | Y58: 24808 | Z58: 0.9674298613 | AA58: 25048 | AB58: 0.9142446503 | AC58: 25277 | AD58: 0.8703564505 | AE58: 25497 | AF58: 0.827548339 | AG58: 25708
A59: 406 | B59: Tecpán Guatemala | C59: 98471 | D59: 2.157995755 | E59: 100596 | F59: 2.119368563 | G59: 102728 | H59: 2.047153648 | I59: 104831 | J59: 1.945989259 | K59: 106871 | L59: 1.892000636 | M59: 108893 | N59: 1.834828685 | O59: 110891 | P59: 1.779224644 | Q59: 112864 | R59: 1.724199036 | S59: 114810 | T59: 1.667973173 | U59: 116725 | V59: 1.615763547 | W59: 118611 | X59: 1.565622076 | Y59: 120468 | Z59: 1.512434837 | AA59: 122290 | AB59: 1.466186933 | AC59: 124083 | AD59: 1.420017247 | AE59: 125845 | AF59: 1.374706981 | AG59: 127575
A60: 407 | B60: Patzún | C60: 63573 | D60: 1.942648609 | E60: 64808 | F60: 1.900999877 | G60: 66040 | H60: 1.832222895 | I60: 67250 | J60: 1.730855019 | K60: 68414 | L60: 1.675095741 | M60: 69560 | N60: 1.617308798 | O60: 70685 | P60: 1.563273679 | Q60: 71790 | R60: 1.508566653 | S60: 72873 | T60: 1.453213124 | U60: 73932 | V60: 1.398582481 | W60: 74966 | X60: 1.349945309 | Y60: 75978 | Z60: 1.297744084 | AA60: 76964 | AB60: 1.249935035 | AC60: 77926 | AD60: 1.204989349 | AE60: 78865 | AF60: 1.160210486 | AG60: 79780
A61: 408 | B61: San Miguel Pochuta | C61: 10439 | D61: 0.9675256251 | E61: 10540 | F61: 1.05313093 | G61: 10651 | H61: 1.060933246 | I61: 10764 | J61: 1.059085842 | K61: 10878 | L61: 1.084758228 | M61: 10996 | N61: 1.091305929 | O61: 11116 | P61: 1.106513134 | Q61: 11239 | R61: 1.121096183 | S61: 11365 | T61: 1.10866696 | U61: 11491 | V61: 1.122617701 | W61: 11620 | X61: 1.101549053 | Y61: 11748 | Z61: 1.098059244 | AA61: 11877 | AB61: 1.086132862 | AC61: 12006 | AD61: 1.0661336 | AE61: 12134 | AF61: 1.054887094 | AG61: 12262
A62: 409 | B62: Patzicía | C62: 35017 | D62: 2.690121941 | E62: 35959 | F62: 2.516755193 | G62: 36864 | H62: 2.346462674 | I62: 37729 | J62: 2.168093509 | K62: 38547 | L62: 2.049446131 | M62: 39337 | N62: 1.949818237 | O62: 40104 | P62: 1.855176541 | Q62: 40848 | R62: 1.769976498 | S62: 41571 | T62: 1.698299295 | U62: 42277 | V62: 1.624997043 | W62: 42964 | X62: 1.561772647 | Y62: 43635 | Z62: 1.501088576 | AA62: 44290 | AB62: 1.442763604 | AC62: 44929 | AD62: 1.395535178 | AE62: 45556 | AF62: 1.343401528 | AG62: 46168
A63: 410 | B63: Santa Cruz Balanyá | C63: 9743 | D63: 1.909062917 | E63: 9929 | F63: 1.873300433 | G63: 10115 | H63: 1.809194266 | I63: 10298 | J63: 1.689648475 | K63: 10472 | L63: 1.66157372 | M63: 10646 | N63: 1.587450686 | O63: 10815 | P63: 1.534905224 | Q63: 10981 | R63: 1.484382115 | S63: 11144 | T63: 1.417803302 | U63: 11302 | V63: 1.371438683 | W63: 11457 | X63: 1.317971546 | Y63: 11608 | Z63: 1.274982771 | AA63: 11756 | AB63: 1.224906431 | AC63: 11900 | AD63: 1.176470588 | AE63: 12040 | AF63: 1.137873754 | AG63: 12177
A64: 411 | B64: Acatenango | C64: 25993 | D64: 1.65429154 | E64: 26423 | F64: 1.616016349 | G64: 26850 | H64: 1.545623836 | I64: 27265 | J64: 1.448743811 | K64: 27660 | L64: 1.384671005 | M64: 28043 | N64: 1.333666156 | O64: 28417 | P64: 1.277404371 | Q64: 28780 | R64: 1.223071577 | S64: 29132 | T64: 1.170534121 | U64: 29473 | V64: 1.112882978 | W64: 29801 | X64: 1.067078286 | Y64: 30119 | Z64: 1.009329659 | AA64: 30423 | AB64: 0.9696611117 | AC64: 30718 | AD64: 0.9147730972 | AE64: 30999 | AF64: 0.8774476596 | AG64: 31271
A65: 412 | B65: San Pedro Yepocapa | C65: 36948 | D65: 2.379019162 | E65: 37827 | F65: 2.342242314 | G65: 38713 | H65: 2.267971999 | I65: 39591 | J65: 2.167159203 | K65: 40449 | L65: 2.113772899 | M65: 41304 | N65: 2.055490994 | O65: 42153 | P65: 1.999857661 | Q65: 42996 | R65: 1.944366918 | S65: 43832 | T65: 1.886749407 | U65: 44659 | V65: 1.838375244 | W65: 45480 | X65: 1.783201407 | Y65: 46291 | Z65: 1.734678447 | AA65: 47094 | AB65: 1.68386631 | AC65: 47887 | AD65: 1.641364045 | AE65: 48673 | AF65: 1.594313069 | AG65: 49449
A66: 413 | B66: San Andrés Itzapa | C66: 32050 | D66: 1.5975039 | E66: 32562 | F66: 1.587740311 | G66: 33079 | H66: 1.556878987 | I66: 33594 | J66: 1.485384295 | K66: 34093 | L66: 1.46071041 | M66: 34591 | N66: 1.433898991 | O66: 35087 | P66: 1.402228746 | Q66: 35579 | R66: 1.371595604 | S66: 36067 | T66: 1.339174314 | U66: 36550 | V66: 1.307797538 | W66: 37028 | X66: 1.277411688 | Y66: 37501 | Z66: 1.239966934 | AA66: 37966 | AB66: 1.211610388 | AC66: 38426 | AD66: 1.181491698 | AE66: 38880 | AF66: 1.149691358 | AG66: 39327
A67: 414 | B67: Parramos | C67: 17334 | D67: 2.711434176 | E67: 17804 | F67: 2.673556504 | G67: 18280 | H67: 2.598468271 | I67: 18755 | J67: 2.495334577 | K67: 19223 | L67: 2.444987775 | M67: 19693 | N67: 2.386634845 | O67: 20163 | P67: 2.326042752 | Q67: 20632 | R67: 2.278014734 | S67: 21102 | T67: 2.217799261 | U67: 21570 | V67: 2.165044043 | W67: 22037 | X67: 2.114625403 | Y67: 22503 | Z67: 2.066391148 | AA67: 22968 | AB67: 2.011494253 | AC67: 23430 | AD67: 1.967562953 | AE67: 23891 | AF67: 1.921225566 | AG67: 24350
A68: 415 | B68: Zaragoza | C68: 25209 | D68: 2.705382998 | E68: 25891 | F68: 2.603221197 | G68: 26565 | H68: 2.473178995 | I68: 27222 | J68: 2.321651605 | K68: 27854 | L68: 2.222302003 | M68: 28473 | N68: 2.121307906 | O68: 29077 | P68: 2.032534305 | Q68: 29668 | R68: 1.944856411 | S68: 30245 | T68: 1.858158373 | U68: 30807 | V68: 1.778816503 | W68: 31355 | X68: 1.706266943 | Y68: 31890 | Z68: 1.630605205 | AA68: 32410 | AB68: 1.570502931 | AC68: 32919 | AD68: 1.506728637 | AE68: 33415 | AF68: 1.445458626 | AG68: 33898
A69: 416 | B69: El Tejar | C69: 19735 | D69: 2.888269572 | E69: 20305 | F69: 2.851514405 | G69: 20884 | H69: 2.782034093 | I69: 21465 | J69: 2.678779408 | K69: 22040 | L69: 2.622504537 | M69: 22618 | N69: 2.564329295 | O69: 23198 | P69: 2.508836969 | Q69: 23780 | R69: 2.451640034 | S69: 24363 | T69: 2.397077536 | U69: 24947 | V69: 2.344971339 | W69: 25532 | X69: 2.291242363 | Y69: 26117 | Z69: 2.243749282 | AA69: 26703 | AB69: 2.190765083 | AC69: 27288 | AD69: 2.143799472 | AE69: 27873 | AF69: 2.102392997 | AG69: 28459
A70: 5 | B70: Escuintla | C70: 734225 | D70: 1.664884742 | E70: 746449 | F70: 1.564607897 | G70: 758128 | H70: 1.507924783 | I70: 769560 | J70: 1.443292271 | K70: 780667 | L70: 1.405464814 | M70: 791639 | N70: 1.369311012 | O70: 802479 | P70: 1.332122087 | Q70: 813169 | R70: 1.293089136 | S70: 823684 | T70: 1.255578596 | U70: 834026 | V70: 1.215909336 | W70: 844167 | X70: 1.178439811 | Y70: 854115 | Z70: 1.141883704 | AA70: 863868 | AB70: 1.105492969 | AC70: 873418 | AD70: 1.069476471 | AE70: 882759 | AF70: 1.036183149 | AG70: 891906
A71: 501 | B71: Escuintla | C71: 154623 | D71: 1.592259884 | E71: 157085 | F71: 1.490912563 | G71: 159427 | H71: 1.429494377 | I71: 161706 | J71: 1.360493736 | K71: 163906 | L71: 1.318438617 | M71: 166067 | N71: 1.280206182 | O71: 168193 | P71: 1.24083642 | Q71: 170280 | R71: 1.200375852 | S71: 172324 | T71: 1.162925652 | U71: 174328 | V71: 1.123743747 | W71: 176287 | X71: 1.086864034 | Y71: 178203 | Z71: 1.051609681 | AA71: 180077 | AB71: 1.016787263 | AC71: 181908 | AD71: 0.9829144403 | AE71: 183696 | AF71: 0.9515721627 | AG71: 185444
A72: 502 | B72: Santa Lucía Cotzumalguapa | C72: 113756 | D72: 1.969126903 | E72: 115996 | F72: 1.814717749 | G72: 118101 | H72: 1.718021016 | I72: 120130 | J72: 1.623241488 | K72: 122080 | L72: 1.562090433 | M72: 123987 | N72: 1.505803028 | O72: 125854 | P72: 1.453271251 | Q72: 127683 | R72: 1.401909416 | S72: 129473 | T72: 1.353177883 | U72: 131225 | V72: 1.303105353 | W72: 132935 | X72: 1.258509798 | Y72: 134608 | Z72: 1.21463806 | AA72: 136243 | AB72: 1.172170313 | AC72: 137840 | AD72: 1.130295995 | AE72: 139398 | AF72: 1.09255513 | AG72: 140921
A73: 503 | B73: La Democracia | C73: 24075 | D73: 1.341640706 | E73: 24398 | F73: 1.213214198 | G73: 24694 | H73: 1.129829108 | I73: 24973 | J73: 1.033115765 | K73: 25231 | L73: 0.9631009472 | M73: 25474 | N73: 0.8989557981 | O73: 25703 | P73: 0.8325876357 | Q73: 25917 | R73: 0.7678357835 | S73: 26116 | T73: 0.7007198652 | U73: 26299 | V73: 0.6426099852 | W73: 26468 | X73: 0.5742783739 | Y73: 26620 | Z73: 0.5184072126 | AA73: 26758 | AB73: 0.4522012109 | AC73: 26879 | AD73: 0.3943599092 | AE73: 26985 | AF73: 0.3372243839 | AG73: 27076
A74: 504 | B74: Siquinalá | C74: 24427 | D74: =+(((E74/C74)^(1/1))-1)*100 -> 0.7532648299 | E74: 24611 | F74: =+(((G74/E74)^(1/1))-1)*100 -> 0.9142253464 | G74: 24836 | H74: =+(((I74/G74)^(1/1))-1)*100 -> 1.04686745 | I74: 25096 | J74: =+(((K74/I74)^(1/1))-1)*100 -> 1.119700351 | K74: 25377 | L74: =+(((M74/K74)^(1/1))-1)*100 -> 1.18611341 | M74: 25678 | N74: =+(((O74/M74)^(1/1))-1)*100 -> 1.226731054 | O74: 25993 | P74: =+(((Q74/O74)^(1/1))-1)*100 -> 1.246489439 | Q74: 26317 | R74: =+(((S74/Q74)^(1/1))-1)*100 -> 1.246342668 | S74: 26645 | T74: =+(((U74/S74)^(1/1))-1)*100 -> 1.238506286 | U74: 26975 | V74: =+(((W74/U74)^(1/1))-1)*100 -> 1.215940686 | W74: 27303 | X74: =+(((Y74/W74)^(1/1))-1)*100 -> 1.194007984 | Y74: 27629 | Z74: =+(((AA74/Y74)^(1/1))-1)*100 -> 1.165442108 | AA74: 27951 | AB74: =+(((AC74/AA74)^(1/1))-1)*100 -> 1.13770527 | AC74: 28269 | AD74: =+(((AE74/AC74)^(1/1))-1)*100 -> 1.103682479 | AE74: 28581 | AF74: =+(((AG74/AE74)^(1/1))-1)*100 -> 1.070641335 | AG74: 28887
A75: 505 | B75: Masagua | C75: 44275 | D75: 1.567476002 | E75: 44969 | F75: 1.452111455 | G75: 45622 | H75: 1.376528868 | I75: 46250 | J75: 1.299459459 | K75: 46851 | L75: 1.246504877 | M75: 47435 | N75: 1.195319911 | O75: 48002 | P75: 1.145785592 | Q75: 48552 | R75: 1.097792058 | S75: 49085 | T75: 1.049200367 | U75: 49600 | V75: 1.002016129 | W75: 50097 | X75: 0.9581412061 | Y75: 50577 | Z75: 0.9134586868 | AA75: 51039 | AB75: 0.8718822861 | AC75: 51484 | AD75: 0.8293838863 | AE75: 51911 | AF75: 0.7917397083 | AG75: 52322
A76: 506 | B76: Tiquisate | C76: 60648 | D76: 0.6677878908 | E76: 61053 | F76: 0.686288962 | G76: 61472 | H76: 0.7336673607 | I76: 61923 | J76: 0.759007154 | K76: 62393 | L76: 0.8029746927 | M76: 62894 | N76: 0.8395077432 | O76: 63422 | P76: 0.865630223 | Q76: 63971 | R76: 0.8847759141 | S76: 64537 | T76: 0.8971597688 | U76: 65116 | V76: 0.90300387 | W76: 65704 | X76: 0.905576525 | Y76: 66299 | Z76: 0.9034827071 | AA76: 66898 | AB76: 0.8983826123 | AC76: 67499 | AD76: 0.8889020578 | AE76: 68099 | AF76: 0.8810702066 | AG76: 68699
A77: 507 | B77: La Gomera | C77: 60984 | D77: -23.61930998 | E77: 46580 | F77: 2.410905968 | G77: 47703 | H77: 2.335282896 | I77: 48817 | J77: 2.257410328 | K77: 49919 | L77: 2.199563293 | M77: 51017 | N77: 2.150263638 | O77: 52114 | P77: 2.105000576 | Q77: 53211 | R77: 2.048448629 | S77: 54301 | T77: 2.001804755 | U77: 55388 | V77: 1.955297176 | W77: 56471 | X77: 1.907173594 | Y77: 57548 | Z77: 1.864530479 | AA77: 58621 | AB77: 1.820166834 | AC77: 59688 | AD77: 1.78092749 | AE77: 60751 | AF77: 1.738242992 | AG77: 61807
A78: 508 | B78: Guanagazapa | C78: 17061 | D78: 0.08791981713 | E78: 17076 | F78: 0.1522604825 | G78: 17102 | H78: 0.2572798503 | I78: 17146 | J78: 0.3266067888 | K78: 17202 | L78: 0.4243692594 | M78: 17275 | N78: 0.497829233 | O78: 17361 | P78: 0.5587235758 | Q78: 17458 | R78: 0.6128995303 | S78: 17565 | T78: 0.6604042129 | U78: 17681 | V78: 0.6843504327 | W78: 17802 | X78: 0.7190203348 | Y78: 17930 | Z78: 0.736196319 | AA78: 18062 | AB78: 0.7474255343 | AC78: 18197 | AD78: 0.7583667638 | AE78: 18335 | AF78: 0.7635669485 | AG78: 18475
A79: 509 | B79: San José | C79: 60845 | D79: 1.911414249 | E79: 62008 | F79: 1.798155077 | G79: 63123 | H79: 1.723618966 | I79: 64211 | J79: 1.644578032 | K79: 65267 | L79: 1.588858075 | M79: 66304 | N79: 1.541385135 | O79: 67326 | P79: 1.492736833 | Q79: 68331 | R79: 1.441512637 | S79: 69316 | T79: 1.395060304 | U79: 70283 | V79: 1.345986939 | W79: 71229 | X79: 1.301436213 | Y79: 72156 | Z79: 1.258384611 | AA79: 73064 | AB79: 1.215372824 | AC79: 73952 | AD79: 1.175086543 | AE79: 74821 | AF79: 1.136044693 | AG79: 75671
A80: 510 | B80: Iztapa | C80: 17918 | D80: 2.405402389 | E80: 18349 | F80: 2.136356205 | G80: 18741 | H80: 1.958273305 | I80: 19108 | J80: 1.795059661 | K80: 19451 | L80: 1.691429747 | M80: 19780 | N80: 1.597573306 | O80: 20096 | P80: 1.517714968 | Q80: 20401 | R80: 1.450909269 | S80: 20697 | T80: 1.386674397 | U80: 20984 | V80: 1.334349981 | W80: 21264 | X80: 1.269751693 | Y80: 21534 | Z80: 1.230612055 | AA80: 21799 | AB80: 1.183540529 | AC80: 22057 | AD80: 1.13342703 | AE80: 22307 | AF80: 1.09382705 | AG80: 22551
A81: 511 | B81: Palín | C81: 64408 | D81: 1.951620917 | E81: 65665 | F81: 1.781771111 | G81: 66835 | H81: 1.690730904 | I81: 67965 | J81: 1.600823954 | K81: 69053 | L81: 1.548086253 | M81: 70122 | N81: 1.497390263 | O81: 71172 | P81: 1.448603383 | Q81: 72203 | R81: 1.397448859 | S81: 73212 | T81: 1.350871442 | U81: 74201 | V81: 1.301869247 | W81: 75167 | X81: 1.258531004 | Y81: 76113 | Z81: 1.21398447 | AA81: 77037 | AB81: 1.170865948 | AC81: 77939 | AD81: 1.130371188 | AE81: 78820 | AF81: 1.092362345 | AG81: 79681
A82: 512 | B82: San Vicente Pacaya | C82: 16558 | D82: 1.77557676 | E82: 16852 | F82: 1.661523855 | G82: 17132 | H82: 1.575998132 | I82: 17402 | J82: 1.511320538 | K82: 17665 | L82: 1.443532409 | M82: 17920 | N82: 1.40625 | O82: 18172 | P82: 1.348228043 | Q82: 18417 | R82: 1.303143835 | S82: 18657 | T82: 1.254220936 | U82: 18891 | V82: 1.212217458 | W82: 19120 | X82: 1.161087866 | Y82: 19342 | Z82: 1.116740771 | AA82: 19558 | AB82: 1.078842417 | AC82: 19769 | AD82: 1.036977085 | AE82: 19974 | AF82: 0.9962951837 | AG82: 20173
A83: 513 | B83: Nueva Concepción | C83: 74647 | D83: 1.629000496 | E83: 75863 | F83: 1.514572321 | G83: 77012 | H83: 1.442632317 | I83: 78123 | J83: 1.360674833 | K83: 79186 | L83: 1.309574925 | M83: 80223 | N83: 1.258990564 | O83: 81233 | P83: 1.210099344 | Q83: 82216 | R83: 1.160358081 | S83: 83170 | T83: 1.113382229 | U83: 84096 | V83: 1.064259893 | W83: 84991 | X83: 1.020108011 | Y83: 85858 | Z83: 0.9771949032 | AA83: 86697 | AB83: 0.9342883837 | AC83: 87507 | AD83: 0.8925000286 | AE83: 88288 | AF83: 0.8551558536 | AG83: 89043
A84: 514 | B84: Sipacate | C84: … | E84: 15944 | F84: 2.408429503 | G84: 16328 | H84: 2.339539441 | I84: 16710 | J84: 2.250149611 | K84: 17086 | L84: 2.206484841 | M84: 17463 | N84: 2.147397354 | O84: 17838 | P84: 2.096647606 | Q84: 18212 | R84: 2.053591039 | S84: 18586 | T84: 2.006886904 | U84: 18959 | V84: 1.951579725 | W84: 19329 | X84: 1.90904858 | Y84: 19698 | Z84: 1.858056655 | AA84: 20064 | AB84: 1.824162679 | AC84: 20430 | AD84: 1.776798825 | AE84: 20793 | AF84: 1.74577983 | AG84: 21156
A85: 6 | B85: Santa Rosa | C85: 411982 | D85: 1.504191931 | E85: 418179 | F85: 1.411118205 | G85: 424080 | H85: 1.381343143 | I85: 429938 | J85: 1.301350427 | K85: 435533 | L85: 1.262590894 | M85: 441032 | N85: 1.225307914 | O85: 446436 | P85: 1.186060264 | Q85: 451731 | R85: 1.15046344 | S85: 456928 | T85: 1.114179915 | U85: 462019 | V85: 1.074414689 | W85: 466983 | X85: 1.036440299 | Y85: 471823 | Z85: 1.00143486 | AA85: 476548 | AB85: 0.9675835383 | AC85: 481159 | AD85: 0.9348261178 | AE85: 485657 | AF85: 0.9010474471 | AG85: 490033
A86: 601 | B86: Cuilapa | C86: 43972 | D86: 1.143909761 | E86: 44475 | F86: 1.133220911 | G86: 44979 | H86: 1.149425287 | I86: 45496 | J86: 1.098997714 | K86: 45996 | L86: 1.071832333 | M86: 46489 | N86: 1.043257545 | O86: 46974 | P86: 1.009068847 | Q86: 47448 | R86: 0.9736975215 | S86: 47910 | T86: 0.9392611146 | U86: 48360 | V86: 0.8995037221 | W86: 48795 | X86: 0.8607439287 | Y86: 49215 | Z86: 0.8249517424 | AA86: 49621 | AB86: 0.7899881099 | AC86: 50013 | AD86: 0.7578029712 | AE86: 50392 | AF86: 0.7223368789 | AG86: 50756
A87: 602 | B87: Barberena | C87: 56507 | D87: 1.491850567 | E87: 57350 | F87: 1.380993897 | G87: 58142 | H87: 1.339823191 | I87: 58921 | J87: 1.247433004 | K87: 59656 | L87: 1.206919673 | M87: 60376 | N87: 1.164369948 | O87: 61079 | P87: 1.121498387 | Q87: 61764 | R87: 1.083155236 | S87: 62433 | T87: 1.045921228 | U87: 63086 | V87: 1.004977333 | W87: 63720 | X87: 0.9651600753 | Y87: 64335 | Z87: 0.9295095982 | AA87: 64933 | AB87: 0.8963085026 | AC87: 65515 | AD87: 0.8608715561 | AE87: 66079 | AF87: 0.8262836907 | AG87: 66625
A88: 603 | B88: Santa Rosa de Lima | C88: 19147 | D88: 2.292787382 | E88: 19586 | F88: 2.078014909 | G88: 19993 | H88: 1.945680988 | I88: 20382 | J88: 1.776076931 | K88: 20744 | L88: 1.658310837 | M88: 21088 | N88: 1.550644917 | O88: 21415 | P88: 1.452253094 | Q88: 21726 | R88: 1.371628464 | S88: 22024 | T88: 1.280421359 | U88: 22306 | V88: 1.196987358 | W88: 22573 | X88: 1.129668188 | Y88: 22828 | Z88: 1.06010163 | AA88: 23070 | AB88: 0.9969657564 | AC88: 23300 | AD88: 0.9399141631 | AE88: 23519 | AF88: 0.8843913432 | AG88: 23727
A89: 604 | B89: Casillas | C89: 25055 | D89: 0.5068848533 | E89: 25182 | F89: 0.567865936 | G89: 25325 | H89: 0.6633761106 | I89: 25493 | J89: 0.6943082415 | K89: 25670 | L89: 0.7362680171 | M89: 25859 | N89: 0.7734251131 | O89: 26059 | P89: 0.790513834 | Q89: 26265 | R89: 0.7919284219 | S89: 26473 | T89: 0.797038492 | U89: 26684 | V89: 0.7869884575 | W89: 26894 | X89: 0.7696884063 | Y89: 27101 | Z89: 0.7527397513 | AA89: 27305 | AB89: 0.7324665812 | AC89: 27505 | AD89: 0.7125977095 | AE89: 27701 | AF89: 0.685895816 | AG89: 27891
A90: 605 | B90: San Rafael Las Flores | C90: 12421 | D90: 2.012720393 | E90: 12671 | F90: 1.909872938 | G90: 12913 | H90: 1.86633625 | I90: 13154 | J90: 1.778926562 | K90: 13388 | L90: 1.73289513 | M90: 13620 | N90: 1.688693098 | O90: 13850 | P90: 1.646209386 | Q90: 14078 | R90: 1.61244495 | S90: 14305 | T90: 1.572876617 | U90: 14530 | V90: 1.527873365 | W90: 14752 | X90: 1.49132321 | Y90: 14972 | Z90: 1.456051296 | AA90: 15190 | AB90: 1.415404872 | AC90: 15405 | AD90: 1.382667965 | AE90: 15618 | AF90: 1.35100525 | AG90: 15829
A91: 606 | B91: Oratorio | C91: 24434 | D91: 1.939919784 | E91: 24908 | F91: 1.826722338 | G91: 25363 | H91: 1.782123566 | I91: 25815 | J91: 1.696687972 | K91: 26253 | L91: 1.649335314 | M91: 26686 | N91: 1.607584501 | O91: 27115 | P91: 1.563710124 | Q91: 27539 | R91: 1.525109844 | S91: 27959 | T91: 1.487892986 | U91: 28375 | V91: 1.44845815 | W91: 28786 | X91: 1.406933926 | Y91: 29191 | Z91: 1.370285362 | AA91: 29591 | AB91: 1.338244737 | AC91: 29987 | AD91: 1.300563578 | AE91: 30377 | AF91: 1.267406261 | AG91: 30762
A92: 607 | B92: San Juan Tecuaco | C92: 11429 | D92: 2.126170269 | E92: 11672 | F92: 2.013365319 | G92: 11907 | H92: 1.982027379 | I92: 12143 | J92: 1.877624969 | K92: 12371 | L92: 1.843019966 | M92: 12599 | N92: 1.793793158 | O92: 12825 | P92: 1.754385965 | Q92: 13050 | R92: 1.724137931 | S92: 13275 | T92: 1.679849341 | U92: 13498 | V92: 1.637279597 | W92: 13719 | X92: 1.596326263 | Y92: 13938 | Z92: 1.56406945 | AA92: 14156 | AB92: 1.518790619 | AC92: 14371 | AD92: 1.496068471 | AE92: 14586 | AF92: 1.460304401 | AG92: 14799
A93: 608 | B93: Chiquimulilla | C93: 58748 | D93: 1.857084496 | E93: 59839 | F93: 1.74133926 | G93: 60881 | H93: 1.69839523 | I93: 61915 | J93: 1.611887265 | K93: 62913 | L93: 1.564064661 | M93: 63897 | N93: 1.524328216 | O93: 64871 | P93: 1.481401551 | Q93: 65832 | R93: 1.441548183 | S93: 66781 | T93: 1.404591126 | U93: 67719 | V93: 1.362985277 | W93: 68642 | X93: 1.321348446 | Y93: 69549 | Z93: 1.2868625 | AA93: 70444 | AB93: 1.252058373 | AC93: 71326 | AD93: 1.215545523 | AE93: 72193 | AF93: 1.181554998 | AG93: 73046
A94: 609 | B94: Taxisco | C94: 32826 | D94: 2.08980686 | E94: 33512 | F94: 1.978395799 | G94: 34175 | H94: 1.934162399 | I94: 34836 | J94: 1.842921116 | K94: 35478 | L94: 1.801116185 | M94: 36117 | N94: 1.755406041 | O94: 36751 | P94: 1.714239068 | Q94: 37381 | R94: 1.677322704 | S94: 38008 | T94: 1.636497579 | U94: 38630 | V94: 1.594615584 | W94: 39246 | X94: 1.556846558 | Y94: 39857 | Z94: 1.517926588 | AA94: 40462 | AB94: 1.482872819 | AC94: 41062 | AD94: 1.45146364 | AE94: 41658 | AF94: 1.411493591 | AG94: 42246
A95: 610 | B95: Santa María Ixhuatán | C95: 25558 | D95: 0.9312152751 | E95: 25796 | F95: 0.8179562723 | G95: 26007 | H95: 0.7805590802 | I95: 26210 | J95: 0.6867607783 | K95: 26390 | L95: 0.6441834028 | M95: 26560 | N95: 0.6061746988 | O95: 26721 | P95: 0.5613562367 | Q95: 26871 | R95: 0.524729262 | S95: 27012 | T95: 0.4849696431 | U95: 27143 | V95: 0.4421029363 | W95: 27263 | X95: 0.4071452151 | Y95: 27374 | Z95: 0.3689632498 | AA95: 27475 | AB95: 0.3384895359 | AC95: 27568 | AD95: 0.3010737086 | AE95: 27651 | AF95: 0.2676214242 | AG95: 27725
A96: 611 | B96: Guazacapán | C96: 20338 | D96: 1.656996755 | E96: 20675 | F96: 1.542926239 | G96: 20994 | H96: 1.500428694 | I96: 21309 | J96: 1.412548688 | K96: 21610 | L96: 1.369736233 | M96: 21906 | N96: 1.328403177 | O96: 22197 | P96: 1.283957292 | Q96: 22482 | R96: 1.245440797 | S96: 22762 | T96: 1.208153941 | U96: 23037 | V96: 1.167686765 | W96: 23306 | X96: 1.128464773 | Y96: 23569 | Z96: 1.094658238 | AA96: 23827 | AB96: 1.053426785 | AC96: 24078 | AD96: 1.021679541 | AE96: 24324 | AF96: 0.9907909883 | AG96: 24565
A97: 612 | B97: Santa Cruz Naranjo | C97: 15980 | D97: 2.071339174 | E97: 16311 | F97: 1.967997057 | G97: 16632 | H97: 1.917989418 | I97: 16951 | J97: 1.828800661 | K97: 17261 | L97: 1.784369388 | M97: 17569 | N97: 1.741704138 | O97: 17875 | P97: 1.700699301 | Q97: 18179 | R97: 1.661257495 | S97: 18481 | T97: 1.628699746 | U97: 18782 | V97: 1.586625492 | W97: 19080 | X97: 1.540880503 | Y97: 19374 | Z97: 1.507174564 | AA97: 19666 | AB97: 1.46954134 | AC97: 19955 | AD97: 1.438236031 | AE97: 20242 | AF97: 1.403023417 | AG97: 20526
A98: 613 | B98: Pueblo Nuevo Viñas | C98: 28385 | D98: 0.785626211 | E98: 28608 | F98: 0.6711409396 | G98: 28800 | H98: 0.6319444444 | I98: 28982 | J98: 0.5451659651 | K98: 29140 | L98: 0.4975978037 | M98: 29285 | N98: 0.4541574185 | O98: 29418 | P98: 0.414712081 | Q98: 29540 | R98: 0.3757616791 | S98: 29651 | T98: 0.3372567536 | U98: 29751 | V98: 0.2991496084 | W98: 29840 | X98: 0.2580428954 | Y98: 29917 | Z98: 0.2206103553 | AA98: 29983 | AB98: 0.1901077277 | AC98: 30040 | AD98: 0.1531291611 | AE98: 30086 | AF98: 0.1196569833 | AG98: 30122
A99: 614 | B99: Nueva Santa Rosa | C99: 37182 | D99: 1.108063041 | E99: 37594 | F99: 0.997499601 | G99: 37969 | H99: 0.9534093603 | I99: 38331 | J99: 0.8661396781 | K99: 38663 | L99: 0.822491788 | M99: 38981 | N99: 0.7824324671 | O99: 39286 | P99: 0.7381764496 | Q99: 39576 | R99: 0.7024459268 | S99: 39854 | T99: 0.6624178251 | U99: 40118 | V99: 0.6206690264 | W99: 40367 | X99: 0.584635965 | Y99: 40603 | Z99: 0.5467576287 | AA99: 40825 | AB99: 0.5119412125 | AC99: 41034 | AD99: 0.4800896817 | AE99: 41231 | AF99: 0.4438407994 | AG99: 41414
A100: 7 | B100: Sololá | C100: 431746 | D100: 1.629198649 | E100: 438780 | F100: 1.632936779 | G100: 445945 | H100: 1.60378522 | I100: 453097 | J100: 1.572069557 | K100: 460220 | L100: 1.53100691 | M100: 467266 | N100: 1.49251176 | O100: 474240 | P100: 1.449477058 | Q100: 481114 | R100: 1.411723625 | S100: 487906 | T100: 1.369936012 | U100: 494590 | V100: 1.329990497 | W100: 501168 | X100: 1.290984261 | Y100: 507638 | Z100: 1.251679346 | AA100: 513992 | AB100: 1.215972233 | AC100: 520242 | AD100: 1.180219975 | AE100: 526382 | AF100: 1.145935841 | AG100: 532414
A101: 701 | B101: Sololá | C101: 94406 | D101: 1.025358558 | E101: 95374 | F101: 1.02229119 | G101: 96349 | H101: 0.9839230298 | I101: 97297 | J101: 0.9435028829 | K101: 98215 | L101: 0.8949753093 | M101: 99094 | N101: 0.8476799806 | O101: 99934 | P101: 0.7985270278 | Q101: 100732 | R101: 0.7534844935 | S101: 101491 | T101: 0.7064665832 | U101: 102208 | V101: 0.6594395742 | W101: 102882 | X101: 0.6142959896 | Y101: 103514 | Z101: 0.5699712116 | AA101: 104104 | AB101: 0.528317836 | AC101: 104654 | AD101: 0.4863645919 | AE101: 105163 | AF101: 0.4469252494 | AG101: 105633
A102: 702 | B102: San José Chacayá | C102: 4644 | D102: 2.196382429 | E102: 4746 | F102: 2.064896755 | G102: 4844 | H102: 1.981833196 | I102: 4940 | J102: 1.923076923 | K102: 5035 | L102: 1.847070506 | M102: 5128 | N102: 1.794071763 | O102: 5220 | P102: 1.743295019 | Q102: 5311 | R102: 1.713424967 | S102: 5402 | T102: 1.647537949 | U102: 5491 | V102: 1.602622473 | W102: 5579 | X102: 1.57734361 | Y102: 5667 | Z102: 1.517557791 | AA102: 5753 | AB102: 1.477490005 | AC102: 5838 | AD102: 1.455978075 | AE102: 5923 | AF102: 1.4013169 | AG102: 6006
A103: 703 | B103: Santa María Visitación | C103: 2355 | D103: 1.740976645 | E103: 2396 | F103: 1.752921536 | G103: 2438 | H103: 1.722723544 | I103: 2480 | J103: 1.653225806 | K103: 2521 | L103: 1.586671956 | M103: 2561 | N103: 1.600937134 | O103: 2602 | P103: 1.498847041 | Q103: 2641 | R103: 1.476713366 | S103: 2680 | T103: 1.417910448 | U103: 2718 | V103: 1.398086829 | W103: 2756 | X103: 1.342525399 | Y103: 2793 | Z103: 1.288936627 | AA103: 2829 | AB103: 1.272534464 | AC103: 2865 | AD103: 1.221640489 | AE103: 2900 | AF103: 1.172413793 | AG103: 2934
A104: 704 | B104: Santa Lucía Utatlán | C104: 21011 | D104: 0.6758364666 | E104: 21153 | F104: 0.6760270411 | G104: 21296 | H104: 0.6386175808 | I104: 21432 | J104: 0.5972377753 | K104: 21560 | L104: 0.5565862709 | M104: 21680 | N104: 0.5073800738 | O104: 21790 | P104: 0.463515374 | Q104: 21891 | R104: 0.4156959481 | S104: 21982 | T104: 0.3730324811 | U104: 22064 | V104: 0.3263234228 | W104: 22136 | X104: 0.2846042645 | Y104: 22199 | Z104: 0.2387494932 | AA104: 22252 | AB104: 0.2022290131 | AC104: 22297 | AD104: 0.1569717899 | AE104: 22332 | AF104: 0.1253806197 | AG104: 22360
A105: 705 | B105: Nahualá | C105: 81246 | D105: 2.445658863 | E105: 83233 | F105: 2.443742266 | G105: 85267 | H105: 2.406558223 | I105: 87319 | J105: 2.368327626 | K105: 89387 | L105: 2.31912918 | M105: 91460 | N105: 2.275311612 | O105: 93541 | P105: 2.225761965 | Q105: 95623 | R105: 2.182529308 | S105: 97710 | T105: 2.134888957 | U105: 99796 | V105: 2.091266183 | W105: 101883 | X105: 2.046465063 | Y105: 103968 | Z105: 2.002539243 | AA105: 106050 | AB105: 1.962281942 | AC105: 108131 | AD105: 1.922667875 | AE105: 110210 | AF105: 1.882769259 | AG105: 112285
A106: 706 | B106: Santa Catarina Ixtahuacán | C106: 54702 | D106: 2.031004351 | E106: 55813 | F106: 1.981617186 | G106: 56919 | H106: 1.929057081 | I106: 58017 | J106: 1.885654205 | K106: 59111 | L106: 1.835529766 | M106: 60196 | N106: 1.790816666 | O106: 61274 | P106: 1.742990502 | Q106: 62342 | R106: 1.700298354 | S106: 63402 | T106: 1.654521939 | U106: 64451 | V106: 1.60897426 | W106: 65488 | X106: 1.566699243 | Y106: 66514 | Z106: 1.522987642 | AA106: 67527 | AB106: 1.483850904 | AC106: 68529 | AD106: 1.443184637 | AE106: 69518 | AF106: 1.406829886 | AG106: 70496
A107: 707 | B107: Santa Clara La Laguna | C107: 9435 | D107: 1.611022787 | E107: 9587 | F107: 1.606341921 | G107: 9741 | H107: 1.570680628 | I107: 9894 | J107: 1.516070346 | K107: 10044 | L107: 1.48347272 | M107: 10193 | N107: 1.442166192 | O107: 10340 | P107: 1.382978723 | Q107: 10483 | R107: 1.354574072 | S107: 10625 | T107: 1.298823529 | U107: 10763 | V107: 1.254297129 | W107: 10898 | X107: 1.211231419 | Y107: 11030 | Z107: 1.178603808 | AA107: 11160 | AB107: 1.129032258 | AC107: 11286 | AD107: 1.089845827 | AE107: 11409 | AF107: 1.05180121 | AG107: 11529
A108: 708 | B108: Concepción | C108: 6744 | D108: 0.3706998814 | E108: 6769 | F108: 0.8420741616 | G108: 6826 | H108: 1.171989452 | I108: 6906 | J108: 1.375615407 | K108: 7001 | L108: 1.471218397 | M108: 7104 | N108: 1.548423423 | O108: 7214 | P108: 1.580260604 | Q108: 7328 | R108: 1.582969432 | S108: 7444 | T108: 1.585169264 | U108: 7562 | V108: 1.560433748 | W108: 7680 | X108: 1.536458333 | Y108: 7798 | Z108: 1.487560913 | AA108: 7914 | AB108: 1.465756887 | AC108: 8030 | AD108: 1.444582814 | AE108: 8146 | AF108: 1.399459858 | AG108: 8260
A109: 709 | B109: San Andrés Semetabaj | C109: 13451 | D109: 1.73964761 | E109: 13685 | F109: 1.746437706 | G109: 13924 | H109: 1.702097099 | I109: 14161 | J109: 1.666548973 | K109: 14397 | L109: 1.618392721 | M109: 14630 | N109: 1.578947368 | O109: 14861 | P109: 1.527488056 | Q109: 15088 | R109: 1.477995758 | S109: 15311 | T109: 1.436875449 | U109: 15531 | V109: 1.397205589 | W109: 15748 | X109: 1.346202692 | Y109: 15960 | Z109: 1.315789474 | AA109: 16170 | AB109: 1.267779839 | AC109: 16375 | AD109: 1.227480916 | AE109: 16576 | AF109: 1.188465251 | AG109: 16773
A110: 710 | B110: Panajachel | C110: 14448 | D110: 1.889534884 | E110: 14721 | F110: 1.888458664 | G110: 14999 | H110: 1.853456897 | I110: 15277 | J110: 1.813183217 | K110: 15554 | L110: 1.774463161 | M110: 15830 | N110: 1.711939356 | O110: 16101 | P110: 1.676914477 | Q110: 16371 | R110: 1.637041109 | S110: 16639 | T110: 1.586633812 | U110: 16903 | V110: 1.544104597 | W110: 17164 | X110: 1.50314612 | Y110: 17422 | Z110: 1.45218689 | AA110: 17675 | AB110: 1.414427157 | AC110: 17925 | AD110: 1.377963738 | AE110: 18172 | AF110: 1.3372221 | AG110: 18415
A111: 711 | B111: Santa Catarina Palopó | C111: 4588 | D111: 1.089799477 | E111: 4638 | F111: 1.121172919 | G111: 4690 | H111: 1.066098081 | I111: 4740 | J111: 1.033755274 | K111: 4789 | L111: 0.9814157444 | M111: 4836 | N111: 0.9511993383 | O111: 4882 | P111: 0.9012699713 | Q111: 4926 | R111: 0.8526187576 | S111: 4968 | T111: 0.8051529791 | U111: 5008 | V111: 0.7587859425 | W111: 5046 | X111: 0.7134363853 | Y111: 5082 | Z111: 0.6887052342 | AA111: 5117 | AB111: 0.6253664256 | AC111: 5149 | AD111: 0.6020586522 | AE111: 5180 | AF111: 0.5791505792 | AG111: 5210
A112: 712 | B112: San Antonio Palopó | C112: 14934 | D112: 0.9642426677 | E112: 15078 | F112: 0.9550338241 | G112: 15222 | H112: 0.9197214558 | I112: 15362 | J112: 0.885301393 | K112: 15498 | L112: 0.838817912 | M112: 15628 | N112: 0.793447658 | O112: 15752 | P112: 0.7427628238 | Q112: 15869 | R112: 0.6994769677 | S112: 15980 | T112: 0.6570713392 | U112: 16085 | V112: 0.6092632888 | W112: 16183 | X112: 0.5684978063 | Y112: 16275 | Z112: 0.5222734255 | AA112: 16360 | AB112: 0.488997555 | AC112: 16440 | AD112: 0.4440389294 | AE112: 16513 | AF112: 0.4057409314 | AG112: 16580
A113: 713 | B113: San Lucas Tolimán | C113: 30177 | D113: 0.9477416576 | E113: 30463 | F113: 0.9454091849 | G113: 30751 | H113: 0.9105394947 | I113: 31031 | J113: 0.8733202282 | K113: 31302 | L113: 0.8210337998 | M113: 31559 | N113: 0.7794923794 | O113: 31805 | P113: 0.7325892155 | Q113: 32038 | R113: 0.6898058555 | S113: 32259 | T113: 0.6385814811 | U113: 32465 | V113: 0.5975666102 | W113: 32659 | X113: 0.5542117027 | Y113: 32840 | Z113: 0.5115712546 | AA113: 33008 | AB113: 0.4695831314 | AC113: 33163 | AD113: 0.4312034496 | AE113: 33306 | AF113: 0.3933225245 | AG113: 33437
A114: 714 | B114: Santa Cruz La Laguna | C114: 7371 | D114: 1.221001221 | E114: 7461 | F114: 1.206272618 | G114: 7551 | H114: 1.178651834 | I114: 7640 | J114: 1.138743455 | K114: 7727 | L114: 1.100038825 | M114: 7812 | N114: 1.049667179 | O114: 7894 | P114: 0.9880922219 | Q114: 7972 | R114: 0.9533366784 | S114: 8048 | T114: 0.9194831014 | U114: 8122 | V114: 0.8618566855 | W114: 8192 | X114: 0.830078125 | Y114: 8260 | Z114: 0.7748184019 | AA114: 8324 | AB114: 0.7568476694 | AC114: 8387 | AD114: 0.6915464409 | AE114: 8445 | AF114: 0.6631142688 | AG114: 8501
A115: 715 | B115: San Pablo La Laguna | C115: 7685 | D115: 0.5855562785 | E115: 7730 | F115: 0.6727037516 | G115: 7782 | H115: 0.6810588538 | I115: 7835 | J115: 0.7019783025 | K115: 7890 | L115: 0.7097591888 | M115: 7946 | N115: 0.7299270073 | O115: 8004 | P115: 0.7371314343 | Q115: 8063 | R115: 0.7565422299 | S115: 8124 | T115: 0.7385524372 | U115: 8184 | V115: 0.7575757576 | W115: 8246 | X115: 0.7518796992 | Y115: 8308 | Z115: 0.758305248 | AA115: 8371 | AB115: 0.7525982559 | AC115: 8434 | AD115: 0.7588332938 | AE115: 8498 | AF115: 0.7531183808 | AG115: 8562
A116: 716 | B116: San Marcos La Laguna | C116: 2723 | D116: 1.395519647 | E116: 2761 | F116: 1.340094169 | G116: 2798 | H116: 1.358112938 | I116: 2836 | J116: 1.269393512 | K116: 2872 | L116: 1.288300836 | M116: 2909 | N116: 1.203162599 | O116: 2944 | P116: 1.154891304 | Q116: 2978 | R116: 1.108126259 | S116: 3011 | T116: 1.095981402 | U116: 3044 | V116: 1.018396846 | W116: 3075 | X116: 0.9756097561 | Y116: 3105 | Z116: 0.9661835749 | AA116: 3135 | AB116: 0.8612440191 | AC116: 3162 | AD116: 0.8855154965 | AE116: 3190 | AF116: 0.8463949843 | AG116: 3217
A117: 717 | B117: San Juan La Laguna | C117: 11700 | D117: 2.35042735 | E117: 11975 | F117: 2.363256785 | G117: 12258 | H117: 2.308696362 | I117: 12541 | J117: 2.288493741 | K117: 12828 | L117: 2.221702526 | M117: 13113 | N117: 2.188667734 | O117: 13400 | P117: 2.141791045 | Q117: 13687 | R117: 2.089574048 | S117: 13973 | T117: 2.053961211 | U117: 14260 | V117: 2.005610098 | W117: 14546 | X117: 1.959301526 | Y117: 14831 | Z117: 1.914907963 | AA117: 15115 | AB117: 1.885544161 | AC117: 15400 | AD117: 1.831168831 | AE117: 15682 | AF117: 1.79824002 | AG117: 15964
A118: 718 | B118: San Pedro La Laguna | C118: 10424 | D118: 2.196853415 | E118: 10653 | F118: 2.187177321 | G118: 10886 | H118: 2.167922102 | I118: 11122 | J118: 2.112929329 | K118: 11357 | L118: 2.07801356 | M118: 11593 | N118: 2.02708531 | O118: 11828 | P118: 1.978356442 | Q118: 12062 | R118: 1.939976787 | S118: 12296 | T118: 1.886792453 | U118: 12528 | V118: 1.843869732 | W118: 12759 | X118: 1.80264911 | Y118: 12989 | Z118: 1.763030256 | AA118: 13218 | AB118: 1.717355122 | AC118: 13445 | AD118: 1.680922276 | AE118: 13671 | AF118: 1.645819618 | AG118: 13896
A119: 719 | B119: Santiago Atitlán | C119: 39702 | D119: 2.12079996 | E119: 40544 | F119: 2.121152328 | G119: 41404 | H119: 2.084339677 | I119: 42267 | J119: 2.046513829 | K119: 43132 | L119: 1.998516183 | M119: 43994 | N119: 1.95481202 | O119: 44854 | P119: 1.90618451 | Q119: 45709 | R119: 1.863965521 | S119: 46561 | T119: 1.816971285 | U119: 47407 | V119: 1.77399962 | W119: 48248 | X119: 1.730641685 | Y119: 49083 | Z119: 1.684901086 | AA119: 49910 | AB119: 1.646964536 | AC119: 50732 | AD119: 1.608452259 | AE119: 51548 | AF119: 1.567471095 | AG119: 52356
A120: 8 | B120: Totonicapán | C120: 450761 | D120: 1.501239016 | E120: 457528 | F120: 1.55728174 | G120: 464653 | H120: 1.597321012 | I120: 472075 | J120: 1.555261346 | K120: 479417 | L120: 1.516425158 | M120: 486687 | N120: 1.474664415 | O120: 493864 | P120: 1.432985599 | Q120: 500941 | R120: 1.390183674 | S120: 507905 | T120: 1.348874297 | U120: 514756 | V120: 1.305278617 | W120: 521475 | X120: 1.263723093 | Y120: 528065 | Z120: 1.225796067 | AA120: 534538 | AB120: 1.186070962 | AC120: 540878 | AD120: 1.149057643 | AE120: 547093 | AF120: 1.113156264 | AG120: 553183
A121: 801 | B121: Totonicapán | C121: 110020 | D121: 1.271586984 | E121: 111419 | F121: 1.331011766 | G121: 112902 | H121: 1.372872048 | I121: 114452 | J121: 1.333310034 | K121: 115978 | L121: 1.297659901 | M121: 117483 | N121: 1.25720317 | O121: 118960 | P121: 1.217215871 | Q121: 120408 | R121: 1.176832104 | S121: 121825 | T121: 1.137697517 | U121: 123211 | V121: 1.094869776 | W121: 124560 | X121: 1.054913295 | Y121: 125874 | Z121: 1.017684351 | AA121: 127155 | AB121: 0.9791199717 | AC121: 128400 | AD121: 0.9431464174 | AE121: 129611 | AF121: 0.9081019358 | AG121: 130788
A122: 802 | B122: San Cristóbal Totonicapán | C122: 39435 | D122: 1.389628503 | E122: 39983 | F122: 1.448115449 | G122: 40562 | H122: 1.491543809 | I122: 41167 | J122: 1.450190687 | K122: 41764 | L122: 1.412699933 | M122: 42354 | N122: 1.376493365 | O122: 42937 | P122: 1.33684235 | Q122: 43511 | R122: 1.293925674 | S122: 44074 | T122: 1.25243908 | U122: 44626 | V122: 1.21453861 | W122: 45168 | X122: 1.173397095 | Y122: 45698 | Z122: 1.135717099 | AA122: 46217 | AB122: 1.099162646 | AC122: 46725 | AD122: 1.06153023 | AE122: 47221 | AF122: 1.027085407 | AG122: 47706
A123: 803 | B123: San Francisco El Alto | C123: 57465 | D123: 2.326633603 | E123: 58802 | F123: 2.314547124 | G123: 60163 | H123: 2.295430746 | I123: 61544 | J123: 2.200051995 | K123: 62898 | L123: 2.108175141 | M123: 64224 | N123: 2.01949427 | O123: 65521 | P123: 1.93373117 | Q123: 66788 | R123: 1.8536264 | S123: 68026 | T123: 1.774321583 | U123: 69233 | V123: 1.697167536 | W123: 70408 | X123: 1.624815362 | Y123: 71552 | Z123: 1.55970483 | AA123: 72668 | AB123: 1.49309187 | AC123: 73753 | AD123: 1.433162041 | AE123: 74810 | AF123: 1.375484561 | AG123: 75839
A124: 804 | B124: San Andrés Xecul | C124: 26927 | D124: 1.689753779 | E124: 27382 | F124: 1.752976408 | G124: 27862 | H124: 1.798148015 | I124: 28363 | J124: 1.752282904 | K124: 28860 | L124: 1.718641719 | M124: 29356 | N124: 1.679384112 | O124: 29849 | P124: 1.641596033 | Q124: 30339 | R124: 1.595306371 | S124: 30823 | T124: 1.560522986 | U124: 31304 | V124: 1.517377971 | W124: 31779 | X124: 1.475817364 | Y124: 32248 | Z124: 1.441949888 | AA124: 32713 | AB124: 1.400055024 | AC124: 33171 | AD124: 1.362636038 | AE124: 33623 | AF124: 1.329447105 | AG124: 34070
A125: 805 | B125: Momostenango | C125: 124019 | D125: 1.949701255 | E125: 126437 | F125: 2.006532898 | G125: 128974 | H125: 2.049250236 | I125: 131617 | J125: 2.008859038 | K125: 134261 | L125: 1.972277877 | M125: 136909 | N125: 1.93047937 | O125: 139552 | P125: 1.891051364 | Q125: 142191 | R125: 1.848921521 | S125: 144820 | T125: 1.808451871 | U125: 147439 | V125: 1.764797645 | W125: 150041 | X125: 1.724861871 | Y125: 152629 | Z125: 1.686442288 | AA125: 155203 | AB125: 1.6475197 | AC125: 157760 | AD125: 1.610040568 | AE125: 160300 | AF125: 1.573923893 | AG125: 162823
A126: 806 | B126: Santa María Chiquimula | C126: 56425 | D126: 0.6858661941 | E126: 56812 | F126: 0.7463211997 | G126: 57236 | H126: 0.7844713118 | I126: 57685 | J126: 0.7454277542 | K126: 58115 | L126: 0.7072184462 | M126: 58526 | N126: 0.6697877866 | O126: 58918 | P126: 0.6262941716 | Q126: 59287 | R126: 0.5869752222 | S126: 59635 | T126: 0.5466588413 | U126: 59961 | V126: 0.5053284635 | W126: 60264 | X126: 0.462962963 | Y126: 60543 | Z126: 0.4261434022 | AA126: 60801 | AB126: 0.3865068009 | AC126: 61036 | AD126: 0.3506127531 | AE126: 61250 | AF126: 0.3134693878 | AG126: 61442
A127: 807 | B127: Santa Lucía la Reforma | C127: 24370 | D127: 0.828887977 | E127: 24572 | F127: 0.88718867 | G127: 24790 | H127: 0.9318273497 | I127: 25021 | J127: 0.8952479917 | K127: 25245 | L127: 0.8556149733 | M127: 25461 | N127: 0.8130081301 | O127: 25668 | P127: 0.7791803023 | Q127: 25868 | R127: 0.7344982217 | S127: 26058 | T127: 0.6984419372 | U127: 26240 | V127: 0.6516768293 | W127: 26411 | X127: 0.6133807883 | Y127: 26573 | Z127: 0.5757724006 | AA127: 26726 | AB127: 0.5388011674 | AC127: 26870 | AD127: 0.5061406773 | AE127: 27006 | AF127: 0.466562986 | AG127: 27132
A128: 808 | B128: San Bartolo Aguas Calientes | C128: 12100 | D128: 0.173553719 | E128: 12121 | F128: 0.3547562082 | G128: 12164 | H128: 0.5097007563 | I128: 12226 | J128: 0.5725503026 | K128: 12296 | L128: 0.634352635 | M128: 12374 | N128: 0.6869241959 | O128: 12459 | P128: 0.7223693715 | Q128: 12549 | R128: 0.7570324329 | S128: 12644 | T128: 0.77507118 | U128: 12742 | V128: 0.8005022759 | W128: 12844 | X128: 0.8097165992 | Y128: 12948 | Z128: 0.8263824529 | AA128: 13055 | AB128: 0.8272692455 | AC128: 13163 | AD128: 0.8280787055 | AE128: 13272 | AF128: 0.8363471971 | AG128: 13383
A129: 9 | B129: Quetzaltenango | C129: 828085 | D129: 1.637030015 | E129: 841641 | F129: 1.625514917 | G129: 855322 | H129: 1.607464791 | I129: 869071 | J129: 1.578812318 | K129: 882792 | L129: 1.541699517 | M129: 896402 | N129: 1.503454923 | O129: 909879 | P129: 1.465249775 | Q129: 923211 | R129: 1.426976065 | S129: 936385 | T129: 1.386822728 | U129: 949371 | V129: 1.346997117 | W129: 962159 | X129: 1.308827335 | Y129: 974752 | Z129: 1.270682184 | AA129: 987138 | AB129: 1.234376551 | AC129: 999323 | AD129: 1.197010376 | AE129: 1011285 | AF129: 1.161986977 | AG129: 1023036
A130: 901 | B130: Quetzaltenango | C130: 178463 | D130: 2.048043572 | E130: 182118 | F130: 2.026707959 | G130: 185809 | H130: 1.993983069 | I130: 189514 | J130: 1.9486687 | K130: 193207 | L130: 1.894341302 | M130: 196867 | N130: 1.840836707 | O130: 200491 | P130: 1.787611414 | Q130: 204075 | R130: 1.737106456 | S130: 207620 | T130: 1.684808785 | U130: 211118 | V130: 1.635104539 | W130: 214570 | X130: 1.587360768 | Y130: 217976 | Z130: 1.540536573 | AA130: 221334 | AB130: 1.496832841 | AC130: 224647 | AD130: 1.452946178 | AE130: 227911 | AF130: 1.411077131 | AG130: 231127
A131: 902 | B131: Salcajá | C131: 18653 | D131: 2.637645419 | E131: 19145 | F131: 2.423609297 | G131: 19609 | H131: 2.233668214 | I131: 20047 | J131: 2.05517035 | K131: 20459 | L131: 1.916027176 | M131: 20851 | N131: 1.779291161 | O131: 21222 | P131: 1.672792385 | Q131: 21577 | R131: 1.575751958 | S131: 21917 | T131: 1.491992517 | U131: 22244 | V131: 1.411616616 | W131: 22558 | X131: 1.343204185 | Y131: 22861 | Z131: 1.286032982 | AA131: 23155 | AB131: 1.230835673 | AC131: 23440 | AD131: 1.16894198 | AE131: 23714 | AF131: 1.130134098 | AG131: 23982
A132: 903 | B132: San Juan Olintepeque | C132: 34844 | D132: 2.264378372 | E132: 35633 | F132: 1.967277524 | G132: 36334 | H132: 1.799966973 | I132: 36988 | J132: 1.695144371 | K132: 37615 | L132: 1.60574239 | M132: 38219 | N132: 1.541118292 | O132: 38808 | P132: 1.481653267 | Q132: 39383 | R132: 1.424472488 | S132: 39944 | T132: 1.374424194 | U132: 40493 | V132: 1.321216013 | W132: 41028 | X132: 1.277176562 | Y132: 41552 | Z132: 1.227377744 | AA132: 42062 | AB132: 1.183966526 | AC132: 42560 | AD132: 1.144266917 | AE132: 43047 | AF132: 1.098798987 | AG132: 43520
A133: 904 | B133: San Carlos Sija | C133: 31919 | D133: 1.845295905 | E133: 32508 | F133: 1.824166359 | G133: 33101 | H133: 1.794507719 | I133: 33695 | J133: 1.748033833 | K133: 34284 | L133: 1.697584879 | M133: 34866 | N133: 1.637698618 | O133: 35437 | P133: 1.591556847 | Q133: 36001 | R133: 1.536068443 | S133: 36554 | T133: 1.485473546 | U133: 37097 | V133: 1.439469499 | W133: 37631 | X133: 1.387154208 | Y133: 38153 | Z133: 1.344586271 | AA133: 38666 | AB133: 1.300884498 | AC133: 39169 | AD133: 1.253542342 | AE133: 39660 | AF133: 1.215330308 | AG133: 40142
A134: 905 | B134: Sibilia | C134: 7984 | D134: 1.953907816 | E134: 8140 | F134: 1.941031941 | G134: 8298 | H134: 1.892022174 | I134: 8455 | J134: 1.856889415 | K134: 8612 | L134: 1.788202508 | M134: 8766 | N134: 1.756787588 | O134: 8920 | P134: 1.692825112 | Q134: 9071 | R134: 1.642597288 | S134: 9220 | T134: 1.594360087 | U134: 9367 | V134: 1.537311839 | W134: 9511 | X134: 1.503522237 | Y134: 9654 | Z134: 1.450176093 | AA134: 9794 | AB134: 1.398815601 | AC134: 9931 | AD134: 1.35937972 | AE134: 10066 | AF134: 1.321279555 | AG134: 10199
A135: 906 | B135: Cabricán | C135: 25156 | D135: 1.717284147 | E135: 25588 | F135: 1.700015632 | G135: 26023 | H135: 1.663912693 | I135: 26456 | J135: 1.621560327 | K135: 26885 | L135: 1.569648503 | M135: 27307 | N135: 1.51243271 | O135: 27720 | P135: 1.457431457 | Q135: 28124 | R135: 1.415161428 | S135: 28522 | T135: 1.360353411 | U135: 28910 | V135: 1.307506053 | W135: 29288 | X135: 1.259901666 | Y135: 29657 | Z135: 1.217250565 | AA135: 30018 | AB135: 1.172629755 | AC135: 30370 | AD135: 1.13269674 | AE135: 30714 | AF135: 1.087451976 | AG135: 31048
A136: 907 | B136: Cajolá | C136: 17791 | D136: 1.214097015 | E136: 18007 | F136: 1.221747098 | G136: 18227 | H136: 1.234432435 | I136: 18452 | J136: 1.20854108 | K136: 18675 | L136: 1.183400268 | M136: 18896 | N136: 1.16426757 | O136: 19116 | P136: 1.135174723 | Q136: 19333 | R136: 1.106915636 | S136: 19547 | T136: 1.074333657 | U136: 19757 | V136: 1.047729919 | W136: 19964 | X136: 1.021839311 | Y136: 20168 | Z136: 0.9867116224 | AA136: 20367 | AB136: 0.9672509452 | AC136: 20564 | AD136: 0.9336704921 | AE136: 20756 | AF136: 0.9105800732 | AG136: 20945
A137: 908 | B137: San Miguel Siguilá | C137: 8912 | D137: 1.570915619 | E137: 9052 | F137: 1.557666814 | G137: 9193 | H137: 1.522897857 | I137: 9333 | J137: 1.478624237 | K137: 9471 | L137: 1.435962412 | M137: 9607 | N137: 1.373998126 | O137: 9739 | P137: 1.334839306 | Q137: 9869 | R137: 1.276725099 | S137: 9995 | T137: 1.24062031 | U137: 10119 | V137: 1.185887934 | W137: 10239 | X137: 1.142689716 | Y137: 10356 | Z137: 1.110467362 | AA137: 10471 | AB137: 1.050520485 | AC137: 10581 | AD137: 1.020697477 | AE137: 10689 | AF137: 0.9823182711 | AG137: 10794
A138: 909 | B138: San Juan Ostuncalco | C138: 59311 | D138: =+(((E138/C138)^(1/1))-1)*100 -> 0.387786414 | E138: 59541 | F138: =+(((G138/E138)^(1/1))-1)*100 -> 0.4568280681 | G138: 59813 | H138: =+(((I138/G138)^(1/1))-1)*100 -> 0.5099225921 | I138: 60118 | J138: =+(((K138/I138)^(1/1))-1)*100 -> 0.5472570611 | K138: 60447 | L138: =+(((M138/K138)^(1/1))-1)*100 -> 0.5690935861 | M138: 60791 | N138: =+(((O138/M138)^(1/1))-1)*100 -> 0.5872579823 | O138: 61148 | P138: =+(((Q138/O138)^(1/1))-1)*100 -> 0.6034539151 | Q138: 61517 | R138: =+(((S138/Q138)^(1/1))-1)*100 -> 0.6160898613 | S138: 61896 | T138: =+(((U138/S138)^(1/1))-1)*100 -> 0.6236267287 | U138: 62282 | V138: =+(((W138/U138)^(1/1))-1)*100 -> 0.6293953309 | W138: 62674 | X138: =+(((Y138/W138)^(1/1))-1)*100 -> 0.6334365127 | Y138: 63071 | Z138: =+(((AA138/Y138)^(1/1))-1)*100 -> 0.6357914097 | AA138: 63472 | AB138: =+(((AC138/AA138)^(1/1))-1)*100 -> 0.6380766322 | AC138: 63877 | AD138: =+(((AE138/AC138)^(1/1))-1)*100 -> 0.6340310284 | AE138: 64282 | AF138: =+(((AG138/AE138)^(1/1))-1)*100 -> 0.633147693 | AG138: 64689
A139: 910 | B139: San Mateo | C139: 7682 | D139: 3.189273627 | E139: 7927 | F139: 2.699634162 | G139: 8141 | H139: 2.309298612 | I139: 8329 | J139: 2.053067595 | K139: 8500 | L139: 1.858823529 | M139: 8658 | N139: 1.709401709 | O139: 8806 | P139: 1.589825119 | Q139: 8946 | R139: 1.509054326 | S139: 9081 | T139: 1.409536395 | U139: 9209 | V139: 1.357367792 | W139: 9334 | X139: 1.307049496 | Y139: 9456 | Z139: 1.237309645 | AA139: 9573 | AB139: 1.190849264 | AC139: 9687 | AD139: 1.145865593 | AE139: 9798 | AF139: 1.102265769 | AG139: 9906
A140: 911 | B140: Concepción Chiquirichapa | C140: 18499 | D140: 1.886588464 | E140: 18848 | F140: 1.862266553 | G140: 19199 | H140: 1.833428824 | I140: 19551 | J140: 1.785074932 | K140: 19900 | L140: 1.733668342 | M140: 20245 | N140: 1.679427019 | O140: 20585 | P140: 1.627398591 | Q140: 20920 | R140: 1.572657744 | S140: 21249 | T140: 1.524777637 | U140: 21573 | V140: 1.474064803 | W140: 21891 | X140: 1.425243251 | Y140: 22203 | Z140: 1.382696032 | AA140: 22510 | AB140: 1.337183474 | AC140: 22811 | AD140: 1.29323572 | AE140: 23106 | AF140: 1.255085259 | AG140: 23396
A141: 912 | B141: San Martín Sacatepéquez | C141: 30040 | D141: 1.817576565 | E141: 30586 | F141: 1.798208331 | G141: 31136 | H141: 1.766443988 | I141: 31686 | J141: 1.723158493 | K141: 32232 | L141: 1.672251179 | M141: 32771 | N141: 1.623386531 | O141: 33303 | P141: 1.57042909 | Q141: 33826 | R141: 1.522497487 | S141: 34341 | T141: 1.473457383 | U141: 34847 | V141: 1.429104371 | W141: 35345 | X141: 1.377846937 | Y141: 35832 | Z141: 1.336793927 | AA141: 36311 | AB141: 1.297127592 | AC141: 36782 | AD141: 1.256049154 | AE141: 37244 | AF141: 1.213618301 | AG141: 37696
A142: 913 | B142: Almolonga | C142: 15087 | D142: 2.087890237 | E142: 15402 | F142: 2.07115959 | G142: 15721 | H142: 2.041854844 | I142: 16042 | J142: 1.994763745 | K142: 16362 | L142: 1.937415964 | M142: 16679 | N142: 1.882606871 | O142: 16993 | P142: 1.836050138 | Q142: 17305 | R142: 1.779832418 | S142: 17613 | T142: 1.731675467 | U142: 17918 | V142: 1.679874986 | W142: 18219 | X142: 1.635655085 | Y142: 18517 | Z142: 1.587730194 | AA142: 18811 | AB142: 1.541651162 | AC142: 19101 | AD142: 1.497303806 | AE142: 19387 | AF142: 1.459741064 | AG142: 19670
A143: 914 | B143: Cantel | C143: 39421 | D143: 3.335785495 | E143: 40736 | F143: 3.026806756 | G143: 41969 | H143: 2.756796683 | I143: 43126 | J143: 2.518202476 | K143: 44212 | L143: 2.300280467 | M143: 45229 | N143: 2.115899091 | O143: 46186 | P143: 1.950807604 | Q143: 47087 | R143: 1.813664069 | S143: 47941 | T143: 1.689576771 | U143: 48751 | V143: 1.57945478 | W143: 49521 | X143: 1.484218816 | Y143: 50256 | Z143: 1.39883795 | AA143: 50959 | AB143: 1.324594282 | AC143: 51634 | AD143: 1.253050316 | AE143: 52281 | AF143: 1.191637497 | AG143: 52904
A144: 915 | B144: Huitán | C144: 13952 | D144: 0.5017201835 | E144: 14022 | F144: 0.6989017259 | G144: 14120 | H144: 0.842776204 | I144: 14239 | J144: 0.9481002879 | K144: 14374 | L144: 1.029636844 | M144: 14522 | N144: 1.067346096 | O144: 14677 | P144: 1.1037678 | Q144: 14839 | R144: 1.125412764 | S144: 15006 | T144: 1.12621618 | U144: 15175 | V144: 1.120263591 | W144: 15345 | X144: 1.114369501 | Y144: 15516 | Z144: 1.095643207 | AA144: 15686 | AB144: 1.071018743 | AC144: 15854 | AD144: 1.059669484 | AE144: 16022 | AF144: 1.029833978 | AG144: 16187
A145: 916 | B145: Zunil | C145: 13954 | D145: 2.479575749 | E145: 14300 | F145: 2.167832168 | G145: 14610 | H145: 1.950718686 | I145: 14895 | J145: 1.785834173 | K145: 15161 | L145: 1.668755359 | M145: 15414 | N145: 1.576488906 | O145: 15657 | P145: 1.507313023 | Q145: 15893 | R145: 1.434593846 | S145: 16121 | T145: 1.383288878 | U145: 16344 | V145: 1.321585903 | W145: 16560 | X145: 1.280193237 | Y145: 16772 | Z145: 1.228237539 | AA145: 16978 | AB145: 1.189775003 | AC145: 17180 | AD145: 1.140861467 | AE145: 17376 | AF145: 1.099217311 | AG145: 17567
A146: 917 | B146: Colomba Costa Cuca | C146: 53017 | D146: 0.5922628591 | E146: 53331 | F146: 0.753782978 | G146: 53733 | H146: 0.8802784136 | I146: 54206 | J146: 0.9666826551 | K146: 54730 | L146: 1.023204824 | M146: 55290 | N146: 1.063483451 | O146: 55878 | P146: 1.089874369 | Q146: 56487 | R146: 1.104678953 | S146: 57111 | T146: 1.106616939 | U146: 57743 | V146: 1.10316402 | W146: 58380 | X146: 1.092840014 | Y146: 59018 | Z146: 1.077637331 | AA146: 59654 | AB146: 1.06111912 | AC146: 60287 | AD146: 1.03836648 | AE146: 60913 | AF146: 1.014561752 | AG146: 61531
A147: 918 | B147: San Francisco La Unión | C147: 8509 | D147: 2.115407216 | E147: 8689 | F147: 2.025549545 | G147: 8865 | H147: 1.917653694 | I147: 9035 | J147: 1.837299391 | K147: 9201 | L147: 1.738941419 | M147: 9361 | N147: 1.655806004 | O147: 9516 | P147: 1.57629256 | Q147: 9666 | R147: 1.510448996 | S147: 9812 | T147: 1.437015899 | U147: 9953 | V147: 1.376469406 | W147: 10090 | X147: 1.308225966 | Y147: 10222 | Z147: 1.271766778 | AA147: 10352 | AB147: 1.207496136 | AC147: 10477 | AD147: 1.154910757 | AE147: 10598 | AF147: 1.122853369 | AG147: 10717
A148: 919 | B148: El Palmar | C148: 29115 | D148: 1.243345355 | E148: 29477 | F148: 1.262000882 | G148: 29849 | H148: 1.259673691 | I148: 30225 | J148: 1.240694789 | K148: 30600 | L148: 1.218954248 | M148: 30973 | N148: 1.191360217 | O148: 31342 | P148: 1.161380895 | Q148: 31706 | R148: 1.132277802 | S148: 32065 | T148: 1.104007485 | U148: 32419 | V148: 1.073444585 | W148: 32767 | X148: 1.046784875 | Y148: 33110 | Z148: 1.014799154 | AA148: 33446 | AB148: 0.9866650721 | AC148: 33776 | AD148: 0.9592610137 | AE148: 34100 | AF148: 0.9296187683 | AG148: 34417
A149: 920 | B149: Coatepeque | C149: 110644 | D149: 1.027620115 | E149: 111781 | F149: 1.171934407 | G149: 113091 | H149: 1.265352681 | I149: 114522 | J149: 1.315904368 | K149: 116029 | L149: 1.335872928 | M149: 117579 | N149: 1.337823931 | O149: 119152 | P149: 1.330233651 | Q149: 120737 | R149: 1.311942487 | S149: 122321 | T149: 1.28596071 | U149: 123894 | V149: 1.255912312 | W149: 125450 | X149: 1.223595058 | Y149: 126985 | Z149: 1.189116825 | AA149: 128495 | AB149: 1.155686992 | AC149: 129980 | AD149: 1.117864287 | AE149: 131433 | AF149: 1.08268091 | AG149: 132856
A150: 921 | B150: Génova | C150: 42336 | D150: 1.28968254 | E150: 42882 | F150: 1.310573201 | G150: 43444 | H150: 1.314335697 | I150: 44015 | J150: 1.306372827 | K150: 44590 | L150: 1.282798834 | M150: 45162 | N150: 1.259908773 | O150: 45731 | P150: 1.231112375 | Q150: 46294 | R150: 1.205339785 | S150: 46852 | T150: 1.176043712 | U150: 47403 | V150: 1.143387549 | W150: 47945 | X150: 1.115861925 | Y150: 48480 | Z150: 1.084983498 | AA150: 49006 | AB150: 1.052932294 | AC150: 49522 | AD150: 1.025806712 | AE150: 50030 | AF150: 0.9934039576 | AG150: 50527
A151: 922 | B151: Flores Costa Cuca | C151: 21312 | D151: 2.317942943 | E151: 21806 | F151: 2.306704577 | G151: 22309 | H151: 2.290555381 | I151: 22820 | J151: 2.256792287 | K151: 23335 | L151: 2.211270624 | M151: 23851 | N151: 2.171816695 | O151: 24369 | P151: 2.129755017 | Q151: 24888 | R151: 2.089360334 | S151: 25408 | T151: 2.050535264 | U151: 25929 | V151: 2.01704655 | W151: 26452 | X151: 1.98094662 | Y151: 26976 | Z151: 1.946174377 | AA151: 27501 | AB151: 1.916293953 | AC151: 28028 | AD151: 1.883830455 | AE151: 28556 | AF151: 1.859504132 | AG151: 29087
A152: 923 | B152: La Esperanza | C152: 21878 | D152: 2.596215376 | E152: 22446 | F152: 2.191927292 | G152: 22938 | H152: 1.948731363 | I152: 23385 | J152: 1.783194355 | K152: 23802 | L152: 1.667927065 | M152: 24199 | N152: 1.570312823 | O152: 24579 | P152: 1.501281582 | Q152: 24948 | R152: 1.438993106 | S152: 25307 | T152: 1.383016557 | U152: 25657 | V152: 1.325174416 | W152: 25997 | X152: 1.277070431 | Y152: 26329 | Z152: 1.226784154 | AA152: 26652 | AB152: 1.189404172 | AC152: 26969 | AD152: 1.138344025 | AE152: 27276 | AF152: 1.103534243 | AG152: 27577
A153: 924 | B153: Palestina de Los Altos | C153: 19606 | D153: 0.3570335612 | E153: 19676 | F153: 0.5793860541 | G153: 19790 | H153: 0.7427993936 | I153: 19937 | J153: 0.8627175603 | K153: 20109 | L153: 0.9448505644 | M153: 20299 | N153: 1.009901966 | O153: 20504 | P153: 1.048575888 | Q153: 20719 | R153: 1.076306772 | S153: 20942 | T153: 1.083946137 | U153: 21169 | V153: 1.091218291 | W153: 21400 | X153: 1.08411215 | Y153: 21632 | Z153: 1.077107988 | AA153: 21865 | AB153: 1.056482964 | AC153: 22096 | AD153: 1.040912382 | AE153: 22326 | AF153: 1.012272687 | AG153: 22552
A154: 10 | B154: Suchitepéquez | C154: 568923 | D154: 1.299297093 | E154: 576315 | F154: 1.254869299 | G154: 583547 | H154: 1.247714409 | I154: 590828 | J154: 1.230307298 | K154: 598097 | L154: 1.204152504 | M154: 605299 | N154: 1.179417115 | O154: 612438 | P154: 1.149014268 | Q154: 619475 | R154: 1.120949191 | S154: 626419 | T154: 1.092559453 | U154: 633263 | V154: 1.06132839 | W154: 639984 | X154: 1.031744544 | Y154: 646587 | Z154: 1.002185321 | AA154: 653067 | AB154: 0.9735601401 | AC154: 659425 | AD154: 0.9459756606 | AE154: 665663 | AF154: 0.9199850375 | AG154: 671787
A155: 1001 | B155: Mazatenango | C155: 82645 | D155: 0.05081977131 | E155: 82687 | F155: 0.122147375 | G155: 82788 | H155: 0.2186307194 | I155: 82969 | J155: 0.291675204 | K155: 83211 | L155: 0.3473098509 | M155: 83500 | N155: 0.3928143713 | O155: 83828 | P155: 0.4270649425 | Q155: 84186 | R155: 0.4549450027 | S155: 84569 | T155: 0.4753514881 | U155: 84971 | V155: 0.4884019254 | W155: 85386 | X155: 0.4977396763 | Y155: 85811 | Z155: 0.5011012574 | AA155: 86241 | AB155: 0.5032409179 | AC155: 86675 | AD155: 0.5018748197 | AE155: 87110 | AF155: 0.4982206406 | AG155: 87544
A156: 1002 | B156: Cuyotenango | C156: 34558 | D156: 1.611783089 | E156: 35115 | F156: 1.5491955 | G156: 35659 | H156: 1.519952887 | I156: 36201 | J156: 1.483384437 | K156: 36738 | L156: 1.437203985 | M156: 37266 | N156: 1.392690388 | O156: 37785 | P156: 1.347095408 | Q156: 38294 | R156: 1.29785345 | S156: 38791 | T156: 1.260601686 | U156: 39280 | V156: 1.211812627 | W156: 39756 | X156: 1.167119429 | Y156: 40220 | Z156: 1.131277971 | AA156: 40675 | AB156: 1.091579594 | AC156: 41119 | AD156: 1.050609207 | AE156: 41551 | AF156: 1.020432721 | AG156: 41975
A157: 1003 | B157: San Francisco Zapotitlán | C157: 21855 | D157: 2.219171814 | E157: 22340 | F157: 2.15308863 | G157: 22821 | H157: 2.125235529 | I157: 23306 | J157: 2.085299923 | K157: 23792 | L157: 2.04270343 | M157: 24278 | N157: 1.997693385 | O157: 24763 | P157: 1.946452368 | Q157: 25245 | R157: 1.905327788 | S157: 25726 | T157: 1.858042447 | U157: 26204 | V157: 1.812700351 | W157: 26679 | X157: 1.77293002 | Y157: 27152 | Z157: 1.730995875 | AA157: 27622 | AB157: 1.687061038 | AC157: 28088 | AD157: 1.651951011 | AE157: 28552 | AF157: 1.618100308 | AG157: 29014
A158: 1004 | B158: San Bernardino | C158: 15289 | D158: 2.007979593 | E158: 15596 | F158: 1.942805848 | G158: 15899 | H158: 1.918359645 | I158: 16204 | J158: 1.87607998 | K158: 16508 | L158: 1.829416041 | M158: 16810 | N158: 1.784651993 | O158: 17110 | P158: 1.741671537 | Q158: 17408 | R158: 1.688878676 | S158: 17702 | T158: 1.655180206 | U158: 17995 | V158: 1.606001667 | W158: 18284 | X158: 1.564209145 | Y158: 18570 | Z158: 1.518578352 | AA158: 18852 | AB158: 1.485253554 | AC158: 19132 | AD158: 1.447836086 | AE158: 19409 | AF158: 1.411716214 | AG158: 19683
A159: 1005 | B159: San José el Ídolo | C159: 11056 | D159: 1.510492041 | E159: 11223 | F159: 1.452374588 | G159: 11386 | H159: 1.414017214 | I159: 11547 | J159: 1.385641292 | K159: 11707 | L159: 1.341077988 | M159: 11864 | N159: 1.289615644 | O159: 12017 | P159: 1.239910127 | Q159: 12166 | R159: 1.216505014 | S159: 12314 | T159: 1.145038168 | U159: 12455 | V159: 1.116017664 | W159: 12594 | X159: 1.071939019 | Y159: 12729 | Z159: 1.037002121 | AA159: 12861 | AB159: 0.9874815333 | AC159: 12988 | AD159: 0.9547274407 | AE159: 13112 | AF159: 0.9151921904 | AG159: 13232
A160: 1006 | B160: Santo Domingo Suchitepéquez | C160: 44724 | D160: 1.585278598 | E160: 45433 | F160: 1.520920917 | G160: 46124 | H160: 1.495967392 | I160: 46814 | J160: 1.456829154 | K160: 47496 | L160: 1.410645107 | M160: 48166 | N160: 1.368185027 | O160: 48825 | P160: 1.321044547 | Q160: 49470 | R160: 1.271477663 | S160: 50099 | T160: 1.233557556 | U160: 50717 | V160: 1.186978725 | W160: 51319 | X160: 1.145774469 | Y160: 51907 | Z160: 1.101970832 | AA160: 52479 | AB160: 1.06518798 | AC160: 53038 | AD160: 1.027565142 | AE160: 53583 | AF160: 0.9928522106 | AG160: 54115
A161: 1007 | B161: San Lorenzo | C161: 13115 | D161: 1.120853984 | E161: 13262 | F161: 1.055647715 | G161: 13402 | H161: 1.037158633 | I161: 13541 | J161: 0.9895871797 | K161: 13675 | L161: 0.9433272395 | M161: 13804 | N161: 0.9127789047 | O161: 13930 | P161: 0.8470926059 | Q161: 14048 | R161: 0.8186218679 | S161: 14163 | T161: 0.7696109581 | U161: 14272 | V161: 0.7216928251 | W161: 14375 | X161: 0.6817391304 | Y161: 14473 | Z161: 0.6494852484 | AA161: 14567 | AB161: 0.5972403377 | AC161: 14654 | AD161: 0.566398253 | AE161: 14737 | AF161: 0.536065685 | AG161: 14816
A162: 1008 | B162: Samayac | C162: 24259 | D162: 2.168267447 | E162: 24785 | F162: 1.82368368 | G162: 25237 | H162: 1.596861751 | I162: 25640 | J162: 1.43525741 | K162: 26008 | L162: 1.311135035 | M162: 26349 | N162: 1.203081711 | O162: 26666 | P162: 1.128778219 | Q162: 26967 | R162: 1.056847258 | S162: 27252 | T162: 1.001761339 | U162: 27525 | V162: 0.9409627611 | W162: 27784 | X162: 0.8961992514 | Y162: 28033 | Z162: 0.8489993936 | AA162: 28271 | AB162: 0.8100173322 | AC162: 28500 | AD162: 0.7719298246 | AE162: 28720 | AF162: 0.7346796657 | AG162: 28931
A163: 1009 | B163: San Pablo Jocopilas | C163: 19787 | D163: 2.274220448 | E163: 20237 | F163: 2.203883975 | G163: 20683 | H163: 2.180534739 | I163: 21134 | J163: 2.138733794 | K163: 21586 | L163: 2.093949782 | M163: 22038 | N163: 2.051002813 | O163: 22490 | P163: 1.996442863 | Q163: 22939 | R163: 1.957365186 | S163: 23388 | T163: 1.911236532 | U163: 23835 | V163: 1.867002308 | W163: 24280 | X163: 1.824546952 | Y163: 24723 | Z163: 1.77971929 | AA163: 25163 | AB163: 1.744625045 | AC163: 25602 | AD163: 1.702991954 | AE163: 26038 | AF163: 1.666794685 | AG163: 26472
A164: 1010 | B164: San Antonio Suchitepéquez | C164: 58859 | D164: 1.911347457 | E164: 59984 | F164: 1.848826354 | G164: 61093 | H164: 1.818538949 | I164: 62204 | J164: 1.782843547 | K164: 63313 | L164: 1.734240993 | M164: 64411 | N164: 1.692257534 | O164: 65501 | P164: 1.642723012 | Q164: 66577 | R164: 1.598149511 | S164: 67641 | T164: 1.55379134 | U164: 68692 | V164: 1.509637221 | W164: 69729 | X164: 1.465674253 | Y164: 70751 | Z164: 1.424714845 | AA164: 71759 | AB164: 1.385192101 | AC164: 72753 | AD164: 1.34702349 | AE164: 73733 | AF164: 1.31420124 | AG164: 74702
A165: 1011 | B165: San Miguel Panán | C165: 11139 | D165: 2.019929976 | E165: 11364 | F165: 1.953537487 | G165: 11586 | H165: 1.933367858 | I165: 11810 | J165: 1.888230313 | K165: 12033 | L165: 1.844926452 | M165: 12255 | N165: 1.795185639 | O165: 12475 | P165: 1.755511022 | Q165: 12694 | R165: 1.701591303 | S165: 12910 | T165: 1.665375678 | U165: 13125 | V165: 1.615238095 | W165: 13337 | X165: 1.574566994 | Y165: 13547 | Z165: 1.53539529 | AA165: 13755 | AB165: 1.497637223 | AC165: 13961 | AD165: 1.46121338 | AE165: 14165 | AF165: 1.418990469 | AG165: 14366
A166: 1012 | B166: San Gabriel | C166: 7080 | D166: 2.838983051 | E166: 7281 | F166: 2.527125395 | G166: 7465 | H166: 2.290689886 | I166: 7636 | J166: 2.095337873 | K166: 7796 | L166: 1.898409441 | M166: 7944 | N166: 1.737160121 | O166: 8082 | P166: 1.596139569 | Q166: 8211 | R166: 1.461454147 | S166: 8331 | T166: 1.332373064 | U166: 8442 | V166: 1.23193556 | W166: 8546 | X166: 1.146735315 | Y166: 8644 | Z166: 1.064322073 | AA166: 8736 | AB166: 0.972985348 | AC166: 8821 | AD166: 0.9182632355 | AE166: 8902 | AF166: 0.8537407324 | AG166: 8978
A167: 1013 | B167: Chicacao | C167: 66745 | D167: 0.2861637576 | E167: 66936 | F167: 0.315226485 | G167: 67147 | H167: 0.3752959924 | I167: 67399 | J167: 0.4169201323 | K167: 67680 | L167: 0.44178487 | M167: 67979 | N167: 0.4663204813 | O167: 68296 | P167: 0.4773339581 | Q167: 68622 | R167: 0.4896388913 | S167: 68958 | T167: 0.495954059 | U167: 69300 | V167: 0.4978354978 | W167: 69645 | X167: 0.4968052265 | Y167: 69991 | Z167: 0.4929205184 | AA167: 70336 | AB167: 0.4890809827 | AC167: 70680 | AD167: 0.4824561404 | AE167: 71021 | AF167: 0.4773236085 | AG167: 71360
A168: 1014 | B168: Patulul | C168: 40676 | D168: 0.7203264824 | E168: 40969 | F168: 0.6956479289 | G168: 41254 | H168: 0.7005381296 | I168: 41543 | J168: 0.6908504441 | K168: 41830 | L168: 0.6813291896 | M168: 42115 | N168: 0.6624718034 | O168: 42394 | P168: 0.6439590508 | Q168: 42667 | R168: 0.6257763611 | S168: 42934 | T168: 0.6055806587 | U168: 43194 | V168: 0.5834143631 | W168: 43446 | X168: 0.5639184275 | Y168: 43691 | Z168: 0.5424458126 | AA168: 43928 | AB168: 0.5213075942 | AC168: 44157 | AD168: 0.5050161922 | AE168: 44380 | AF168: 0.4821991888 | AG168: 44594
A169: 1015 | B169: Santa Bárbara | C169: 26634 | D169: 0.7734474732 | E169: 26840 | F169: 0.7078986587 | G169: 27030 | H169: 0.6844247133 | I169: 27215 | J169: 0.6467021863 | K169: 27391 | L169: 0.5987368114 | M169: 27555 | N169: 0.5552531301 | O169: 27708 | P169: 0.5088783023 | Q169: 27849 | R169: 0.4632123236 | S169: 27978 | T169: 0.4217599542 | U169: 28096 | V169: 0.3772779043 | W169: 28202 | X169: 0.3333096943 | Y169: 28296 | Z169: 0.2933276788 | AA169: 28379 | AB169: 0.2572324606 | AC169: 28452 | AD169: 0.2179108674 | AE169: 28514 | AF169: 0.1858736059 | AG169: 28567
A170: 1016 | B170: San Juan Bautista | C170: 8205 | D170: 2.876294942 | E170: 8441 | F170: 2.594479327 | G170: 8660 | H170: 2.355658199 | I170: 8864 | J170: 2.17734657 | K170: 9057 | L170: 1.976371867 | M170: 9236 | N170: 1.818969251 | O170: 9404 | P170: 1.658868567 | Q170: 9560 | R170: 1.516736402 | S170: 9705 | T170: 1.411643483 | U170: 9842 | V170: 1.300548669 | W170: 9970 | X170: 1.193580742 | Y170: 10089 | Z170: 1.110119933 | AA170: 10201 | AB170: 1.029310852 | AC170: 10306 | AD170: 0.9606054725 | AE170: 10405 | AF170: 0.8938010572 | AG170: 10498
A171: 1017 | B171: Santo Tomas La Unión | C171: 11372 | D171: 2.101653183 | E171: 11611 | F171: 2.041167858 | G171: 11848 | H171: 2.017218096 | I171: 12087 | J171: 1.969057665 | K171: 12325 | L171: 1.931034483 | M171: 12563 | N171: 1.88649208 | O171: 12800 | P171: 1.8359375 | Q171: 13035 | R171: 1.795166858 | S171: 13269 | T171: 1.748436205 | U171: 13501 | V171: 1.703577513 | W171: 13731 | X171: 1.660476295 | Y171: 13959 | Z171: 1.619027151 | AA171: 14185 | AB171: 1.579132887 | AC171: 14409 | AD171: 1.540703727 | AE171: 14631 | AF171: 1.510491422 | AG171: 14852
A172: 1018 | B172: Zunilito | C172: 7809 | D172: 2.484312972 | E172: 8003 | F172: 2.336623766 | G172: 8190 | H172: 2.222222222 | I172: 8372 | J172: 2.126134735 | K172: 8550 | L172: 2.011695906 | M172: 8722 | N172: 1.903233203 | O172: 8888 | P172: 1.800180018 | Q172: 9048 | R172: 1.702033599 | S172: 9202 | T172: 1.597478809 | U172: 9349 | V172: 1.508182693 | W172: 9490 | X172: 1.43308746 | Y172: 9626 | Z172: 1.350509038 | AA172: 9756 | AB172: 1.27101271 | AC172: 9880 | AD172: 1.184210526 | AE172: 9997 | AF172: 1.130339102 | AG172: 10110
A173: 1019 | B173: Pueblo Nuevo | C173: 11261 | D173: 1.358671521 | E173: 11414 | F173: 1.279130892 | G173: 11560 | H173: 1.237024221 | I173: 11703 | J173: 1.19627446 | K173: 11843 | L173: 1.14835768 | M173: 11979 | N173: 1.101928375 | O173: 12111 | P173: 1.05689043 | Q173: 12239 | R173: 1.013154669 | S173: 12363 | T173: 0.9706381946 | U173: 12483 | V173: 0.9292637988 | W173: 12599 | X173: 0.8810223034 | Y173: 12710 | Z173: 0.8418568057 | AA173: 12817 | AB173: 0.7958180541 | AC173: 12919 | AD173: 0.7740537193 | AE173: 13019 | AF173: 0.7297027421 | AG173: 13114
A174: 1020 | B174: Río Bravo | C174: 28019 | D174: 1.980798744 | E174: 28574 | F174: 1.910828025 | G174: 29120 | H174: 1.888736264 | I174: 29670 | J174: 1.846983485 | K174: 30218 | L174: 1.800251506 | M174: 30762 | N174: 1.758663286 | O174: 31303 | P174: 1.709101364 | Q174: 31838 | R174: 1.664677429 | S174: 32368 | T174: 1.621972318 | U174: 32893 | V174: 1.57480315 | W174: 33411 | X174: 1.532429439 | Y174: 33923 | Z174: 1.49161336 | AA174: 34429 | AB174: 1.455168608 | AC174: 34930 | AD174: 1.414257086 | AE174: 35424 | AF174: 1.380420054 | AG174: 35913
A175: 1021 | B175: San José La Máquina | C175: 23836 | D175: 1.611008558 | E175: 24220 | F175: 1.548307184 | G175: 24595 | H175: 1.520634275 | I175: 24969 | J175: 1.485842445 | K175: 25340 | L175: 1.432517758 | M175: 25703 | N175: 1.396724118 | O175: 26062 | P175: 1.342951424 | Q175: 26412 | R175: 1.302438286 | S175: 26756 | T175: 1.255793093 | U175: 27092 | V175: 1.214380629 | W175: 27421 | X175: 1.170635644 | Y175: 27742 | Z175: 1.12825319 | AA175: 28055 | AB175: 1.090714668 | AC175: 28361 | AD175: 1.054264659 | AE175: 28660 | AF175: 1.015352408 | AG175: 28951
A176: 11 | B176: Retalhuleu | C176: 343507 | D176: 1.627914424 | E176: 349099 | F176: 1.592384968 | G176: 354658 | H176: 1.55473724 | I176: 360172 | J176: 1.523994092 | K176: 365661 | L176: 1.479785922 | M176: 371072 | N176: 1.435300966 | O176: 376398 | P176: 1.391346394 | Q176: 381635 | R176: 1.348932881 | S176: 386783 | T176: 1.304866036 | U176: 391830 | V176: 1.261261261 | W176: 396772 | X176: 1.220096176 | Y176: 401613 | Z176: 1.179742688 | AA176: 406351 | AB176: 1.13916294 | AC176: 410980 | AD176: 1.100783493 | AE176: 415504 | AF176: 1.068581771 | AG176: 419944
A177: 1101 | B177: Retalhuleu | C177: 100309 | D177: 1.664855596 | E177: 101979 | F177: 1.612096608 | G177: 103623 | H177: 1.561429412 | I177: 105241 | J177: 1.519369827 | K177: 106840 | L177: 1.464807188 | M177: 108405 | N177: 1.411374014 | O177: 109935 | P177: 1.360804112 | Q177: 111431 | R177: 1.312920103 | S177: 112894 | T177: 1.263131787 | U177: 114320 | V177: 1.215885234 | W177: 115710 | X177: 1.171031026 | Y177: 117065 | Z177: 1.127578696 | AA177: 118385 | AB177: 1.084596866 | AC177: 119669 | AD177: 1.04371224 | AE177: 120918 | AF177: 1.00977522 | AG177: 122139
A178: 1102 | B178: San Sebastián | C178: 28865 | D178: 1.167503897 | E178: 29202 | F178: 1.123210739 | G178: 29530 | H178: 1.066711818 | I178: 29845 | J178: 1.02529737 | K178: 30151 | L178: 0.9717753972 | M178: 30444 | N178: 0.9197214558 | O178: 30724 | P178: 0.8690274704 | Q178: 30991 | R178: 0.8163660418 | S178: 31244 | T178: 0.7745487134 | U178: 31486 | V178: 0.7209553452 | W178: 31713 | X178: 0.6779554126 | Y178: 31928 | Z178: 0.6358055625 | AA178: 32131 | AB178: 0.5913292459 | AC178: 32321 | AD178: 0.5538194982 | AE178: 32500 | AF178: 0.5169230769 | AG178: 32668
A179: 1103 | B179: Santa Cruz Muluá | C179: 14297 | D179: 2.175281528 | E179: 14608 | F179: 2.108433735 | G179: 14916 | H179: 2.064896755 | I179: 15224 | J179: 2.009984235 | K179: 15530 | L179: 1.96394076 | M179: 15835 | N179: 1.913482791 | O179: 16138 | P179: 1.858966415 | Q179: 16438 | R179: 1.818956077 | S179: 16737 | T179: 1.756587202 | U179: 17031 | V179: 1.71452058 | W179: 17323 | X179: 1.668302257 | Y179: 17612 | Z179: 1.6238928 | AA179: 17898 | AB179: 1.581182255 | AC179: 18181 | AD179: 1.534569056 | AE179: 18460 | AF179: 1.50595883 | AG179: 18738
A180: 1104 | B180: San Martín Zapotitlán | C180: 11767 | D180: 2.22656582 | E180: 12029 | F180: 2.003491562 | G180: 12270 | H180: 1.825590872 | I180: 12494 | J180: 1.696814471 | K180: 12706 | L180: 1.566189202 | M180: 12905 | N180: 1.464548625 | O180: 13094 | P180: 1.38231251 | Q180: 13275 | R180: 1.303201507 | S180: 13448 | T180: 1.234384295 | U180: 13614 | V180: 1.182606141 | W180: 13775 | X180: 1.117967332 | Y180: 13929 | Z180: 1.069710676 | AA180: 14078 | AB180: 1.022872567 | AC180: 14222 | AD180: 0.9843903811 | AE180: 14362 | AF180: 0.9399805041 | AG180: 14497
A181: 1105 | B181: San Felipe | C181: 23884 | D181: 1.955283872 | E181: 24351 | F181: 1.909572502 | G181: 24816 | H181: 1.857672469 | I181: 25277 | J181: 1.815880049 | K181: 25736 | L181: 1.767951508 | M181: 26191 | N181: 1.71432935 | O181: 26640 | P181: 1.662912913 | Q181: 27083 | R181: 1.613558321 | S181: 27520 | T181: 1.573401163 | U181: 27953 | V181: 1.520409258 | W181: 28378 | X181: 1.480019734 | Y181: 28798 | Z181: 1.441072297 | AA181: 29213 | AB181: 1.396638483 | AC181: 29621 | AD181: 1.357145269 | AE181: 30023 | AF181: 1.325650335 | AG181: 30421
A182: 1106 | B182: San Andrés Villa Seca | C182: 50341 | D182: 1.936791085 | E182: 51316 | F182: 1.884402526 | G182: 52283 | H182: 1.832335558 | I182: 53241 | J182: 1.789973892 | K182: 54194 | L182: 1.732664133 | M182: 55133 | N182: 1.681388642 | O182: 56060 | P182: 1.630396004 | Q182: 56974 | R182: 1.583178292 | S182: 57876 | T182: 1.53258691 | U182: 58763 | V182: 1.483926961 | W182: 59635 | X182: 1.440429278 | Y182: 60494 | Z182: 1.395179687 | AA182: 61338 | AB182: 1.351527601 | AC182: 62167 | AD182: 1.310984928 | AE182: 62982 | AF182: 1.276555206 | AG182: 63786
A183: 1107 | B183: Champerico | C183: 35040 | D183: 1.738013699 | E183: 35649 | F183: 1.685881792 | G183: 36250 | H183: 1.633103448 | I183: 36842 | J183: 1.593290267 | K183: 37429 | L183: 1.541585402 | M183: 38006 | N183: 1.483976214 | O183: 38570 | P183: 1.436349494 | Q183: 39124 | R183: 1.385338922 | S183: 39666 | T183: 1.33615691 | U183: 40196 | V183: 1.291173251 | W183: 40715 | X183: 1.242785214 | Y183: 41221 | Z183: 1.20084423 | AA183: 41716 | AB183: 1.160226292 | AC183: 42200 | AD183: 1.116113744 | AE183: 42671 | AF183: 1.08504605 | AG183: 43134
A184: 1108 | B184: Nuevo San Carlos | C184: 39942 | D184: 0.5958640028 | E184: 40180 | F184: 0.7217521155 | G184: 40470 | H184: 0.8178897949 | I184: 40801 | J184: 0.894585917 | K184: 41166 | L184: 0.9376670068 | M184: 41552 | N184: 0.9722757027 | O184: 41956 | P184: 0.9843645724 | Q184: 42369 | R184: 0.9960112346 | S184: 42791 | T184: 0.9885256245 | U184: 43214 | V184: 0.9788494469 | W184: 43637 | X184: 0.964777597 | Y184: 44058 | Z184: 0.9442099051 | AA184: 44474 | AB184: 0.9218869452 | AC184: 44884 | AD184: 0.8978700651 | AE184: 45287 | AF184: 0.8766312628 | AG184: 45684
A185: 1109 | B185: El Asintal | C185: 39062 | D185: 1.850903692 | E185: 39785 | F185: 1.797159734 | G185: 40500 | H185: 1.745679012 | I185: 41207 | J185: 1.70359405 | K185: 41909 | L185: 1.65119664 | M185: 42601 | N185: 1.596206662 | O185: 43281 | P185: 1.545712899 | Q185: 43950 | R185: 1.494880546 | S185: 44607 | T185: 1.448203197 | U185: 45253 | V185: 1.398802289 | W185: 45886 | X185: 1.355533278 | Y185: 46508 | Z185: 1.311602305 | AA185: 47118 | AB185: 1.267031708 | AC185: 47715 | AD185: 1.228125327 | AE185: 48301 | AF185: 1.192521894 | AG185: 48877
A186: 12 | B186: San Marcos | C186: 1084359 | D186: 1.630548554 | E186: 1102040 | F186: 1.617727124 | G186: 1119868 | H186: 1.594652227 | I186: 1137726 | J186: 1.519961748 | K186: 1155019 | L186: 1.488373784 | M186: 1172210 | N186: 1.455711861 | O186: 1189274 | P186: 1.423053056 | Q186: 1206198 | R186: 1.388909615 | S186: 1222951 | T186: 1.353529291 | U186: 1239504 | V186: 1.318914663 | W186: 1255852 | X186: 1.283749996 | Y186: 1271974 | Z186: 1.250025551 | AA186: 1287874 | AB186: 1.217277467 | AC186: 1303551 | AD186: 1.184993913 | AE186: 1318998 | AF186: 1.155801601 | AG186: 1334243
A187: 1201 | B187: San Marcos | C187: 46835 | D187: 0.4398419985 | E187: 47041 | F187: 0.6441189601 | G187: 47344 | H187: 0.8005238256 | I187: 47723 | J187: 0.8779833623 | K187: 48142 | L187: 0.9700469445 | M187: 48609 | N187: 1.040959493 | O187: 49115 | P187: 1.097424412 | Q187: 49654 | R187: 1.135860152 | S187: 50218 | T187: 1.158946991 | U187: 50800 | V187: 1.17519685 | W187: 51397 | X187: 1.181002782 | Y187: 52004 | Z187: 1.182601338 | AA187: 52619 | AB187: 1.176381155 | AC187: 53238 | AD187: 1.166460047 | AE187: 53859 | AF187: 1.158580739 | AG187: 54483
A188: 1202 | B188: San Pedro Sacatepéquez | C188: 76620 | D188: 2.212216132 | E188: 78315 | F188: 2.036646875 | G188: 79910 | H188: 1.91215117 | I188: 81438 | J188: 1.771900096 | K188: 82881 | L188: 1.698821201 | M188: 84289 | N188: 1.6395971 | O188: 85671 | P188: 1.586301082 | Q188: 87030 | R188: 1.539698954 | S188: 88370 | T188: 1.4959828 | U188: 89692 | V188: 1.453864336 | W188: 90996 | X188: 1.413248934 | Y188: 92282 | Z188: 1.372965475 | AA188: 93549 | AB188: 1.338336059 | AC188: 94801 | AD188: 1.301674033 | AE188: 96035 | AF188: 1.268287603 | AG188: 97253
A189: 1203 | B189: San Antonio Sacatepéquez | C189: 18096 | D189: 2.984084881 | E189: 18636 | F189: 2.779566431 | G189: 19154 | H189: 2.594758275 | I189: 19651 | J189: 2.376469391 | K189: 20118 | L189: 2.221890844 | M189: 20565 | N189: 2.086068563 | O189: 20994 | P189: 1.976755263 | Q189: 21409 | R189: 1.863702181 | S189: 21808 | T189: 1.76540719 | U189: 22193 | V189: 1.680710134 | W189: 22566 | X189: 1.599751839 | Y189: 22927 | Z189: 1.535307716 | AA189: 23279 | AB189: 1.464839555 | AC189: 23620 | AD189: 1.409822185 | AE189: 23953 | AF189: 1.360998622 | AG189: 24279
A190: 1204 | B190: Comitancillo | C190: 75535 | D190: 1.145164493 | E190: 76400 | F190: 1.15052356 | G190: 77279 | H190: 1.136143066 | I190: 78157 | J190: 1.065803447 | K190: 78990 | L190: 1.038106089 | M190: 79810 | N190: 1.004886606 | O190: 80612 | P190: 0.9688383863 | Q190: 81393 | R190: 0.9337412308 | S190: 82153 | T190: 0.8971066181 | U190: 82890 | V190: 0.8577633008 | W190: 83601 | X190: 0.8205643473 | Y190: 84287 | Z190: 0.7830389028 | AA190: 84947 | AB190: 0.7475249273 | AC190: 85582 | AD190: 0.7115982333 | AE190: 86191 | AF190: 0.6787251569 | AG190: 86776
A191: 1205 | B191: San Miguel Ixtahuacán | C191: 49187 | D191: 1.132413036 | E191: 49744 | F191: 1.135815375 | G191: 50309 | H191: 1.123059492 | I191: 50874 | J191: 1.055549003 | K191: 51411 | L191: 1.023127346 | M191: 51937 | N191: 0.9915859599 | O191: 52452 | P191: 0.9589720125 | Q191: 52955 | R191: 0.9196487584 | S191: 53442 | T191: 0.883200479 | U191: 53914 | V191: 0.8457914456 | W191: 54370 | X191: 0.8074305683 | Y191: 54809 | Z191: 0.7699465416 | AA191: 55231 | AB191: 0.7350944216 | AC191: 55637 | AD191: 0.7009723745 | AE191: 56027 | AF191: 0.6675352955 | AG191: 56401
A192: 1206 | B192: Concepción Tutuapa | C192: 76129 | D192: 1.73652616 | E192: 77451 | F192: 1.740455256 | G192: 78799 | H192: 1.728448331 | I192: 80161 | J192: 1.65666596 | K192: 81489 | L192: 1.629667808 | M192: 82817 | N192: 1.595083135 | O192: 84138 | P192: 1.561720031 | Q192: 85452 | R192: 1.526002902 | S192: 86756 | T192: 1.486928858 | U192: 88046 | V192: 1.450378211 | W192: 89323 | X192: 1.410610929 | Y192: 90583 | Z192: 1.375534041 | AA192: 91829 | AB192: 1.339446144 | AC192: 93059 | AD192: 1.30347414 | AE192: 94272 | AF192: 1.270790903 | AG192: 95470
A193: 1207 | B193: Tacaná | C193: 77851 | D193: 0.8259367253 | E193: 78494 | F193: 0.8803220628 | G193: 79185 | H193: 0.9117888489 | I193: 79907 | J193: 0.8872814647 | K193: 80616 | L193: 0.899325196 | M193: 81341 | N193: 0.9072915258 | O193: 82079 | P193: 0.9100988072 | Q193: 82826 | R193: 0.9115495134 | S193: 83581 | T193: 0.9069046793 | U193: 84339 | V193: 0.903496603 | W193: 85101 | X193: 0.8965817088 | Y193: 85864 | Z193: 0.8886145532 | AA193: 86627 | AB193: 0.8796333707 | AC193: 87389 | AD193: 0.8719632906 | AE193: 88151 | AF193: 0.8655602319 | AG193: 88914
A194: 1208 | B194: Sibinal | C194: 16104 | D194: 0.86934923 | E194: 16244 | F194: 0.9418862349 | G194: 16397 | H194: 0.9940842837 | I194: 16560 | J194: 0.9963768116 | K194: 16725 | L194: 1.010463378 | M194: 16894 | N194: 1.035870723 | O194: 17069 | P194: 1.04868475 | Q194: 17248 | R194: 1.055194805 | S194: 17430 | T194: 1.061388411 | U194: 17615 | V194: 1.055918251 | W194: 17801 | X194: 1.050502781 | Y194: 17988 | Z194: 1.050700467 | AA194: 18177 | AB194: 1.039775541 | AC194: 18366 | AD194: 1.029075466 | AE194: 18555 | AF194: 1.023982754 | AG194: 18745
A195: 1209 | B195: Tajumulco | C195: 56684 | D195: 1.940582881 | E195: 57784 | F195: 1.945175135 | G195: 58908 | H195: 1.931825898 | I195: 60046 | J195: 1.860240482 | K195: 61163 | L195: 1.832807416 | M195: 62284 | N195: 1.799820179 | O195: 63405 | P195: 1.764845044 | Q195: 64524 | R195: 1.72958899 | S195: 65640 | T195: 1.689518586 | U195: 66749 | V195: 1.652459213 | W195: 67852 | X195: 1.615280316 | Y195: 68948 | Z195: 1.576550444 | AA195: 70035 | AB195: 1.543513957 | AC195: 71116 | AD195: 1.505990213 | AE195: 72187 | AF195: 1.473949603 | AG195: 73251
A196: 1210 | B196: Tejutla | C196: 38897 | D196: 2.29066509 | E196: 39788 | F196: 2.297175028 | G196: 40702 | H196: 2.282443123 | I196: 41631 | J196: 2.21469578 | K196: 42553 | L196: 2.180809814 | M196: 43481 | N196: 2.150364527 | O196: 44416 | P196: 2.116354467 | Q196: 45356 | R196: 2.076902725 | S196: 46298 | T196: 2.041124887 | U196: 47243 | V196: 2.002413056 | W196: 48189 | X196: 1.965178775 | Y196: 49136 | Z196: 1.92730381 | AA196: 50083 | AB196: 1.888864485 | AC196: 51029 | AD196: 1.855807482 | AE196: 51976 | AF196: 1.821994767 | AG196: 52923
A197: 1211 | B197: San Rafael Pie de la Cuesta | C197: 16888 | D197: 1.450734249 | E197: 17133 | F197: 1.453335668 | G197: 17382 | H197: 1.444022552 | I197: 17633 | J197: 1.366755515 | K197: 17874 | L197: 1.348327179 | M197: 18115 | N197: 1.308308032 | O197: 18352 | P197: 1.275065388 | Q197: 18586 | R197: 1.242870978 | S197: 18817 | T197: 1.206355955 | U197: 19044 | V197: 1.165721487 | W197: 19266 | X197: 1.126336551 | Y197: 19483 | Z197: 1.088128112 | AA197: 19695 | AB197: 1.056105611 | AC197: 19903 | AD197: 1.019946742 | AE197: 20106 | AF197: 0.9847806625 | AG197: 20304
A198: 1212 | B198: Nuevo Progreso | C198: 28986 | D198: 1.700821086 | E198: 29479 | F198: 1.7062994 | G198: 29982 | H198: 1.691014609 | I198: 30489 | J198: 1.623536357 | K198: 30984 | L198: 1.591143816 | M198: 31477 | N198: 1.559869111 | O198: 31968 | P198: 1.526526527 | Q198: 32456 | R198: 1.491249692 | S198: 32940 | T198: 1.448087432 | U198: 33417 | V198: 1.412454739 | W198: 33889 | X198: 1.378028269 | Y198: 34356 | Z198: 1.338921877 | AA198: 34816 | AB198: 1.301125919 | AC198: 35269 | AD198: 1.267401968 | AE198: 35716 | AF198: 1.237540598 | AG198: 36158
A199: 1213 | B199: El Tumbador | C199: 46839 | D199: 1.859561477 | E199: 47710 | F199: 1.863341019 | G199: 48599 | H199: 1.851889957 | I199: 49499 | J199: 1.779833936 | K199: 50380 | L199: 1.752679635 | M199: 51263 | N199: 1.718588456 | O199: 52144 | P199: 1.683798711 | Q199: 53022 | R199: 1.648372374 | S199: 53896 | T199: 1.610509129 | U199: 54764 | V199: 1.574026733 | W199: 55626 | X199: 1.531657858 | Y199: 56478 | Z199: 1.497928397 | AA199: 57324 | AB199: 1.461865885 | AC199: 58162 | AD199: 1.425329253 | AE199: 58991 | AF199: 1.393432897 | AG199: 59813
A200: 1214 | B200: San José el Rodeo | C200: 17389 | D200: 1.89200069 | E200: 17718 | F200: 1.902020544 | G200: 18055 | H200: 1.888673498 | I200: 18396 | J200: 1.821048054 | K200: 18731 | L200: 1.788478992 | M200: 19066 | N200: 1.757054442 | O200: 19401 | P200: 1.721560744 | Q200: 19735 | R200: 1.682290347 | S200: 20067 | T200: 1.654457567 | U200: 20399 | V200: 1.607921957 | W200: 20727 | X200: 1.572827713 | Y200: 21053 | Z200: 1.534223151 | AA200: 21376 | AB200: 1.501684132 | AC200: 21697 | AD200: 1.465640411 | AE200: 22015 | AF200: 1.430842607 | AG200: 22330
A201: 1215 | B201: Malacatán | C201: 101444 | D201: 1.31008241 | E201: 102773 | F201: 1.312601559 | G201: 104122 | H201: 1.30039761 | I201: 105476 | J201: 1.230611703 | K201: 106774 | L201: 1.200666829 | M201: 108056 | N201: 1.167912934 | O201: 109318 | P201: 1.134305421 | Q201: 110558 | R201: 1.098066173 | S201: 111772 | T201: 1.059299288 | U201: 112956 | V201: 1.021636744 | W201: 114110 | X201: 0.9841381123 | Y201: 115233 | Z201: 0.9476452058 | AA201: 116325 | AB201: 0.9103803997 | AC201: 117384 | AD201: 0.8757581953 | AE201: 118412 | AF201: 0.8436644935 | AG201: 119411
... 170 more rows

Sheet INE (2) (hidden)
A1: Codigo Municipio | B1: Departamento | C1: Municipio | D1: 2015 | E1: TC | F1: 2016 | G1: TC | H1: 2017 | I1: TC | J1: 2018 | K1: TC | L1: 2019 | M1: TC | N1: 2020 | O1: TC | P1: 2021 | Q1: TC | R1: 2022 | S1: TC | T1: 2023 | U1: TC | V1: 2024 | W1: TC | X1: 2025 | Y1: TC | Z1: 2026 | AA1: TC | AB1: 2027 | AC1: TC | AD1: 2028 | AE1: TC | AF1: 2029 | AG1: TC | AH1: 2030
A2: 101 | B2: Guatemala | C2: Guatemala | D2: 1142188 | E2: =+(((F2/D2)^(1/1))-1)*100 -> 1.019271784 | F2: 1153830 | G2: =+(((H2/F2)^(1/1))-1)*100 -> 0.9775270187 | H2: 1165109 | I2: =+(((J2/H2)^(1/1))-1)*100 -> 0.9121893316 | J2: 1175737 | K2: =+(((L2/J2)^(1/1))-1)*100 -> 0.8706028644 | L2: 1185973 | M2: =+(((N2/L2)^(1/1))-1)*100 -> 0.822447054 | N2: 1195727 | O2: =+(((P2/N2)^(1/1))-1)*100 -> 0.7725007464 | P2: 1204964 | Q2: =+(((R2/P2)^(1/1))-1)*100 -> 0.7209344014 | R2: 1213651 | S2: =+(((T2/R2)^(1/1))-1)*100 -> 0.6664189293 | T2: 1221739 | U2: =+(((V2/T2)^(1/1))-1)*100 -> 0.6119146561 | V2: 1229215 | W2: =+(((X2/V2)^(1/1))-1)*100 -> 0.5558832263 | X2: 1236048 | Y2: =+(((Z2/X2)^(1/1))-1)*100 -> 0.4992524562 | Z2: 1242219 | AA2: =+(((AB2/Z2)^(1/1))-1)*100 -> 0.4414680503 | AB2: 1247703 | AC2: =+(((AD2/AB2)^(1/1))-1)*100 -> 0.3847069375 | AD2: 1252503 | AE2: =+(((AF2/AD2)^(1/1))-1)*100 -> 0.3266259642 | AF2: 1256594 | AG2: =+(((AH2/AF2)^(1/1))-1)*100 -> 0.2704930948 | AH2: 1259993
A3: 102 | B3: Guatemala | C3: Santa Catarina Pinula | D3: 84215 | E3: 0.6150923232 | F3: 84733 | G3: 0.5912690451 | H3: 85234 | I3: 0.5455569374 | J3: 85699 | K3: 0.5239267669 | L3: 86148 | M3: 0.495658634 | N3: 86575 | O3: 0.4678024834 | P3: 86980 | Q3: 0.439181421 | R3: 87362 | S3: 0.4063551659 | T3: 87717 | U3: 0.3762098567 | V3: 88047 | W3: 0.3441343828 | X3: 88350 | Y3: 0.3146576118 | Z3: 88628 | AA3: 0.2820778986 | AB3: 88878 | AC3: 0.2531560116 | AD3: 89103 | AE3: 0.2233370369 | AF3: 89302 | AG3: 0.1970840519 | AH3: 89478
A4: 103 | B4: Guatemala | C4: San José Pinula | D4: 84770 | E4: 0.8894656128 | F4: 85524 | G4: 0.8664234601 | H4: 86265 | I4: 0.8218860488 | J4: 86974 | K4: 0.7979396141 | L4: 87668 | M4: 0.772231601 | N4: 88345 | O4: 0.7425434377 | P4: 89001 | Q4: 0.7134751295 | R4: 89636 | S4: 0.6816457673 | T4: 90247 | U4: 0.6515452037 | V4: 90835 | W4: 0.6209060384 | X4: 91399 | Y4: 0.5897219882 | Z4: 91938 | AA4: 0.5579847288 | AB4: 92451 | AC4: 0.528928838 | AD4: 92940 | AE4: 0.4981708629 | AF4: 93403 | AG4: 0.4710769461 | AH4: 93843
A5: 104 | B5: Guatemala | C5: San José del Golfo | D5: 8078 | E5: 0.7551374103 | F5: 8139 | G5: 0.7126182578 | H5: 8197 | I5: 0.683176772 | J5: 8253 | K5: 0.6543075245 | L5: 8307 | M5: 0.6139400506 | N5: 8358 | O5: 0.6101938263 | P5: 8409 | Q5: 0.5589249614 | R5: 8456 | S5: 0.5439924314 | T5: 8502 | U5: 0.5057633498 | V5: 8545 | W5: 0.4681100059 | X5: 8585 | Y5: 0.4426324985 | Z5: 8623 | AA5: 0.4174881132 | AB5: 8659 | AC5: 0.3811063633 | AD5: 8692 | AE5: 0.3566497929 | AF5: 8723 | AG5: 0.3324544308 | AH5: 8752
A6: 105 | B6: Guatemala | C6: Palencia | D6: 72175 | E6: 0.6082438517 | F6: 72614 | G6: 0.5852865839 | H6: 73039 | I6: 0.538068703 | J6: 73432 | K6: 0.518847369 | L6: 73813 | M6: 0.4904285153 | N6: 74175 | O6: 0.4610717897 | P6: 74517 | Q6: 0.4321161614 | R6: 74839 | S6: 0.4008605139 | T6: 75139 | U6: 0.3699809686 | V6: 75417 | W6: 0.3394460135 | X6: 75673 | Y6: 0.3065822684 | Z6: 75905 | AA6: 0.2779790528 | AB6: 76116 | AC6: 0.2456776499 | AD6: 76303 | AE6: 0.2175537004 | AF6: 76469 | AG6: 0.1909270423 | AH6: 76615
A7: 106 | B7: Guatemala | C7: Chinautla | D7: 116768 | E7: 0.9934228556 | F7: 117928 | G7: 0.9717793908 | H7: 119074 | I7: 0.9246351009 | J7: 120175 | K7: 0.9020178906 | L7: 121259 | M7: 0.87581128 | N7: 122321 | O7: 0.8461343514 | P7: 123356 | Q7: 0.8179577807 | R7: 124365 | S7: 0.7855908013 | T7: 125342 | U7: 0.7555328621 | V7: 126289 | W7: 0.7237368259 | X7: 127203 | Y7: 0.6933798731 | Z7: 128085 | AA7: 0.661279619 | AB7: 128932 | AC7: 0.6328917569 | AD7: 129748 | AE7: 0.6019360607 | AF7: 130529 | AG7: 0.5753510714 | AH7: 131280
A8: 107 | B8: Guatemala | C8: San Pedro Ayampuc | D8: 60608 | E8: 1.772043295 | F8: 61682 | G8: 1.736325022 | H8: 62753 | I8: 1.676413877 | J8: 63805 | K8: 1.644071781 | L8: 64854 | M8: 1.603601937 | N8: 65894 | O8: 1.566151698 | P8: 66926 | Q8: 1.524071362 | R8: 67946 | S8: 1.483531039 | T8: 68954 | U8: 1.441540737 | V8: 69948 | W8: 1.401040773 | X8: 70928 | Y8: 1.361944507 | Z8: 71894 | AA8: 1.319998887 | AB8: 72843 | AC8: 1.282209684 | AD8: 73777 | AE8: 1.244290226 | AF8: 74695 | AG8: 1.210255037 | AH8: 75599
A9: 108 | B9: Guatemala | C9: Mixco | D9: 446877 | E9: 2.211570522 | F9: 456760 | G9: 2.1869253 | H9: 466749 | I9: 2.139693925 | J9: 476736 | K9: 2.116685126 | L9: 486827 | M9: 2.088010731 | N9: 496992 | O9: 2.057980813 | P9: 507220 | Q9: 2.027719727 | R9: 517505 | S9: 1.994763336 | T9: 527828 | U9: 1.962950052 | V9: 538189 | W9: 1.930362754 | X9: 548578 | Y9: 1.897815807 | Z9: 558989 | AA9: 1.86551077 | AB9: 569417 | AC9: 1.834683545 | AD9: 579864 | AE9: 1.803698798 | AF9: 590323 | AG9: 1.775299285 | AH9: 600803
A10: 109 | B10: Guatemala | C10: San Pedro Sacatepéquez | D10: 50756 | E10: 1.637244858 | F10: 51587 | G10: 1.616686374 | H10: 52421 | I10: 1.571889128 | J10: 53245 | K10: 1.551319373 | L10: 54071 | M10: 1.527621091 | N10: 54897 | O10: 1.504635955 | P10: 55723 | Q10: 1.475153886 | R10: 56545 | S10: 1.44486692 | T10: 57362 | U10: 1.417314599 | V10: 58175 | W10: 1.388912763 | X10: 58983 | Y10: 1.36140922 | Z10: 59786 | AA10: 1.331415382 | AB10: 60582 | AC10: 1.30566835 | AD10: 61373 | AE10: 1.277434703 | AF10: 62157 | AG10: 1.254886819 | AH10: 62937
A11: 110 | B11: Guatemala | C11: San Juan Sacatepéquez | D11: 261052 | E11: 1.341112116 | F11: 264553 | G11: 1.317694375 | H11: 268039 | I11: 1.271829846 | J11: 271448 | K11: 1.249963161 | L11: 274841 | M11: 1.222161177 | N11: 278200 | O11: 1.193386053 | P11: 281520 | Q11: 1.164393294 | R11: 284798 | S11: 1.132732674 | T11: 288024 | U11: 1.102338694 | V11: 291199 | W11: 1.070402027 | X11: 294316 | Y11: 1.039698827 | Z11: 297376 | AA11: 1.008151297 | AB11: 300374 | AC11: 0.9787797879 | AD11: 303314 | AE11: 0.9491813764 | AF11: 306193 | AG11: 0.9219675172 | AH11: 309016
A12: 111 | B12: Guatemala | C12: San Raymundo | D12: 37606 | E12: 0.5717172792 | F12: 37821 | G12: 0.5473149837 | H12: 38028 | I12: 0.4996318502 | J12: 38218 | K12: 0.478831964 | L12: 38401 | M12: 0.4531132002 | N12: 38575 | O12: 0.4251458198 | P12: 38739 | Q12: 0.3923694468 | R12: 38891 | S12: 0.3651230362 | T12: 39033 | U12: 0.3304895857 | V12: 39162 | W12: 0.3038659925 | X12: 39281 | Y12: 0.2698505639 | Z12: 39387 | AA12: 0.238657425 | AB12: 39481 | AC12: 0.2102277045 | AD12: 39564 | AE12: 0.1769285209 | AF12: 39634 | AG12: 0.1539082606 | AH12: 39695
A13: 112 | B13: Guatemala | C13: Chuarrancho | D13: 16123 | E13: 0.279104385 | F13: 16168 | G13: 0.5752102919 | H13: 16261 | I13: 0.7564110448 | J13: 16384 | K13: 0.9094238281 | L13: 16533 | M13: 0.991955483 | N13: 16697 | O13: 1.048092472 | P13: 16872 | Q13: 1.096491228 | R13: 17057 | S13: 1.102186785 | T13: 17245 | U13: 1.107567411 | V13: 17436 | W13: 1.101169993 | X13: 17628 | Y13: 1.08917631 | Z13: 17820 | AA13: 1.071829405 | AB13: 18011 | AC13: 1.049358725 | AD13: 18200 | AE13: 1.032967033 | AF13: 18388 | AG13: 1.006090929 | AH13: 18573
A14: 113 | B14: Guatemala | C14: Fraijanes | D14: 56956 | E14: 2.215745488 | F14: 58218 | G14: 1.877426226 | H14: 59311 | I14: 1.647249246 | J14: 60288 | K14: 1.511080149 | L14: 61199 | M14: 1.418323829 | N14: 62067 | O14: 1.351765028 | P14: 62906 | Q14: 1.295583887 | R14: 63721 | S14: 1.252334395 | T14: 64519 | U14: 1.213595995 | V14: 65302 | W14: 1.17607424 | X14: 66070 | Y14: 1.14272741 | Z14: 66825 | AA14: 1.110362888 | AB14: 67567 | AC14: 1.078929063 | AD14: 68296 | AE14: 1.04837765 | AF14: 69012 | AG14: 1.021561468 | AH14: 69717
A15: 114 | B15: Guatemala | C15: Amatitlán | D15: 138168 | E15: 1.489491054 | F15: 140226 | G15: 1.467630825 | H15: 142284 | I15: 1.420398639 | J15: 144305 | K15: 1.39911992 | L15: 146324 | M15: 1.370930264 | N15: 148330 | O15: 1.342951527 | P15: 150322 | Q15: 1.313181038 | R15: 152296 | S15: 1.281714556 | T15: 154248 | U15: 1.250583476 | V15: 156177 | W15: 1.219769876 | X15: 158082 | Y15: 1.188623626 | Z15: 159961 | AA15: 1.156531905 | AB15: 161811 | AC15: 1.127859045 | AD15: 163636 | AE15: 1.097557995 | AF15: 165432 | AG15: 1.07053049 | AH15: 167203
A16: 115 | B16: Guatemala | C16: Villa Nueva | D16: 425783 | E16: 1.899794027 | F16: 433872 | G16: 1.887423019 | H16: 442061 | I16: 1.852459276 | J16: 450250 | K16: 1.842309828 | L16: 458545 | M16: 1.826865411 | N16: 466922 | O16: 1.809938277 | P16: 475373 | Q16: 1.793118246 | R16: 483897 | S16: 1.773724574 | T16: 492480 | U16: 1.755807342 | V16: 501127 | W16: 1.737084611 | X16: 509832 | Y16: 1.718997631 | Z16: 518596 | AA16: 1.70074586 | AB16: 527416 | AC16: 1.684628453 | AD16: 536301 | AE16: 1.668279567 | AF16: 545248 | AG16: 1.655210106 | AH16: 554273
A17: 116 | B17: Guatemala | C17: Villa Canales | D17: 160276 | E17: 0.7449649355 | F17: 161470 | G17: 0.7221155633 | H17: 162636 | I17: 0.6763570181 | J17: 163736 | K17: 0.6541017247 | L17: 164807 | M17: 0.6261869945 | N17: 165839 | O17: 0.5981705148 | P17: 166831 | Q17: 0.5682397156 | R17: 167779 | S17: 0.5370159555 | T17: 168680 | U17: 0.5062840882 | V17: 169534 | W17: 0.4742411552 | X17: 170338 | Y17: 0.4438234569 | Z17: 171094 | AA17: 0.4120541924 | AB17: 171799 | AC17: 0.3824236462 | AD17: 172456 | AE17: 0.3531335529 | AF17: 173065 | AG17: 0.3258891168 | AH17: 173629
A18: 117 | B18: Guatemala | C18: San Miguel Petapa | D18: 131101 | E18: 2.607150212 | F18: 134519 | G18: 2.358031207 | H18: 137691 | I18: 2.116332948 | J18: 140605 | K18: 1.931652502 | L18: 143321 | M18: 1.772245519 | N18: 145861 | O18: 1.637860703 | P18: 148250 | Q18: 1.526475548 | R18: 150513 | S18: 1.430441224 | T18: 152666 | U18: 1.351315945 | V18: 154729 | W18: 1.282888146 | X18: 156714 | Y18: 1.223247444 | Z18: 158631 | AA18: 1.171271693 | AB18: 160489 | AC18: 1.125310769 | AD18: 162295 | AE18: 1.083212668 | AF18: 164053 | AG18: 1.047222544 | AH18: 165771
A19: 2 | B19: Guatemala | C19: El Progreso | D19: 185607 | E19: 0.9148361861 | F19: 187305 | G19: 0.8355356237 | H19: 188870 | I19: 0.7873140255 | J19: 190357 | K19: 0.7233776536 | L19: 191734 | M19: 0.6962771339 | N19: 193069 | O19: 0.683175445 | P19: 194388 | Q19: 0.6610490359 | R19: 195673 | S19: 0.6357545497 | T19: 196917 | U19: 0.6154877436 | V19: 198129 | W19: 0.592543242 | X19: 199303 | Y19: 0.5669759111 | Z19: 200433 | AA19: 0.5498096621 | AB19: 201535 | AC19: 0.5195127397 | AD19: 202582 | AE19: 0.4990571719 | AF19: 203593 | AG19: 0.4803701503 | AH19: 204571
A20: 201 | B20: Guatemala | C20: Guastatoya | D20: 25803 | E20: 1.0347634 | F20: 26070 | G20: 0.9474491753 | H20: 26317 | I20: 0.9005585743 | J20: 26554 | K20: 0.8285004143 | L20: 26774 | M20: 0.8030178531 | N20: 26989 | O20: 0.7855052058 | P20: 27201 | Q20: 0.7573250983 | R20: 27407 | S20: 0.7333892801 | T20: 27608 | U20: 0.7063170096 | V20: 27803 | W20: 0.6797827573 | X20: 27992 | Y20: 0.6466133181 | Z20: 28173 | AA20: 0.6282611011 | AB20: 28350 | AC20: 0.5925925926 | AD20: 28518 | AE20: 0.5680622765 | AF20: 28680 | AG20: 0.5439330544 | AH20: 28836
A21: 202 | B21: Guatemala | C21: Morazán | D21: 12442 | E21: 0.3214917216 | F21: 12482 | G21: 0.2804037814 | H21: 12517 | I21: 0.2636414476 | J21: 12550 | K21: 0.2310756972 | L21: 12579 | M21: 0.2305429684 | N21: 12608 | O21: 0.2458756345 | P21: 12639 | Q21: 0.2610966057 | R21: 12672 | S21: 0.2446338384 | T21: 12703 | U21: 0.2597811541 | V21: 12736 | W21: 0.2512562814 | X21: 12768 | Y21: 0.2506265664 | Z21: 12800 | AA21: 0.2421875 | AB21: 12831 | AC21: 0.2338087444 | AD21: 12861 | AE21: 0.2254879092 | AF21: 12890 | AG21: 0.2172226532 | AH21: 12918
A22: 203 | B22: Guatemala | C22: San Agustín Acasaguastlán | D22: 52014 | E22: 1.074710655 | F22: 52573 | G22: 0.9986114545 | H22: 53098 | I22: 0.9548382237 | J22: 53605 | K22: 0.9010353512 | L22: 54088 | M22: 0.8781984913 | N22: 54563 | O22: 0.8723860492 | P22: 55039 | Q22: 0.85212304 | R22: 55508 | S22: 0.8341140016 | T22: 55971 | U22: 0.816494256 | V22: 56428 | W22: 0.7974764301 | X22: 56878 | Y22: 0.7753437181 | Z22: 57319 | AA22: 0.7606552801 | AB22: 57755 | AC22: 0.730672669 | AD22: 58177 | AE22: 0.7133403235 | AF22: 58592 | AG22: 0.6963407974 | AH22: 59000
A23: 204 | B23: Guatemala | C23: San Cristóbal Acasaguastlán | D23: 7692 | E23: 0.5720228809 | F23: 7736 | G23: 0.5429162358 | H23: 7778 | I23: 0.5399845719 | J23: 7820 | K23: 0.4987212276 | L23: 7859 | M23: 0.5089706069 | N23: 7899 | O23: 0.5063932143 | P23: 7939 | Q23: 0.5038417937 | R23: 7979 | S23: 0.4887830555 | T23: 8018 | U23: 0.4614617111 | V23: 8055 | W23: 0.4593420236 | X23: 8092 | Y23: 0.4325259516 | Z23: 8127 | AA23: 0.4306632214 | AB23: 8162 | AC23: 0.4043126685 | AD23: 8195 | AE23: 0.3782794387 | AF23: 8226 | AG23: 0.3646973012 | AH23: 8256
A24: 205 | B24: Guatemala | C24: El Jícaro | D24: 13476 | E24: 0.07420599584 | F24: 13486 | G24: 0.04449058283 | H24: 13492 | I24: 0.03705899792 | J24: 13497 | K24: 0.01481810773 | L24: 13499 | M24: 0.02222386843 | N24: 13502 | O24: 0.05184417123 | P24: 13509 | Q24: 0.06662225183 | R24: 13518 | S24: 0.06657789614 | T24: 13527 | U24: 0.08871146596 | V24: 13539 | W24: 0.08863283847 | X24: 13551 | Y24: 0.09593387942 | Z24: 13564 | AA24: 0.08846947803 | AB24: 13576 | AC24: 0.09575721862 | AD24: 13589 | AE24: 0.08830671867 | AF24: 13601 | AG24: 0.09558120726 | AH24: 13614
A25: 206 | B25: Guatemala | C25: Sansare | D25: 13107 | E25: 0.7476920729 | F25: 13205 | G25: 0.666414237 | H25: 13293 | I25: 0.6319115324 | J25: 13377 | K25: 0.5756148613 | L25: 13454 | M25: 0.557455032 | N25: 13529 | O25: 0.5395816394 | P25: 13602 | Q25: 0.5293339215 | R25: 13674 | S25: 0.5119204329 | T25: 13744 | U25: 0.4947613504 | V25: 13812 | W25: 0.4778453519 | X25: 13878 | Y25: 0.4467502522 | Z25: 13940 | AA25: 0.4447632712 | AB25: 14002 | AC25: 0.3999428653 | AD25: 14058 | AE25: 0.3983496941 | AF25: 14114 | AG25: 0.3755136744 | AH25: 14167
A26: 207 | B26: Guatemala | C26: Sanarate | D26: 40710 | E26: 0.7049864898 | F26: 40997 | G26: 0.6512671659 | H26: 41264 | I26: 0.6155486623 | J26: 41518 | K26: 0.5612023701 | L26: 41751 | M26: 0.5413043999 | N26: 41977 | O26: 0.5383900708 | P26: 42203 | Q26: 0.5189204559 | R26: 42422 | S26: 0.4997407006 | T26: 42634 | U26: 0.4831824366 | V26: 42840 | W26: 0.464519141 | X26: 43039 | Y26: 0.4414600711 | Z26: 43229 | AA26: 0.4279534572 | AB26: 43414 | AC26: 0.4030957756 | AD26: 43589 | AE26: 0.3808300259 | AF26: 43755 | AG26: 0.3656724946 | AH26: 43915
A27: 208 | B27: Guatemala | C27: San Antonio La Paz | D27: 20363 | E27: 1.929971026 | F27: 20756 | G27: 1.710348815 | H27: 21111 | I27: 1.539481787 | J27: 21436 | K27: 1.371524538 | L27: 21730 | M27: 1.251725725 | N27: 22002 | O27: 1.154440505 | P27: 22256 | Q27: 1.06488138 | R27: 22493 | S27: 0.9736362424 | T27: 22712 | U27: 0.8982035928 | V27: 22916 | W27: 0.8247512655 | X27: 23105 | Y27: 0.7617398831 | Z27: 23281 | AA27: 0.7044370946 | AB27: 23445 | AC27: 0.6397952655 | AD27: 23595 | AE27: 0.5933460479 | AF27: 23735 | AG27: 0.5477143459 | AH27: 23865
A28: 301 | B28: Sacatepéquez | C28: Antigua Guatemala | D28: 55089 | E28: 0.9185136779 | F28: 55595 | G28: 1.12600054 | H28: 56221 | I28: 1.204176375 | J28: 56898 | K28: 1.237301838 | L28: 57602 | M28: 1.277733412 | N28: 58338 | O28: 1.290753883 | P28: 59091 | Q28: 1.284459562 | R28: 59850 | S28: 1.266499582 | T28: 60608 | U28: 1.240760296 | V28: 61360 | W28: 1.212516297 | X28: 62104 | Y28: 1.183498647 | Z28: 62839 | AA28: 1.145785261 | AB28: 63559 | AC28: 1.113925644 | AD28: 64267 | AE28: 1.081425926 | AF28: 64962 | AG28: 1.04522644 | AH28: 65641
A29: 302 | B29: Sacatepéquez | C29: Jocotenango | D29: 21351 | E29: 1.859397686 | F29: 21748 | G29: 1.742688983 | H29: 22127 | I29: 1.613413477 | J29: 22484 | K29: 1.512186444 | L29: 22824 | M29: 1.472134595 | N29: 23160 | O29: 1.433506045 | P29: 23492 | Q29: 1.39621999 | R29: 23820 | S29: 1.360201511 | T29: 24144 | U29: 1.321239231 | V29: 24463 | W29: 1.29174672 | X29: 24779 | Y29: 1.247023689 | Z29: 25088 | AA29: 1.215720663 | AB29: 25393 | AC29: 1.177489859 | AD29: 25692 | AE29: 1.144325082 | AF29: 25986 | AG29: 1.108289079 | AH29: 26274
A30: 303 | B30: Sacatepéquez | C30: Pastores | D30: 17737 | E30: 2.289000395 | F30: 18143 | G30: 1.962189274 | H30: 18499 | I30: 1.719011838 | J30: 18817 | K30: 1.551788277 | L30: 19109 | M30: 1.465278141 | N30: 19389 | O30: 1.40285729 | P30: 19661 | Q30: 1.358018412 | R30: 19928 | S30: 1.314733039 | T30: 20190 | U30: 1.263001486 | V30: 20445 | W30: 1.22768403 | X30: 20696 | Y30: 1.193467337 | Z30: 20943 | AA30: 1.150742492 | AB30: 21184 | AC30: 1.123489426 | AD30: 21422 | AE30: 1.078330688 | AF30: 21653 | AG30: 1.048353577 | AH30: 21880
A31: 304 | B31: Sacatepéquez | C31: Sumpango | D31: 40889 | E31: 2.272004696 | F31: 41818 | G31: 2.147400641 | H31: 42716 | I31: 2.017979212 | J31: 43578 | K31: 1.920693928 | L31: 44415 | M31: 1.877744005 | N31: 45249 | O31: 1.840924661 | P31: 46082 | Q31: 1.801137103 | R31: 46912 | S31: 1.765006821 | T31: 47740 | U31: 1.72601592 | V31: 48564 | W31: 1.692611811 | X31: 49386 | Y31: 1.656339853 | Z31: 50204 | AA31: 1.615409131 | AB31: 51015 | AC31: 1.579927472 | AD31: 51821 | AE31: 1.545705409 | AF31: 52622 | AG31: 1.510774961 | AH31: 53417
A32: 305 | B32: Sacatepéquez | C32: Santo Domingo Xenacoj | D32: 12429 | E32: 2.807949151 | F32: 12778 | G32: 2.692127093 | H32: 13122 | I32: 2.552964487 | J32: 13457 | K32: 2.452255332 | L32: 13787 | M32: 2.422571988 | N32: 14121 | O32: 2.365271581 | P32: 14455 | Q32: 2.338291249 | R32: 14793 | S32: 2.305144325 | T32: 15134 | U32: 2.259812343 | V32: 15476 | W32: 2.222796588 | X32: 15820 | Y32: 2.18710493 | Z32: 16166 | AA32: 2.152666089 | AB32: 16514 | AC32: 2.113358363 | AD32: 16863 | AE32: 2.081480164 | AF32: 17214 | AG32: 2.044847217 | AH32: 17566
A33: 306 | B33: Sacatepéquez | C33: Santiago Sacatepéquez | D33: 33338 | E33: 2.000719899 | F33: 34005 | G33: 1.879135421 | H33: 34644 | I33: 1.749220644 | J33: 35250 | K33: 1.65106383 | L33: 35832 | M33: 1.610292476 | N33: 36409 | O33: 1.573786701 | P33: 36982 | Q33: 1.533178303 | R33: 37549 | S33: 1.496710964 | T33: 38111 | U33: 1.458896382 | V33: 38667 | W33: 1.424987716 | X33: 39218 | Y33: 1.38966801 | Z33: 39763 | AA33: 1.347986822 | AB33: 40299 | AC33: 1.317650562 | AD33: 40830 | AE33: 1.278471712 | AF33: 41352 | AG33: 1.245405301 | AH33: 41867
A34: 307 | B34: Sacatepéquez | C34: San Bartolomé Milpas Altas | D34: 7751 | E34: 2.451296607 | F34: 7941 | G34: 2.103009697 | H34: 8108 | I34: 1.825357671 | J34: 8256 | K34: 1.635174419 | L34: 8391 | M34: 1.525443928 | N34: 8519 | O34: 1.443831436 | P34: 8642 | Q34: 1.388567461 | R34: 8762 | S34: 1.335311573 | T34: 8879 | U34: 1.28392837 | V34: 8993 | W34: 1.245413099 | X34: 9105 | Y34: 1.197144426 | Z34: 9214 | AA34: 1.161276319 | AB34: 9321 | AC34: 1.115760112 | AD34: 9425 | AE34: 1.082228117 | AF34: 9527 | AG34: 1.049648368 | AH34: 9627
A35: 308 | B35: Sacatepéquez | C35: San Lucas Sacatepéquez | D35: 26381 | E35: 1.739888556 | F35: 26840 | G35: 1.616989568 | H35: 27274 | I35: 1.492263694 | J35: 27681 | K35: 1.390845706 | L35: 28066 | M35: 1.35038837 | N35: 28445 | O35: 1.31481807 | P35: 28819 | Q35: 1.276935355 | R35: 29187 | S35: 1.240278206 | T35: 29549 | U35: 1.194625876 | V35: 29902 | W35: 1.16714601 | X35: 30251 | Y35: 1.130541139 | Z35: 30593 | AA35: 1.095021737 | AB35: 30928 | AC35: 1.054061045 | AD35: 31254 | AE35: 1.027068535 | AF35: 31575 | AG35: 0.9881235154 | AH35: 31887
A36: 309 | B36: Sacatepéquez | C36: Santa Lucía Milpas Altas | D36: 15182 | E36: 3.056250823 | F36: 15646 | G36: 2.697174997 | H36: 16068 | I36: 2.358725417 | J36: 16447 | K36: 2.097646987 | L36: 16792 | M36: 1.929490233 | N36: 17116 | O36: 1.787800888 | P36: 17422 | Q36: 1.664562048 | R36: 17712 | S36: 1.563911472 | T36: 17989 | U36: 1.467563511 | V36: 18253 | W36: 1.397030625 | X36: 18508 | Y36: 1.323751891 | Z36: 18753 | AA36: 1.253132832 | AB36: 18988 | AC36: 1.206024858 | AD36: 19217 | AE36: 1.144819691 | AF36: 19437 | AG36: 1.100992952 | AH36: 19651
A37: 310 | B37: Sacatepéquez | C37: Magdalena Milpas Altas | D37: 12102 | E37: 1.156833581 | F37: 12242 | G37: 1.021074988 | H37: 12367 | I37: 0.8975499313 | J37: 12478 | K37: 0.8014104824 | L37: 12578 | M37: 0.7632373986 | N37: 12674 | O37: 0.7258955342 | P37: 12766 | Q37: 0.6814977283 | R37: 12853 | S37: 0.6457636349 | T37: 12936 | U37: 0.6184291899 | V37: 13016 | W37: 0.5762138906 | X37: 13091 | Y37: 0.5423573447 | Z37: 13162 | AA37: 0.5014435496 | AB37: 13228 | AC37: 0.4687027517 | AD37: 13290 | AE37: 0.4364183597 | AF37: 13348 | AG37: 0.3895714714 | AH37: 13400
A38: 311 | B38: Sacatepéquez | C38: Santa María de Jesús | D38: 24780 | E38: 1.553672316 | F38: 25165 | G38: 1.430558315 | H38: 25525 | I38: 1.300685602 | J38: 25857 | K38: 1.202769076 | L38: 26168 | M38: 1.161724243 | N38: 26472 | O38: 1.121940163 | P38: 26769 | Q38: 1.090814001 | R38: 27061 | S38: 1.053176158 | T38: 27346 | U38: 1.009288379 | V38: 27622 | W38: 0.9774817175 | X38: 27892 | Y38: 0.9393374444 | Z38: 28154 | AA38: 0.9057327556 | AB38: 28409 | AC38: 0.8694427822 | AD38: 28656 | AE38: 0.8340312674 | AF38: 28895 | AG38: 0.8029070773 | AH38: 29127
A39: 312 | B39: Sacatepéquez | C39: Ciudad Vieja | D39: 35075 | E39: 3.062009979 | F39: 36149 | G39: 2.871448726 | H39: 37187 | I39: 2.672977116 | J39: 38181 | K39: 2.511720489 | L39: 39140 | M39: 2.409299949 | N39: 40083 | O39: 2.312701145 | P39: 41010 | Q39: 2.218970983 | R39: 41920 | S39: 2.135019084 | T39: 42815 | U39: 2.043676282 | V39: 43690 | W39: 1.963836118 | X39: 44548 | Y39: 1.885606537 | Z39: 45388 | AA39: 1.802238477 | AB39: 46206 | AC39: 1.729212656 | AD39: 47005 | AE39: 1.657270503 | AF39: 47784 | AG39: 1.586305039 | AH39: 48542
A40: 313 | B40: Sacatepéquez | C40: San Miguel Dueñas | D40: 13491 | E40: 2.727744422 | F40: 13859 | G40: 2.590374486 | H40: 14218 | I40: 2.41946828 | J40: 14562 | K40: 2.307375361 | L40: 14898 | M40: 2.235199356 | N40: 15231 | O40: 2.173199396 | P40: 15562 | Q40: 2.120550058 | R40: 15892 | S40: 2.051346589 | T40: 16218 | U40: 1.991614256 | V40: 16541 | W40: 1.940632368 | X40: 16862 | Y40: 1.879966789 | Z40: 17179 | AA40: 1.816170906 | AB40: 17491 | AC40: 1.766622835 | AD40: 17800 | AE40: 1.707865169 | AF40: 18104 | AG40: 1.657092355 | AH40: 18404
A41: 314 | B41: Sacatepéquez | C41: San Juan Alotenango | D41: 25878 | E41: 1.657778808 | F41: 26307 | G41: 1.531911658 | H41: 26710 | I41: 1.407712467 | J41: 27086 | K41: 1.303256295 | L41: 27439 | M41: 1.268267794 | N41: 27787 | O41: 1.230791377 | P41: 28129 | Q41: 1.190941733 | R41: 28464 | S41: 1.152332771 | T41: 28792 | U41: 1.118366213 | V41: 29114 | W41: 1.081953699 | X41: 29429 | Y41: 1.0465867 | Z41: 29737 | AA41: 1.008844201 | AB41: 30037 | AC41: 0.9721343676 | AD41: 30329 | AE41: 0.9396946817 | AF41: 30614 | AG41: 0.9015483112 | AH41: 30890
A42: 315 | B42: Sacatepéquez | C42: San Antonio Aguas Calientes | D42: 11018 | E42: 2.677436921 | F42: 11313 | G42: 2.554583223 | H42: 11602 | I42: 2.421996208 | J42: 11883 | K42: 2.33106118 | L42: 12160 | M42: 2.286184211 | N42: 12438 | O42: 2.235086027 | P42: 12716 | Q42: 2.209814407 | R42: 12997 | S42: 2.169731476 | T42: 13279 | U42: 2.131184577 | V42: 13562 | W42: 2.094086418 | X42: 13846 | Y42: 2.058356204 | Z42: 14131 | AA42: 2.016842403 | AB42: 14416 | AC42: 1.990843507 | AD42: 14703 | AE42: 1.951982589 | AF42: 14990 | AG42: 1.91460974 | AH42: 15277
A43: 316 | B43: Sacatepéquez | C43: Santa Catarina Barahona | D43: 4022 | E43: 2.411735455 | F43: 4119 | G43: 2.282107308 | H43: 4213 | I43: 2.159981011 | J43: 4304 | K43: 2.044609665 | L43: 4392 | M43: 2.003642987 | N43: 4480 | O43: 1.986607143 | P43: 4569 | Q43: 1.9260232 | R43: 4657 | S43: 1.911101568 | T43: 4746 | U43: 1.854193005 | V43: 4834 | W43: 1.82043856 | X43: 4922 | Y43: 1.787891101 | Z43: 5010 | AA43: 1.756487026 | AB43: 5098 | AC43: 1.706551589 | AD43: 5185 | AE43: 1.677917068 | AF43: 5272 | AG43: 1.650227618 | AH43: 5359
A44: 401 | B44: Chimaltenango | C44: Chimaltenango | D44: 102730 | E44: 1.97897401 | F44: 104763 | G44: 1.956797724 | H44: 106813 | I44: 1.900517727 | J44: 108843 | K44: 1.813621455 | L44: 110817 | M44: 1.769584089 | N44: 112778 | O44: 1.72196705 | P44: 114720 | Q44: 1.675383543 | R44: 116642 | S44: 1.628058504 | T44: 118541 | U44: 1.578356855 | V44: 120412 | W44: 1.532239312 | X44: 122257 | Y44: 1.485395519 | Z44: 124073 | AA44: 1.438669171 | AB44: 125858 | AC44: 1.394428642 | AD44: 127613 | AE44: 1.35252678 | AF44: 129339 | AG44: 1.309736429 | AH44: 131033
A45: 402 | B45: Chimaltenango | C45: San José Poaquil | D45: 30322 | E45: 1.810566585 | F45: 30871 | G45: 1.771889476 | H45: 31418 | I45: 1.699662614 | J45: 31952 | K45: 1.596144216 | L45: 32462 | M45: 1.543342986 | N45: 32963 | O45: 1.489548888 | P45: 33454 | Q45: 1.428827644 | R45: 33932 | S45: 1.379229046 | T45: 34400 | U45: 1.322674419 | V45: 34855 | W45: 1.268110745 | X45: 35297 | Y45: 1.218233844 | Z45: 35727 | AA45: 1.167184482 | AB45: 36144 | AC45: 1.120517928 | AD45: 36549 | AE45: 1.069796711 | AF45: 36940 | AG45: 1.031402274 | AH45: 37321
A46: 403 | B46: Chimaltenango | C46: San Martín Jilotepeque | D46: 84520 | E46: 1.858731661 | F46: 86091 | G46: 1.819005471 | H46: 87657 | I46: 1.748862042 | J46: 89190 | K46: 1.647045633 | L46: 90659 | M46: 1.592781743 | N46: 92103 | O46: 1.535237723 | P46: 93517 | Q46: 1.479944823 | R46: 94901 | S46: 1.425696252 | T46: 96254 | U46: 1.368254826 | V46: 97571 | W46: 1.318014574 | X46: 98857 | Y46: 1.266475819 | Z46: 100109 | AA46: 1.214676003 | AB46: 101325 | AC46: 1.166543301 | AD46: 102507 | AE46: 1.121874604 | AF46: 103657 | AG46: 1.076627724 | AH46: 104773
A47: 404 | B47: Chimaltenango | C47: San Juan Comalapa | D47: 51449 | E47: 2.614239344 | F47: 52794 | G47: 2.574156154 | H47: 54153 | I47: 2.502169778 | J47: 55508 | K47: 2.401455646 | L47: 56841 | M47: 2.345138193 | N47: 58174 | O47: 2.287963695 | P47: 59505 | Q47: 2.233425763 | R47: 60834 | S47: 2.174770687 | T47: 62157 | U47: 2.122045787 | V47: 63476 | W47: 2.066922932 | X47: 64788 | Y47: 2.015805396 | Z47: 66094 | AA47: 1.96386964 | AB47: 67392 | AC47: 1.9171415 | AD47: 68684 | AE47: 1.869431017 | AF47: 69968 | AG47: 1.82369083 | AH47: 71244
A48: 405 | B48: Chimaltenango | C48: Santa Apolonia | D48: 21523 | E48: 1.607582586 | F48: 21869 | G48: 1.563857515 | H48: 22211 | I48: 1.503759398 | J48: 22545 | K48: 1.392770016 | L48: 22859 | M48: 1.34301588 | N48: 23166 | O48: 1.286367953 | P48: 23464 | Q48: 1.223150358 | R48: 23751 | S48: 1.178897731 | T48: 24031 | U48: 1.115226166 | V48: 24299 | W48: 1.070002881 | X48: 24559 | Y48: 1.01388493 | Z48: 24808 | AA48: 0.9674298613 | AB48: 25048 | AC48: 0.9142446503 | AD48: 25277 | AE48: 0.8703564505 | AF48: 25497 | AG48: 0.827548339 | AH48: 25708
A49: 406 | B49: Chimaltenango | C49: Tecpán Guatemala | D49: 98471 | E49: 2.157995755 | F49: 100596 | G49: 2.119368563 | H49: 102728 | I49: 2.047153648 | J49: 104831 | K49: 1.945989259 | L49: 106871 | M49: 1.892000636 | N49: 108893 | O49: 1.834828685 | P49: 110891 | Q49: 1.779224644 | R49: 112864 | S49: 1.724199036 | T49: 114810 | U49: 1.667973173 | V49: 116725 | W49: 1.615763547 | X49: 118611 | Y49: 1.565622076 | Z49: 120468 | AA49: 1.512434837 | AB49: 122290 | AC49: 1.466186933 | AD49: 124083 | AE49: 1.420017247 | AF49: 125845 | AG49: 1.374706981 | AH49: 127575
A50: 407 | B50: Chimaltenango | C50: Patzún | D50: 63573 | E50: 1.942648609 | F50: 64808 | G50: 1.900999877 | H50: 66040 | I50: 1.832222895 | J50: 67250 | K50: 1.730855019 | L50: 68414 | M50: 1.675095741 | N50: 69560 | O50: 1.617308798 | P50: 70685 | Q50: 1.563273679 | R50: 71790 | S50: 1.508566653 | T50: 72873 | U50: 1.453213124 | V50: 73932 | W50: 1.398582481 | X50: 74966 | Y50: 1.349945309 | Z50: 75978 | AA50: 1.297744084 | AB50: 76964 | AC50: 1.249935035 | AD50: 77926 | AE50: 1.204989349 | AF50: 78865 | AG50: 1.160210486 | AH50: 79780
A51: 408 | B51: Chimaltenango | C51: San Miguel Pochuta | D51: 10439 | E51: 0.9675256251 | F51: 10540 | G51: 1.05313093 | H51: 10651 | I51: 1.060933246 | J51: 10764 | K51: 1.059085842 | L51: 10878 | M51: 1.084758228 | N51: 10996 | O51: 1.091305929 | P51: 11116 | Q51: 1.106513134 | R51: 11239 | S51: 1.121096183 | T51: 11365 | U51: 1.10866696 | V51: 11491 | W51: 1.122617701 | X51: 11620 | Y51: 1.101549053 | Z51: 11748 | AA51: 1.098059244 | AB51: 11877 | AC51: 1.086132862 | AD51: 12006 | AE51: 1.0661336 | AF51: 12134 | AG51: 1.054887094 | AH51: 12262
A52: 409 | B52: Chimaltenango | C52: Patzicía | D52: 35017 | E52: 2.690121941 | F52: 35959 | G52: 2.516755193 | H52: 36864 | I52: 2.346462674 | J52: 37729 | K52: 2.168093509 | L52: 38547 | M52: 2.049446131 | N52: 39337 | O52: 1.949818237 | P52: 40104 | Q52: 1.855176541 | R52: 40848 | S52: 1.769976498 | T52: 41571 | U52: 1.698299295 | V52: 42277 | W52: 1.624997043 | X52: 42964 | Y52: 1.561772647 | Z52: 43635 | AA52: 1.501088576 | AB52: 44290 | AC52: 1.442763604 | AD52: 44929 | AE52: 1.395535178 | AF52: 45556 | AG52: 1.343401528 | AH52: 46168
A53: 410 | B53: Chimaltenango | C53: Santa Cruz Balanyá | D53: 9743 | E53: 1.909062917 | F53: 9929 | G53: 1.873300433 | H53: 10115 | I53: 1.809194266 | J53: 10298 | K53: 1.689648475 | L53: 10472 | M53: 1.66157372 | N53: 10646 | O53: 1.587450686 | P53: 10815 | Q53: 1.534905224 | R53: 10981 | S53: 1.484382115 | T53: 11144 | U53: 1.417803302 | V53: 11302 | W53: 1.371438683 | X53: 11457 | Y53: 1.317971546 | Z53: 11608 | AA53: 1.274982771 | AB53: 11756 | AC53: 1.224906431 | AD53: 11900 | AE53: 1.176470588 | AF53: 12040 | AG53: 1.137873754 | AH53: 12177
A54: 411 | B54: Chimaltenango | C54: Acatenango | D54: 25993 | E54: 1.65429154 | F54: 26423 | G54: 1.616016349 | H54: 26850 | I54: 1.545623836 | J54: 27265 | K54: 1.448743811 | L54: 27660 | M54: 1.384671005 | N54: 28043 | O54: 1.333666156 | P54: 28417 | Q54: 1.277404371 | R54: 28780 | S54: 1.223071577 | T54: 29132 | U54: 1.170534121 | V54: 29473 | W54: 1.112882978 | X54: 29801 | Y54: 1.067078286 | Z54: 30119 | AA54: 1.009329659 | AB54: 30423 | AC54: 0.9696611117 | AD54: 30718 | AE54: 0.9147730972 | AF54: 30999 | AG54: 0.8774476596 | AH54: 31271
A55: 412 | B55: Chimaltenango | C55: San Pedro Yepocapa | D55: 36948 | E55: 2.379019162 | F55: 37827 | G55: 2.342242314 | H55: 38713 | I55: 2.267971999 | J55: 39591 | K55: 2.167159203 | L55: 40449 | M55: 2.113772899 | N55: 41304 | O55: 2.055490994 | P55: 42153 | Q55: 1.999857661 | R55: 42996 | S55: 1.944366918 | T55: 43832 | U55: 1.886749407 | V55: 44659 | W55: 1.838375244 | X55: 45480 | Y55: 1.783201407 | Z55: 46291 | AA55: 1.734678447 | AB55: 47094 | AC55: 1.68386631 | AD55: 47887 | AE55: 1.641364045 | AF55: 48673 | AG55: 1.594313069 | AH55: 49449
A56: 413 | B56: Chimaltenango | C56: San Andrés Itzapa | D56: 32050 | E56: 1.5975039 | F56: 32562 | G56: 1.587740311 | H56: 33079 | I56: 1.556878987 | J56: 33594 | K56: 1.485384295 | L56: 34093 | M56: 1.46071041 | N56: 34591 | O56: 1.433898991 | P56: 35087 | Q56: 1.402228746 | R56: 35579 | S56: 1.371595604 | T56: 36067 | U56: 1.339174314 | V56: 36550 | W56: 1.307797538 | X56: 37028 | Y56: 1.277411688 | Z56: 37501 | AA56: 1.239966934 | AB56: 37966 | AC56: 1.211610388 | AD56: 38426 | AE56: 1.181491698 | AF56: 38880 | AG56: 1.149691358 | AH56: 39327
A57: 414 | B57: Chimaltenango | C57: Parramos | D57: 17334 | E57: 2.711434176 | F57: 17804 | G57: 2.673556504 | H57: 18280 | I57: 2.598468271 | J57: 18755 | K57: 2.495334577 | L57: 19223 | M57: 2.444987775 | N57: 19693 | O57: 2.386634845 | P57: 20163 | Q57: 2.326042752 | R57: 20632 | S57: 2.278014734 | T57: 21102 | U57: 2.217799261 | V57: 21570 | W57: 2.165044043 | X57: 22037 | Y57: 2.114625403 | Z57: 22503 | AA57: 2.066391148 | AB57: 22968 | AC57: 2.011494253 | AD57: 23430 | AE57: 1.967562953 | AF57: 23891 | AG57: 1.921225566 | AH57: 24350
A58: 415 | B58: Chimaltenango | C58: Zaragoza | D58: 25209 | E58: 2.705382998 | F58: 25891 | G58: 2.603221197 | H58: 26565 | I58: 2.473178995 | J58: 27222 | K58: 2.321651605 | L58: 27854 | M58: 2.222302003 | N58: 28473 | O58: 2.121307906 | P58: 29077 | Q58: 2.032534305 | R58: 29668 | S58: 1.944856411 | T58: 30245 | U58: 1.858158373 | V58: 30807 | W58: 1.778816503 | X58: 31355 | Y58: 1.706266943 | Z58: 31890 | AA58: 1.630605205 | AB58: 32410 | AC58: 1.570502931 | AD58: 32919 | AE58: 1.506728637 | AF58: 33415 | AG58: 1.445458626 | AH58: 33898
A59: 416 | B59: Chimaltenango | C59: El Tejar | D59: 19735 | E59: 2.888269572 | F59: 20305 | G59: 2.851514405 | H59: 20884 | I59: 2.782034093 | J59: 21465 | K59: 2.678779408 | L59: 22040 | M59: 2.622504537 | N59: 22618 | O59: 2.564329295 | P59: 23198 | Q59: 2.508836969 | R59: 23780 | S59: 2.451640034 | T59: 24363 | U59: 2.397077536 | V59: 24947 | W59: 2.344971339 | X59: 25532 | Y59: 2.291242363 | Z59: 26117 | AA59: 2.243749282 | AB59: 26703 | AC59: 2.190765083 | AD59: 27288 | AE59: 2.143799472 | AF59: 27873 | AG59: 2.102392997 | AH59: 28459
A60: 501 | B60: Escuintla | C60: Escuintla | D60: 154623 | E60: 1.592259884 | F60: 157085 | G60: 1.490912563 | H60: 159427 | I60: 1.429494377 | J60: 161706 | K60: 1.360493736 | L60: 163906 | M60: 1.318438617 | N60: 166067 | O60: 1.280206182 | P60: 168193 | Q60: 1.24083642 | R60: 170280 | S60: 1.200375852 | T60: 172324 | U60: 1.162925652 | V60: 174328 | W60: 1.123743747 | X60: 176287 | Y60: 1.086864034 | Z60: 178203 | AA60: 1.051609681 | AB60: 180077 | AC60: 1.016787263 | AD60: 181908 | AE60: 0.9829144403 | AF60: 183696 | AG60: 0.9515721627 | AH60: 185444
A61: 502 | B61: Escuintla | C61: Santa Lucía Cotzumalguapa | D61: 113756 | E61: 1.969126903 | F61: 115996 | G61: 1.814717749 | H61: 118101 | I61: 1.718021016 | J61: 120130 | K61: 1.623241488 | L61: 122080 | M61: 1.562090433 | N61: 123987 | O61: 1.505803028 | P61: 125854 | Q61: 1.453271251 | R61: 127683 | S61: 1.401909416 | T61: 129473 | U61: 1.353177883 | V61: 131225 | W61: 1.303105353 | X61: 132935 | Y61: 1.258509798 | Z61: 134608 | AA61: 1.21463806 | AB61: 136243 | AC61: 1.172170313 | AD61: 137840 | AE61: 1.130295995 | AF61: 139398 | AG61: 1.09255513 | AH61: 140921
A62: 503 | B62: Escuintla | C62: La Democracia | D62: 24075 | E62: 1.341640706 | F62: 24398 | G62: 1.213214198 | H62: 24694 | I62: 1.129829108 | J62: 24973 | K62: 1.033115765 | L62: 25231 | M62: 0.9631009472 | N62: 25474 | O62: 0.8989557981 | P62: 25703 | Q62: 0.8325876357 | R62: 25917 | S62: 0.7678357835 | T62: 26116 | U62: 0.7007198652 | V62: 26299 | W62: 0.6426099852 | X62: 26468 | Y62: 0.5742783739 | Z62: 26620 | AA62: 0.5184072126 | AB62: 26758 | AC62: 0.4522012109 | AD62: 26879 | AE62: 0.3943599092 | AF62: 26985 | AG62: 0.3372243839 | AH62: 27076
A63: 504 | B63: Escuintla | C63: Siquinalá | D63: 24427 | E63: =+(((F63/D63)^(1/1))-1)*100 -> 0.7532648299 | F63: 24611 | G63: =+(((H63/F63)^(1/1))-1)*100 -> 0.9142253464 | H63: 24836 | I63: =+(((J63/H63)^(1/1))-1)*100 -> 1.04686745 | J63: 25096 | K63: =+(((L63/J63)^(1/1))-1)*100 -> 1.119700351 | L63: 25377 | M63: =+(((N63/L63)^(1/1))-1)*100 -> 1.18611341 | N63: 25678 | O63: =+(((P63/N63)^(1/1))-1)*100 -> 1.226731054 | P63: 25993 | Q63: =+(((R63/P63)^(1/1))-1)*100 -> 1.246489439 | R63: 26317 | S63: =+(((T63/R63)^(1/1))-1)*100 -> 1.246342668 | T63: 26645 | U63: =+(((V63/T63)^(1/1))-1)*100 -> 1.238506286 | V63: 26975 | W63: =+(((X63/V63)^(1/1))-1)*100 -> 1.215940686 | X63: 27303 | Y63: =+(((Z63/X63)^(1/1))-1)*100 -> 1.194007984 | Z63: 27629 | AA63: =+(((AB63/Z63)^(1/1))-1)*100 -> 1.165442108 | AB63: 27951 | AC63: =+(((AD63/AB63)^(1/1))-1)*100 -> 1.13770527 | AD63: 28269 | AE63: =+(((AF63/AD63)^(1/1))-1)*100 -> 1.103682479 | AF63: 28581 | AG63: =+(((AH63/AF63)^(1/1))-1)*100 -> 1.070641335 | AH63: 28887
A64: 505 | B64: Escuintla | C64: Masagua | D64: 44275 | E64: 1.567476002 | F64: 44969 | G64: 1.452111455 | H64: 45622 | I64: 1.376528868 | J64: 46250 | K64: 1.299459459 | L64: 46851 | M64: 1.246504877 | N64: 47435 | O64: 1.195319911 | P64: 48002 | Q64: 1.145785592 | R64: 48552 | S64: 1.097792058 | T64: 49085 | U64: 1.049200367 | V64: 49600 | W64: 1.002016129 | X64: 50097 | Y64: 0.9581412061 | Z64: 50577 | AA64: 0.9134586868 | AB64: 51039 | AC64: 0.8718822861 | AD64: 51484 | AE64: 0.8293838863 | AF64: 51911 | AG64: 0.7917397083 | AH64: 52322
A65: 506 | B65: Escuintla | C65: Tiquisate | D65: 60648 | E65: 0.6677878908 | F65: 61053 | G65: 0.686288962 | H65: 61472 | I65: 0.7336673607 | J65: 61923 | K65: 0.759007154 | L65: 62393 | M65: 0.8029746927 | N65: 62894 | O65: 0.8395077432 | P65: 63422 | Q65: 0.865630223 | R65: 63971 | S65: 0.8847759141 | T65: 64537 | U65: 0.8971597688 | V65: 65116 | W65: 0.90300387 | X65: 65704 | Y65: 0.905576525 | Z65: 66299 | AA65: 0.9034827071 | AB65: 66898 | AC65: 0.8983826123 | AD65: 67499 | AE65: 0.8889020578 | AF65: 68099 | AG65: 0.8810702066 | AH65: 68699
A66: 507 | B66: Escuintla | C66: La Gomera | D66: 60984 | E66: -23.61930998 | F66: 46580 | G66: 2.410905968 | H66: 47703 | I66: 2.335282896 | J66: 48817 | K66: 2.257410328 | L66: 49919 | M66: 2.199563293 | N66: 51017 | O66: 2.150263638 | P66: 52114 | Q66: 2.105000576 | R66: 53211 | S66: 2.048448629 | T66: 54301 | U66: 2.001804755 | V66: 55388 | W66: 1.955297176 | X66: 56471 | Y66: 1.907173594 | Z66: 57548 | AA66: 1.864530479 | AB66: 58621 | AC66: 1.820166834 | AD66: 59688 | AE66: 1.78092749 | AF66: 60751 | AG66: 1.738242992 | AH66: 61807
A67: 508 | B67: Escuintla | C67: Guanagazapa | D67: 17061 | E67: 0.08791981713 | F67: 17076 | G67: 0.1522604825 | H67: 17102 | I67: 0.2572798503 | J67: 17146 | K67: 0.3266067888 | L67: 17202 | M67: 0.4243692594 | N67: 17275 | O67: 0.497829233 | P67: 17361 | Q67: 0.5587235758 | R67: 17458 | S67: 0.6128995303 | T67: 17565 | U67: 0.6604042129 | V67: 17681 | W67: 0.6843504327 | X67: 17802 | Y67: 0.7190203348 | Z67: 17930 | AA67: 0.736196319 | AB67: 18062 | AC67: 0.7474255343 | AD67: 18197 | AE67: 0.7583667638 | AF67: 18335 | AG67: 0.7635669485 | AH67: 18475
A68: 509 | B68: Escuintla | C68: San José | D68: 60845 | E68: 1.911414249 | F68: 62008 | G68: 1.798155077 | H68: 63123 | I68: 1.723618966 | J68: 64211 | K68: 1.644578032 | L68: 65267 | M68: 1.588858075 | N68: 66304 | O68: 1.541385135 | P68: 67326 | Q68: 1.492736833 | R68: 68331 | S68: 1.441512637 | T68: 69316 | U68: 1.395060304 | V68: 70283 | W68: 1.345986939 | X68: 71229 | Y68: 1.301436213 | Z68: 72156 | AA68: 1.258384611 | AB68: 73064 | AC68: 1.215372824 | AD68: 73952 | AE68: 1.175086543 | AF68: 74821 | AG68: 1.136044693 | AH68: 75671
A69: 510 | B69: Escuintla | C69: Iztapa | D69: 17918 | E69: 2.405402389 | F69: 18349 | G69: 2.136356205 | H69: 18741 | I69: 1.958273305 | J69: 19108 | K69: 1.795059661 | L69: 19451 | M69: 1.691429747 | N69: 19780 | O69: 1.597573306 | P69: 20096 | Q69: 1.517714968 | R69: 20401 | S69: 1.450909269 | T69: 20697 | U69: 1.386674397 | V69: 20984 | W69: 1.334349981 | X69: 21264 | Y69: 1.269751693 | Z69: 21534 | AA69: 1.230612055 | AB69: 21799 | AC69: 1.183540529 | AD69: 22057 | AE69: 1.13342703 | AF69: 22307 | AG69: 1.09382705 | AH69: 22551
A70: 511 | B70: Escuintla | C70: Palín | D70: 64408 | E70: 1.951620917 | F70: 65665 | G70: 1.781771111 | H70: 66835 | I70: 1.690730904 | J70: 67965 | K70: 1.600823954 | L70: 69053 | M70: 1.548086253 | N70: 70122 | O70: 1.497390263 | P70: 71172 | Q70: 1.448603383 | R70: 72203 | S70: 1.397448859 | T70: 73212 | U70: 1.350871442 | V70: 74201 | W70: 1.301869247 | X70: 75167 | Y70: 1.258531004 | Z70: 76113 | AA70: 1.21398447 | AB70: 77037 | AC70: 1.170865948 | AD70: 77939 | AE70: 1.130371188 | AF70: 78820 | AG70: 1.092362345 | AH70: 79681
A71: 512 | B71: Escuintla | C71: San Vicente Pacaya | D71: 16558 | E71: 1.77557676 | F71: 16852 | G71: 1.661523855 | H71: 17132 | I71: 1.575998132 | J71: 17402 | K71: 1.511320538 | L71: 17665 | M71: 1.443532409 | N71: 17920 | O71: 1.40625 | P71: 18172 | Q71: 1.348228043 | R71: 18417 | S71: 1.303143835 | T71: 18657 | U71: 1.254220936 | V71: 18891 | W71: 1.212217458 | X71: 19120 | Y71: 1.161087866 | Z71: 19342 | AA71: 1.116740771 | AB71: 19558 | AC71: 1.078842417 | AD71: 19769 | AE71: 1.036977085 | AF71: 19974 | AG71: 0.9962951837 | AH71: 20173
A72: 513 | B72: Escuintla | C72: Nueva Concepción | D72: 74647 | E72: 1.629000496 | F72: 75863 | G72: 1.514572321 | H72: 77012 | I72: 1.442632317 | J72: 78123 | K72: 1.360674833 | L72: 79186 | M72: 1.309574925 | N72: 80223 | O72: 1.258990564 | P72: 81233 | Q72: 1.210099344 | R72: 82216 | S72: 1.160358081 | T72: 83170 | U72: 1.113382229 | V72: 84096 | W72: 1.064259893 | X72: 84991 | Y72: 1.020108011 | Z72: 85858 | AA72: 0.9771949032 | AB72: 86697 | AC72: 0.9342883837 | AD72: 87507 | AE72: 0.8925000286 | AF72: 88288 | AG72: 0.8551558536 | AH72: 89043
A73: 514 | B73: Escuintla | C73: Sipacate | D73: … | F73: 15944 | G73: 2.408429503 | H73: 16328 | I73: 2.339539441 | J73: 16710 | K73: 2.250149611 | L73: 17086 | M73: 2.206484841 | N73: 17463 | O73: 2.147397354 | P73: 17838 | Q73: 2.096647606 | R73: 18212 | S73: 2.053591039 | T73: 18586 | U73: 2.006886904 | V73: 18959 | W73: 1.951579725 | X73: 19329 | Y73: 1.90904858 | Z73: 19698 | AA73: 1.858056655 | AB73: 20064 | AC73: 1.824162679 | AD73: 20430 | AE73: 1.776798825 | AF73: 20793 | AG73: 1.74577983 | AH73: 21156
A74: 601 | B74: Santa Rosa | C74: Cuilapa | D74: 43972 | E74: 1.143909761 | F74: 44475 | G74: 1.133220911 | H74: 44979 | I74: 1.149425287 | J74: 45496 | K74: 1.098997714 | L74: 45996 | M74: 1.071832333 | N74: 46489 | O74: 1.043257545 | P74: 46974 | Q74: 1.009068847 | R74: 47448 | S74: 0.9736975215 | T74: 47910 | U74: 0.9392611146 | V74: 48360 | W74: 0.8995037221 | X74: 48795 | Y74: 0.8607439287 | Z74: 49215 | AA74: 0.8249517424 | AB74: 49621 | AC74: 0.7899881099 | AD74: 50013 | AE74: 0.7578029712 | AF74: 50392 | AG74: 0.7223368789 | AH74: 50756
A75: 602 | B75: Santa Rosa | C75: Barberena | D75: 56507 | E75: 1.491850567 | F75: 57350 | G75: 1.380993897 | H75: 58142 | I75: 1.339823191 | J75: 58921 | K75: 1.247433004 | L75: 59656 | M75: 1.206919673 | N75: 60376 | O75: 1.164369948 | P75: 61079 | Q75: 1.121498387 | R75: 61764 | S75: 1.083155236 | T75: 62433 | U75: 1.045921228 | V75: 63086 | W75: 1.004977333 | X75: 63720 | Y75: 0.9651600753 | Z75: 64335 | AA75: 0.9295095982 | AB75: 64933 | AC75: 0.8963085026 | AD75: 65515 | AE75: 0.8608715561 | AF75: 66079 | AG75: 0.8262836907 | AH75: 66625
A76: 603 | B76: Santa Rosa | C76: Santa Rosa de Lima | D76: 19147 | E76: 2.292787382 | F76: 19586 | G76: 2.078014909 | H76: 19993 | I76: 1.945680988 | J76: 20382 | K76: 1.776076931 | L76: 20744 | M76: 1.658310837 | N76: 21088 | O76: 1.550644917 | P76: 21415 | Q76: 1.452253094 | R76: 21726 | S76: 1.371628464 | T76: 22024 | U76: 1.280421359 | V76: 22306 | W76: 1.196987358 | X76: 22573 | Y76: 1.129668188 | Z76: 22828 | AA76: 1.06010163 | AB76: 23070 | AC76: 0.9969657564 | AD76: 23300 | AE76: 0.9399141631 | AF76: 23519 | AG76: 0.8843913432 | AH76: 23727
A77: 604 | B77: Santa Rosa | C77: Casillas | D77: 25055 | E77: 0.5068848533 | F77: 25182 | G77: 0.567865936 | H77: 25325 | I77: 0.6633761106 | J77: 25493 | K77: 0.6943082415 | L77: 25670 | M77: 0.7362680171 | N77: 25859 | O77: 0.7734251131 | P77: 26059 | Q77: 0.790513834 | R77: 26265 | S77: 0.7919284219 | T77: 26473 | U77: 0.797038492 | V77: 26684 | W77: 0.7869884575 | X77: 26894 | Y77: 0.7696884063 | Z77: 27101 | AA77: 0.7527397513 | AB77: 27305 | AC77: 0.7324665812 | AD77: 27505 | AE77: 0.7125977095 | AF77: 27701 | AG77: 0.685895816 | AH77: 27891
A78: 605 | B78: Santa Rosa | C78: San Rafael Las Flores | D78: 12421 | E78: 2.012720393 | F78: 12671 | G78: 1.909872938 | H78: 12913 | I78: 1.86633625 | J78: 13154 | K78: 1.778926562 | L78: 13388 | M78: 1.73289513 | N78: 13620 | O78: 1.688693098 | P78: 13850 | Q78: 1.646209386 | R78: 14078 | S78: 1.61244495 | T78: 14305 | U78: 1.572876617 | V78: 14530 | W78: 1.527873365 | X78: 14752 | Y78: 1.49132321 | Z78: 14972 | AA78: 1.456051296 | AB78: 15190 | AC78: 1.415404872 | AD78: 15405 | AE78: 1.382667965 | AF78: 15618 | AG78: 1.35100525 | AH78: 15829
A79: 606 | B79: Santa Rosa | C79: Oratorio | D79: 24434 | E79: 1.939919784 | F79: 24908 | G79: 1.826722338 | H79: 25363 | I79: 1.782123566 | J79: 25815 | K79: 1.696687972 | L79: 26253 | M79: 1.649335314 | N79: 26686 | O79: 1.607584501 | P79: 27115 | Q79: 1.563710124 | R79: 27539 | S79: 1.525109844 | T79: 27959 | U79: 1.487892986 | V79: 28375 | W79: 1.44845815 | X79: 28786 | Y79: 1.406933926 | Z79: 29191 | AA79: 1.370285362 | AB79: 29591 | AC79: 1.338244737 | AD79: 29987 | AE79: 1.300563578 | AF79: 30377 | AG79: 1.267406261 | AH79: 30762
A80: 607 | B80: Santa Rosa | C80: San Juan Tecuaco | D80: 11429 | E80: 2.126170269 | F80: 11672 | G80: 2.013365319 | H80: 11907 | I80: 1.982027379 | J80: 12143 | K80: 1.877624969 | L80: 12371 | M80: 1.843019966 | N80: 12599 | O80: 1.793793158 | P80: 12825 | Q80: 1.754385965 | R80: 13050 | S80: 1.724137931 | T80: 13275 | U80: 1.679849341 | V80: 13498 | W80: 1.637279597 | X80: 13719 | Y80: 1.596326263 | Z80: 13938 | AA80: 1.56406945 | AB80: 14156 | AC80: 1.518790619 | AD80: 14371 | AE80: 1.496068471 | AF80: 14586 | AG80: 1.460304401 | AH80: 14799
A81: 608 | B81: Santa Rosa | C81: Chiquimulilla | D81: 58748 | E81: 1.857084496 | F81: 59839 | G81: 1.74133926 | H81: 60881 | I81: 1.69839523 | J81: 61915 | K81: 1.611887265 | L81: 62913 | M81: 1.564064661 | N81: 63897 | O81: 1.524328216 | P81: 64871 | Q81: 1.481401551 | R81: 65832 | S81: 1.441548183 | T81: 66781 | U81: 1.404591126 | V81: 67719 | W81: 1.362985277 | X81: 68642 | Y81: 1.321348446 | Z81: 69549 | AA81: 1.2868625 | AB81: 70444 | AC81: 1.252058373 | AD81: 71326 | AE81: 1.215545523 | AF81: 72193 | AG81: 1.181554998 | AH81: 73046
A82: 609 | B82: Santa Rosa | C82: Taxisco | D82: 32826 | E82: 2.08980686 | F82: 33512 | G82: 1.978395799 | H82: 34175 | I82: 1.934162399 | J82: 34836 | K82: 1.842921116 | L82: 35478 | M82: 1.801116185 | N82: 36117 | O82: 1.755406041 | P82: 36751 | Q82: 1.714239068 | R82: 37381 | S82: 1.677322704 | T82: 38008 | U82: 1.636497579 | V82: 38630 | W82: 1.594615584 | X82: 39246 | Y82: 1.556846558 | Z82: 39857 | AA82: 1.517926588 | AB82: 40462 | AC82: 1.482872819 | AD82: 41062 | AE82: 1.45146364 | AF82: 41658 | AG82: 1.411493591 | AH82: 42246
A83: 610 | B83: Santa Rosa | C83: Santa María Ixhuatán | D83: 25558 | E83: 0.9312152751 | F83: 25796 | G83: 0.8179562723 | H83: 26007 | I83: 0.7805590802 | J83: 26210 | K83: 0.6867607783 | L83: 26390 | M83: 0.6441834028 | N83: 26560 | O83: 0.6061746988 | P83: 26721 | Q83: 0.5613562367 | R83: 26871 | S83: 0.524729262 | T83: 27012 | U83: 0.4849696431 | V83: 27143 | W83: 0.4421029363 | X83: 27263 | Y83: 0.4071452151 | Z83: 27374 | AA83: 0.3689632498 | AB83: 27475 | AC83: 0.3384895359 | AD83: 27568 | AE83: 0.3010737086 | AF83: 27651 | AG83: 0.2676214242 | AH83: 27725
A84: 611 | B84: Santa Rosa | C84: Guazacapán | D84: 20338 | E84: 1.656996755 | F84: 20675 | G84: 1.542926239 | H84: 20994 | I84: 1.500428694 | J84: 21309 | K84: 1.412548688 | L84: 21610 | M84: 1.369736233 | N84: 21906 | O84: 1.328403177 | P84: 22197 | Q84: 1.283957292 | R84: 22482 | S84: 1.245440797 | T84: 22762 | U84: 1.208153941 | V84: 23037 | W84: 1.167686765 | X84: 23306 | Y84: 1.128464773 | Z84: 23569 | AA84: 1.094658238 | AB84: 23827 | AC84: 1.053426785 | AD84: 24078 | AE84: 1.021679541 | AF84: 24324 | AG84: 0.9907909883 | AH84: 24565
A85: 612 | B85: Santa Rosa | C85: Santa Cruz Naranjo | D85: 15980 | E85: 2.071339174 | F85: 16311 | G85: 1.967997057 | H85: 16632 | I85: 1.917989418 | J85: 16951 | K85: 1.828800661 | L85: 17261 | M85: 1.784369388 | N85: 17569 | O85: 1.741704138 | P85: 17875 | Q85: 1.700699301 | R85: 18179 | S85: 1.661257495 | T85: 18481 | U85: 1.628699746 | V85: 18782 | W85: 1.586625492 | X85: 19080 | Y85: 1.540880503 | Z85: 19374 | AA85: 1.507174564 | AB85: 19666 | AC85: 1.46954134 | AD85: 19955 | AE85: 1.438236031 | AF85: 20242 | AG85: 1.403023417 | AH85: 20526
A86: 613 | B86: Santa Rosa | C86: Pueblo Nuevo Viñas | D86: 28385 | E86: 0.785626211 | F86: 28608 | G86: 0.6711409396 | H86: 28800 | I86: 0.6319444444 | J86: 28982 | K86: 0.5451659651 | L86: 29140 | M86: 0.4975978037 | N86: 29285 | O86: 0.4541574185 | P86: 29418 | Q86: 0.414712081 | R86: 29540 | S86: 0.3757616791 | T86: 29651 | U86: 0.3372567536 | V86: 29751 | W86: 0.2991496084 | X86: 29840 | Y86: 0.2580428954 | Z86: 29917 | AA86: 0.2206103553 | AB86: 29983 | AC86: 0.1901077277 | AD86: 30040 | AE86: 0.1531291611 | AF86: 30086 | AG86: 0.1196569833 | AH86: 30122
A87: 614 | B87: Santa Rosa | C87: Nueva Santa Rosa | D87: 37182 | E87: 1.108063041 | F87: 37594 | G87: 0.997499601 | H87: 37969 | I87: 0.9534093603 | J87: 38331 | K87: 0.8661396781 | L87: 38663 | M87: 0.822491788 | N87: 38981 | O87: 0.7824324671 | P87: 39286 | Q87: 0.7381764496 | R87: 39576 | S87: 0.7024459268 | T87: 39854 | U87: 0.6624178251 | V87: 40118 | W87: 0.6206690264 | X87: 40367 | Y87: 0.584635965 | Z87: 40603 | AA87: 0.5467576287 | AB87: 40825 | AC87: 0.5119412125 | AD87: 41034 | AE87: 0.4800896817 | AF87: 41231 | AG87: 0.4438407994 | AH87: 41414
A88: 701 | B88: Sololá | C88: Sololá | D88: 94406 | E88: 1.025358558 | F88: 95374 | G88: 1.02229119 | H88: 96349 | I88: 0.9839230298 | J88: 97297 | K88: 0.9435028829 | L88: 98215 | M88: 0.8949753093 | N88: 99094 | O88: 0.8476799806 | P88: 99934 | Q88: 0.7985270278 | R88: 100732 | S88: 0.7534844935 | T88: 101491 | U88: 0.7064665832 | V88: 102208 | W88: 0.6594395742 | X88: 102882 | Y88: 0.6142959896 | Z88: 103514 | AA88: 0.5699712116 | AB88: 104104 | AC88: 0.528317836 | AD88: 104654 | AE88: 0.4863645919 | AF88: 105163 | AG88: 0.4469252494 | AH88: 105633
A89: 702 | B89: Sololá | C89: San José Chacayá | D89: 4644 | E89: 2.196382429 | F89: 4746 | G89: 2.064896755 | H89: 4844 | I89: 1.981833196 | J89: 4940 | K89: 1.923076923 | L89: 5035 | M89: 1.847070506 | N89: 5128 | O89: 1.794071763 | P89: 5220 | Q89: 1.743295019 | R89: 5311 | S89: 1.713424967 | T89: 5402 | U89: 1.647537949 | V89: 5491 | W89: 1.602622473 | X89: 5579 | Y89: 1.57734361 | Z89: 5667 | AA89: 1.517557791 | AB89: 5753 | AC89: 1.477490005 | AD89: 5838 | AE89: 1.455978075 | AF89: 5923 | AG89: 1.4013169 | AH89: 6006
A90: 703 | B90: Sololá | C90: Santa María Visitación | D90: 2355 | E90: 1.740976645 | F90: 2396 | G90: 1.752921536 | H90: 2438 | I90: 1.722723544 | J90: 2480 | K90: 1.653225806 | L90: 2521 | M90: 1.586671956 | N90: 2561 | O90: 1.600937134 | P90: 2602 | Q90: 1.498847041 | R90: 2641 | S90: 1.476713366 | T90: 2680 | U90: 1.417910448 | V90: 2718 | W90: 1.398086829 | X90: 2756 | Y90: 1.342525399 | Z90: 2793 | AA90: 1.288936627 | AB90: 2829 | AC90: 1.272534464 | AD90: 2865 | AE90: 1.221640489 | AF90: 2900 | AG90: 1.172413793 | AH90: 2934
A91: 704 | B91: Sololá | C91: Santa Lucía Utatlán | D91: 21011 | E91: 0.6758364666 | F91: 21153 | G91: 0.6760270411 | H91: 21296 | I91: 0.6386175808 | J91: 21432 | K91: 0.5972377753 | L91: 21560 | M91: 0.5565862709 | N91: 21680 | O91: 0.5073800738 | P91: 21790 | Q91: 0.463515374 | R91: 21891 | S91: 0.4156959481 | T91: 21982 | U91: 0.3730324811 | V91: 22064 | W91: 0.3263234228 | X91: 22136 | Y91: 0.2846042645 | Z91: 22199 | AA91: 0.2387494932 | AB91: 22252 | AC91: 0.2022290131 | AD91: 22297 | AE91: 0.1569717899 | AF91: 22332 | AG91: 0.1253806197 | AH91: 22360
A92: 705 | B92: Sololá | C92: Nahualá | D92: 81246 | E92: 2.445658863 | F92: 83233 | G92: 2.443742266 | H92: 85267 | I92: 2.406558223 | J92: 87319 | K92: 2.368327626 | L92: 89387 | M92: 2.31912918 | N92: 91460 | O92: 2.275311612 | P92: 93541 | Q92: 2.225761965 | R92: 95623 | S92: 2.182529308 | T92: 97710 | U92: 2.134888957 | V92: 99796 | W92: 2.091266183 | X92: 101883 | Y92: 2.046465063 | Z92: 103968 | AA92: 2.002539243 | AB92: 106050 | AC92: 1.962281942 | AD92: 108131 | AE92: 1.922667875 | AF92: 110210 | AG92: 1.882769259 | AH92: 112285
A93: 706 | B93: Sololá | C93: Santa Catarina Ixtahuacán | D93: 54702 | E93: 2.031004351 | F93: 55813 | G93: 1.981617186 | H93: 56919 | I93: 1.929057081 | J93: 58017 | K93: 1.885654205 | L93: 59111 | M93: 1.835529766 | N93: 60196 | O93: 1.790816666 | P93: 61274 | Q93: 1.742990502 | R93: 62342 | S93: 1.700298354 | T93: 63402 | U93: 1.654521939 | V93: 64451 | W93: 1.60897426 | X93: 65488 | Y93: 1.566699243 | Z93: 66514 | AA93: 1.522987642 | AB93: 67527 | AC93: 1.483850904 | AD93: 68529 | AE93: 1.443184637 | AF93: 69518 | AG93: 1.406829886 | AH93: 70496
A94: 707 | B94: Sololá | C94: Santa Clara La Laguna | D94: 9435 | E94: 1.611022787 | F94: 9587 | G94: 1.606341921 | H94: 9741 | I94: 1.570680628 | J94: 9894 | K94: 1.516070346 | L94: 10044 | M94: 1.48347272 | N94: 10193 | O94: 1.442166192 | P94: 10340 | Q94: 1.382978723 | R94: 10483 | S94: 1.354574072 | T94: 10625 | U94: 1.298823529 | V94: 10763 | W94: 1.254297129 | X94: 10898 | Y94: 1.211231419 | Z94: 11030 | AA94: 1.178603808 | AB94: 11160 | AC94: 1.129032258 | AD94: 11286 | AE94: 1.089845827 | AF94: 11409 | AG94: 1.05180121 | AH94: 11529
A95: 708 | B95: Sololá | C95: Concepción | D95: 6744 | E95: 0.3706998814 | F95: 6769 | G95: 0.8420741616 | H95: 6826 | I95: 1.171989452 | J95: 6906 | K95: 1.375615407 | L95: 7001 | M95: 1.471218397 | N95: 7104 | O95: 1.548423423 | P95: 7214 | Q95: 1.580260604 | R95: 7328 | S95: 1.582969432 | T95: 7444 | U95: 1.585169264 | V95: 7562 | W95: 1.560433748 | X95: 7680 | Y95: 1.536458333 | Z95: 7798 | AA95: 1.487560913 | AB95: 7914 | AC95: 1.465756887 | AD95: 8030 | AE95: 1.444582814 | AF95: 8146 | AG95: 1.399459858 | AH95: 8260
A96: 709 | B96: Sololá | C96: San Andrés Semetabaj | D96: 13451 | E96: 1.73964761 | F96: 13685 | G96: 1.746437706 | H96: 13924 | I96: 1.702097099 | J96: 14161 | K96: 1.666548973 | L96: 14397 | M96: 1.618392721 | N96: 14630 | O96: 1.578947368 | P96: 14861 | Q96: 1.527488056 | R96: 15088 | S96: 1.477995758 | T96: 15311 | U96: 1.436875449 | V96: 15531 | W96: 1.397205589 | X96: 15748 | Y96: 1.346202692 | Z96: 15960 | AA96: 1.315789474 | AB96: 16170 | AC96: 1.267779839 | AD96: 16375 | AE96: 1.227480916 | AF96: 16576 | AG96: 1.188465251 | AH96: 16773
A97: 710 | B97: Sololá | C97: Panajachel | D97: 14448 | E97: 1.889534884 | F97: 14721 | G97: 1.888458664 | H97: 14999 | I97: 1.853456897 | J97: 15277 | K97: 1.813183217 | L97: 15554 | M97: 1.774463161 | N97: 15830 | O97: 1.711939356 | P97: 16101 | Q97: 1.676914477 | R97: 16371 | S97: 1.637041109 | T97: 16639 | U97: 1.586633812 | V97: 16903 | W97: 1.544104597 | X97: 17164 | Y97: 1.50314612 | Z97: 17422 | AA97: 1.45218689 | AB97: 17675 | AC97: 1.414427157 | AD97: 17925 | AE97: 1.377963738 | AF97: 18172 | AG97: 1.3372221 | AH97: 18415
A98: 711 | B98: Sololá | C98: Santa Catarina Palopó | D98: 4588 | E98: 1.089799477 | F98: 4638 | G98: 1.121172919 | H98: 4690 | I98: 1.066098081 | J98: 4740 | K98: 1.033755274 | L98: 4789 | M98: 0.9814157444 | N98: 4836 | O98: 0.9511993383 | P98: 4882 | Q98: 0.9012699713 | R98: 4926 | S98: 0.8526187576 | T98: 4968 | U98: 0.8051529791 | V98: 5008 | W98: 0.7587859425 | X98: 5046 | Y98: 0.7134363853 | Z98: 5082 | AA98: 0.6887052342 | AB98: 5117 | AC98: 0.6253664256 | AD98: 5149 | AE98: 0.6020586522 | AF98: 5180 | AG98: 0.5791505792 | AH98: 5210
A99: 712 | B99: Sololá | C99: San Antonio Palopó | D99: 14934 | E99: 0.9642426677 | F99: 15078 | G99: 0.9550338241 | H99: 15222 | I99: 0.9197214558 | J99: 15362 | K99: 0.885301393 | L99: 15498 | M99: 0.838817912 | N99: 15628 | O99: 0.793447658 | P99: 15752 | Q99: 0.7427628238 | R99: 15869 | S99: 0.6994769677 | T99: 15980 | U99: 0.6570713392 | V99: 16085 | W99: 0.6092632888 | X99: 16183 | Y99: 0.5684978063 | Z99: 16275 | AA99: 0.5222734255 | AB99: 16360 | AC99: 0.488997555 | AD99: 16440 | AE99: 0.4440389294 | AF99: 16513 | AG99: 0.4057409314 | AH99: 16580
A100: 713 | B100: Sololá | C100: San Lucas Tolimán | D100: 30177 | E100: 0.9477416576 | F100: 30463 | G100: 0.9454091849 | H100: 30751 | I100: 0.9105394947 | J100: 31031 | K100: 0.8733202282 | L100: 31302 | M100: 0.8210337998 | N100: 31559 | O100: 0.7794923794 | P100: 31805 | Q100: 0.7325892155 | R100: 32038 | S100: 0.6898058555 | T100: 32259 | U100: 0.6385814811 | V100: 32465 | W100: 0.5975666102 | X100: 32659 | Y100: 0.5542117027 | Z100: 32840 | AA100: 0.5115712546 | AB100: 33008 | AC100: 0.4695831314 | AD100: 33163 | AE100: 0.4312034496 | AF100: 33306 | AG100: 0.3933225245 | AH100: 33437
A101: 714 | B101: Sololá | C101: Santa Cruz La Laguna | D101: 7371 | E101: 1.221001221 | F101: 7461 | G101: 1.206272618 | H101: 7551 | I101: 1.178651834 | J101: 7640 | K101: 1.138743455 | L101: 7727 | M101: 1.100038825 | N101: 7812 | O101: 1.049667179 | P101: 7894 | Q101: 0.9880922219 | R101: 7972 | S101: 0.9533366784 | T101: 8048 | U101: 0.9194831014 | V101: 8122 | W101: 0.8618566855 | X101: 8192 | Y101: 0.830078125 | Z101: 8260 | AA101: 0.7748184019 | AB101: 8324 | AC101: 0.7568476694 | AD101: 8387 | AE101: 0.6915464409 | AF101: 8445 | AG101: 0.6631142688 | AH101: 8501
A102: 715 | B102: Sololá | C102: San Pablo La Laguna | D102: 7685 | E102: 0.5855562785 | F102: 7730 | G102: 0.6727037516 | H102: 7782 | I102: 0.6810588538 | J102: 7835 | K102: 0.7019783025 | L102: 7890 | M102: 0.7097591888 | N102: 7946 | O102: 0.7299270073 | P102: 8004 | Q102: 0.7371314343 | R102: 8063 | S102: 0.7565422299 | T102: 8124 | U102: 0.7385524372 | V102: 8184 | W102: 0.7575757576 | X102: 8246 | Y102: 0.7518796992 | Z102: 8308 | AA102: 0.758305248 | AB102: 8371 | AC102: 0.7525982559 | AD102: 8434 | AE102: 0.7588332938 | AF102: 8498 | AG102: 0.7531183808 | AH102: 8562
A103: 716 | B103: Sololá | C103: San Marcos La Laguna | D103: 2723 | E103: 1.395519647 | F103: 2761 | G103: 1.340094169 | H103: 2798 | I103: 1.358112938 | J103: 2836 | K103: 1.269393512 | L103: 2872 | M103: 1.288300836 | N103: 2909 | O103: 1.203162599 | P103: 2944 | Q103: 1.154891304 | R103: 2978 | S103: 1.108126259 | T103: 3011 | U103: 1.095981402 | V103: 3044 | W103: 1.018396846 | X103: 3075 | Y103: 0.9756097561 | Z103: 3105 | AA103: 0.9661835749 | AB103: 3135 | AC103: 0.8612440191 | AD103: 3162 | AE103: 0.8855154965 | AF103: 3190 | AG103: 0.8463949843 | AH103: 3217
A104: 717 | B104: Sololá | C104: San Juan La Laguna | D104: 11700 | E104: 2.35042735 | F104: 11975 | G104: 2.363256785 | H104: 12258 | I104: 2.308696362 | J104: 12541 | K104: 2.288493741 | L104: 12828 | M104: 2.221702526 | N104: 13113 | O104: 2.188667734 | P104: 13400 | Q104: 2.141791045 | R104: 13687 | S104: 2.089574048 | T104: 13973 | U104: 2.053961211 | V104: 14260 | W104: 2.005610098 | X104: 14546 | Y104: 1.959301526 | Z104: 14831 | AA104: 1.914907963 | AB104: 15115 | AC104: 1.885544161 | AD104: 15400 | AE104: 1.831168831 | AF104: 15682 | AG104: 1.79824002 | AH104: 15964
A105: 718 | B105: Sololá | C105: San Pedro La Laguna | D105: 10424 | E105: 2.196853415 | F105: 10653 | G105: 2.187177321 | H105: 10886 | I105: 2.167922102 | J105: 11122 | K105: 2.112929329 | L105: 11357 | M105: 2.07801356 | N105: 11593 | O105: 2.02708531 | P105: 11828 | Q105: 1.978356442 | R105: 12062 | S105: 1.939976787 | T105: 12296 | U105: 1.886792453 | V105: 12528 | W105: 1.843869732 | X105: 12759 | Y105: 1.80264911 | Z105: 12989 | AA105: 1.763030256 | AB105: 13218 | AC105: 1.717355122 | AD105: 13445 | AE105: 1.680922276 | AF105: 13671 | AG105: 1.645819618 | AH105: 13896
A106: 719 | B106: Sololá | C106: Santiago Atitlán | D106: 39702 | E106: 2.12079996 | F106: 40544 | G106: 2.121152328 | H106: 41404 | I106: 2.084339677 | J106: 42267 | K106: 2.046513829 | L106: 43132 | M106: 1.998516183 | N106: 43994 | O106: 1.95481202 | P106: 44854 | Q106: 1.90618451 | R106: 45709 | S106: 1.863965521 | T106: 46561 | U106: 1.816971285 | V106: 47407 | W106: 1.77399962 | X106: 48248 | Y106: 1.730641685 | Z106: 49083 | AA106: 1.684901086 | AB106: 49910 | AC106: 1.646964536 | AD106: 50732 | AE106: 1.608452259 | AF106: 51548 | AG106: 1.567471095 | AH106: 52356
A107: 801 | B107: Totonicapán | C107: Totonicapán | D107: 110020 | E107: 1.271586984 | F107: 111419 | G107: 1.331011766 | H107: 112902 | I107: 1.372872048 | J107: 114452 | K107: 1.333310034 | L107: 115978 | M107: 1.297659901 | N107: 117483 | O107: 1.25720317 | P107: 118960 | Q107: 1.217215871 | R107: 120408 | S107: 1.176832104 | T107: 121825 | U107: 1.137697517 | V107: 123211 | W107: 1.094869776 | X107: 124560 | Y107: 1.054913295 | Z107: 125874 | AA107: 1.017684351 | AB107: 127155 | AC107: 0.9791199717 | AD107: 128400 | AE107: 0.9431464174 | AF107: 129611 | AG107: 0.9081019358 | AH107: 130788
A108: 802 | B108: Totonicapán | C108: San Cristóbal Totonicapán | D108: 39435 | E108: 1.389628503 | F108: 39983 | G108: 1.448115449 | H108: 40562 | I108: 1.491543809 | J108: 41167 | K108: 1.450190687 | L108: 41764 | M108: 1.412699933 | N108: 42354 | O108: 1.376493365 | P108: 42937 | Q108: 1.33684235 | R108: 43511 | S108: 1.293925674 | T108: 44074 | U108: 1.25243908 | V108: 44626 | W108: 1.21453861 | X108: 45168 | Y108: 1.173397095 | Z108: 45698 | AA108: 1.135717099 | AB108: 46217 | AC108: 1.099162646 | AD108: 46725 | AE108: 1.06153023 | AF108: 47221 | AG108: 1.027085407 | AH108: 47706
A109: 803 | B109: Totonicapán | C109: San Francisco El Alto | D109: 57465 | E109: 2.326633603 | F109: 58802 | G109: 2.314547124 | H109: 60163 | I109: 2.295430746 | J109: 61544 | K109: 2.200051995 | L109: 62898 | M109: 2.108175141 | N109: 64224 | O109: 2.01949427 | P109: 65521 | Q109: 1.93373117 | R109: 66788 | S109: 1.8536264 | T109: 68026 | U109: 1.774321583 | V109: 69233 | W109: 1.697167536 | X109: 70408 | Y109: 1.624815362 | Z109: 71552 | AA109: 1.55970483 | AB109: 72668 | AC109: 1.49309187 | AD109: 73753 | AE109: 1.433162041 | AF109: 74810 | AG109: 1.375484561 | AH109: 75839
A110: 804 | B110: Totonicapán | C110: San Andrés Xecul | D110: 26927 | E110: 1.689753779 | F110: 27382 | G110: 1.752976408 | H110: 27862 | I110: 1.798148015 | J110: 28363 | K110: 1.752282904 | L110: 28860 | M110: 1.718641719 | N110: 29356 | O110: 1.679384112 | P110: 29849 | Q110: 1.641596033 | R110: 30339 | S110: 1.595306371 | T110: 30823 | U110: 1.560522986 | V110: 31304 | W110: 1.517377971 | X110: 31779 | Y110: 1.475817364 | Z110: 32248 | AA110: 1.441949888 | AB110: 32713 | AC110: 1.400055024 | AD110: 33171 | AE110: 1.362636038 | AF110: 33623 | AG110: 1.329447105 | AH110: 34070
A111: 805 | B111: Totonicapán | C111: Momostenango | D111: 124019 | E111: 1.949701255 | F111: 126437 | G111: 2.006532898 | H111: 128974 | I111: 2.049250236 | J111: 131617 | K111: 2.008859038 | L111: 134261 | M111: 1.972277877 | N111: 136909 | O111: 1.93047937 | P111: 139552 | Q111: 1.891051364 | R111: 142191 | S111: 1.848921521 | T111: 144820 | U111: 1.808451871 | V111: 147439 | W111: 1.764797645 | X111: 150041 | Y111: 1.724861871 | Z111: 152629 | AA111: 1.686442288 | AB111: 155203 | AC111: 1.6475197 | AD111: 157760 | AE111: 1.610040568 | AF111: 160300 | AG111: 1.573923893 | AH111: 162823
A112: 806 | B112: Totonicapán | C112: Santa María Chiquimula | D112: 56425 | E112: 0.6858661941 | F112: 56812 | G112: 0.7463211997 | H112: 57236 | I112: 0.7844713118 | J112: 57685 | K112: 0.7454277542 | L112: 58115 | M112: 0.7072184462 | N112: 58526 | O112: 0.6697877866 | P112: 58918 | Q112: 0.6262941716 | R112: 59287 | S112: 0.5869752222 | T112: 59635 | U112: 0.5466588413 | V112: 59961 | W112: 0.5053284635 | X112: 60264 | Y112: 0.462962963 | Z112: 60543 | AA112: 0.4261434022 | AB112: 60801 | AC112: 0.3865068009 | AD112: 61036 | AE112: 0.3506127531 | AF112: 61250 | AG112: 0.3134693878 | AH112: 61442
A113: 807 | B113: Totonicapán | C113: Santa Lucía la Reforma | D113: 24370 | E113: 0.828887977 | F113: 24572 | G113: 0.88718867 | H113: 24790 | I113: 0.9318273497 | J113: 25021 | K113: 0.8952479917 | L113: 25245 | M113: 0.8556149733 | N113: 25461 | O113: 0.8130081301 | P113: 25668 | Q113: 0.7791803023 | R113: 25868 | S113: 0.7344982217 | T113: 26058 | U113: 0.6984419372 | V113: 26240 | W113: 0.6516768293 | X113: 26411 | Y113: 0.6133807883 | Z113: 26573 | AA113: 0.5757724006 | AB113: 26726 | AC113: 0.5388011674 | AD113: 26870 | AE113: 0.5061406773 | AF113: 27006 | AG113: 0.466562986 | AH113: 27132
A114: 808 | B114: Totonicapán | C114: San Bartolo Aguas Calientes | D114: 12100 | E114: 0.173553719 | F114: 12121 | G114: 0.3547562082 | H114: 12164 | I114: 0.5097007563 | J114: 12226 | K114: 0.5725503026 | L114: 12296 | M114: 0.634352635 | N114: 12374 | O114: 0.6869241959 | P114: 12459 | Q114: 0.7223693715 | R114: 12549 | S114: 0.7570324329 | T114: 12644 | U114: 0.77507118 | V114: 12742 | W114: 0.8005022759 | X114: 12844 | Y114: 0.8097165992 | Z114: 12948 | AA114: 0.8263824529 | AB114: 13055 | AC114: 0.8272692455 | AD114: 13163 | AE114: 0.8280787055 | AF114: 13272 | AG114: 0.8363471971 | AH114: 13383
A115: 901 | B115: Quetzaltenango | C115: Quetzaltenango | D115: 178463 | E115: 2.048043572 | F115: 182118 | G115: 2.026707959 | H115: 185809 | I115: 1.993983069 | J115: 189514 | K115: 1.9486687 | L115: 193207 | M115: 1.894341302 | N115: 196867 | O115: 1.840836707 | P115: 200491 | Q115: 1.787611414 | R115: 204075 | S115: 1.737106456 | T115: 207620 | U115: 1.684808785 | V115: 211118 | W115: 1.635104539 | X115: 214570 | Y115: 1.587360768 | Z115: 217976 | AA115: 1.540536573 | AB115: 221334 | AC115: 1.496832841 | AD115: 224647 | AE115: 1.452946178 | AF115: 227911 | AG115: 1.411077131 | AH115: 231127
A116: 902 | B116: Quetzaltenango | C116: Salcajá | D116: 18653 | E116: 2.637645419 | F116: 19145 | G116: 2.423609297 | H116: 19609 | I116: 2.233668214 | J116: 20047 | K116: 2.05517035 | L116: 20459 | M116: 1.916027176 | N116: 20851 | O116: 1.779291161 | P116: 21222 | Q116: 1.672792385 | R116: 21577 | S116: 1.575751958 | T116: 21917 | U116: 1.491992517 | V116: 22244 | W116: 1.411616616 | X116: 22558 | Y116: 1.343204185 | Z116: 22861 | AA116: 1.286032982 | AB116: 23155 | AC116: 1.230835673 | AD116: 23440 | AE116: 1.16894198 | AF116: 23714 | AG116: 1.130134098 | AH116: 23982
A117: 903 | B117: Quetzaltenango | C117: San Juan Olintepeque | D117: 34844 | E117: 2.264378372 | F117: 35633 | G117: 1.967277524 | H117: 36334 | I117: 1.799966973 | J117: 36988 | K117: 1.695144371 | L117: 37615 | M117: 1.60574239 | N117: 38219 | O117: 1.541118292 | P117: 38808 | Q117: 1.481653267 | R117: 39383 | S117: 1.424472488 | T117: 39944 | U117: 1.374424194 | V117: 40493 | W117: 1.321216013 | X117: 41028 | Y117: 1.277176562 | Z117: 41552 | AA117: 1.227377744 | AB117: 42062 | AC117: 1.183966526 | AD117: 42560 | AE117: 1.144266917 | AF117: 43047 | AG117: 1.098798987 | AH117: 43520
A118: 904 | B118: Quetzaltenango | C118: San Carlos Sija | D118: 31919 | E118: 1.845295905 | F118: 32508 | G118: 1.824166359 | H118: 33101 | I118: 1.794507719 | J118: 33695 | K118: 1.748033833 | L118: 34284 | M118: 1.697584879 | N118: 34866 | O118: 1.637698618 | P118: 35437 | Q118: 1.591556847 | R118: 36001 | S118: 1.536068443 | T118: 36554 | U118: 1.485473546 | V118: 37097 | W118: 1.439469499 | X118: 37631 | Y118: 1.387154208 | Z118: 38153 | AA118: 1.344586271 | AB118: 38666 | AC118: 1.300884498 | AD118: 39169 | AE118: 1.253542342 | AF118: 39660 | AG118: 1.215330308 | AH118: 40142
A119: 905 | B119: Quetzaltenango | C119: Sibilia | D119: 7984 | E119: 1.953907816 | F119: 8140 | G119: 1.941031941 | H119: 8298 | I119: 1.892022174 | J119: 8455 | K119: 1.856889415 | L119: 8612 | M119: 1.788202508 | N119: 8766 | O119: 1.756787588 | P119: 8920 | Q119: 1.692825112 | R119: 9071 | S119: 1.642597288 | T119: 9220 | U119: 1.594360087 | V119: 9367 | W119: 1.537311839 | X119: 9511 | Y119: 1.503522237 | Z119: 9654 | AA119: 1.450176093 | AB119: 9794 | AC119: 1.398815601 | AD119: 9931 | AE119: 1.35937972 | AF119: 10066 | AG119: 1.321279555 | AH119: 10199
A120: 906 | B120: Quetzaltenango | C120: Cabricán | D120: 25156 | E120: 1.717284147 | F120: 25588 | G120: 1.700015632 | H120: 26023 | I120: 1.663912693 | J120: 26456 | K120: 1.621560327 | L120: 26885 | M120: 1.569648503 | N120: 27307 | O120: 1.51243271 | P120: 27720 | Q120: 1.457431457 | R120: 28124 | S120: 1.415161428 | T120: 28522 | U120: 1.360353411 | V120: 28910 | W120: 1.307506053 | X120: 29288 | Y120: 1.259901666 | Z120: 29657 | AA120: 1.217250565 | AB120: 30018 | AC120: 1.172629755 | AD120: 30370 | AE120: 1.13269674 | AF120: 30714 | AG120: 1.087451976 | AH120: 31048
A121: 907 | B121: Quetzaltenango | C121: Cajolá | D121: 17791 | E121: 1.214097015 | F121: 18007 | G121: 1.221747098 | H121: 18227 | I121: 1.234432435 | J121: 18452 | K121: 1.20854108 | L121: 18675 | M121: 1.183400268 | N121: 18896 | O121: 1.16426757 | P121: 19116 | Q121: 1.135174723 | R121: 19333 | S121: 1.106915636 | T121: 19547 | U121: 1.074333657 | V121: 19757 | W121: 1.047729919 | X121: 19964 | Y121: 1.021839311 | Z121: 20168 | AA121: 0.9867116224 | AB121: 20367 | AC121: 0.9672509452 | AD121: 20564 | AE121: 0.9336704921 | AF121: 20756 | AG121: 0.9105800732 | AH121: 20945
A122: 908 | B122: Quetzaltenango | C122: San Miguel Siguilá | D122: 8912 | E122: 1.570915619 | F122: 9052 | G122: 1.557666814 | H122: 9193 | I122: 1.522897857 | J122: 9333 | K122: 1.478624237 | L122: 9471 | M122: 1.435962412 | N122: 9607 | O122: 1.373998126 | P122: 9739 | Q122: 1.334839306 | R122: 9869 | S122: 1.276725099 | T122: 9995 | U122: 1.24062031 | V122: 10119 | W122: 1.185887934 | X122: 10239 | Y122: 1.142689716 | Z122: 10356 | AA122: 1.110467362 | AB122: 10471 | AC122: 1.050520485 | AD122: 10581 | AE122: 1.020697477 | AF122: 10689 | AG122: 0.9823182711 | AH122: 10794
A123: 909 | B123: Quetzaltenango | C123: San Juan Ostuncalco | D123: 59311 | E123: =+(((F123/D123)^(1/1))-1)*100 -> 0.387786414 | F123: 59541 | G123: =+(((H123/F123)^(1/1))-1)*100 -> 0.4568280681 | H123: 59813 | I123: =+(((J123/H123)^(1/1))-1)*100 -> 0.5099225921 | J123: 60118 | K123: =+(((L123/J123)^(1/1))-1)*100 -> 0.5472570611 | L123: 60447 | M123: =+(((N123/L123)^(1/1))-1)*100 -> 0.5690935861 | N123: 60791 | O123: =+(((P123/N123)^(1/1))-1)*100 -> 0.5872579823 | P123: 61148 | Q123: =+(((R123/P123)^(1/1))-1)*100 -> 0.6034539151 | R123: 61517 | S123: =+(((T123/R123)^(1/1))-1)*100 -> 0.6160898613 | T123: 61896 | U123: =+(((V123/T123)^(1/1))-1)*100 -> 0.6236267287 | V123: 62282 | W123: =+(((X123/V123)^(1/1))-1)*100 -> 0.6293953309 | X123: 62674 | Y123: =+(((Z123/X123)^(1/1))-1)*100 -> 0.6334365127 | Z123: 63071 | AA123: =+(((AB123/Z123)^(1/1))-1)*100 -> 0.6357914097 | AB123: 63472 | AC123: =+(((AD123/AB123)^(1/1))-1)*100 -> 0.6380766322 | AD123: 63877 | AE123: =+(((AF123/AD123)^(1/1))-1)*100 -> 0.6340310284 | AF123: 64282 | AG123: =+(((AH123/AF123)^(1/1))-1)*100 -> 0.633147693 | AH123: 64689
A124: 910 | B124: Quetzaltenango | C124: San Mateo | D124: 7682 | E124: 3.189273627 | F124: 7927 | G124: 2.699634162 | H124: 8141 | I124: 2.309298612 | J124: 8329 | K124: 2.053067595 | L124: 8500 | M124: 1.858823529 | N124: 8658 | O124: 1.709401709 | P124: 8806 | Q124: 1.589825119 | R124: 8946 | S124: 1.509054326 | T124: 9081 | U124: 1.409536395 | V124: 9209 | W124: 1.357367792 | X124: 9334 | Y124: 1.307049496 | Z124: 9456 | AA124: 1.237309645 | AB124: 9573 | AC124: 1.190849264 | AD124: 9687 | AE124: 1.145865593 | AF124: 9798 | AG124: 1.102265769 | AH124: 9906
A125: 911 | B125: Quetzaltenango | C125: Concepción Chiquirichapa | D125: 18499 | E125: 1.886588464 | F125: 18848 | G125: 1.862266553 | H125: 19199 | I125: 1.833428824 | J125: 19551 | K125: 1.785074932 | L125: 19900 | M125: 1.733668342 | N125: 20245 | O125: 1.679427019 | P125: 20585 | Q125: 1.627398591 | R125: 20920 | S125: 1.572657744 | T125: 21249 | U125: 1.524777637 | V125: 21573 | W125: 1.474064803 | X125: 21891 | Y125: 1.425243251 | Z125: 22203 | AA125: 1.382696032 | AB125: 22510 | AC125: 1.337183474 | AD125: 22811 | AE125: 1.29323572 | AF125: 23106 | AG125: 1.255085259 | AH125: 23396
A126: 912 | B126: Quetzaltenango | C126: San Martín Sacatepéquez | D126: 30040 | E126: 1.817576565 | F126: 30586 | G126: 1.798208331 | H126: 31136 | I126: 1.766443988 | J126: 31686 | K126: 1.723158493 | L126: 32232 | M126: 1.672251179 | N126: 32771 | O126: 1.623386531 | P126: 33303 | Q126: 1.57042909 | R126: 33826 | S126: 1.522497487 | T126: 34341 | U126: 1.473457383 | V126: 34847 | W126: 1.429104371 | X126: 35345 | Y126: 1.377846937 | Z126: 35832 | AA126: 1.336793927 | AB126: 36311 | AC126: 1.297127592 | AD126: 36782 | AE126: 1.256049154 | AF126: 37244 | AG126: 1.213618301 | AH126: 37696
A127: 913 | B127: Quetzaltenango | C127: Almolonga | D127: 15087 | E127: 2.087890237 | F127: 15402 | G127: 2.07115959 | H127: 15721 | I127: 2.041854844 | J127: 16042 | K127: 1.994763745 | L127: 16362 | M127: 1.937415964 | N127: 16679 | O127: 1.882606871 | P127: 16993 | Q127: 1.836050138 | R127: 17305 | S127: 1.779832418 | T127: 17613 | U127: 1.731675467 | V127: 17918 | W127: 1.679874986 | X127: 18219 | Y127: 1.635655085 | Z127: 18517 | AA127: 1.587730194 | AB127: 18811 | AC127: 1.541651162 | AD127: 19101 | AE127: 1.497303806 | AF127: 19387 | AG127: 1.459741064 | AH127: 19670
A128: 914 | B128: Quetzaltenango | C128: Cantel | D128: 39421 | E128: 3.335785495 | F128: 40736 | G128: 3.026806756 | H128: 41969 | I128: 2.756796683 | J128: 43126 | K128: 2.518202476 | L128: 44212 | M128: 2.300280467 | N128: 45229 | O128: 2.115899091 | P128: 46186 | Q128: 1.950807604 | R128: 47087 | S128: 1.813664069 | T128: 47941 | U128: 1.689576771 | V128: 48751 | W128: 1.57945478 | X128: 49521 | Y128: 1.484218816 | Z128: 50256 | AA128: 1.39883795 | AB128: 50959 | AC128: 1.324594282 | AD128: 51634 | AE128: 1.253050316 | AF128: 52281 | AG128: 1.191637497 | AH128: 52904
A129: 915 | B129: Quetzaltenango | C129: Huitán | D129: 13952 | E129: 0.5017201835 | F129: 14022 | G129: 0.6989017259 | H129: 14120 | I129: 0.842776204 | J129: 14239 | K129: 0.9481002879 | L129: 14374 | M129: 1.029636844 | N129: 14522 | O129: 1.067346096 | P129: 14677 | Q129: 1.1037678 | R129: 14839 | S129: 1.125412764 | T129: 15006 | U129: 1.12621618 | V129: 15175 | W129: 1.120263591 | X129: 15345 | Y129: 1.114369501 | Z129: 15516 | AA129: 1.095643207 | AB129: 15686 | AC129: 1.071018743 | AD129: 15854 | AE129: 1.059669484 | AF129: 16022 | AG129: 1.029833978 | AH129: 16187
A130: 916 | B130: Quetzaltenango | C130: Zunil | D130: 13954 | E130: 2.479575749 | F130: 14300 | G130: 2.167832168 | H130: 14610 | I130: 1.950718686 | J130: 14895 | K130: 1.785834173 | L130: 15161 | M130: 1.668755359 | N130: 15414 | O130: 1.576488906 | P130: 15657 | Q130: 1.507313023 | R130: 15893 | S130: 1.434593846 | T130: 16121 | U130: 1.383288878 | V130: 16344 | W130: 1.321585903 | X130: 16560 | Y130: 1.280193237 | Z130: 16772 | AA130: 1.228237539 | AB130: 16978 | AC130: 1.189775003 | AD130: 17180 | AE130: 1.140861467 | AF130: 17376 | AG130: 1.099217311 | AH130: 17567
A131: 917 | B131: Quetzaltenango | C131: Colomba Costa Cuca | D131: 53017 | E131: 0.5922628591 | F131: 53331 | G131: 0.753782978 | H131: 53733 | I131: 0.8802784136 | J131: 54206 | K131: 0.9666826551 | L131: 54730 | M131: 1.023204824 | N131: 55290 | O131: 1.063483451 | P131: 55878 | Q131: 1.089874369 | R131: 56487 | S131: 1.104678953 | T131: 57111 | U131: 1.106616939 | V131: 57743 | W131: 1.10316402 | X131: 58380 | Y131: 1.092840014 | Z131: 59018 | AA131: 1.077637331 | AB131: 59654 | AC131: 1.06111912 | AD131: 60287 | AE131: 1.03836648 | AF131: 60913 | AG131: 1.014561752 | AH131: 61531
A132: 918 | B132: Quetzaltenango | C132: San Francisco La Unión | D132: 8509 | E132: 2.115407216 | F132: 8689 | G132: 2.025549545 | H132: 8865 | I132: 1.917653694 | J132: 9035 | K132: 1.837299391 | L132: 9201 | M132: 1.738941419 | N132: 9361 | O132: 1.655806004 | P132: 9516 | Q132: 1.57629256 | R132: 9666 | S132: 1.510448996 | T132: 9812 | U132: 1.437015899 | V132: 9953 | W132: 1.376469406 | X132: 10090 | Y132: 1.308225966 | Z132: 10222 | AA132: 1.271766778 | AB132: 10352 | AC132: 1.207496136 | AD132: 10477 | AE132: 1.154910757 | AF132: 10598 | AG132: 1.122853369 | AH132: 10717
A133: 919 | B133: Quetzaltenango | C133: El Palmar | D133: 29115 | E133: 1.243345355 | F133: 29477 | G133: 1.262000882 | H133: 29849 | I133: 1.259673691 | J133: 30225 | K133: 1.240694789 | L133: 30600 | M133: 1.218954248 | N133: 30973 | O133: 1.191360217 | P133: 31342 | Q133: 1.161380895 | R133: 31706 | S133: 1.132277802 | T133: 32065 | U133: 1.104007485 | V133: 32419 | W133: 1.073444585 | X133: 32767 | Y133: 1.046784875 | Z133: 33110 | AA133: 1.014799154 | AB133: 33446 | AC133: 0.9866650721 | AD133: 33776 | AE133: 0.9592610137 | AF133: 34100 | AG133: 0.9296187683 | AH133: 34417
A134: 920 | B134: Quetzaltenango | C134: Coatepeque | D134: 110644 | E134: 1.027620115 | F134: 111781 | G134: 1.171934407 | H134: 113091 | I134: 1.265352681 | J134: 114522 | K134: 1.315904368 | L134: 116029 | M134: 1.335872928 | N134: 117579 | O134: 1.337823931 | P134: 119152 | Q134: 1.330233651 | R134: 120737 | S134: 1.311942487 | T134: 122321 | U134: 1.28596071 | V134: 123894 | W134: 1.255912312 | X134: 125450 | Y134: 1.223595058 | Z134: 126985 | AA134: 1.189116825 | AB134: 128495 | AC134: 1.155686992 | AD134: 129980 | AE134: 1.117864287 | AF134: 131433 | AG134: 1.08268091 | AH134: 132856
A135: 921 | B135: Quetzaltenango | C135: Génova | D135: 42336 | E135: 1.28968254 | F135: 42882 | G135: 1.310573201 | H135: 43444 | I135: 1.314335697 | J135: 44015 | K135: 1.306372827 | L135: 44590 | M135: 1.282798834 | N135: 45162 | O135: 1.259908773 | P135: 45731 | Q135: 1.231112375 | R135: 46294 | S135: 1.205339785 | T135: 46852 | U135: 1.176043712 | V135: 47403 | W135: 1.143387549 | X135: 47945 | Y135: 1.115861925 | Z135: 48480 | AA135: 1.084983498 | AB135: 49006 | AC135: 1.052932294 | AD135: 49522 | AE135: 1.025806712 | AF135: 50030 | AG135: 0.9934039576 | AH135: 50527
A136: 922 | B136: Quetzaltenango | C136: Flores Costa Cuca | D136: 21312 | E136: 2.317942943 | F136: 21806 | G136: 2.306704577 | H136: 22309 | I136: 2.290555381 | J136: 22820 | K136: 2.256792287 | L136: 23335 | M136: 2.211270624 | N136: 23851 | O136: 2.171816695 | P136: 24369 | Q136: 2.129755017 | R136: 24888 | S136: 2.089360334 | T136: 25408 | U136: 2.050535264 | V136: 25929 | W136: 2.01704655 | X136: 26452 | Y136: 1.98094662 | Z136: 26976 | AA136: 1.946174377 | AB136: 27501 | AC136: 1.916293953 | AD136: 28028 | AE136: 1.883830455 | AF136: 28556 | AG136: 1.859504132 | AH136: 29087
A137: 923 | B137: Quetzaltenango | C137: La Esperanza | D137: 21878 | E137: 2.596215376 | F137: 22446 | G137: 2.191927292 | H137: 22938 | I137: 1.948731363 | J137: 23385 | K137: 1.783194355 | L137: 23802 | M137: 1.667927065 | N137: 24199 | O137: 1.570312823 | P137: 24579 | Q137: 1.501281582 | R137: 24948 | S137: 1.438993106 | T137: 25307 | U137: 1.383016557 | V137: 25657 | W137: 1.325174416 | X137: 25997 | Y137: 1.277070431 | Z137: 26329 | AA137: 1.226784154 | AB137: 26652 | AC137: 1.189404172 | AD137: 26969 | AE137: 1.138344025 | AF137: 27276 | AG137: 1.103534243 | AH137: 27577
A138: 924 | B138: Quetzaltenango | C138: Palestina de Los Altos | D138: 19606 | E138: 0.3570335612 | F138: 19676 | G138: 0.5793860541 | H138: 19790 | I138: 0.7427993936 | J138: 19937 | K138: 0.8627175603 | L138: 20109 | M138: 0.9448505644 | N138: 20299 | O138: 1.009901966 | P138: 20504 | Q138: 1.048575888 | R138: 20719 | S138: 1.076306772 | T138: 20942 | U138: 1.083946137 | V138: 21169 | W138: 1.091218291 | X138: 21400 | Y138: 1.08411215 | Z138: 21632 | AA138: 1.077107988 | AB138: 21865 | AC138: 1.056482964 | AD138: 22096 | AE138: 1.040912382 | AF138: 22326 | AG138: 1.012272687 | AH138: 22552
A139: 1001 | B139: Suchitepéquez | C139: Mazatenango | D139: 82645 | E139: 0.05081977131 | F139: 82687 | G139: 0.122147375 | H139: 82788 | I139: 0.2186307194 | J139: 82969 | K139: 0.291675204 | L139: 83211 | M139: 0.3473098509 | N139: 83500 | O139: 0.3928143713 | P139: 83828 | Q139: 0.4270649425 | R139: 84186 | S139: 0.4549450027 | T139: 84569 | U139: 0.4753514881 | V139: 84971 | W139: 0.4884019254 | X139: 85386 | Y139: 0.4977396763 | Z139: 85811 | AA139: 0.5011012574 | AB139: 86241 | AC139: 0.5032409179 | AD139: 86675 | AE139: 0.5018748197 | AF139: 87110 | AG139: 0.4982206406 | AH139: 87544
A140: 1002 | B140: Suchitepéquez | C140: Cuyotenango | D140: 34558 | E140: 1.611783089 | F140: 35115 | G140: 1.5491955 | H140: 35659 | I140: 1.519952887 | J140: 36201 | K140: 1.483384437 | L140: 36738 | M140: 1.437203985 | N140: 37266 | O140: 1.392690388 | P140: 37785 | Q140: 1.347095408 | R140: 38294 | S140: 1.29785345 | T140: 38791 | U140: 1.260601686 | V140: 39280 | W140: 1.211812627 | X140: 39756 | Y140: 1.167119429 | Z140: 40220 | AA140: 1.131277971 | AB140: 40675 | AC140: 1.091579594 | AD140: 41119 | AE140: 1.050609207 | AF140: 41551 | AG140: 1.020432721 | AH140: 41975
A141: 1003 | B141: Suchitepéquez | C141: San Francisco Zapotitlán | D141: 21855 | E141: 2.219171814 | F141: 22340 | G141: 2.15308863 | H141: 22821 | I141: 2.125235529 | J141: 23306 | K141: 2.085299923 | L141: 23792 | M141: 2.04270343 | N141: 24278 | O141: 1.997693385 | P141: 24763 | Q141: 1.946452368 | R141: 25245 | S141: 1.905327788 | T141: 25726 | U141: 1.858042447 | V141: 26204 | W141: 1.812700351 | X141: 26679 | Y141: 1.77293002 | Z141: 27152 | AA141: 1.730995875 | AB141: 27622 | AC141: 1.687061038 | AD141: 28088 | AE141: 1.651951011 | AF141: 28552 | AG141: 1.618100308 | AH141: 29014
A142: 1004 | B142: Suchitepéquez | C142: San Bernardino | D142: 15289 | E142: 2.007979593 | F142: 15596 | G142: 1.942805848 | H142: 15899 | I142: 1.918359645 | J142: 16204 | K142: 1.87607998 | L142: 16508 | M142: 1.829416041 | N142: 16810 | O142: 1.784651993 | P142: 17110 | Q142: 1.741671537 | R142: 17408 | S142: 1.688878676 | T142: 17702 | U142: 1.655180206 | V142: 17995 | W142: 1.606001667 | X142: 18284 | Y142: 1.564209145 | Z142: 18570 | AA142: 1.518578352 | AB142: 18852 | AC142: 1.485253554 | AD142: 19132 | AE142: 1.447836086 | AF142: 19409 | AG142: 1.411716214 | AH142: 19683
A143: 1005 | B143: Suchitepéquez | C143: San José el Ídolo | D143: 11056 | E143: 1.510492041 | F143: 11223 | G143: 1.452374588 | H143: 11386 | I143: 1.414017214 | J143: 11547 | K143: 1.385641292 | L143: 11707 | M143: 1.341077988 | N143: 11864 | O143: 1.289615644 | P143: 12017 | Q143: 1.239910127 | R143: 12166 | S143: 1.216505014 | T143: 12314 | U143: 1.145038168 | V143: 12455 | W143: 1.116017664 | X143: 12594 | Y143: 1.071939019 | Z143: 12729 | AA143: 1.037002121 | AB143: 12861 | AC143: 0.9874815333 | AD143: 12988 | AE143: 0.9547274407 | AF143: 13112 | AG143: 0.9151921904 | AH143: 13232
A144: 1006 | B144: Suchitepéquez | C144: Santo Domingo Suchitepéquez | D144: 44724 | E144: 1.585278598 | F144: 45433 | G144: 1.520920917 | H144: 46124 | I144: 1.495967392 | J144: 46814 | K144: 1.456829154 | L144: 47496 | M144: 1.410645107 | N144: 48166 | O144: 1.368185027 | P144: 48825 | Q144: 1.321044547 | R144: 49470 | S144: 1.271477663 | T144: 50099 | U144: 1.233557556 | V144: 50717 | W144: 1.186978725 | X144: 51319 | Y144: 1.145774469 | Z144: 51907 | AA144: 1.101970832 | AB144: 52479 | AC144: 1.06518798 | AD144: 53038 | AE144: 1.027565142 | AF144: 53583 | AG144: 0.9928522106 | AH144: 54115
A145: 1007 | B145: Suchitepéquez | C145: San Lorenzo | D145: 13115 | E145: 1.120853984 | F145: 13262 | G145: 1.055647715 | H145: 13402 | I145: 1.037158633 | J145: 13541 | K145: 0.9895871797 | L145: 13675 | M145: 0.9433272395 | N145: 13804 | O145: 0.9127789047 | P145: 13930 | Q145: 0.8470926059 | R145: 14048 | S145: 0.8186218679 | T145: 14163 | U145: 0.7696109581 | V145: 14272 | W145: 0.7216928251 | X145: 14375 | Y145: 0.6817391304 | Z145: 14473 | AA145: 0.6494852484 | AB145: 14567 | AC145: 0.5972403377 | AD145: 14654 | AE145: 0.566398253 | AF145: 14737 | AG145: 0.536065685 | AH145: 14816
A146: 1008 | B146: Suchitepéquez | C146: Samayac | D146: 24259 | E146: 2.168267447 | F146: 24785 | G146: 1.82368368 | H146: 25237 | I146: 1.596861751 | J146: 25640 | K146: 1.43525741 | L146: 26008 | M146: 1.311135035 | N146: 26349 | O146: 1.203081711 | P146: 26666 | Q146: 1.128778219 | R146: 26967 | S146: 1.056847258 | T146: 27252 | U146: 1.001761339 | V146: 27525 | W146: 0.9409627611 | X146: 27784 | Y146: 0.8961992514 | Z146: 28033 | AA146: 0.8489993936 | AB146: 28271 | AC146: 0.8100173322 | AD146: 28500 | AE146: 0.7719298246 | AF146: 28720 | AG146: 0.7346796657 | AH146: 28931
A147: 1009 | B147: Suchitepéquez | C147: San Pablo Jocopilas | D147: 19787 | E147: 2.274220448 | F147: 20237 | G147: 2.203883975 | H147: 20683 | I147: 2.180534739 | J147: 21134 | K147: 2.138733794 | L147: 21586 | M147: 2.093949782 | N147: 22038 | O147: 2.051002813 | P147: 22490 | Q147: 1.996442863 | R147: 22939 | S147: 1.957365186 | T147: 23388 | U147: 1.911236532 | V147: 23835 | W147: 1.867002308 | X147: 24280 | Y147: 1.824546952 | Z147: 24723 | AA147: 1.77971929 | AB147: 25163 | AC147: 1.744625045 | AD147: 25602 | AE147: 1.702991954 | AF147: 26038 | AG147: 1.666794685 | AH147: 26472
A148: 1010 | B148: Suchitepéquez | C148: San Antonio Suchitepéquez | D148: 58859 | E148: 1.911347457 | F148: 59984 | G148: 1.848826354 | H148: 61093 | I148: 1.818538949 | J148: 62204 | K148: 1.782843547 | L148: 63313 | M148: 1.734240993 | N148: 64411 | O148: 1.692257534 | P148: 65501 | Q148: 1.642723012 | R148: 66577 | S148: 1.598149511 | T148: 67641 | U148: 1.55379134 | V148: 68692 | W148: 1.509637221 | X148: 69729 | Y148: 1.465674253 | Z148: 70751 | AA148: 1.424714845 | AB148: 71759 | AC148: 1.385192101 | AD148: 72753 | AE148: 1.34702349 | AF148: 73733 | AG148: 1.31420124 | AH148: 74702
A149: 1011 | B149: Suchitepéquez | C149: San Miguel Panán | D149: 11139 | E149: 2.019929976 | F149: 11364 | G149: 1.953537487 | H149: 11586 | I149: 1.933367858 | J149: 11810 | K149: 1.888230313 | L149: 12033 | M149: 1.844926452 | N149: 12255 | O149: 1.795185639 | P149: 12475 | Q149: 1.755511022 | R149: 12694 | S149: 1.701591303 | T149: 12910 | U149: 1.665375678 | V149: 13125 | W149: 1.615238095 | X149: 13337 | Y149: 1.574566994 | Z149: 13547 | AA149: 1.53539529 | AB149: 13755 | AC149: 1.497637223 | AD149: 13961 | AE149: 1.46121338 | AF149: 14165 | AG149: 1.418990469 | AH149: 14366
A150: 1012 | B150: Suchitepéquez | C150: San Gabriel | D150: 7080 | E150: 2.838983051 | F150: 7281 | G150: 2.527125395 | H150: 7465 | I150: 2.290689886 | J150: 7636 | K150: 2.095337873 | L150: 7796 | M150: 1.898409441 | N150: 7944 | O150: 1.737160121 | P150: 8082 | Q150: 1.596139569 | R150: 8211 | S150: 1.461454147 | T150: 8331 | U150: 1.332373064 | V150: 8442 | W150: 1.23193556 | X150: 8546 | Y150: 1.146735315 | Z150: 8644 | AA150: 1.064322073 | AB150: 8736 | AC150: 0.972985348 | AD150: 8821 | AE150: 0.9182632355 | AF150: 8902 | AG150: 0.8537407324 | AH150: 8978
A151: 1013 | B151: Suchitepéquez | C151: Chicacao | D151: 66745 | E151: 0.2861637576 | F151: 66936 | G151: 0.315226485 | H151: 67147 | I151: 0.3752959924 | J151: 67399 | K151: 0.4169201323 | L151: 67680 | M151: 0.44178487 | N151: 67979 | O151: 0.4663204813 | P151: 68296 | Q151: 0.4773339581 | R151: 68622 | S151: 0.4896388913 | T151: 68958 | U151: 0.495954059 | V151: 69300 | W151: 0.4978354978 | X151: 69645 | Y151: 0.4968052265 | Z151: 69991 | AA151: 0.4929205184 | AB151: 70336 | AC151: 0.4890809827 | AD151: 70680 | AE151: 0.4824561404 | AF151: 71021 | AG151: 0.4773236085 | AH151: 71360
A152: 1014 | B152: Suchitepéquez | C152: Patulul | D152: 40676 | E152: 0.7203264824 | F152: 40969 | G152: 0.6956479289 | H152: 41254 | I152: 0.7005381296 | J152: 41543 | K152: 0.6908504441 | L152: 41830 | M152: 0.6813291896 | N152: 42115 | O152: 0.6624718034 | P152: 42394 | Q152: 0.6439590508 | R152: 42667 | S152: 0.6257763611 | T152: 42934 | U152: 0.6055806587 | V152: 43194 | W152: 0.5834143631 | X152: 43446 | Y152: 0.5639184275 | Z152: 43691 | AA152: 0.5424458126 | AB152: 43928 | AC152: 0.5213075942 | AD152: 44157 | AE152: 0.5050161922 | AF152: 44380 | AG152: 0.4821991888 | AH152: 44594
A153: 1015 | B153: Suchitepéquez | C153: Santa Bárbara | D153: 26634 | E153: 0.7734474732 | F153: 26840 | G153: 0.7078986587 | H153: 27030 | I153: 0.6844247133 | J153: 27215 | K153: 0.6467021863 | L153: 27391 | M153: 0.5987368114 | N153: 27555 | O153: 0.5552531301 | P153: 27708 | Q153: 0.5088783023 | R153: 27849 | S153: 0.4632123236 | T153: 27978 | U153: 0.4217599542 | V153: 28096 | W153: 0.3772779043 | X153: 28202 | Y153: 0.3333096943 | Z153: 28296 | AA153: 0.2933276788 | AB153: 28379 | AC153: 0.2572324606 | AD153: 28452 | AE153: 0.2179108674 | AF153: 28514 | AG153: 0.1858736059 | AH153: 28567
A154: 1016 | B154: Suchitepéquez | C154: San Juan Bautista | D154: 8205 | E154: 2.876294942 | F154: 8441 | G154: 2.594479327 | H154: 8660 | I154: 2.355658199 | J154: 8864 | K154: 2.17734657 | L154: 9057 | M154: 1.976371867 | N154: 9236 | O154: 1.818969251 | P154: 9404 | Q154: 1.658868567 | R154: 9560 | S154: 1.516736402 | T154: 9705 | U154: 1.411643483 | V154: 9842 | W154: 1.300548669 | X154: 9970 | Y154: 1.193580742 | Z154: 10089 | AA154: 1.110119933 | AB154: 10201 | AC154: 1.029310852 | AD154: 10306 | AE154: 0.9606054725 | AF154: 10405 | AG154: 0.8938010572 | AH154: 10498
A155: 1017 | B155: Suchitepéquez | C155: Santo Tomas La Unión | D155: 11372 | E155: 2.101653183 | F155: 11611 | G155: 2.041167858 | H155: 11848 | I155: 2.017218096 | J155: 12087 | K155: 1.969057665 | L155: 12325 | M155: 1.931034483 | N155: 12563 | O155: 1.88649208 | P155: 12800 | Q155: 1.8359375 | R155: 13035 | S155: 1.795166858 | T155: 13269 | U155: 1.748436205 | V155: 13501 | W155: 1.703577513 | X155: 13731 | Y155: 1.660476295 | Z155: 13959 | AA155: 1.619027151 | AB155: 14185 | AC155: 1.579132887 | AD155: 14409 | AE155: 1.540703727 | AF155: 14631 | AG155: 1.510491422 | AH155: 14852
A156: 1018 | B156: Suchitepéquez | C156: Zunilito | D156: 7809 | E156: 2.484312972 | F156: 8003 | G156: 2.336623766 | H156: 8190 | I156: 2.222222222 | J156: 8372 | K156: 2.126134735 | L156: 8550 | M156: 2.011695906 | N156: 8722 | O156: 1.903233203 | P156: 8888 | Q156: 1.800180018 | R156: 9048 | S156: 1.702033599 | T156: 9202 | U156: 1.597478809 | V156: 9349 | W156: 1.508182693 | X156: 9490 | Y156: 1.43308746 | Z156: 9626 | AA156: 1.350509038 | AB156: 9756 | AC156: 1.27101271 | AD156: 9880 | AE156: 1.184210526 | AF156: 9997 | AG156: 1.130339102 | AH156: 10110
A157: 1019 | B157: Suchitepéquez | C157: Pueblo Nuevo | D157: 11261 | E157: 1.358671521 | F157: 11414 | G157: 1.279130892 | H157: 11560 | I157: 1.237024221 | J157: 11703 | K157: 1.19627446 | L157: 11843 | M157: 1.14835768 | N157: 11979 | O157: 1.101928375 | P157: 12111 | Q157: 1.05689043 | R157: 12239 | S157: 1.013154669 | T157: 12363 | U157: 0.9706381946 | V157: 12483 | W157: 0.9292637988 | X157: 12599 | Y157: 0.8810223034 | Z157: 12710 | AA157: 0.8418568057 | AB157: 12817 | AC157: 0.7958180541 | AD157: 12919 | AE157: 0.7740537193 | AF157: 13019 | AG157: 0.7297027421 | AH157: 13114
A158: 1020 | B158: Suchitepéquez | C158: Río Bravo | D158: 28019 | E158: 1.980798744 | F158: 28574 | G158: 1.910828025 | H158: 29120 | I158: 1.888736264 | J158: 29670 | K158: 1.846983485 | L158: 30218 | M158: 1.800251506 | N158: 30762 | O158: 1.758663286 | P158: 31303 | Q158: 1.709101364 | R158: 31838 | S158: 1.664677429 | T158: 32368 | U158: 1.621972318 | V158: 32893 | W158: 1.57480315 | X158: 33411 | Y158: 1.532429439 | Z158: 33923 | AA158: 1.49161336 | AB158: 34429 | AC158: 1.455168608 | AD158: 34930 | AE158: 1.414257086 | AF158: 35424 | AG158: 1.380420054 | AH158: 35913
A159: 1021 | B159: Suchitepéquez | C159: San José La Máquina | D159: 23836 | E159: 1.611008558 | F159: 24220 | G159: 1.548307184 | H159: 24595 | I159: 1.520634275 | J159: 24969 | K159: 1.485842445 | L159: 25340 | M159: 1.432517758 | N159: 25703 | O159: 1.396724118 | P159: 26062 | Q159: 1.342951424 | R159: 26412 | S159: 1.302438286 | T159: 26756 | U159: 1.255793093 | V159: 27092 | W159: 1.214380629 | X159: 27421 | Y159: 1.170635644 | Z159: 27742 | AA159: 1.12825319 | AB159: 28055 | AC159: 1.090714668 | AD159: 28361 | AE159: 1.054264659 | AF159: 28660 | AG159: 1.015352408 | AH159: 28951
A160: 1101 | B160: Retalhuleu | C160: Retalhuleu | D160: 100309 | E160: 1.664855596 | F160: 101979 | G160: 1.612096608 | H160: 103623 | I160: 1.561429412 | J160: 105241 | K160: 1.519369827 | L160: 106840 | M160: 1.464807188 | N160: 108405 | O160: 1.411374014 | P160: 109935 | Q160: 1.360804112 | R160: 111431 | S160: 1.312920103 | T160: 112894 | U160: 1.263131787 | V160: 114320 | W160: 1.215885234 | X160: 115710 | Y160: 1.171031026 | Z160: 117065 | AA160: 1.127578696 | AB160: 118385 | AC160: 1.084596866 | AD160: 119669 | AE160: 1.04371224 | AF160: 120918 | AG160: 1.00977522 | AH160: 122139
A161: 1102 | B161: Retalhuleu | C161: San Sebastián | D161: 28865 | E161: 1.167503897 | F161: 29202 | G161: 1.123210739 | H161: 29530 | I161: 1.066711818 | J161: 29845 | K161: 1.02529737 | L161: 30151 | M161: 0.9717753972 | N161: 30444 | O161: 0.9197214558 | P161: 30724 | Q161: 0.8690274704 | R161: 30991 | S161: 0.8163660418 | T161: 31244 | U161: 0.7745487134 | V161: 31486 | W161: 0.7209553452 | X161: 31713 | Y161: 0.6779554126 | Z161: 31928 | AA161: 0.6358055625 | AB161: 32131 | AC161: 0.5913292459 | AD161: 32321 | AE161: 0.5538194982 | AF161: 32500 | AG161: 0.5169230769 | AH161: 32668
A162: 1103 | B162: Retalhuleu | C162: Santa Cruz Muluá | D162: 14297 | E162: 2.175281528 | F162: 14608 | G162: 2.108433735 | H162: 14916 | I162: 2.064896755 | J162: 15224 | K162: 2.009984235 | L162: 15530 | M162: 1.96394076 | N162: 15835 | O162: 1.913482791 | P162: 16138 | Q162: 1.858966415 | R162: 16438 | S162: 1.818956077 | T162: 16737 | U162: 1.756587202 | V162: 17031 | W162: 1.71452058 | X162: 17323 | Y162: 1.668302257 | Z162: 17612 | AA162: 1.6238928 | AB162: 17898 | AC162: 1.581182255 | AD162: 18181 | AE162: 1.534569056 | AF162: 18460 | AG162: 1.50595883 | AH162: 18738
A163: 1104 | B163: Retalhuleu | C163: San Martín Zapotitlán | D163: 11767 | E163: 2.22656582 | F163: 12029 | G163: 2.003491562 | H163: 12270 | I163: 1.825590872 | J163: 12494 | K163: 1.696814471 | L163: 12706 | M163: 1.566189202 | N163: 12905 | O163: 1.464548625 | P163: 13094 | Q163: 1.38231251 | R163: 13275 | S163: 1.303201507 | T163: 13448 | U163: 1.234384295 | V163: 13614 | W163: 1.182606141 | X163: 13775 | Y163: 1.117967332 | Z163: 13929 | AA163: 1.069710676 | AB163: 14078 | AC163: 1.022872567 | AD163: 14222 | AE163: 0.9843903811 | AF163: 14362 | AG163: 0.9399805041 | AH163: 14497
A164: 1105 | B164: Retalhuleu | C164: San Felipe | D164: 23884 | E164: 1.955283872 | F164: 24351 | G164: 1.909572502 | H164: 24816 | I164: 1.857672469 | J164: 25277 | K164: 1.815880049 | L164: 25736 | M164: 1.767951508 | N164: 26191 | O164: 1.71432935 | P164: 26640 | Q164: 1.662912913 | R164: 27083 | S164: 1.613558321 | T164: 27520 | U164: 1.573401163 | V164: 27953 | W164: 1.520409258 | X164: 28378 | Y164: 1.480019734 | Z164: 28798 | AA164: 1.441072297 | AB164: 29213 | AC164: 1.396638483 | AD164: 29621 | AE164: 1.357145269 | AF164: 30023 | AG164: 1.325650335 | AH164: 30421
A165: 1106 | B165: Retalhuleu | C165: San Andrés Villa Seca | D165: 50341 | E165: 1.936791085 | F165: 51316 | G165: 1.884402526 | H165: 52283 | I165: 1.832335558 | J165: 53241 | K165: 1.789973892 | L165: 54194 | M165: 1.732664133 | N165: 55133 | O165: 1.681388642 | P165: 56060 | Q165: 1.630396004 | R165: 56974 | S165: 1.583178292 | T165: 57876 | U165: 1.53258691 | V165: 58763 | W165: 1.483926961 | X165: 59635 | Y165: 1.440429278 | Z165: 60494 | AA165: 1.395179687 | AB165: 61338 | AC165: 1.351527601 | AD165: 62167 | AE165: 1.310984928 | AF165: 62982 | AG165: 1.276555206 | AH165: 63786
A166: 1107 | B166: Retalhuleu | C166: Champerico | D166: 35040 | E166: 1.738013699 | F166: 35649 | G166: 1.685881792 | H166: 36250 | I166: 1.633103448 | J166: 36842 | K166: 1.593290267 | L166: 37429 | M166: 1.541585402 | N166: 38006 | O166: 1.483976214 | P166: 38570 | Q166: 1.436349494 | R166: 39124 | S166: 1.385338922 | T166: 39666 | U166: 1.33615691 | V166: 40196 | W166: 1.291173251 | X166: 40715 | Y166: 1.242785214 | Z166: 41221 | AA166: 1.20084423 | AB166: 41716 | AC166: 1.160226292 | AD166: 42200 | AE166: 1.116113744 | AF166: 42671 | AG166: 1.08504605 | AH166: 43134
A167: 1108 | B167: Retalhuleu | C167: Nuevo San Carlos | D167: 39942 | E167: 0.5958640028 | F167: 40180 | G167: 0.7217521155 | H167: 40470 | I167: 0.8178897949 | J167: 40801 | K167: 0.894585917 | L167: 41166 | M167: 0.9376670068 | N167: 41552 | O167: 0.9722757027 | P167: 41956 | Q167: 0.9843645724 | R167: 42369 | S167: 0.9960112346 | T167: 42791 | U167: 0.9885256245 | V167: 43214 | W167: 0.9788494469 | X167: 43637 | Y167: 0.964777597 | Z167: 44058 | AA167: 0.9442099051 | AB167: 44474 | AC167: 0.9218869452 | AD167: 44884 | AE167: 0.8978700651 | AF167: 45287 | AG167: 0.8766312628 | AH167: 45684
A168: 1109 | B168: Retalhuleu | C168: El Asintal | D168: 39062 | E168: 1.850903692 | F168: 39785 | G168: 1.797159734 | H168: 40500 | I168: 1.745679012 | J168: 41207 | K168: 1.70359405 | L168: 41909 | M168: 1.65119664 | N168: 42601 | O168: 1.596206662 | P168: 43281 | Q168: 1.545712899 | R168: 43950 | S168: 1.494880546 | T168: 44607 | U168: 1.448203197 | V168: 45253 | W168: 1.398802289 | X168: 45886 | Y168: 1.355533278 | Z168: 46508 | AA168: 1.311602305 | AB168: 47118 | AC168: 1.267031708 | AD168: 47715 | AE168: 1.228125327 | AF168: 48301 | AG168: 1.192521894 | AH168: 48877
A169: 1201 | B169: San Marcos | C169: San Marcos | D169: 46835 | E169: 0.4398419985 | F169: 47041 | G169: 0.6441189601 | H169: 47344 | I169: 0.8005238256 | J169: 47723 | K169: 0.8779833623 | L169: 48142 | M169: 0.9700469445 | N169: 48609 | O169: 1.040959493 | P169: 49115 | Q169: 1.097424412 | R169: 49654 | S169: 1.135860152 | T169: 50218 | U169: 1.158946991 | V169: 50800 | W169: 1.17519685 | X169: 51397 | Y169: 1.181002782 | Z169: 52004 | AA169: 1.182601338 | AB169: 52619 | AC169: 1.176381155 | AD169: 53238 | AE169: 1.166460047 | AF169: 53859 | AG169: 1.158580739 | AH169: 54483
A170: 1202 | B170: San Marcos | C170: San Pedro Sacatepéquez | D170: 76620 | E170: 2.212216132 | F170: 78315 | G170: 2.036646875 | H170: 79910 | I170: 1.91215117 | J170: 81438 | K170: 1.771900096 | L170: 82881 | M170: 1.698821201 | N170: 84289 | O170: 1.6395971 | P170: 85671 | Q170: 1.586301082 | R170: 87030 | S170: 1.539698954 | T170: 88370 | U170: 1.4959828 | V170: 89692 | W170: 1.453864336 | X170: 90996 | Y170: 1.413248934 | Z170: 92282 | AA170: 1.372965475 | AB170: 93549 | AC170: 1.338336059 | AD170: 94801 | AE170: 1.301674033 | AF170: 96035 | AG170: 1.268287603 | AH170: 97253
A171: 1203 | B171: San Marcos | C171: San Antonio Sacatepéquez | D171: 18096 | E171: 2.984084881 | F171: 18636 | G171: 2.779566431 | H171: 19154 | I171: 2.594758275 | J171: 19651 | K171: 2.376469391 | L171: 20118 | M171: 2.221890844 | N171: 20565 | O171: 2.086068563 | P171: 20994 | Q171: 1.976755263 | R171: 21409 | S171: 1.863702181 | T171: 21808 | U171: 1.76540719 | V171: 22193 | W171: 1.680710134 | X171: 22566 | Y171: 1.599751839 | Z171: 22927 | AA171: 1.535307716 | AB171: 23279 | AC171: 1.464839555 | AD171: 23620 | AE171: 1.409822185 | AF171: 23953 | AG171: 1.360998622 | AH171: 24279
A172: 1204 | B172: San Marcos | C172: Comitancillo | D172: 75535 | E172: 1.145164493 | F172: 76400 | G172: 1.15052356 | H172: 77279 | I172: 1.136143066 | J172: 78157 | K172: 1.065803447 | L172: 78990 | M172: 1.038106089 | N172: 79810 | O172: 1.004886606 | P172: 80612 | Q172: 0.9688383863 | R172: 81393 | S172: 0.9337412308 | T172: 82153 | U172: 0.8971066181 | V172: 82890 | W172: 0.8577633008 | X172: 83601 | Y172: 0.8205643473 | Z172: 84287 | AA172: 0.7830389028 | AB172: 84947 | AC172: 0.7475249273 | AD172: 85582 | AE172: 0.7115982333 | AF172: 86191 | AG172: 0.6787251569 | AH172: 86776
A173: 1205 | B173: San Marcos | C173: San Miguel Ixtahuacán | D173: 49187 | E173: 1.132413036 | F173: 49744 | G173: 1.135815375 | H173: 50309 | I173: 1.123059492 | J173: 50874 | K173: 1.055549003 | L173: 51411 | M173: 1.023127346 | N173: 51937 | O173: 0.9915859599 | P173: 52452 | Q173: 0.9589720125 | R173: 52955 | S173: 0.9196487584 | T173: 53442 | U173: 0.883200479 | V173: 53914 | W173: 0.8457914456 | X173: 54370 | Y173: 0.8074305683 | Z173: 54809 | AA173: 0.7699465416 | AB173: 55231 | AC173: 0.7350944216 | AD173: 55637 | AE173: 0.7009723745 | AF173: 56027 | AG173: 0.6675352955 | AH173: 56401
A174: 1206 | B174: San Marcos | C174: Concepción Tutuapa | D174: 76129 | E174: 1.73652616 | F174: 77451 | G174: 1.740455256 | H174: 78799 | I174: 1.728448331 | J174: 80161 | K174: 1.65666596 | L174: 81489 | M174: 1.629667808 | N174: 82817 | O174: 1.595083135 | P174: 84138 | Q174: 1.561720031 | R174: 85452 | S174: 1.526002902 | T174: 86756 | U174: 1.486928858 | V174: 88046 | W174: 1.450378211 | X174: 89323 | Y174: 1.410610929 | Z174: 90583 | AA174: 1.375534041 | AB174: 91829 | AC174: 1.339446144 | AD174: 93059 | AE174: 1.30347414 | AF174: 94272 | AG174: 1.270790903 | AH174: 95470
A175: 1207 | B175: San Marcos | C175: Tacaná | D175: 77851 | E175: 0.8259367253 | F175: 78494 | G175: 0.8803220628 | H175: 79185 | I175: 0.9117888489 | J175: 79907 | K175: 0.8872814647 | L175: 80616 | M175: 0.899325196 | N175: 81341 | O175: 0.9072915258 | P175: 82079 | Q175: 0.9100988072 | R175: 82826 | S175: 0.9115495134 | T175: 83581 | U175: 0.9069046793 | V175: 84339 | W175: 0.903496603 | X175: 85101 | Y175: 0.8965817088 | Z175: 85864 | AA175: 0.8886145532 | AB175: 86627 | AC175: 0.8796333707 | AD175: 87389 | AE175: 0.8719632906 | AF175: 88151 | AG175: 0.8655602319 | AH175: 88914
A176: 1208 | B176: San Marcos | C176: Sibinal | D176: 16104 | E176: 0.86934923 | F176: 16244 | G176: 0.9418862349 | H176: 16397 | I176: 0.9940842837 | J176: 16560 | K176: 0.9963768116 | L176: 16725 | M176: 1.010463378 | N176: 16894 | O176: 1.035870723 | P176: 17069 | Q176: 1.04868475 | R176: 17248 | S176: 1.055194805 | T176: 17430 | U176: 1.061388411 | V176: 17615 | W176: 1.055918251 | X176: 17801 | Y176: 1.050502781 | Z176: 17988 | AA176: 1.050700467 | AB176: 18177 | AC176: 1.039775541 | AD176: 18366 | AE176: 1.029075466 | AF176: 18555 | AG176: 1.023982754 | AH176: 18745
A177: 1209 | B177: San Marcos | C177: Tajumulco | D177: 56684 | E177: 1.940582881 | F177: 57784 | G177: 1.945175135 | H177: 58908 | I177: 1.931825898 | J177: 60046 | K177: 1.860240482 | L177: 61163 | M177: 1.832807416 | N177: 62284 | O177: 1.799820179 | P177: 63405 | Q177: 1.764845044 | R177: 64524 | S177: 1.72958899 | T177: 65640 | U177: 1.689518586 | V177: 66749 | W177: 1.652459213 | X177: 67852 | Y177: 1.615280316 | Z177: 68948 | AA177: 1.576550444 | AB177: 70035 | AC177: 1.543513957 | AD177: 71116 | AE177: 1.505990213 | AF177: 72187 | AG177: 1.473949603 | AH177: 73251
A178: 1210 | B178: San Marcos | C178: Tejutla | D178: 38897 | E178: 2.29066509 | F178: 39788 | G178: 2.297175028 | H178: 40702 | I178: 2.282443123 | J178: 41631 | K178: 2.21469578 | L178: 42553 | M178: 2.180809814 | N178: 43481 | O178: 2.150364527 | P178: 44416 | Q178: 2.116354467 | R178: 45356 | S178: 2.076902725 | T178: 46298 | U178: 2.041124887 | V178: 47243 | W178: 2.002413056 | X178: 48189 | Y178: 1.965178775 | Z178: 49136 | AA178: 1.92730381 | AB178: 50083 | AC178: 1.888864485 | AD178: 51029 | AE178: 1.855807482 | AF178: 51976 | AG178: 1.821994767 | AH178: 52923
A179: 1211 | B179: San Marcos | C179: San Rafael Pie de la Cuesta | D179: 16888 | E179: 1.450734249 | F179: 17133 | G179: 1.453335668 | H179: 17382 | I179: 1.444022552 | J179: 17633 | K179: 1.366755515 | L179: 17874 | M179: 1.348327179 | N179: 18115 | O179: 1.308308032 | P179: 18352 | Q179: 1.275065388 | R179: 18586 | S179: 1.242870978 | T179: 18817 | U179: 1.206355955 | V179: 19044 | W179: 1.165721487 | X179: 19266 | Y179: 1.126336551 | Z179: 19483 | AA179: 1.088128112 | AB179: 19695 | AC179: 1.056105611 | AD179: 19903 | AE179: 1.019946742 | AF179: 20106 | AG179: 0.9847806625 | AH179: 20304
A180: 1212 | B180: San Marcos | C180: Nuevo Progreso | D180: 28986 | E180: 1.700821086 | F180: 29479 | G180: 1.7062994 | H180: 29982 | I180: 1.691014609 | J180: 30489 | K180: 1.623536357 | L180: 30984 | M180: 1.591143816 | N180: 31477 | O180: 1.559869111 | P180: 31968 | Q180: 1.526526527 | R180: 32456 | S180: 1.491249692 | T180: 32940 | U180: 1.448087432 | V180: 33417 | W180: 1.412454739 | X180: 33889 | Y180: 1.378028269 | Z180: 34356 | AA180: 1.338921877 | AB180: 34816 | AC180: 1.301125919 | AD180: 35269 | AE180: 1.267401968 | AF180: 35716 | AG180: 1.237540598 | AH180: 36158
A181: 1213 | B181: San Marcos | C181: El Tumbador | D181: 46839 | E181: 1.859561477 | F181: 47710 | G181: 1.863341019 | H181: 48599 | I181: 1.851889957 | J181: 49499 | K181: 1.779833936 | L181: 50380 | M181: 1.752679635 | N181: 51263 | O181: 1.718588456 | P181: 52144 | Q181: 1.683798711 | R181: 53022 | S181: 1.648372374 | T181: 53896 | U181: 1.610509129 | V181: 54764 | W181: 1.574026733 | X181: 55626 | Y181: 1.531657858 | Z181: 56478 | AA181: 1.497928397 | AB181: 57324 | AC181: 1.461865885 | AD181: 58162 | AE181: 1.425329253 | AF181: 58991 | AG181: 1.393432897 | AH181: 59813
A182: 1214 | B182: San Marcos | C182: San José el Rodeo | D182: 17389 | E182: 1.89200069 | F182: 17718 | G182: 1.902020544 | H182: 18055 | I182: 1.888673498 | J182: 18396 | K182: 1.821048054 | L182: 18731 | M182: 1.788478992 | N182: 19066 | O182: 1.757054442 | P182: 19401 | Q182: 1.721560744 | R182: 19735 | S182: 1.682290347 | T182: 20067 | U182: 1.654457567 | V182: 20399 | W182: 1.607921957 | X182: 20727 | Y182: 1.572827713 | Z182: 21053 | AA182: 1.534223151 | AB182: 21376 | AC182: 1.501684132 | AD182: 21697 | AE182: 1.465640411 | AF182: 22015 | AG182: 1.430842607 | AH182: 22330
A183: 1215 | B183: San Marcos | C183: Malacatán | D183: 101444 | E183: 1.31008241 | F183: 102773 | G183: 1.312601559 | H183: 104122 | I183: 1.30039761 | J183: 105476 | K183: 1.230611703 | L183: 106774 | M183: 1.200666829 | N183: 108056 | O183: 1.167912934 | P183: 109318 | Q183: 1.134305421 | R183: 110558 | S183: 1.098066173 | T183: 111772 | U183: 1.059299288 | V183: 112956 | W183: 1.021636744 | X183: 114110 | Y183: 0.9841381123 | Z183: 115233 | AA183: 0.9476452058 | AB183: 116325 | AC183: 0.9103803997 | AD183: 117384 | AE183: 0.8757581953 | AF183: 118412 | AG183: 0.8436644935 | AH183: 119411
A184: 1216 | B184: San Marcos | C184: Catarina | D184: 29726 | E184: =+(((F184/D184)^(1/1))-1)*100 -> 1.574379331 | F184: 30194 | G184: =+(((H184/F184)^(1/1))-1)*100 -> 1.579784063 | H184: 30671 | I184: =+(((J184/H184)^(1/1))-1)*100 -> 1.564996251 | J184: 31151 | K184: =+(((L184/J184)^(1/1))-1)*100 -> 1.499149305 | L184: 31618 | M184: =+(((N184/L184)^(1/1))-1)*100 -> 1.467518502 | N184: 32082 | O184: =+(((P184/N184)^(1/1))-1)*100 -> 1.433825821 | P184: 32542 | Q184: =+(((R184/P184)^(1/1))-1)*100 -> 1.401266056 | R184: 32998 | S184: =+(((T184/R184)^(1/1))-1)*100 -> 1.363719013 | T184: 33448 | U184: =+(((V184/T184)^(1/1))-1)*100 -> 1.324443913 | V184: 33891 | W184: =+(((X184/V184)^(1/1))-1)*100 -> 1.289427872 | X184: 34328 | Y184: =+(((Z184/X184)^(1/1))-1)*100 -> 1.249708693 | Z184: 34757 | AA184: =+(((AB184/Z184)^(1/1))-1)*100 -> 1.211266795 | AB184: 35178 | AC184: =+(((AD184/AB184)^(1/1))-1)*100 -> 1.179714594 | AD184: 35593 | AE184: =+(((AF184/AD184)^(1/1))-1)*100 -> 1.143483269 | AF184: 36000 | AG184: =+(((AH184/AF184)^(1/1))-1)*100 -> 1.108333333 | AH184: 36399
A185: 1217 | B185: San Marcos | C185: Ayutla | D185: 39796 | E185: 3.060609106 | F185: 41014 | G185: 2.862437217 | H185: 42188 | I185: 2.673746089 | J185: 43316 | K185: 2.456367162 | L185: 44380 | M185: 2.300585849 | N185: 45401 | O185: 2.162947953 | P185: 46383 | Q185: 2.037384387 | R185: 47328 | S185: 1.924864773 | T185: 48239 | U185: 1.822177077 | V185: 49118 | W185: 1.730526487 | X185: 49968 | Y185: 1.647054115 | Z185: 50791 | AA185: 1.571144494 | AB185: 51589 | AC185: 1.504196631 | AD185: 52365 | AE185: 1.439893058 | AF185: 53119 | AG185: 1.387450818 | AH185: 53856
A186: 1218 | B186: San Marcos | C186: Ocós | D186: 11340 | E186: 2.46031746 | F186: 11619 | G186: 2.220500904 | H186: 11877 | I186: 2.045971205 | J186: 12120 | K186: 1.864686469 | L186: 12346 | M186: 1.76575409 | N186: 12564 | O186: 1.687360713 | P186: 12776 | Q186: 1.620225423 | R186: 12983 | S186: 1.555880767 | T186: 13185 | U186: 1.516875237 | V186: 13385 | W186: 1.464325738 | X186: 13581 | Y186: 1.413739784 | Z186: 13773 | AA186: 1.386771219 | AB186: 13964 | AC186: 1.339157834 | AD186: 14151 | AE186: 1.300261466 | AF186: 14335 | AG186: 1.269619812 | AH186: 14517
A187: 1219 | B187: San Marcos | C187: San Pablo | D187: 46260 | E187: 2.094682231 | F187: 47229 | G187: 2.100404413 | H187: 48221 | I187: 2.084154207 | J187: 49226 | K187: 2.017226669 | L187: 50219 | M187: 1.985304367 | N187: 51216 | O187: 1.954467354 | P187: 52217 | Q187: 1.918915296 | R187: 53219 | S187: 1.882786223 | T187: 54221 | U187: 1.844303868 | V187: 55221 | W187: 1.805472556 | X187: 56218 | Y187: 1.769895763 | Z187: 57213 | AA187: 1.730375964 | AB187: 58203 | AC187: 1.695788877 | AD187: 59190 | AE187: 1.660753506 | AF187: 60173 | AG187: 1.626975554 | AH187: 61152
A188: 1220 | B188: San Marcos | C188: El Quetzal | D188: 24325 | E188: 0.9578622816 | F188: 24558 | G188: 1.026142194 | H188: 24810 | I188: 1.072148327 | J188: 25076 | K188: 1.048811613 | L188: 25339 | M188: 1.073444098 | N188: 25611 | O188: 1.081566514 | P188: 25888 | Q188: 1.085444994 | R188: 26169 | S188: 1.092896175 | T188: 26455 | U188: 1.088641089 | V188: 26743 | W188: 1.08065662 | X188: 27032 | Y188: 1.076501924 | Z188: 27323 | AA188: 1.061376862 | AB188: 27613 | AC188: 1.057472929 | AD188: 27905 | AE188: 1.03924028 | AF188: 28195 | AG188: 1.03209789 | AH188: 28486
A189: 1221 | B189: San Marcos | C189: La Reforma | D189: 21636 | E189: 1.599186541 | F189: 21982 | G189: 1.601310163 | H189: 22334 | I189: 1.589504791 | J189: 22689 | K189: 1.520560624 | L189: 23034 | M189: 1.489103065 | N189: 23377 | O189: 1.454421012 | P189: 23717 | Q189: 1.425138087 | R189: 24055 | S189: 1.388484723 | T189: 24389 | U189: 1.348968797 | V189: 24718 | W189: 1.314831297 | X189: 25043 | Y189: 1.269815917 | Z189: 25361 | AA189: 1.238121525 | AB189: 25675 | AC189: 1.199610516 | AD189: 25983 | AE189: 1.166147096 | AF189: 26286 | AG189: 1.13368333 | AH189: 26584
A190: 1222 | B190: San Marcos | C190: Pajapita | D190: 22079 | E190: 0.865075411 | F190: 22270 | G190: 0.866636731 | H190: 22463 | I190: 0.8502871389 | J190: 22654 | K190: 0.7857332038 | L190: 22832 | M190: 0.7577084793 | N190: 23005 | O190: 0.7215822647 | P190: 23171 | Q190: 0.6905183203 | R190: 23331 | S190: 0.6514937208 | T190: 23483 | U190: 0.6132095558 | V190: 23627 | W190: 0.5756126465 | X190: 23763 | Y190: 0.5428607499 | Z190: 23892 | AA190: 0.5022601708 | AB190: 24012 | AC190: 0.4664334499 | AD190: 24124 | AE190: 0.4311059526 | AF190: 24228 | AG190: 0.4003632161 | AH190: 24325
A191: 1223 | B191: San Marcos | C191: Ixchiguán | D191: 22707 | E191: 1.620645616 | F191: 23075 | G191: 1.625135428 | H191: 23450 | I191: 1.611940299 | J191: 23828 | K191: 1.544401544 | L191: 24196 | M191: 1.508513804 | N191: 24561 | O191: 1.486095843 | P191: 24926 | Q191: 1.444275054 | R191: 25286 | S191: 1.407893696 | T191: 25642 | U191: 1.372747836 | V191: 25994 | W191: 1.334923444 | X191: 26341 | Y191: 1.294559812 | Z191: 26682 | AA191: 1.263023761 | AB191: 27019 | AC191: 1.221362745 | AD191: 27349 | AE191: 1.188343267 | AF191: 27674 | AG191: 1.156320012 | AH191: 27994
A192: 1224 | B192: San Marcos | C192: San José Ojetenam | D192: 21760 | E192: 0.6341911765 | F192: 21898 | G192: 0.716960453 | H192: 22055 | I192: 0.7798685105 | J192: 22227 | K192: 0.7738336258 | L192: 22399 | M192: 0.8080717889 | N192: 22580 | O192: 0.832595217 | P192: 22768 | Q192: 0.8564652143 | R192: 22963 | S192: 0.8753211688 | T192: 23164 | U192: 0.8849939561 | V192: 23369 | W192: 0.8900680389 | X192: 23577 | Y192: 0.8949399839 | Z192: 23788 | AA192: 0.8912056499 | AB192: 24000 | AC192: 0.9 | AD192: 24216 | AE192: 0.8961017509 | AF192: 24433 | AG192: 0.8881430852 | AH192: 24650
A193: 1225 | B193: San Marcos | C193: San Cristóbal Cucho | D193: 16798 | E193: 1.20252411 | F193: 17000 | G193: 1.205882353 | H193: 17205 | I193: 1.191514095 | J193: 17410 | K193: 1.120045951 | L193: 17605 | M193: 1.096279466 | N193: 17798 | O193: 1.061917069 | P193: 17987 | Q193: 1.028520598 | R193: 18172 | S193: 0.9905348888 | T193: 18352 | U193: 0.9481255449 | V193: 18526 | W193: 0.9176292778 | X193: 18696 | Y193: 0.8771929825 | Z193: 18860 | AA193: 0.8430540827 | AB193: 19019 | AC193: 0.8044586992 | AD193: 19172 | AE193: 0.7667431671 | AF193: 19319 | AG193: 0.7453801957 | AH193: 19463
A194: 1226 | B194: San Marcos | C194: Sipacapa | D194: 23637 | E194: 2.661082202 | F194: 24266 | G194: 2.579741202 | H194: 24892 | I194: 2.486742729 | J194: 25511 | K194: 2.344086864 | L194: 26109 | M194: 2.244436784 | N194: 26695 | O194: 2.153961416 | P194: 27270 | Q194: 2.064539787 | R194: 27833 | S194: 1.97607157 | T194: 28383 | U194: 1.895500828 | V194: 28921 | W194: 1.815289928 | X194: 29446 | Y194: 1.742172112 | Z194: 29959 | AA194: 1.672285457 | AB194: 30460 | AC194: 1.60538411 | AD194: 30949 | AE194: 1.544476397 | AF194: 31427 | AG194: 1.482801413 | AH194: 31893
A195: 1227 | B195: San Marcos | C195: Esquipulas Palo Gordo | D195: 12393 | E195: 2.45299766 | F195: 12697 | G195: 2.284004095 | H195: 12987 | I195: 2.125202125 | J195: 13263 | K195: 1.960340798 | L195: 13523 | M195: 1.863491829 | N195: 13775 | O195: 1.764065336 | P195: 14018 | Q195: 1.683549722 | R195: 14254 | S195: 1.620597727 | T195: 14485 | U195: 1.560234726 | V195: 14711 | W195: 1.509074842 | X195: 14933 | Y195: 1.43976428 | Z195: 15148 | AA195: 1.406126221 | AB195: 15361 | AC195: 1.354078511 | AD195: 15569 | AE195: 1.323142141 | AF195: 15775 | AG195: 1.280507132 | AH195: 15977
A196: 1228 | B196: San Marcos | C196: Río Blanco | D196: 5608 | E196: 1.426533524 | F196: 5688 | G196: 1.424050633 | H196: 5769 | I196: 1.421390189 | J196: 5851 | K196: 1.350196548 | L196: 5930 | M196: 1.3153457 | N196: 6008 | O196: 1.281624501 | P196: 6085 | Q196: 1.265406738 | R196: 6162 | S196: 1.217137293 | T196: 6237 | U196: 1.170434504 | V196: 6310 | W196: 1.125198098 | X196: 6381 | Y196: 1.128349788 | Z196: 6453 | AA196: 1.053773439 | AB196: 6521 | AC196: 1.042784849 | AD196: 6589 | AE196: 0.9713158294 | AF196: 6653 | AG196: 0.9770028559 | AH196: 6718
A197: 1229 | B197: San Marcos | C197: San Lorenzo | D197: 12359 | E197: 2.257464196 | F197: 12638 | G197: 2.2630163 | H197: 12924 | I197: 2.251624884 | J197: 13215 | K197: 2.179341657 | L197: 13503 | M197: 2.147670888 | N197: 13793 | O197: 2.117015878 | P197: 14085 | Q197: 2.080227192 | R197: 14378 | S197: 2.044790652 | T197: 14672 | U197: 2.010632497 | V197: 14967 | W197: 1.971002873 | X197: 15262 | Y197: 1.926353034 | Z197: 15556 | AA197: 1.896374389 | AB197: 15851 | AC197: 1.85477257 | AD197: 16145 | AE197: 1.827191081 | AF197: 16440 | AG197: 1.788321168 | AH197: 16734
A198: 1230 | B198: San Marcos | C198: La Blanca | D198: 30451 | E198: 2.466257266 | F198: 31202 | G198: 2.221011474 | H198: 31895 | I198: 2.047342844 | J198: 32548 | K198: 1.864937938 | L198: 33155 | M198: 1.764439753 | N198: 33740 | O198: 1.680497925 | P198: 34307 | Q198: 1.620660507 | R198: 34863 | S198: 1.563261911 | T198: 35408 | U198: 1.508133755 | V198: 35942 | W198: 1.466251182 | X198: 36469 | Y198: 1.420384436 | Z198: 36987 | AA198: 1.378862844 | AB198: 37497 | AC198: 1.338773769 | AD198: 37999 | AE198: 1.305297508 | AF198: 38495 | AG198: 1.270294843 | AH198: 38984
A199: 1301 | B199: Huehuetenango | C199: Huehuetenango | D199: 110707 | E199: 3.308733865 | F199: 114370 | G199: 3.21587829 | H199: 118048 | I199: 3.151260504 | J199: 121768 | K199: 3.068950792 | L199: 125505 | M199: 2.969602805 | N199: 129232 | O199: 2.872353597 | P199: 132944 | Q199: 2.779365748 | R199: 136639 | S199: 2.687373298 | T199: 140311 | U199: 2.596375195 | V199: 143954 | W199: 2.510524195 | X199: 147568 | Y199: 2.426677871 | Z199: 151149 | AA199: 2.348014211 | AB199: 154698 | AC199: 2.271522579 | AD199: 158212 | AE199: 2.19958031 | AF199: 161692 | AG199: 2.128738589 | AH199: 165134
A200: 1302 | B200: Huehuetenango | C200: Chiantla | D200: 88719 | E200: 0.5038379603 | F200: 89166 | G200: 0.6134625306 | H200: 89713 | I200: 0.73902333 | J200: 90376 | K200: 0.8365052669 | L200: 91132 | M200: 0.9019883246 | N200: 91954 | O200: 0.9635252409 | P200: 92840 | Q200: 1.012494614 | R200: 93780 | S200: 1.052463212 | T200: 94767 | U200: 1.085821014 | V200: 95796 | W200: 1.114869097 | X200: 96864 | Y200: 1.136645193 | Z200: 97965 | AA200: 1.153473179 | AB200: 99095 | AC200: 1.166557344 | AD200: 100251 | AE200: 1.176048119 | AF200: 101430 | AG200: 1.183081928 | AH200: 102630
... 142 more rows

Sheet TC (hidden)
A1: Codigo Municipio | B1: Departamento | C1: Municipio | D1: Abastecimiento de agua | E1: 2015 | F1: TC 2016 | G1: 2016 | H1: TC 2017 | I1: 2017 | J1: TC 2018 | K1: 2018 | L1: TC 2019 | M1: 2019 | N1: TC 2020 | O1: 2020 | P1: TC 2021 | Q1: 2021 | R1: TC 2022 | S1: 2022 | T1: TC 2023 | U1: 2023 | V1: TC 2024 | W1: 2024 | X1: TC 2025 | Y1: 2025 | Z1: TC 2026 | AA1: 2026 | AB1: TC 2027 | AC1: 2027 | AD1: TC 2028 | AE1: 2028 | AF1: TC 2029 | AG1: 2029 | AH1: TC 2030 | AI1: 2030
A2: 101 | B2: Guatemala | C2: Guatemala | D2: 5.104644177 | E2: 1142188 | F2: 1.019271784 | G2: 1153830 | H2: 0.9775270187 | I2: 1165109 | J2: 0.9121893316 | K2: 1175737 | L2: 0.8706028644 | M2: 1185973 | N2: 0.822447054 | O2: 1195727 | P2: 0.7725007464 | Q2: 1204964 | R2: 0.7209344014 | S2: 1213651 | T2: 0.6664189293 | U2: 1221739 | V2: 0.6119146561 | W2: 1229215 | X2: 0.5558832263 | Y2: 1236048 | Z2: 0.4992524562 | AA2: 1242219 | AB2: 0.4414680503 | AC2: 1247703 | AD2: 0.3847069375 | AE2: 1252503 | AF2: 0.3266259642 | AG2: 1256594 | AH2: 0.2704930948 | AI2: 1259993
A3: 102 | B3: Guatemala | C3: Santa Catarina Pinula | D3: 10.15749601 | E3: 84215 | F3: 0.6150923232 | G3: 84733 | H3: 0.5912690451 | I3: 85234 | J3: 0.5455569374 | K3: 85699 | L3: 0.5239267669 | M3: 86148 | N3: 0.495658634 | O3: 86575 | P3: 0.4678024834 | Q3: 86980 | R3: 0.439181421 | S3: 87362 | T3: 0.4063551659 | U3: 87717 | V3: 0.3762098567 | W3: 88047 | X3: 0.3441343828 | Y3: 88350 | Z3: 0.3146576118 | AA3: 88628 | AB3: 0.2820778986 | AC3: 88878 | AD3: 0.2531560116 | AE3: 89103 | AF3: 0.2233370369 | AG3: 89302 | AH3: 0.1970840519 | AI3: 89478
A4: 103 | B4: Guatemala | C4: San José Pinula | D4: 13.57099143 | E4: 84770 | F4: 0.8894656128 | G4: 85524 | H4: 0.8664234601 | I4: 86265 | J4: 0.8218860488 | K4: 86974 | L4: 0.7979396141 | M4: 87668 | N4: 0.772231601 | O4: 88345 | P4: 0.7425434377 | Q4: 89001 | R4: 0.7134751295 | S4: 89636 | T4: 0.6816457673 | U4: 90247 | V4: 0.6515452037 | W4: 90835 | X4: 0.6209060384 | Y4: 91399 | Z4: 0.5897219882 | AA4: 91938 | AB4: 0.5579847288 | AC4: 92451 | AD4: 0.528928838 | AE4: 92940 | AF4: 0.4981708629 | AG4: 93403 | AH4: 0.4710769461 | AI4: 93843
A5: 104 | B5: Guatemala | C5: San José del Golfo | D5: 2.090956613 | E5: 8078 | F5: 0.7551374103 | G5: 8139 | H5: 0.7126182578 | I5: 8197 | J5: 0.683176772 | K5: 8253 | L5: 0.6543075245 | M5: 8307 | N5: 0.6139400506 | O5: 8358 | P5: 0.6101938263 | Q5: 8409 | R5: 0.5589249614 | S5: 8456 | T5: 0.5439924314 | U5: 8502 | V5: 0.5057633498 | W5: 8545 | X5: 0.4681100059 | Y5: 8585 | Z5: 0.4426324985 | AA5: 8623 | AB5: 0.4174881132 | AC5: 8659 | AD5: 0.3811063633 | AE5: 8692 | AF5: 0.3566497929 | AG5: 8723 | AH5: 0.3324544308 | AI5: 8752
A6: 105 | B6: Guatemala | C6: Palencia | D6: 13.33065304 | E6: 72175 | F6: 0.6082438517 | G6: 72614 | H6: 0.5852865839 | I6: 73039 | J6: 0.538068703 | K6: 73432 | L6: 0.518847369 | M6: 73813 | N6: 0.4904285153 | O6: 74175 | P6: 0.4610717897 | Q6: 74517 | R6: 0.4321161614 | S6: 74839 | T6: 0.4008605139 | U6: 75139 | V6: 0.3699809686 | W6: 75417 | X6: 0.3394460135 | Y6: 75673 | Z6: 0.3065822684 | AA6: 75905 | AB6: 0.2779790528 | AC6: 76116 | AD6: 0.2456776499 | AE6: 76303 | AF6: 0.2175537004 | AG6: 76469 | AH6: 0.1909270423 | AI6: 76615
A7: 106 | B7: Guatemala | C7: Chinautla | D7: 6.713680236 | E7: 116768 | F7: 0.9934228556 | G7: 117928 | H7: 0.9717793908 | I7: 119074 | J7: 0.9246351009 | K7: 120175 | L7: 0.9020178906 | M7: 121259 | N7: 0.87581128 | O7: 122321 | P7: 0.8461343514 | Q7: 123356 | R7: 0.8179577807 | S7: 124365 | T7: 0.7855908013 | U7: 125342 | V7: 0.7555328621 | W7: 126289 | X7: 0.7237368259 | Y7: 127203 | Z7: 0.6933798731 | AA7: 128085 | AB7: 0.661279619 | AC7: 128932 | AD7: 0.6328917569 | AE7: 129748 | AF7: 0.6019360607 | AG7: 130529 | AH7: 0.5753510714 | AI7: 131280
A8: 107 | B8: Guatemala | C8: San Pedro Ayampuc | D8: 16.74810566 | E8: 60608 | F8: 1.772043295 | G8: 61682 | H8: 1.736325022 | I8: 62753 | J8: 1.676413877 | K8: 63805 | L8: 1.644071781 | M8: 64854 | N8: 1.603601937 | O8: 65894 | P8: 1.566151698 | Q8: 66926 | R8: 1.524071362 | S8: 67946 | T8: 1.483531039 | U8: 68954 | V8: 1.441540737 | W8: 69948 | X8: 1.401040773 | Y8: 70928 | Z8: 1.361944507 | AA8: 71894 | AB8: 1.319998887 | AC8: 72843 | AD8: 1.282209684 | AE8: 73777 | AF8: 1.244290226 | AG8: 74695 | AH8: 1.210255037 | AI8: 75599
A9: 108 | B9: Guatemala | C9: Mixco | D9: 5.206487435 | E9: 446877 | F9: 2.211570522 | G9: 456760 | H9: 2.1869253 | I9: 466749 | J9: 2.139693925 | K9: 476736 | L9: 2.116685126 | M9: 486827 | N9: 2.088010731 | O9: 496992 | P9: 2.057980813 | Q9: 507220 | R9: 2.027719727 | S9: 517505 | T9: 1.994763336 | U9: 527828 | V9: 1.962950052 | W9: 538189 | X9: 1.930362754 | Y9: 548578 | Z9: 1.897815807 | AA9: 558989 | AB9: 1.86551077 | AC9: 569417 | AD9: 1.834683545 | AE9: 579864 | AF9: 1.803698798 | AG9: 590323 | AH9: 1.775299285 | AI9: 600803
A10: 109 | B10: Guatemala | C10: San Pedro Sacatepéquez | D10: 18.74830178 | E10: 50756 | F10: 1.637244858 | G10: 51587 | H10: 1.616686374 | I10: 52421 | J10: 1.571889128 | K10: 53245 | L10: 1.551319373 | M10: 54071 | N10: 1.527621091 | O10: 54897 | P10: 1.504635955 | Q10: 55723 | R10: 1.475153886 | S10: 56545 | T10: 1.44486692 | U10: 57362 | V10: 1.417314599 | W10: 58175 | X10: 1.388912763 | Y10: 58983 | Z10: 1.36140922 | AA10: 59786 | AB10: 1.331415382 | AC10: 60582 | AD10: 1.30566835 | AE10: 61373 | AF10: 1.277434703 | AG10: 62157 | AH10: 1.254886819 | AI10: 62937
A11: 110 | B11: Guatemala | C11: San Juan Sacatepéquez | D11: 26.62277611 | E11: 261052 | F11: 1.341112116 | G11: 264553 | H11: 1.317694375 | I11: 268039 | J11: 1.271829846 | K11: 271448 | L11: 1.249963161 | M11: 274841 | N11: 1.222161177 | O11: 278200 | P11: 1.193386053 | Q11: 281520 | R11: 1.164393294 | S11: 284798 | T11: 1.132732674 | U11: 288024 | V11: 1.102338694 | W11: 291199 | X11: 1.070402027 | Y11: 294316 | Z11: 1.039698827 | AA11: 297376 | AB11: 1.008151297 | AC11: 300374 | AD11: 0.9787797879 | AE11: 303314 | AF11: 0.9491813764 | AG11: 306193 | AH11: 0.9219675172 | AI11: 309016
A12: 111 | B12: Guatemala | C12: San Raymundo | D12: 8.011323425 | E12: 37606 | F12: 0.5717172792 | G12: 37821 | H12: 0.5473149837 | I12: 38028 | J12: 0.4996318502 | K12: 38218 | L12: 0.478831964 | M12: 38401 | N12: 0.4531132002 | O12: 38575 | P12: 0.4251458198 | Q12: 38739 | R12: 0.3923694468 | S12: 38891 | T12: 0.3651230362 | U12: 39033 | V12: 0.3304895857 | W12: 39162 | X12: 0.3038659925 | Y12: 39281 | Z12: 0.2698505639 | AA12: 39387 | AB12: 0.238657425 | AC12: 39481 | AD12: 0.2102277045 | AE12: 39564 | AF12: 0.1769285209 | AG12: 39634 | AH12: 0.1539082606 | AI12: 39695
A13: 112 | B13: Guatemala | C13: Chuarrancho | D13: 6.473724296 | E13: 16123 | F13: 0.279104385 | G13: 16168 | H13: 0.5752102919 | I13: 16261 | J13: 0.7564110448 | K13: 16384 | L13: 0.9094238281 | M13: 16533 | N13: 0.991955483 | O13: 16697 | P13: 1.048092472 | Q13: 16872 | R13: 1.096491228 | S13: 17057 | T13: 1.102186785 | U13: 17245 | V13: 1.107567411 | W13: 17436 | X13: 1.101169993 | Y13: 17628 | Z13: 1.08917631 | AA13: 17820 | AB13: 1.071829405 | AC13: 18011 | AD13: 1.049358725 | AE13: 18200 | AF13: 1.032967033 | AG13: 18388 | AH13: 1.006090929 | AI13: 18573
A14: 113 | B14: Guatemala | C14: Fraijanes | D14: 9.42343004 | E14: 56956 | F14: 2.215745488 | G14: 58218 | H14: 1.877426226 | I14: 59311 | J14: 1.647249246 | K14: 60288 | L14: 1.511080149 | M14: 61199 | N14: 1.418323829 | O14: 62067 | P14: 1.351765028 | Q14: 62906 | R14: 1.295583887 | S14: 63721 | T14: 1.252334395 | U14: 64519 | V14: 1.213595995 | W14: 65302 | X14: 1.17607424 | Y14: 66070 | Z14: 1.14272741 | AA14: 66825 | AB14: 1.110362888 | AC14: 67567 | AD14: 1.078929063 | AE14: 68296 | AF14: 1.04837765 | AG14: 69012 | AH14: 1.021561468 | AI14: 69717
A15: 114 | B15: Guatemala | C15: Amatitlán | D15: 5.660638335 | E15: 138168 | F15: 1.489491054 | G15: 140226 | H15: 1.467630825 | I15: 142284 | J15: 1.420398639 | K15: 144305 | L15: 1.39911992 | M15: 146324 | N15: 1.370930264 | O15: 148330 | P15: 1.342951527 | Q15: 150322 | R15: 1.313181038 | S15: 152296 | T15: 1.281714556 | U15: 154248 | V15: 1.250583476 | W15: 156177 | X15: 1.219769876 | Y15: 158082 | Z15: 1.188623626 | AA15: 159961 | AB15: 1.156531905 | AC15: 161811 | AD15: 1.127859045 | AE15: 163636 | AF15: 1.097557995 | AG15: 165432 | AH15: 1.07053049 | AI15: 167203
A16: 115 | B16: Guatemala | C16: Villa Nueva | D16: 4.976496568 | E16: 425783 | F16: 1.899794027 | G16: 433872 | H16: 1.887423019 | I16: 442061 | J16: 1.852459276 | K16: 450250 | L16: 1.842309828 | M16: 458545 | N16: 1.826865411 | O16: 466922 | P16: 1.809938277 | Q16: 475373 | R16: 1.793118246 | S16: 483897 | T16: 1.773724574 | U16: 492480 | V16: 1.755807342 | W16: 501127 | X16: 1.737084611 | Y16: 509832 | Z16: 1.718997631 | AA16: 518596 | AB16: 1.70074586 | AC16: 527416 | AD16: 1.684628453 | AE16: 536301 | AF16: 1.668279567 | AG16: 545248 | AH16: 1.655210106 | AI16: 554273
A17: 116 | B17: Guatemala | C17: Villa Canales | D17: 11.43560686 | E17: 160276 | F17: 0.7449649355 | G17: 161470 | H17: 0.7221155633 | I17: 162636 | J17: 0.6763570181 | K17: 163736 | L17: 0.6541017247 | M17: 164807 | N17: 0.6261869945 | O17: 165839 | P17: 0.5981705148 | Q17: 166831 | R17: 0.5682397156 | S17: 167779 | T17: 0.5370159555 | U17: 168680 | V17: 0.5062840882 | W17: 169534 | X17: 0.4742411552 | Y17: 170338 | Z17: 0.4438234569 | AA17: 171094 | AB17: 0.4120541924 | AC17: 171799 | AD17: 0.3824236462 | AE17: 172456 | AF17: 0.3531335529 | AG17: 173065 | AH17: 0.3258891168 | AI17: 173629
A18: 117 | B18: Guatemala | C18: San Miguel Petapa | D18: 3.615469229 | E18: 131101 | F18: 2.607150212 | G18: 134519 | H18: 2.358031207 | I18: 137691 | J18: 2.116332948 | K18: 140605 | L18: 1.931652502 | M18: 143321 | N18: 1.772245519 | O18: 145861 | P18: 1.637860703 | Q18: 148250 | R18: 1.526475548 | S18: 150513 | T18: 1.430441224 | U18: 152666 | V18: 1.351315945 | W18: 154729 | X18: 1.282888146 | Y18: 156714 | Z18: 1.223247444 | AA18: 158631 | AB18: 1.171271693 | AC18: 160489 | AD18: 1.125310769 | AE18: 162295 | AF18: 1.083212668 | AG18: 164053 | AH18: 1.047222544 | AI18: 165771
A19: 201 | B19: El Progreso | C19: Guastatoya | D19: 8.89862517 | E19: 25803 | F19: 1.0347634 | G19: 26070 | H19: 0.9474491753 | I19: 26317 | J19: 0.9005585743 | K19: 26554 | L19: 0.8285004143 | M19: 26774 | N19: 0.8030178531 | O19: 26989 | P19: 0.7855052058 | Q19: 27201 | R19: 0.7573250983 | S19: 27407 | T19: 0.7333892801 | U19: 27608 | V19: 0.7063170096 | W19: 27803 | X19: 0.6797827573 | Y19: 27992 | Z19: 0.6466133181 | AA19: 28173 | AB19: 0.6282611011 | AC19: 28350 | AD19: 0.5925925926 | AE19: 28518 | AF19: 0.5680622765 | AG19: 28680 | AH19: 0.5439330544 | AI19: 28836
A20: 202 | B20: El Progreso | C20: Morazán | D20: 6.255806751 | E20: 12442 | F20: 0.3214917216 | G20: 12482 | H20: 0.2804037814 | I20: 12517 | J20: 0.2636414476 | K20: 12550 | L20: 0.2310756972 | M20: 12579 | N20: 0.2305429684 | O20: 12608 | P20: 0.2458756345 | Q20: 12639 | R20: 0.2610966057 | S20: 12672 | T20: 0.2446338384 | U20: 12703 | V20: 0.2597811541 | W20: 12736 | X20: 0.2512562814 | Y20: 12768 | Z20: 0.2506265664 | AA20: 12800 | AB20: 0.2421875 | AC20: 12831 | AD20: 0.2338087444 | AE20: 12861 | AF20: 0.2254879092 | AG20: 12890 | AH20: 0.2172226532 | AI20: 12918
A21: 203 | B21: El Progreso | C21: San Agustín Acasaguastlán | D21: 9.328040828 | E21: 52014 | F21: 1.074710655 | G21: 52573 | H21: 0.9986114545 | I21: 53098 | J21: 0.9548382237 | K21: 53605 | L21: 0.9010353512 | M21: 54088 | N21: 0.8781984913 | O21: 54563 | P21: 0.8723860492 | Q21: 55039 | R21: 0.85212304 | S21: 55508 | T21: 0.8341140016 | U21: 55971 | V21: 0.816494256 | W21: 56428 | X21: 0.7974764301 | Y21: 56878 | Z21: 0.7753437181 | AA21: 57319 | AB21: 0.7606552801 | AC21: 57755 | AD21: 0.730672669 | AE21: 58177 | AF21: 0.7133403235 | AG21: 58592 | AH21: 0.6963407974 | AI21: 59000
A22: 204 | B22: El Progreso | C22: San Cristóbal Acasaguastlán | D22: 2.962962963 | E22: 7692 | F22: 0.5720228809 | G22: 7736 | H22: 0.5429162358 | I22: 7778 | J22: 0.5399845719 | K22: 7820 | L22: 0.4987212276 | M22: 7859 | N22: 0.5089706069 | O22: 7899 | P22: 0.5063932143 | Q22: 7939 | R22: 0.5038417937 | S22: 7979 | T22: 0.4887830555 | U22: 8018 | V22: 0.4614617111 | W22: 8055 | X22: 0.4593420236 | Y22: 8092 | Z22: 0.4325259516 | AA22: 8127 | AB22: 0.4306632214 | AC22: 8162 | AD22: 0.4043126685 | AE22: 8195 | AF22: 0.3782794387 | AG22: 8226 | AH22: 0.3646973012 | AI22: 8256
A23: 205 | B23: El Progreso | C23: El Jícaro | D23: 4.484953704 | E23: 13476 | F23: 0.07420599584 | G23: 13486 | H23: 0.04449058283 | I23: 13492 | J23: 0.03705899792 | K23: 13497 | L23: 0.01481810773 | M23: 13499 | N23: 0.02222386843 | O23: 13502 | P23: 0.05184417123 | Q23: 13509 | R23: 0.06662225183 | S23: 13518 | T23: 0.06657789614 | U23: 13527 | V23: 0.08871146596 | W23: 13539 | X23: 0.08863283847 | Y23: 13551 | Z23: 0.09593387942 | AA23: 13564 | AB23: 0.08846947803 | AC23: 13576 | AD23: 0.09575721862 | AE23: 13589 | AF23: 0.08830671867 | AG23: 13601 | AH23: 0.09558120726 | AI23: 13614
A24: 206 | B24: El Progreso | C24: Sansare | D24: 16.79554593 | E24: 13107 | F24: 0.7476920729 | G24: 13205 | H24: 0.666414237 | I24: 13293 | J24: 0.6319115324 | K24: 13377 | L24: 0.5756148613 | M24: 13454 | N24: 0.557455032 | O24: 13529 | P24: 0.5395816394 | Q24: 13602 | R24: 0.5293339215 | S24: 13674 | T24: 0.5119204329 | U24: 13744 | V24: 0.4947613504 | W24: 13812 | X24: 0.4778453519 | Y24: 13878 | Z24: 0.4467502522 | AA24: 13940 | AB24: 0.4447632712 | AC24: 14002 | AD24: 0.3999428653 | AE24: 14058 | AF24: 0.3983496941 | AG24: 14114 | AH24: 0.3755136744 | AI24: 14167
A25: 207 | B25: El Progreso | C25: Sanarate | D25: 8.46997284 | E25: 40710 | F25: 0.7049864898 | G25: 40997 | H25: 0.6512671659 | I25: 41264 | J25: 0.6155486623 | K25: 41518 | L25: 0.5612023701 | M25: 41751 | N25: 0.5413043999 | O25: 41977 | P25: 0.5383900708 | Q25: 42203 | R25: 0.5189204559 | S25: 42422 | T25: 0.4997407006 | U25: 42634 | V25: 0.4831824366 | W25: 42840 | X25: 0.464519141 | Y25: 43039 | Z25: 0.4414600711 | AA25: 43229 | AB25: 0.4279534572 | AC25: 43414 | AD25: 0.4030957756 | AE25: 43589 | AF25: 0.3808300259 | AG25: 43755 | AH25: 0.3656724946 | AI25: 43915
A26: 208 | B26: El Progreso | C26: San Antonio La Paz | D26: 14.32370821 | E26: 20363 | F26: 1.929971026 | G26: 20756 | H26: 1.710348815 | I26: 21111 | J26: 1.539481787 | K26: 21436 | L26: 1.371524538 | M26: 21730 | N26: 1.251725725 | O26: 22002 | P26: 1.154440505 | Q26: 22256 | R26: 1.06488138 | S26: 22493 | T26: 0.9736362424 | U26: 22712 | V26: 0.8982035928 | W26: 22916 | X26: 0.8247512655 | Y26: 23105 | Z26: 0.7617398831 | AA26: 23281 | AB26: 0.7044370946 | AC26: 23445 | AD26: 0.6397952655 | AE26: 23595 | AF26: 0.5933460479 | AG26: 23735 | AH26: 0.5477143459 | AI26: 23865
A27: 301 | B27: Sacatepéquez | C27: Antigua Guatemala | D27: 6.028209505 | E27: 55089 | F27: 0.9185136779 | G27: 55595 | H27: 1.12600054 | I27: 56221 | J27: 1.204176375 | K27: 56898 | L27: 1.237301838 | M27: 57602 | N27: 1.277733412 | O27: 58338 | P27: 1.290753883 | Q27: 59091 | R27: 1.284459562 | S27: 59850 | T27: 1.266499582 | U27: 60608 | V27: 1.240760296 | W27: 61360 | X27: 1.212516297 | Y27: 62104 | Z27: 1.183498647 | AA27: 62839 | AB27: 1.145785261 | AC27: 63559 | AD27: 1.113925644 | AE27: 64267 | AF27: 1.081425926 | AG27: 64962 | AH27: 1.04522644 | AI27: 65641
A28: 302 | B28: Sacatepéquez | C28: Jocotenango | D28: 0.7144200038 | E28: 21351 | F28: 1.859397686 | G28: 21748 | H28: 1.742688983 | I28: 22127 | J28: 1.613413477 | K28: 22484 | L28: 1.512186444 | M28: 22824 | N28: 1.472134595 | O28: 23160 | P28: 1.433506045 | Q28: 23492 | R28: 1.39621999 | S28: 23820 | T28: 1.360201511 | U28: 24144 | V28: 1.321239231 | W28: 24463 | X28: 1.29174672 | Y28: 24779 | Z28: 1.247023689 | AA28: 25088 | AB28: 1.215720663 | AC28: 25393 | AD28: 1.177489859 | AE28: 25692 | AF28: 1.144325082 | AG28: 25986 | AH28: 1.108289079 | AI28: 26274
A29: 303 | B29: Sacatepéquez | C29: Pastores | D29: 1.570076195 | E29: 17737 | F29: 2.289000395 | G29: 18143 | H29: 1.962189274 | I29: 18499 | J29: 1.719011838 | K29: 18817 | L29: 1.551788277 | M29: 19109 | N29: 1.465278141 | O29: 19389 | P29: 1.40285729 | Q29: 19661 | R29: 1.358018412 | S29: 19928 | T29: 1.314733039 | U29: 20190 | V29: 1.263001486 | W29: 20445 | X29: 1.22768403 | Y29: 20696 | Z29: 1.193467337 | AA29: 20943 | AB29: 1.150742492 | AC29: 21184 | AD29: 1.123489426 | AE29: 21422 | AF29: 1.078330688 | AG29: 21653 | AH29: 1.048353577 | AI29: 21880
A30: 304 | B30: Sacatepéquez | C30: Sumpango | D30: 5.334472656 | E30: 40889 | F30: 2.272004696 | G30: 41818 | H30: 2.147400641 | I30: 42716 | J30: 2.017979212 | K30: 43578 | L30: 1.920693928 | M30: 44415 | N30: 1.877744005 | O30: 45249 | P30: 1.840924661 | Q30: 46082 | R30: 1.801137103 | S30: 46912 | T30: 1.765006821 | U30: 47740 | V30: 1.72601592 | W30: 48564 | X30: 1.692611811 | Y30: 49386 | Z30: 1.656339853 | AA30: 50204 | AB30: 1.615409131 | AC30: 51015 | AD30: 1.579927472 | AE30: 51821 | AF30: 1.545705409 | AG30: 52622 | AH30: 1.510774961 | AI30: 53417
A31: 305 | B31: Sacatepéquez | C31: Santo Domingo Xenacoj | D31: 1.58387329 | E31: 12429 | F31: 2.807949151 | G31: 12778 | H31: 2.692127093 | I31: 13122 | J31: 2.552964487 | K31: 13457 | L31: 2.452255332 | M31: 13787 | N31: 2.422571988 | O31: 14121 | P31: 2.365271581 | Q31: 14455 | R31: 2.338291249 | S31: 14793 | T31: 2.305144325 | U31: 15134 | V31: 2.259812343 | W31: 15476 | X31: 2.222796588 | Y31: 15820 | Z31: 2.18710493 | AA31: 16166 | AB31: 2.152666089 | AC31: 16514 | AD31: 2.113358363 | AE31: 16863 | AF31: 2.081480164 | AG31: 17214 | AH31: 2.044847217 | AI31: 17566
A32: 306 | B32: Sacatepéquez | C32: Santiago Sacatepéquez | D32: 5.377487468 | E32: 33338 | F32: 2.000719899 | G32: 34005 | H32: 1.879135421 | I32: 34644 | J32: 1.749220644 | K32: 35250 | L32: 1.65106383 | M32: 35832 | N32: 1.610292476 | O32: 36409 | P32: 1.573786701 | Q32: 36982 | R32: 1.533178303 | S32: 37549 | T32: 1.496710964 | U32: 38111 | V32: 1.458896382 | W32: 38667 | X32: 1.424987716 | Y32: 39218 | Z32: 1.38966801 | AA32: 39763 | AB32: 1.347986822 | AC32: 40299 | AD32: 1.317650562 | AE32: 40830 | AF32: 1.278471712 | AG32: 41352 | AH32: 1.245405301 | AI32: 41867
A33: 307 | B33: Sacatepéquez | C33: San Bartolomé Milpas Altas | D33: 3.806416531 | E33: 7751 | F33: 2.451296607 | G33: 7941 | H33: 2.103009697 | I33: 8108 | J33: 1.825357671 | K33: 8256 | L33: 1.635174419 | M33: 8391 | N33: 1.525443928 | O33: 8519 | P33: 1.443831436 | Q33: 8642 | R33: 1.388567461 | S33: 8762 | T33: 1.335311573 | U33: 8879 | V33: 1.28392837 | W33: 8993 | X33: 1.245413099 | Y33: 9105 | Z33: 1.197144426 | AA33: 9214 | AB33: 1.161276319 | AC33: 9321 | AD33: 1.115760112 | AE33: 9425 | AF33: 1.082228117 | AG33: 9527 | AH33: 1.049648368 | AI33: 9627
A34: 308 | B34: Sacatepéquez | C34: San Lucas Sacatepéquez | D34: 6.501600135 | E34: 26381 | F34: 1.739888556 | G34: 26840 | H34: 1.616989568 | I34: 27274 | J34: 1.492263694 | K34: 27681 | L34: 1.390845706 | M34: 28066 | N34: 1.35038837 | O34: 28445 | P34: 1.31481807 | Q34: 28819 | R34: 1.276935355 | S34: 29187 | T34: 1.240278206 | U34: 29549 | V34: 1.194625876 | W34: 29902 | X34: 1.16714601 | Y34: 30251 | Z34: 1.130541139 | AA34: 30593 | AB34: 1.095021737 | AC34: 30928 | AD34: 1.054061045 | AE34: 31254 | AF34: 1.027068535 | AG34: 31575 | AH34: 0.9881235154 | AI34: 31887
A35: 309 | B35: Sacatepéquez | C35: Santa Lucía Milpas Altas | D35: 4.426611442 | E35: 15182 | F35: 3.056250823 | G35: 15646 | H35: 2.697174997 | I35: 16068 | J35: 2.358725417 | K35: 16447 | L35: 2.097646987 | M35: 16792 | N35: 1.929490233 | O35: 17116 | P35: 1.787800888 | Q35: 17422 | R35: 1.664562048 | S35: 17712 | T35: 1.563911472 | U35: 17989 | V35: 1.467563511 | W35: 18253 | X35: 1.397030625 | Y35: 18508 | Z35: 1.323751891 | AA35: 18753 | AB35: 1.253132832 | AC35: 18988 | AD35: 1.206024858 | AE35: 19217 | AF35: 1.144819691 | AG35: 19437 | AH35: 1.100992952 | AI35: 19651
A36: 310 | B36: Sacatepéquez | C36: Magdalena Milpas Altas | D36: 5.167759352 | E36: 12102 | F36: 1.156833581 | G36: 12242 | H36: 1.021074988 | I36: 12367 | J36: 0.8975499313 | K36: 12478 | L36: 0.8014104824 | M36: 12578 | N36: 0.7632373986 | O36: 12674 | P36: 0.7258955342 | Q36: 12766 | R36: 0.6814977283 | S36: 12853 | T36: 0.6457636349 | U36: 12936 | V36: 0.6184291899 | W36: 13016 | X36: 0.5762138906 | Y36: 13091 | Z36: 0.5423573447 | AA36: 13162 | AB36: 0.5014435496 | AC36: 13228 | AD36: 0.4687027517 | AE36: 13290 | AF36: 0.4364183597 | AG36: 13348 | AH36: 0.3895714714 | AI36: 13400
A37: 311 | B37: Sacatepéquez | C37: Santa María de Jesús | D37: 15.06024096 | E37: 24780 | F37: 1.553672316 | G37: 25165 | H37: 1.430558315 | I37: 25525 | J37: 1.300685602 | K37: 25857 | L37: 1.202769076 | M37: 26168 | N37: 1.161724243 | O37: 26472 | P37: 1.121940163 | Q37: 26769 | R37: 1.090814001 | S37: 27061 | T37: 1.053176158 | U37: 27346 | V37: 1.009288379 | W37: 27622 | X37: 0.9774817175 | Y37: 27892 | Z37: 0.9393374444 | AA37: 28154 | AB37: 0.9057327556 | AC37: 28409 | AD37: 0.8694427822 | AE37: 28656 | AF37: 0.8340312674 | AG37: 28895 | AH37: 0.8029070773 | AI37: 29127
A38: 312 | B38: Sacatepéquez | C38: Ciudad Vieja | D38: 1.818861343 | E38: 35075 | F38: 3.062009979 | G38: 36149 | H38: 2.871448726 | I38: 37187 | J38: 2.672977116 | K38: 38181 | L38: 2.511720489 | M38: 39140 | N38: 2.409299949 | O38: 40083 | P38: 2.312701145 | Q38: 41010 | R38: 2.218970983 | S38: 41920 | T38: 2.135019084 | U38: 42815 | V38: 2.043676282 | W38: 43690 | X38: 1.963836118 | Y38: 44548 | Z38: 1.885606537 | AA38: 45388 | AB38: 1.802238477 | AC38: 46206 | AD38: 1.729212656 | AE38: 47005 | AF38: 1.657270503 | AG38: 47784 | AH38: 1.586305039 | AI38: 48542
A39: 313 | B39: Sacatepéquez | C39: San Miguel Dueñas | D39: 3.153003651 | E39: 13491 | F39: 2.727744422 | G39: 13859 | H39: 2.590374486 | I39: 14218 | J39: 2.41946828 | K39: 14562 | L39: 2.307375361 | M39: 14898 | N39: 2.235199356 | O39: 15231 | P39: 2.173199396 | Q39: 15562 | R39: 2.120550058 | S39: 15892 | T39: 2.051346589 | U39: 16218 | V39: 1.991614256 | W39: 16541 | X39: 1.940632368 | Y39: 16862 | Z39: 1.879966789 | AA39: 17179 | AB39: 1.816170906 | AC39: 17491 | AD39: 1.766622835 | AE39: 17800 | AF39: 1.707865169 | AG39: 18104 | AH39: 1.657092355 | AI39: 18404
A40: 314 | B40: Sacatepéquez | C40: San Juan Alotenango | D40: 11.32986627 | E40: 25878 | F40: 1.657778808 | G40: 26307 | H40: 1.531911658 | I40: 26710 | J40: 1.407712467 | K40: 27086 | L40: 1.303256295 | M40: 27439 | N40: 1.268267794 | O40: 27787 | P40: 1.230791377 | Q40: 28129 | R40: 1.190941733 | S40: 28464 | T40: 1.152332771 | U40: 28792 | V40: 1.118366213 | W40: 29114 | X40: 1.081953699 | Y40: 29429 | Z40: 1.0465867 | AA40: 29737 | AB40: 1.008844201 | AC40: 30037 | AD40: 0.9721343676 | AE40: 30329 | AF40: 0.9396946817 | AG40: 30614 | AH40: 0.9015483112 | AI40: 30890
A41: 315 | B41: Sacatepéquez | C41: San Antonio Aguas Calientes | D41: 2.879581152 | E41: 11018 | F41: 2.677436921 | G41: 11313 | H41: 2.554583223 | I41: 11602 | J41: 2.421996208 | K41: 11883 | L41: 2.33106118 | M41: 12160 | N41: 2.286184211 | O41: 12438 | P41: 2.235086027 | Q41: 12716 | R41: 2.209814407 | S41: 12997 | T41: 2.169731476 | U41: 13279 | V41: 2.131184577 | W41: 13562 | X41: 2.094086418 | Y41: 13846 | Z41: 2.058356204 | AA41: 14131 | AB41: 2.016842403 | AC41: 14416 | AD41: 1.990843507 | AE41: 14703 | AF41: 1.951982589 | AG41: 14990 | AH41: 1.91460974 | AI41: 15277
A42: 316 | B42: Sacatepéquez | C42: Santa Catarina Barahona | D42: 4.761904762 | E42: 4022 | F42: 2.411735455 | G42: 4119 | H42: 2.282107308 | I42: 4213 | J42: 2.159981011 | K42: 4304 | L42: 2.044609665 | M42: 4392 | N42: 2.003642987 | O42: 4480 | P42: 1.986607143 | Q42: 4569 | R42: 1.9260232 | S42: 4657 | T42: 1.911101568 | U42: 4746 | V42: 1.854193005 | W42: 4834 | X42: 1.82043856 | Y42: 4922 | Z42: 1.787891101 | AA42: 5010 | AB42: 1.756487026 | AC42: 5098 | AD42: 1.706551589 | AE42: 5185 | AF42: 1.677917068 | AG42: 5272 | AH42: 1.650227618 | AI42: 5359
A43: 401 | B43: Chimaltenango | C43: Chimaltenango | D43: 17.94737093 | E43: 102730 | F43: 1.97897401 | G43: 104763 | H43: 1.956797724 | I43: 106813 | J43: 1.900517727 | K43: 108843 | L43: 1.813621455 | M43: 110817 | N43: 1.769584089 | O43: 112778 | P43: 1.72196705 | Q43: 114720 | R43: 1.675383543 | S43: 116642 | T43: 1.628058504 | U43: 118541 | V43: 1.578356855 | W43: 120412 | X43: 1.532239312 | Y43: 122257 | Z43: 1.485395519 | AA43: 124073 | AB43: 1.438669171 | AC43: 125858 | AD43: 1.394428642 | AE43: 127613 | AF43: 1.35252678 | AG43: 129339 | AH43: 1.309736429 | AI43: 131033
A44: 402 | B44: Chimaltenango | C44: San José Poaquil | D44: 6.998087954 | E44: 30322 | F44: 1.810566585 | G44: 30871 | H44: 1.771889476 | I44: 31418 | J44: 1.699662614 | K44: 31952 | L44: 1.596144216 | M44: 32462 | N44: 1.543342986 | O44: 32963 | P44: 1.489548888 | Q44: 33454 | R44: 1.428827644 | S44: 33932 | T44: 1.379229046 | U44: 34400 | V44: 1.322674419 | W44: 34855 | X44: 1.268110745 | Y44: 35297 | Z44: 1.218233844 | AA44: 35727 | AB44: 1.167184482 | AC44: 36144 | AD44: 1.120517928 | AE44: 36549 | AF44: 1.069796711 | AG44: 36940 | AH44: 1.031402274 | AI44: 37321
A45: 403 | B45: Chimaltenango | C45: San Martín Jilotepeque | D45: 14.71146031 | E45: 84520 | F45: 1.858731661 | G45: 86091 | H45: 1.819005471 | I45: 87657 | J45: 1.748862042 | K45: 89190 | L45: 1.647045633 | M45: 90659 | N45: 1.592781743 | O45: 92103 | P45: 1.535237723 | Q45: 93517 | R45: 1.479944823 | S45: 94901 | T45: 1.425696252 | U45: 96254 | V45: 1.368254826 | W45: 97571 | X45: 1.318014574 | Y45: 98857 | Z45: 1.266475819 | AA45: 100109 | AB45: 1.214676003 | AC45: 101325 | AD45: 1.166543301 | AE45: 102507 | AF45: 1.121874604 | AG45: 103657 | AH45: 1.076627724 | AI45: 104773
A46: 404 | B46: Chimaltenango | C46: San Juan Comalapa | D46: 12.78172894 | E46: 51449 | F46: 2.614239344 | G46: 52794 | H46: 2.574156154 | I46: 54153 | J46: 2.502169778 | K46: 55508 | L46: 2.401455646 | M46: 56841 | N46: 2.345138193 | O46: 58174 | P46: 2.287963695 | Q46: 59505 | R46: 2.233425763 | S46: 60834 | T46: 2.174770687 | U46: 62157 | V46: 2.122045787 | W46: 63476 | X46: 2.066922932 | Y46: 64788 | Z46: 2.015805396 | AA46: 66094 | AB46: 1.96386964 | AC46: 67392 | AD46: 1.9171415 | AE46: 68684 | AF46: 1.869431017 | AG46: 69968 | AH46: 1.82369083 | AI46: 71244
A47: 405 | B47: Chimaltenango | C47: Santa Apolonia | D47: 4.612159329 | E47: 21523 | F47: 1.607582586 | G47: 21869 | H47: 1.563857515 | I47: 22211 | J47: 1.503759398 | K47: 22545 | L47: 1.392770016 | M47: 22859 | N47: 1.34301588 | O47: 23166 | P47: 1.286367953 | Q47: 23464 | R47: 1.223150358 | S47: 23751 | T47: 1.178897731 | U47: 24031 | V47: 1.115226166 | W47: 24299 | X47: 1.070002881 | Y47: 24559 | Z47: 1.01388493 | AA47: 24808 | AB47: 0.9674298613 | AC47: 25048 | AD47: 0.9142446503 | AE47: 25277 | AF47: 0.8703564505 | AG47: 25497 | AH47: 0.827548339 | AI47: 25708
A48: 406 | B48: Chimaltenango | C48: Tecpán Guatemala | D48: 16.12030075 | E48: 98471 | F48: 2.157995755 | G48: 100596 | H48: 2.119368563 | I48: 102728 | J48: 2.047153648 | K48: 104831 | L48: 1.945989259 | M48: 106871 | N48: 1.892000636 | O48: 108893 | P48: 1.834828685 | Q48: 110891 | R48: 1.779224644 | S48: 112864 | T48: 1.724199036 | U48: 114810 | V48: 1.667973173 | W48: 116725 | X48: 1.615763547 | Y48: 118611 | Z48: 1.565622076 | AA48: 120468 | AB48: 1.512434837 | AC48: 122290 | AD48: 1.466186933 | AE48: 124083 | AF48: 1.420017247 | AG48: 125845 | AH48: 1.374706981 | AI48: 127575
A49: 407 | B49: Chimaltenango | C49: Patzún | D49: 25.38178849 | E49: 63573 | F49: 1.942648609 | G49: 64808 | H49: 1.900999877 | I49: 66040 | J49: 1.832222895 | K49: 67250 | L49: 1.730855019 | M49: 68414 | N49: 1.675095741 | O49: 69560 | P49: 1.617308798 | Q49: 70685 | R49: 1.563273679 | S49: 71790 | T49: 1.508566653 | U49: 72873 | V49: 1.453213124 | W49: 73932 | X49: 1.398582481 | Y49: 74966 | Z49: 1.349945309 | AA49: 75978 | AB49: 1.297744084 | AC49: 76964 | AD49: 1.249935035 | AE49: 77926 | AF49: 1.204989349 | AG49: 78865 | AH49: 1.160210486 | AI49: 79780
A50: 408 | B50: Chimaltenango | C50: San Miguel Pochuta | D50: 4.299947562 | E50: 10439 | F50: 0.9675256251 | G50: 10540 | H50: 1.05313093 | I50: 10651 | J50: 1.060933246 | K50: 10764 | L50: 1.059085842 | M50: 10878 | N50: 1.084758228 | O50: 10996 | P50: 1.091305929 | Q50: 11116 | R50: 1.106513134 | S50: 11239 | T50: 1.121096183 | U50: 11365 | V50: 1.10866696 | W50: 11491 | X50: 1.122617701 | Y50: 11620 | Z50: 1.101549053 | AA50: 11748 | AB50: 1.098059244 | AC50: 11877 | AD50: 1.086132862 | AE50: 12006 | AF50: 1.0661336 | AG50: 12134 | AH50: 1.054887094 | AI50: 12262
A51: 409 | B51: Chimaltenango | C51: Patzicía | D51: 41.52923538 | E51: 35017 | F51: 2.690121941 | G51: 35959 | H51: 2.516755193 | I51: 36864 | J51: 2.346462674 | K51: 37729 | L51: 2.168093509 | M51: 38547 | N51: 2.049446131 | O51: 39337 | P51: 1.949818237 | Q51: 40104 | R51: 1.855176541 | S51: 40848 | T51: 1.769976498 | U51: 41571 | V51: 1.698299295 | W51: 42277 | X51: 1.624997043 | Y51: 42964 | Z51: 1.561772647 | AA51: 43635 | AB51: 1.501088576 | AC51: 44290 | AD51: 1.442763604 | AE51: 44929 | AF51: 1.395535178 | AG51: 45556 | AH51: 1.343401528 | AI51: 46168
A52: 410 | B52: Chimaltenango | C52: Santa Cruz Balanyá | D52: 4.061416543 | E52: 9743 | F52: 1.909062917 | G52: 9929 | H52: 1.873300433 | I52: 10115 | J52: 1.809194266 | K52: 10298 | L52: 1.689648475 | M52: 10472 | N52: 1.66157372 | O52: 10646 | P52: 1.587450686 | Q52: 10815 | R52: 1.534905224 | S52: 10981 | T52: 1.484382115 | U52: 11144 | V52: 1.417803302 | W52: 11302 | X52: 1.371438683 | Y52: 11457 | Z52: 1.317971546 | AA52: 11608 | AB52: 1.274982771 | AC52: 11756 | AD52: 1.224906431 | AE52: 11900 | AF52: 1.176470588 | AG52: 12040 | AH52: 1.137873754 | AI52: 12177
A53: 411 | B53: Chimaltenango | C53: Acatenango | D53: 9.584920794 | E53: 25993 | F53: 1.65429154 | G53: 26423 | H53: 1.616016349 | I53: 26850 | J53: 1.545623836 | K53: 27265 | L53: 1.448743811 | M53: 27660 | N53: 1.384671005 | O53: 28043 | P53: 1.333666156 | Q53: 28417 | R53: 1.277404371 | S53: 28780 | T53: 1.223071577 | U53: 29132 | V53: 1.170534121 | W53: 29473 | X53: 1.112882978 | Y53: 29801 | Z53: 1.067078286 | AA53: 30119 | AB53: 1.009329659 | AC53: 30423 | AD53: 0.9696611117 | AE53: 30718 | AF53: 0.9147730972 | AG53: 30999 | AH53: 0.8774476596 | AI53: 31271
A54: 412 | B54: Chimaltenango | C54: San Pedro Yepocapa | D54: 2.299487464 | E54: 36948 | F54: 2.379019162 | G54: 37827 | H54: 2.342242314 | I54: 38713 | J54: 2.267971999 | K54: 39591 | L54: 2.167159203 | M54: 40449 | N54: 2.113772899 | O54: 41304 | P54: 2.055490994 | Q54: 42153 | R54: 1.999857661 | S54: 42996 | T54: 1.944366918 | U54: 43832 | V54: 1.886749407 | W54: 44659 | X54: 1.838375244 | Y54: 45480 | Z54: 1.783201407 | AA54: 46291 | AB54: 1.734678447 | AC54: 47094 | AD54: 1.68386631 | AE54: 47887 | AF54: 1.641364045 | AG54: 48673 | AH54: 1.594313069 | AI54: 49449
A55: 413 | B55: Chimaltenango | C55: San Andrés Itzapa | D55: 5.051112447 | E55: 32050 | F55: 1.5975039 | G55: 32562 | H55: 1.587740311 | I55: 33079 | J55: 1.556878987 | K55: 33594 | L55: 1.485384295 | M55: 34093 | N55: 1.46071041 | O55: 34591 | P55: 1.433898991 | Q55: 35087 | R55: 1.402228746 | S55: 35579 | T55: 1.371595604 | U55: 36067 | V55: 1.339174314 | W55: 36550 | X55: 1.307797538 | Y55: 37028 | Z55: 1.277411688 | AA55: 37501 | AB55: 1.239966934 | AC55: 37966 | AD55: 1.211610388 | AE55: 38426 | AF55: 1.181491698 | AG55: 38880 | AH55: 1.149691358 | AI55: 39327
A56: 414 | B56: Chimaltenango | C56: Parramos | D56: 4.15136967 | E56: 17334 | F56: 2.711434176 | G56: 17804 | H56: 2.673556504 | I56: 18280 | J56: 2.598468271 | K56: 18755 | L56: 2.495334577 | M56: 19223 | N56: 2.444987775 | O56: 19693 | P56: 2.386634845 | Q56: 20163 | R56: 2.326042752 | S56: 20632 | T56: 2.278014734 | U56: 21102 | V56: 2.217799261 | W56: 21570 | X56: 2.165044043 | Y56: 22037 | Z56: 2.114625403 | AA56: 22503 | AB56: 2.066391148 | AC56: 22968 | AD56: 2.011494253 | AE56: 23430 | AF56: 1.967562953 | AG56: 23891 | AH56: 1.921225566 | AI56: 24350
A57: 415 | B57: Chimaltenango | C57: Zaragoza | D57: 3.316600932 | E57: 25209 | F57: 2.705382998 | G57: 25891 | H57: 2.603221197 | I57: 26565 | J57: 2.473178995 | K57: 27222 | L57: 2.321651605 | M57: 27854 | N57: 2.222302003 | O57: 28473 | P57: 2.121307906 | Q57: 29077 | R57: 2.032534305 | S57: 29668 | T57: 1.944856411 | U57: 30245 | V57: 1.858158373 | W57: 30807 | X57: 1.778816503 | Y57: 31355 | Z57: 1.706266943 | AA57: 31890 | AB57: 1.630605205 | AC57: 32410 | AD57: 1.570502931 | AE57: 32919 | AF57: 1.506728637 | AG57: 33415 | AH57: 1.445458626 | AI57: 33898
A58: 416 | B58: Chimaltenango | C58: El Tejar | D58: 2.726453357 | E58: 19735 | F58: 2.888269572 | G58: 20305 | H58: 2.851514405 | I58: 20884 | J58: 2.782034093 | K58: 21465 | L58: 2.678779408 | M58: 22040 | N58: 2.622504537 | O58: 22618 | P58: 2.564329295 | Q58: 23198 | R58: 2.508836969 | S58: 23780 | T58: 2.451640034 | U58: 24363 | V58: 2.397077536 | W58: 24947 | X58: 2.344971339 | Y58: 25532 | Z58: 2.291242363 | AA58: 26117 | AB58: 2.243749282 | AC58: 26703 | AD58: 2.190765083 | AE58: 27288 | AF58: 2.143799472 | AG58: 27873 | AH58: 2.102392997 | AI58: 28459
A59: 501 | B59: Escuintla | C59: Escuintla | D59: 27.03347461 | E59: 154623 | F59: 1.592259884 | G59: 157085 | H59: 1.490912563 | I59: 159427 | J59: 1.429494377 | K59: 161706 | L59: 1.360493736 | M59: 163906 | N59: 1.318438617 | O59: 166067 | P59: 1.280206182 | Q59: 168193 | R59: 1.24083642 | S59: 170280 | T59: 1.200375852 | U59: 172324 | V59: 1.162925652 | W59: 174328 | X59: 1.123743747 | Y59: 176287 | Z59: 1.086864034 | AA59: 178203 | AB59: 1.051609681 | AC59: 180077 | AD59: 1.016787263 | AE59: 181908 | AF59: 0.9829144403 | AG59: 183696 | AH59: 0.9515721627 | AI59: 185444
A60: 502 | B60: Escuintla | C60: Santa Lucía Cotzumalguapa | D60: 16.14767854 | E60: 113756 | F60: 1.969126903 | G60: 115996 | H60: 1.814717749 | I60: 118101 | J60: 1.718021016 | K60: 120130 | L60: 1.623241488 | M60: 122080 | N60: 1.562090433 | O60: 123987 | P60: 1.505803028 | Q60: 125854 | R60: 1.453271251 | S60: 127683 | T60: 1.401909416 | U60: 129473 | V60: 1.353177883 | W60: 131225 | X60: 1.303105353 | Y60: 132935 | Z60: 1.258509798 | AA60: 134608 | AB60: 1.21463806 | AC60: 136243 | AD60: 1.172170313 | AE60: 137840 | AF60: 1.130295995 | AG60: 139398 | AH60: 1.09255513 | AI60: 140921
A61: 503 | B61: Escuintla | C61: La Democracia | D61: 22.40712725 | E61: 24075 | F61: 1.341640706 | G61: 24398 | H61: 1.213214198 | I61: 24694 | J61: 1.129829108 | K61: 24973 | L61: 1.033115765 | M61: 25231 | N61: 0.9631009472 | O61: 25474 | P61: 0.8989557981 | Q61: 25703 | R61: 0.8325876357 | S61: 25917 | T61: 0.7678357835 | U61: 26116 | V61: 0.7007198652 | W61: 26299 | X61: 0.6426099852 | Y61: 26468 | Z61: 0.5742783739 | AA61: 26620 | AB61: 0.5184072126 | AC61: 26758 | AD61: 0.4522012109 | AE61: 26879 | AF61: 0.3943599092 | AG61: 26985 | AH61: 0.3372243839 | AI61: 27076
A62: 504 | B62: Escuintla | C62: Siquinalá | D62: 30.63373888 | E62: 24427 | F62: 0.7532648299 | G62: 24611 | H62: 0.9142253464 | I62: 24836 | J62: 1.04686745 | K62: 25096 | L62: 1.119700351 | M62: 25377 | N62: 1.18611341 | O62: 25678 | P62: 1.226731054 | Q62: 25993 | R62: 1.246489439 | S62: 26317 | T62: 1.246342668 | U62: 26645 | V62: 1.238506286 | W62: 26975 | X62: 1.215940686 | Y62: 27303 | Z62: 1.194007984 | AA62: 27629 | AB62: 1.165442108 | AC62: 27951 | AD62: 1.13770527 | AE62: 28269 | AF62: 1.103682479 | AG62: 28581 | AH62: 1.070641335 | AI62: 28887
A63: 505 | B63: Escuintla | C63: Masagua | D63: 17.12281902 | E63: 44275 | F63: 1.567476002 | G63: 44969 | H63: 1.452111455 | I63: 45622 | J63: 1.376528868 | K63: 46250 | L63: 1.299459459 | M63: 46851 | N63: 1.246504877 | O63: 47435 | P63: 1.195319911 | Q63: 48002 | R63: 1.145785592 | S63: 48552 | T63: 1.097792058 | U63: 49085 | V63: 1.049200367 | W63: 49600 | X63: 1.002016129 | Y63: 50097 | Z63: 0.9581412061 | AA63: 50577 | AB63: 0.9134586868 | AC63: 51039 | AD63: 0.8718822861 | AE63: 51484 | AF63: 0.8293838863 | AG63: 51911 | AH63: 0.7917397083 | AI63: 52322
A64: 506 | B64: Escuintla | C64: Tiquisate | D64: 20.94262295 | E64: 60648 | F64: 0.6677878908 | G64: 61053 | H64: 0.686288962 | I64: 61472 | J64: 0.7336673607 | K64: 61923 | L64: 0.759007154 | M64: 62393 | N64: 0.8029746927 | O64: 62894 | P64: 0.8395077432 | Q64: 63422 | R64: 0.865630223 | S64: 63971 | T64: 0.8847759141 | U64: 64537 | V64: 0.8971597688 | W64: 65116 | X64: 0.90300387 | Y64: 65704 | Z64: 0.905576525 | AA64: 66299 | AB64: 0.9034827071 | AC64: 66898 | AD64: 0.8983826123 | AE64: 67499 | AF64: 0.8889020578 | AG64: 68099 | AH64: 0.8810702066 | AI64: 68699
A65: 507 | B65: Escuintla | C65: La Gomera | D65: 6.853265479 | E65: 60984 | F65: -23.61930998 | G65: 46580 | H65: 2.410905968 | I65: 47703 | J65: 2.335282896 | K65: 48817 | L65: 2.257410328 | M65: 49919 | N65: 2.199563293 | O65: 51017 | P65: 2.150263638 | Q65: 52114 | R65: 2.105000576 | S65: 53211 | T65: 2.048448629 | U65: 54301 | V65: 2.001804755 | W65: 55388 | X65: 1.955297176 | Y65: 56471 | Z65: 1.907173594 | AA65: 57548 | AB65: 1.864530479 | AC65: 58621 | AD65: 1.820166834 | AE65: 59688 | AF65: 1.78092749 | AG65: 60751 | AH65: 1.738242992 | AI65: 61807
A66: 508 | B66: Escuintla | C66: Guanagazapa | D66: 3.077783996 | E66: 17061 | F66: 0.08791981713 | G66: 17076 | H66: 0.1522604825 | I66: 17102 | J66: 0.2572798503 | K66: 17146 | L66: 0.3266067888 | M66: 17202 | N66: 0.4243692594 | O66: 17275 | P66: 0.497829233 | Q66: 17361 | R66: 0.5587235758 | S66: 17458 | T66: 0.6128995303 | U66: 17565 | V66: 0.6604042129 | W66: 17681 | X66: 0.6843504327 | Y66: 17802 | Z66: 0.7190203348 | AA66: 17930 | AB66: 0.736196319 | AC66: 18062 | AD66: 0.7474255343 | AE66: 18197 | AF66: 0.7583667638 | AG66: 18335 | AH66: 0.7635669485 | AI66: 18475
A67: 509 | B67: Escuintla | C67: San José | D67: 11.50282618 | E67: 60845 | F67: 1.911414249 | G67: 62008 | H67: 1.798155077 | I67: 63123 | J67: 1.723618966 | K67: 64211 | L67: 1.644578032 | M67: 65267 | N67: 1.588858075 | O67: 66304 | P67: 1.541385135 | Q67: 67326 | R67: 1.492736833 | S67: 68331 | T67: 1.441512637 | U67: 69316 | V67: 1.395060304 | W67: 70283 | X67: 1.345986939 | Y67: 71229 | Z67: 1.301436213 | AA67: 72156 | AB67: 1.258384611 | AC67: 73064 | AD67: 1.215372824 | AE67: 73952 | AF67: 1.175086543 | AG67: 74821 | AH67: 1.136044693 | AI67: 75671
A68: 510 | B68: Escuintla | C68: Iztapa | D68: 5.166428426 | E68: 17918 | F68: 2.405402389 | G68: 18349 | H68: 2.136356205 | I68: 18741 | J68: 1.958273305 | K68: 19108 | L68: 1.795059661 | M68: 19451 | N68: 1.691429747 | O68: 19780 | P68: 1.597573306 | Q68: 20096 | R68: 1.517714968 | S68: 20401 | T68: 1.450909269 | U68: 20697 | V68: 1.386674397 | W68: 20984 | X68: 1.334349981 | Y68: 21264 | Z68: 1.269751693 | AA68: 21534 | AB68: 1.230612055 | AC68: 21799 | AD68: 1.183540529 | AE68: 22057 | AF68: 1.13342703 | AG68: 22307 | AH68: 1.09382705 | AI68: 22551
A69: 511 | B69: Escuintla | C69: Palín | D69: 14.2669912 | E69: 64408 | F69: 1.951620917 | G69: 65665 | H69: 1.781771111 | I69: 66835 | J69: 1.690730904 | K69: 67965 | L69: 1.600823954 | M69: 69053 | N69: 1.548086253 | O69: 70122 | P69: 1.497390263 | Q69: 71172 | R69: 1.448603383 | S69: 72203 | T69: 1.397448859 | U69: 73212 | V69: 1.350871442 | W69: 74201 | X69: 1.301869247 | Y69: 75167 | Z69: 1.258531004 | AA69: 76113 | AB69: 1.21398447 | AC69: 77037 | AD69: 1.170865948 | AE69: 77939 | AF69: 1.130371188 | AG69: 78820 | AH69: 1.092362345 | AI69: 79681
A70: 512 | B70: Escuintla | C70: San Vicente Pacaya | D70: 3.037383178 | E70: 16558 | F70: 1.77557676 | G70: 16852 | H70: 1.661523855 | I70: 17132 | J70: 1.575998132 | K70: 17402 | L70: 1.511320538 | M70: 17665 | N70: 1.443532409 | O70: 17920 | P70: 1.40625 | Q70: 18172 | R70: 1.348228043 | S70: 18417 | T70: 1.303143835 | U70: 18657 | V70: 1.254220936 | W70: 18891 | X70: 1.212217458 | Y70: 19120 | Z70: 1.161087866 | AA70: 19342 | AB70: 1.116740771 | AC70: 19558 | AD70: 1.078842417 | AE70: 19769 | AF70: 1.036977085 | AG70: 19974 | AH70: 0.9962951837 | AI70: 20173
A71: 513 | B71: Escuintla | C71: Nueva Concepción | D71: 22.63863166 | E71: 74647 | F71: 1.629000496 | G71: 75863 | H71: 1.514572321 | I71: 77012 | J71: 1.442632317 | K71: 78123 | L71: 1.360674833 | M71: 79186 | N71: 1.309574925 | O71: 80223 | P71: 1.258990564 | Q71: 81233 | R71: 1.210099344 | S71: 82216 | T71: 1.160358081 | U71: 83170 | V71: 1.113382229 | W71: 84096 | X71: 1.064259893 | Y71: 84991 | Z71: 1.020108011 | AA71: 85858 | AB71: 0.9771949032 | AC71: 86697 | AD71: 0.9342883837 | AE71: 87507 | AF71: 0.8925000286 | AG71: 88288 | AH71: 0.8551558536 | AI71: 89043
A72: 514 | B72: Escuintla | C72: Sipacate | D72: 11.23058542 | E72: … | G72: 15944 | H72: 2.408429503 | I72: 16328 | J72: 2.339539441 | K72: 16710 | L72: 2.250149611 | M72: 17086 | N72: 2.206484841 | O72: 17463 | P72: 2.147397354 | Q72: 17838 | R72: 2.096647606 | S72: 18212 | T72: 2.053591039 | U72: 18586 | V72: 2.006886904 | W72: 18959 | X72: 1.951579725 | Y72: 19329 | Z72: 1.90904858 | AA72: 19698 | AB72: 1.858056655 | AC72: 20064 | AD72: 1.824162679 | AE72: 20430 | AF72: 1.776798825 | AG72: 20793 | AH72: 1.74577983 | AI72: 21156
A73: 601 | B73: Santa Rosa | C73: Cuilapa | D73: 21.01341282 | E73: 43972 | F73: 1.143909761 | G73: 44475 | H73: 1.133220911 | I73: 44979 | J73: 1.149425287 | K73: 45496 | L73: 1.098997714 | M73: 45996 | N73: 1.071832333 | O73: 46489 | P73: 1.043257545 | Q73: 46974 | R73: 1.009068847 | S73: 47448 | T73: 0.9736975215 | U73: 47910 | V73: 0.9392611146 | W73: 48360 | X73: 0.8995037221 | Y73: 48795 | Z73: 0.8607439287 | AA73: 49215 | AB73: 0.8249517424 | AC73: 49621 | AD73: 0.7899881099 | AE73: 50013 | AF73: 0.7578029712 | AG73: 50392 | AH73: 0.7223368789 | AI73: 50756
A74: 602 | B74: Santa Rosa | C74: Barberena | D74: 23.09797866 | E74: 56507 | F74: 1.491850567 | G74: 57350 | H74: 1.380993897 | I74: 58142 | J74: 1.339823191 | K74: 58921 | L74: 1.247433004 | M74: 59656 | N74: 1.206919673 | O74: 60376 | P74: 1.164369948 | Q74: 61079 | R74: 1.121498387 | S74: 61764 | T74: 1.083155236 | U74: 62433 | V74: 1.045921228 | W74: 63086 | X74: 1.004977333 | Y74: 63720 | Z74: 0.9651600753 | AA74: 64335 | AB74: 0.9295095982 | AC74: 64933 | AD74: 0.8963085026 | AE74: 65515 | AF74: 0.8608715561 | AG74: 66079 | AH74: 0.8262836907 | AI74: 66625
A75: 603 | B75: Santa Rosa | C75: Santa Rosa de Lima | D75: 4.536330791 | E75: 19147 | F75: 2.292787382 | G75: 19586 | H75: 2.078014909 | I75: 19993 | J75: 1.945680988 | K75: 20382 | L75: 1.776076931 | M75: 20744 | N75: 1.658310837 | O75: 21088 | P75: 1.550644917 | Q75: 21415 | R75: 1.452253094 | S75: 21726 | T75: 1.371628464 | U75: 22024 | V75: 1.280421359 | W75: 22306 | X75: 1.196987358 | Y75: 22573 | Z75: 1.129668188 | AA75: 22828 | AB75: 1.06010163 | AC75: 23070 | AD75: 0.9969657564 | AE75: 23300 | AF75: 0.9399141631 | AG75: 23519 | AH75: 0.8843913432 | AI75: 23727
A76: 604 | B76: Santa Rosa | C76: Casillas | D76: 11.3173456 | E76: 25055 | F76: 0.5068848533 | G76: 25182 | H76: 0.567865936 | I76: 25325 | J76: 0.6633761106 | K76: 25493 | L76: 0.6943082415 | M76: 25670 | N76: 0.7362680171 | O76: 25859 | P76: 0.7734251131 | Q76: 26059 | R76: 0.790513834 | S76: 26265 | T76: 0.7919284219 | U76: 26473 | V76: 0.797038492 | W76: 26684 | X76: 0.7869884575 | Y76: 26894 | Z76: 0.7696884063 | AA76: 27101 | AB76: 0.7527397513 | AC76: 27305 | AD76: 0.7324665812 | AE76: 27505 | AF76: 0.7125977095 | AG76: 27701 | AH76: 0.685895816 | AI76: 27891
A77: 605 | B77: Santa Rosa | C77: San Rafael Las Flores | D77: 11.18611379 | E77: 12421 | F77: 2.012720393 | G77: 12671 | H77: 1.909872938 | I77: 12913 | J77: 1.86633625 | K77: 13154 | L77: 1.778926562 | M77: 13388 | N77: 1.73289513 | O77: 13620 | P77: 1.688693098 | Q77: 13850 | R77: 1.646209386 | S77: 14078 | T77: 1.61244495 | U77: 14305 | V77: 1.572876617 | W77: 14530 | X77: 1.527873365 | Y77: 14752 | Z77: 1.49132321 | AA77: 14972 | AB77: 1.456051296 | AC77: 15190 | AD77: 1.415404872 | AE77: 15405 | AF77: 1.382667965 | AG77: 15618 | AH77: 1.35100525 | AI77: 15829
A78: 606 | B78: Santa Rosa | C78: Oratorio | D78: 9.298975672 | E78: 24434 | F78: 1.939919784 | G78: 24908 | H78: 1.826722338 | I78: 25363 | J78: 1.782123566 | K78: 25815 | L78: 1.696687972 | M78: 26253 | N78: 1.649335314 | O78: 26686 | P78: 1.607584501 | Q78: 27115 | R78: 1.563710124 | S78: 27539 | T78: 1.525109844 | U78: 27959 | V78: 1.487892986 | W78: 28375 | X78: 1.44845815 | Y78: 28786 | Z78: 1.406933926 | AA78: 29191 | AB78: 1.370285362 | AC78: 29591 | AD78: 1.338244737 | AE78: 29987 | AF78: 1.300563578 | AG78: 30377 | AH78: 1.267406261 | AI78: 30762
A79: 607 | B79: Santa Rosa | C79: San Juan Tecuaco | D79: 6.471421823 | E79: 11429 | F79: 2.126170269 | G79: 11672 | H79: 2.013365319 | I79: 11907 | J79: 1.982027379 | K79: 12143 | L79: 1.877624969 | M79: 12371 | N79: 1.843019966 | O79: 12599 | P79: 1.793793158 | Q79: 12825 | R79: 1.754385965 | S79: 13050 | T79: 1.724137931 | U79: 13275 | V79: 1.679849341 | W79: 13498 | X79: 1.637279597 | Y79: 13719 | Z79: 1.596326263 | AA79: 13938 | AB79: 1.56406945 | AC79: 14156 | AD79: 1.518790619 | AE79: 14371 | AF79: 1.496068471 | AG79: 14586 | AH79: 1.460304401 | AI79: 14799
A80: 608 | B80: Santa Rosa | C80: Chiquimulilla | D80: 8.450195171 | E80: 58748 | F80: 1.857084496 | G80: 59839 | H80: 1.74133926 | I80: 60881 | J80: 1.69839523 | K80: 61915 | L80: 1.611887265 | M80: 62913 | N80: 1.564064661 | O80: 63897 | P80: 1.524328216 | Q80: 64871 | R80: 1.481401551 | S80: 65832 | T80: 1.441548183 | U80: 66781 | V80: 1.404591126 | W80: 67719 | X80: 1.362985277 | Y80: 68642 | Z80: 1.321348446 | AA80: 69549 | AB80: 1.2868625 | AC80: 70444 | AD80: 1.252058373 | AE80: 71326 | AF80: 1.215545523 | AG80: 72193 | AH80: 1.181554998 | AI80: 73046
A81: 609 | B81: Santa Rosa | C81: Taxisco | D81: 5.130249867 | E81: 32826 | F81: 2.08980686 | G81: 33512 | H81: 1.978395799 | I81: 34175 | J81: 1.934162399 | K81: 34836 | L81: 1.842921116 | M81: 35478 | N81: 1.801116185 | O81: 36117 | P81: 1.755406041 | Q81: 36751 | R81: 1.714239068 | S81: 37381 | T81: 1.677322704 | U81: 38008 | V81: 1.636497579 | W81: 38630 | X81: 1.594615584 | Y81: 39246 | Z81: 1.556846558 | AA81: 39857 | AB81: 1.517926588 | AC81: 40462 | AD81: 1.482872819 | AE81: 41062 | AF81: 1.45146364 | AG81: 41658 | AH81: 1.411493591 | AI81: 42246
A82: 610 | B82: Santa Rosa | C82: Santa María Ixhuatán | D82: 25.89648173 | E82: 25558 | F82: 0.9312152751 | G82: 25796 | H82: 0.8179562723 | I82: 26007 | J82: 0.7805590802 | K82: 26210 | L82: 0.6867607783 | M82: 26390 | N82: 0.6441834028 | O82: 26560 | P82: 0.6061746988 | Q82: 26721 | R82: 0.5613562367 | S82: 26871 | T82: 0.524729262 | U82: 27012 | V82: 0.4849696431 | W82: 27143 | X82: 0.4421029363 | Y82: 27263 | Z82: 0.4071452151 | AA82: 27374 | AB82: 0.3689632498 | AC82: 27475 | AD82: 0.3384895359 | AE82: 27568 | AF82: 0.3010737086 | AG82: 27651 | AH82: 0.2676214242 | AI82: 27725
A83: 611 | B83: Santa Rosa | C83: Guazacapán | D83: 4.896174863 | E83: 20338 | F83: 1.656996755 | G83: 20675 | H83: 1.542926239 | I83: 20994 | J83: 1.500428694 | K83: 21309 | L83: 1.412548688 | M83: 21610 | N83: 1.369736233 | O83: 21906 | P83: 1.328403177 | Q83: 22197 | R83: 1.283957292 | S83: 22482 | T83: 1.245440797 | U83: 22762 | V83: 1.208153941 | W83: 23037 | X83: 1.167686765 | Y83: 23306 | Z83: 1.128464773 | AA83: 23569 | AB83: 1.094658238 | AC83: 23827 | AD83: 1.053426785 | AE83: 24078 | AF83: 1.021679541 | AG83: 24324 | AH83: 0.9907909883 | AI83: 24565
A84: 612 | B84: Santa Rosa | C84: Santa Cruz Naranjo | D84: 5.92808552 | E84: 15980 | F84: 2.071339174 | G84: 16311 | H84: 1.967997057 | I84: 16632 | J84: 1.917989418 | K84: 16951 | L84: 1.828800661 | M84: 17261 | N84: 1.784369388 | O84: 17569 | P84: 1.741704138 | Q84: 17875 | R84: 1.700699301 | S84: 18179 | T84: 1.661257495 | U84: 18481 | V84: 1.628699746 | W84: 18782 | X84: 1.586625492 | Y84: 19080 | Z84: 1.540880503 | AA84: 19374 | AB84: 1.507174564 | AC84: 19666 | AD84: 1.46954134 | AE84: 19955 | AF84: 1.438236031 | AG84: 20242 | AH84: 1.403023417 | AI84: 20526
A85: 613 | B85: Santa Rosa | C85: Pueblo Nuevo Viñas | D85: 15.08307792 | E85: 28385 | F85: 0.785626211 | G85: 28608 | H85: 0.6711409396 | I85: 28800 | J85: 0.6319444444 | K85: 28982 | L85: 0.5451659651 | M85: 29140 | N85: 0.4975978037 | O85: 29285 | P85: 0.4541574185 | Q85: 29418 | R85: 0.414712081 | S85: 29540 | T85: 0.3757616791 | U85: 29651 | V85: 0.3372567536 | W85: 29751 | X85: 0.2991496084 | Y85: 29840 | Z85: 0.2580428954 | AA85: 29917 | AB85: 0.2206103553 | AC85: 29983 | AD85: 0.1901077277 | AE85: 30040 | AF85: 0.1531291611 | AG85: 30086 | AH85: 0.1196569833 | AI85: 30122
A86: 614 | B86: Santa Rosa | C86: Nueva Santa Rosa | D86: 14.84956325 | E86: 37182 | F86: 1.108063041 | G86: 37594 | H86: 0.997499601 | I86: 37969 | J86: 0.9534093603 | K86: 38331 | L86: 0.8661396781 | M86: 38663 | N86: 0.822491788 | O86: 38981 | P86: 0.7824324671 | Q86: 39286 | R86: 0.7381764496 | S86: 39576 | T86: 0.7024459268 | U86: 39854 | V86: 0.6624178251 | W86: 40118 | X86: 0.6206690264 | Y86: 40367 | Z86: 0.584635965 | AA86: 40603 | AB86: 0.5467576287 | AC86: 40825 | AD86: 0.5119412125 | AE86: 41034 | AF86: 0.4800896817 | AG86: 41231 | AH86: 0.4438407994 | AI86: 41414
A87: 701 | B87: Sololá | C87: Sololá | D87: 10.08176228 | E87: 94406 | F87: 1.025358558 | G87: 95374 | H87: 1.02229119 | I87: 96349 | J87: 0.9839230298 | K87: 97297 | L87: 0.9435028829 | M87: 98215 | N87: 0.8949753093 | O87: 99094 | P87: 0.8476799806 | Q87: 99934 | R87: 0.7985270278 | S87: 100732 | T87: 0.7534844935 | U87: 101491 | V87: 0.7064665832 | W87: 102208 | X87: 0.6594395742 | Y87: 102882 | Z87: 0.6142959896 | AA87: 103514 | AB87: 0.5699712116 | AC87: 104104 | AD87: 0.528317836 | AE87: 104654 | AF87: 0.4863645919 | AG87: 105163 | AH87: 0.4469252494 | AI87: 105633
A88: 702 | B88: Sololá | C88: San José Chacayá | D88: 0.4026845638 | E88: 4644 | F88: 2.196382429 | G88: 4746 | H88: 2.064896755 | I88: 4844 | J88: 1.981833196 | K88: 4940 | L88: 1.923076923 | M88: 5035 | N88: 1.847070506 | O88: 5128 | P88: 1.794071763 | Q88: 5220 | R88: 1.743295019 | S88: 5311 | T88: 1.713424967 | U88: 5402 | V88: 1.647537949 | W88: 5491 | X88: 1.602622473 | Y88: 5579 | Z88: 1.57734361 | AA88: 5667 | AB88: 1.517557791 | AC88: 5753 | AD88: 1.477490005 | AE88: 5838 | AF88: 1.455978075 | AG88: 5923 | AH88: 1.4013169 | AI88: 6006
A89: 703 | B89: Sololá | C89: Santa María Visitación | D89: 1.459854015 | E89: 2355 | F89: 1.740976645 | G89: 2396 | H89: 1.752921536 | I89: 2438 | J89: 1.722723544 | K89: 2480 | L89: 1.653225806 | M89: 2521 | N89: 1.586671956 | O89: 2561 | P89: 1.600937134 | Q89: 2602 | R89: 1.498847041 | S89: 2641 | T89: 1.476713366 | U89: 2680 | V89: 1.417910448 | W89: 2718 | X89: 1.398086829 | Y89: 2756 | Z89: 1.342525399 | AA89: 2793 | AB89: 1.288936627 | AC89: 2829 | AD89: 1.272534464 | AE89: 2865 | AF89: 1.221640489 | AG89: 2900 | AH89: 1.172413793 | AI89: 2934
A90: 704 | B90: Sololá | C90: Santa Lucía Utatlán | D90: 4.169325675 | E90: 21011 | F90: 0.6758364666 | G90: 21153 | H90: 0.6760270411 | I90: 21296 | J90: 0.6386175808 | K90: 21432 | L90: 0.5972377753 | M90: 21560 | N90: 0.5565862709 | O90: 21680 | P90: 0.5073800738 | Q90: 21790 | R90: 0.463515374 | S90: 21891 | T90: 0.4156959481 | U90: 21982 | V90: 0.3730324811 | W90: 22064 | X90: 0.3263234228 | Y90: 22136 | Z90: 0.2846042645 | AA90: 22199 | AB90: 0.2387494932 | AC90: 22252 | AD90: 0.2022290131 | AE90: 22297 | AF90: 0.1569717899 | AG90: 22332 | AH90: 0.1253806197 | AI90: 22360
A91: 705 | B91: Sololá | C91: Nahualá | D91: 2.262074587 | E91: 81246 | F91: 2.445658863 | G91: 83233 | H91: 2.443742266 | I91: 85267 | J91: 2.406558223 | K91: 87319 | L91: 2.368327626 | M91: 89387 | N91: 2.31912918 | O91: 91460 | P91: 2.275311612 | Q91: 93541 | R91: 2.225761965 | S91: 95623 | T91: 2.182529308 | U91: 97710 | V91: 2.134888957 | W91: 99796 | X91: 2.091266183 | Y91: 101883 | Z91: 2.046465063 | AA91: 103968 | AB91: 2.002539243 | AC91: 106050 | AD91: 1.962281942 | AE91: 108131 | AF91: 1.922667875 | AG91: 110210 | AH91: 1.882769259 | AI91: 112285
A92: 706 | B92: Sololá | C92: Santa Catarina Ixtahuacán | D92: 3.162742202 | E92: 54702 | F92: 2.031004351 | G92: 55813 | H92: 1.981617186 | I92: 56919 | J92: 1.929057081 | K92: 58017 | L92: 1.885654205 | M92: 59111 | N92: 1.835529766 | O92: 60196 | P92: 1.790816666 | Q92: 61274 | R92: 1.742990502 | S92: 62342 | T92: 1.700298354 | U92: 63402 | V92: 1.654521939 | W92: 64451 | X92: 1.60897426 | Y92: 65488 | Z92: 1.566699243 | AA92: 66514 | AB92: 1.522987642 | AC92: 67527 | AD92: 1.483850904 | AE92: 68529 | AF92: 1.443184637 | AG92: 69518 | AH92: 1.406829886 | AI92: 70496
A93: 707 | B93: Sololá | C93: Santa Clara La Laguna | D93: 0.8049242424 | E93: 9435 | F93: 1.611022787 | G93: 9587 | H93: 1.606341921 | I93: 9741 | J93: 1.570680628 | K93: 9894 | L93: 1.516070346 | M93: 10044 | N93: 1.48347272 | O93: 10193 | P93: 1.442166192 | Q93: 10340 | R93: 1.382978723 | S93: 10483 | T93: 1.354574072 | U93: 10625 | V93: 1.298823529 | W93: 10763 | X93: 1.254297129 | Y93: 10898 | Z93: 1.211231419 | AA93: 11030 | AB93: 1.178603808 | AC93: 11160 | AD93: 1.129032258 | AE93: 11286 | AF93: 1.089845827 | AG93: 11409 | AH93: 1.05180121 | AI93: 11529
A94: 708 | B94: Sololá | C94: Concepción | D94: 18.6906019 | E94: 6744 | F94: 0.3706998814 | G94: 6769 | H94: 0.8420741616 | I94: 6826 | J94: 1.171989452 | K94: 6906 | L94: 1.375615407 | M94: 7001 | N94: 1.471218397 | O94: 7104 | P94: 1.548423423 | Q94: 7214 | R94: 1.580260604 | S94: 7328 | T94: 1.582969432 | U94: 7444 | V94: 1.585169264 | W94: 7562 | X94: 1.560433748 | Y94: 7680 | Z94: 1.536458333 | AA94: 7798 | AB94: 1.487560913 | AC94: 7914 | AD94: 1.465756887 | AE94: 8030 | AF94: 1.444582814 | AG94: 8146 | AH94: 1.399459858 | AI94: 8260
A95: 709 | B95: Sololá | C95: San Andrés Semetabaj | D95: 2.49244713 | E95: 13451 | F95: 1.73964761 | G95: 13685 | H95: 1.746437706 | I95: 13924 | J95: 1.702097099 | K95: 14161 | L95: 1.666548973 | M95: 14397 | N95: 1.618392721 | O95: 14630 | P95: 1.578947368 | Q95: 14861 | R95: 1.527488056 | S95: 15088 | T95: 1.477995758 | U95: 15311 | V95: 1.436875449 | W95: 15531 | X95: 1.397205589 | Y95: 15748 | Z95: 1.346202692 | AA95: 15960 | AB95: 1.315789474 | AC95: 16170 | AD95: 1.267779839 | AE95: 16375 | AF95: 1.227480916 | AG95: 16576 | AH95: 1.188465251 | AI95: 16773
A96: 710 | B96: Sololá | C96: Panajachel | D96: 6.858227162 | E96: 14448 | F96: 1.889534884 | G96: 14721 | H96: 1.888458664 | I96: 14999 | J96: 1.853456897 | K96: 15277 | L96: 1.813183217 | M96: 15554 | N96: 1.774463161 | O96: 15830 | P96: 1.711939356 | Q96: 16101 | R96: 1.676914477 | S96: 16371 | T96: 1.637041109 | U96: 16639 | V96: 1.586633812 | W96: 16903 | X96: 1.544104597 | Y96: 17164 | Z96: 1.50314612 | AA96: 17422 | AB96: 1.45218689 | AC96: 17675 | AD96: 1.414427157 | AE96: 17925 | AF96: 1.377963738 | AG96: 18172 | AH96: 1.3372221 | AI96: 18415
A97: 711 | B97: Sololá | C97: Santa Catarina Palopó | D97: 15.24966262 | E97: 4588 | F97: 1.089799477 | G97: 4638 | H97: 1.121172919 | I97: 4690 | J97: 1.066098081 | K97: 4740 | L97: 1.033755274 | M97: 4789 | N97: 0.9814157444 | O97: 4836 | P97: 0.9511993383 | Q97: 4882 | R97: 0.9012699713 | S97: 4926 | T97: 0.8526187576 | U97: 4968 | V97: 0.8051529791 | W97: 5008 | X97: 0.7587859425 | Y97: 5046 | Z97: 0.7134363853 | AA97: 5082 | AB97: 0.6887052342 | AC97: 5117 | AD97: 0.6253664256 | AE97: 5149 | AF97: 0.6020586522 | AG97: 5180 | AH97: 0.5791505792 | AI97: 5210
A98: 712 | B98: Sololá | C98: San Antonio Palopó | D98: 6.915544676 | E98: 14934 | F98: 0.9642426677 | G98: 15078 | H98: 0.9550338241 | I98: 15222 | J98: 0.9197214558 | K98: 15362 | L98: 0.885301393 | M98: 15498 | N98: 0.838817912 | O98: 15628 | P98: 0.793447658 | Q98: 15752 | R98: 0.7427628238 | S98: 15869 | T98: 0.6994769677 | U98: 15980 | V98: 0.6570713392 | W98: 16085 | X98: 0.6092632888 | Y98: 16183 | Z98: 0.5684978063 | AA98: 16275 | AB98: 0.5222734255 | AC98: 16360 | AD98: 0.488997555 | AE98: 16440 | AF98: 0.4440389294 | AG98: 16513 | AH98: 0.4057409314 | AI98: 16580
A99: 713 | B99: Sololá | C99: San Lucas Tolimán | D99: 12.6054358 | E99: 30177 | F99: 0.9477416576 | G99: 30463 | H99: 0.9454091849 | I99: 30751 | J99: 0.9105394947 | K99: 31031 | L99: 0.8733202282 | M99: 31302 | N99: 0.8210337998 | O99: 31559 | P99: 0.7794923794 | Q99: 31805 | R99: 0.7325892155 | S99: 32038 | T99: 0.6898058555 | U99: 32259 | V99: 0.6385814811 | W99: 32465 | X99: 0.5975666102 | Y99: 32659 | Z99: 0.5542117027 | AA99: 32840 | AB99: 0.5115712546 | AC99: 33008 | AD99: 0.4695831314 | AE99: 33163 | AF99: 0.4312034496 | AG99: 33306 | AH99: 0.3933225245 | AI99: 33437
A100: 714 | B100: Sololá | C100: Santa Cruz La Laguna | D100: 1.633705933 | E100: 7371 | F100: 1.221001221 | G100: 7461 | H100: 1.206272618 | I100: 7551 | J100: 1.178651834 | K100: 7640 | L100: 1.138743455 | M100: 7727 | N100: 1.100038825 | O100: 7812 | P100: 1.049667179 | Q100: 7894 | R100: 0.9880922219 | S100: 7972 | T100: 0.9533366784 | U100: 8048 | V100: 0.9194831014 | W100: 8122 | X100: 0.8618566855 | Y100: 8192 | Z100: 0.830078125 | AA100: 8260 | AB100: 0.7748184019 | AC100: 8324 | AD100: 0.7568476694 | AE100: 8387 | AF100: 0.6915464409 | AG100: 8445 | AH100: 0.6631142688 | AI100: 8501
A101: 715 | B101: Sololá | C101: San Pablo La Laguna | D101: 1.445086705 | E101: 7685 | F101: 0.5855562785 | G101: 7730 | H101: 0.6727037516 | I101: 7782 | J101: 0.6810588538 | K101: 7835 | L101: 0.7019783025 | M101: 7890 | N101: 0.7097591888 | O101: 7946 | P101: 0.7299270073 | Q101: 8004 | R101: 0.7371314343 | S101: 8063 | T101: 0.7565422299 | U101: 8124 | V101: 0.7385524372 | W101: 8184 | X101: 0.7575757576 | Y101: 8246 | Z101: 0.7518796992 | AA101: 8308 | AB101: 0.758305248 | AC101: 8371 | AD101: 0.7525982559 | AE101: 8434 | AF101: 0.7588332938 | AG101: 8498 | AH101: 0.7531183808 | AI101: 8562
A102: 716 | B102: Sololá | C102: San Marcos La Laguna | D102: 0.5504587156 | E102: 2723 | F102: 1.395519647 | G102: 2761 | H102: 1.340094169 | I102: 2798 | J102: 1.358112938 | K102: 2836 | L102: 1.269393512 | M102: 2872 | N102: 1.288300836 | O102: 2909 | P102: 1.203162599 | Q102: 2944 | R102: 1.154891304 | S102: 2978 | T102: 1.108126259 | U102: 3011 | V102: 1.095981402 | W102: 3044 | X102: 1.018396846 | Y102: 3075 | Z102: 0.9756097561 | AA102: 3105 | AB102: 0.9661835749 | AC102: 3135 | AD102: 0.8612440191 | AE102: 3162 | AF102: 0.8855154965 | AG102: 3190 | AH102: 0.8463949843 | AI102: 3217
A103: 717 | B103: Sololá | C103: San Juan La Laguna | D103: 0.7975693126 | E103: 11700 | F103: 2.35042735 | G103: 11975 | H103: 2.363256785 | I103: 12258 | J103: 2.308696362 | K103: 12541 | L103: 2.288493741 | M103: 12828 | N103: 2.221702526 | O103: 13113 | P103: 2.188667734 | Q103: 13400 | R103: 2.141791045 | S103: 13687 | T103: 2.089574048 | U103: 13973 | V103: 2.053961211 | W103: 14260 | X103: 2.005610098 | Y103: 14546 | Z103: 1.959301526 | AA103: 14831 | AB103: 1.914907963 | AC103: 15115 | AD103: 1.885544161 | AE103: 15400 | AF103: 1.831168831 | AG103: 15682 | AH103: 1.79824002 | AI103: 15964
A104: 718 | B104: Sololá | C104: San Pedro La Laguna | D104: 3.229483283 | E104: 10424 | F104: 2.196853415 | G104: 10653 | H104: 2.187177321 | I104: 10886 | J104: 2.167922102 | K104: 11122 | L104: 2.112929329 | M104: 11357 | N104: 2.07801356 | O104: 11593 | P104: 2.02708531 | Q104: 11828 | R104: 1.978356442 | S104: 12062 | T104: 1.939976787 | U104: 12296 | V104: 1.886792453 | W104: 12528 | X104: 1.843869732 | Y104: 12759 | Z104: 1.80264911 | AA104: 12989 | AB104: 1.763030256 | AC104: 13218 | AD104: 1.717355122 | AE104: 13445 | AF104: 1.680922276 | AG104: 13671 | AH104: 1.645819618 | AI104: 13896
A105: 719 | B105: Sololá | C105: Santiago Atitlán | D105: 2.590827874 | E105: 39702 | F105: 2.12079996 | G105: 40544 | H105: 2.121152328 | I105: 41404 | J105: 2.084339677 | K105: 42267 | L105: 2.046513829 | M105: 43132 | N105: 1.998516183 | O105: 43994 | P105: 1.95481202 | Q105: 44854 | R105: 1.90618451 | S105: 45709 | T105: 1.863965521 | U105: 46561 | V105: 1.816971285 | W105: 47407 | X105: 1.77399962 | Y105: 48248 | Z105: 1.730641685 | AA105: 49083 | AB105: 1.684901086 | AC105: 49910 | AD105: 1.646964536 | AE105: 50732 | AF105: 1.608452259 | AG105: 51548 | AH105: 1.567471095 | AI105: 52356
A106: 801 | B106: Totonicapán | C106: Totonicapán | D106: 30.41557305 | E106: 110020 | F106: 1.271586984 | G106: 111419 | H106: 1.331011766 | I106: 112902 | J106: 1.372872048 | K106: 114452 | L106: 1.333310034 | M106: 115978 | N106: 1.297659901 | O106: 117483 | P106: 1.25720317 | Q106: 118960 | R106: 1.217215871 | S106: 120408 | T106: 1.176832104 | U106: 121825 | V106: 1.137697517 | W106: 123211 | X106: 1.094869776 | Y106: 124560 | Z106: 1.054913295 | AA106: 125874 | AB106: 1.017684351 | AC106: 127155 | AD106: 0.9791199717 | AE106: 128400 | AF106: 0.9431464174 | AG106: 129611 | AH106: 0.9081019358 | AI106: 130788
A107: 802 | B107: Totonicapán | C107: San Cristóbal Totonicapán | D107: 13.96317699 | E107: 39435 | F107: 1.389628503 | G107: 39983 | H107: 1.448115449 | I107: 40562 | J107: 1.491543809 | K107: 41167 | L107: 1.450190687 | M107: 41764 | N107: 1.412699933 | O107: 42354 | P107: 1.376493365 | Q107: 42937 | R107: 1.33684235 | S107: 43511 | T107: 1.293925674 | U107: 44074 | V107: 1.25243908 | W107: 44626 | X107: 1.21453861 | Y107: 45168 | Z107: 1.173397095 | AA107: 45698 | AB107: 1.135717099 | AC107: 46217 | AD107: 1.099162646 | AE107: 46725 | AF107: 1.06153023 | AG107: 47221 | AH107: 1.027085407 | AI107: 47706
A108: 803 | B108: Totonicapán | C108: San Francisco El Alto | D108: 14.52545217 | E108: 57465 | F108: 2.326633603 | G108: 58802 | H108: 2.314547124 | I108: 60163 | J108: 2.295430746 | K108: 61544 | L108: 2.200051995 | M108: 62898 | N108: 2.108175141 | O108: 64224 | P108: 2.01949427 | Q108: 65521 | R108: 1.93373117 | S108: 66788 | T108: 1.8536264 | U108: 68026 | V108: 1.774321583 | W108: 69233 | X108: 1.697167536 | Y108: 70408 | Z108: 1.624815362 | AA108: 71552 | AB108: 1.55970483 | AC108: 72668 | AD108: 1.49309187 | AE108: 73753 | AF108: 1.433162041 | AG108: 74810 | AH108: 1.375484561 | AI108: 75839
A109: 804 | B109: Totonicapán | C109: San Andrés Xecul | D109: 14.65285769 | E109: 26927 | F109: 1.689753779 | G109: 27382 | H109: 1.752976408 | I109: 27862 | J109: 1.798148015 | K109: 28363 | L109: 1.752282904 | M109: 28860 | N109: 1.718641719 | O109: 29356 | P109: 1.679384112 | Q109: 29849 | R109: 1.641596033 | S109: 30339 | T109: 1.595306371 | U109: 30823 | V109: 1.560522986 | W109: 31304 | X109: 1.517377971 | Y109: 31779 | Z109: 1.475817364 | AA109: 32248 | AB109: 1.441949888 | AC109: 32713 | AD109: 1.400055024 | AE109: 33171 | AF109: 1.362636038 | AG109: 33623 | AH109: 1.329447105 | AI109: 34070
A110: 805 | B110: Totonicapán | C110: Momostenango | D110: 12.06491198 | E110: 124019 | F110: 1.949701255 | G110: 126437 | H110: 2.006532898 | I110: 128974 | J110: 2.049250236 | K110: 131617 | L110: 2.008859038 | M110: 134261 | N110: 1.972277877 | O110: 136909 | P110: 1.93047937 | Q110: 139552 | R110: 1.891051364 | S110: 142191 | T110: 1.848921521 | U110: 144820 | V110: 1.808451871 | W110: 147439 | X110: 1.764797645 | Y110: 150041 | Z110: 1.724861871 | AA110: 152629 | AB110: 1.686442288 | AC110: 155203 | AD110: 1.6475197 | AE110: 157760 | AF110: 1.610040568 | AG110: 160300 | AH110: 1.573923893 | AI110: 162823
A111: 806 | B111: Totonicapán | C111: Santa María Chiquimula | D111: 10.46952129 | E111: 56425 | F111: 0.6858661941 | G111: 56812 | H111: 0.7463211997 | I111: 57236 | J111: 0.7844713118 | K111: 57685 | L111: 0.7454277542 | M111: 58115 | N111: 0.7072184462 | O111: 58526 | P111: 0.6697877866 | Q111: 58918 | R111: 0.6262941716 | S111: 59287 | T111: 0.5869752222 | U111: 59635 | V111: 0.5466588413 | W111: 59961 | X111: 0.5053284635 | Y111: 60264 | Z111: 0.462962963 | AA111: 60543 | AB111: 0.4261434022 | AC111: 60801 | AD111: 0.3865068009 | AE111: 61036 | AF111: 0.3506127531 | AG111: 61250 | AH111: 0.3134693878 | AI111: 61442
A112: 807 | B112: Totonicapán | C112: Santa Lucía la Reforma | D112: 30.94564876 | E112: 24370 | F112: 0.828887977 | G112: 24572 | H112: 0.88718867 | I112: 24790 | J112: 0.9318273497 | K112: 25021 | L112: 0.8952479917 | M112: 25245 | N112: 0.8556149733 | O112: 25461 | P112: 0.8130081301 | Q112: 25668 | R112: 0.7791803023 | S112: 25868 | T112: 0.7344982217 | U112: 26058 | V112: 0.6984419372 | W112: 26240 | X112: 0.6516768293 | Y112: 26411 | Z112: 0.6133807883 | AA112: 26573 | AB112: 0.5757724006 | AC112: 26726 | AD112: 0.5388011674 | AE112: 26870 | AF112: 0.5061406773 | AG112: 27006 | AH112: 0.466562986 | AI112: 27132
A113: 808 | B113: Totonicapán | C113: San Bartolo Aguas Calientes | D113: 7.106339468 | E113: 12100 | F113: 0.173553719 | G113: 12121 | H113: 0.3547562082 | I113: 12164 | J113: 0.5097007563 | K113: 12226 | L113: 0.5725503026 | M113: 12296 | N113: 0.634352635 | O113: 12374 | P113: 0.6869241959 | Q113: 12459 | R113: 0.7223693715 | S113: 12549 | T113: 0.7570324329 | U113: 12644 | V113: 0.77507118 | W113: 12742 | X113: 0.8005022759 | Y113: 12844 | Z113: 0.8097165992 | AA113: 12948 | AB113: 0.8263824529 | AC113: 13055 | AD113: 0.8272692455 | AE113: 13163 | AF113: 0.8280787055 | AG113: 13272 | AH113: 0.8363471971 | AI113: 13383
A114: 901 | B114: Quetzaltenango | C114: Quetzaltenango | D114: 9.134186952 | E114: 178463 | F114: 2.048043572 | G114: 182118 | H114: 2.026707959 | I114: 185809 | J114: 1.993983069 | K114: 189514 | L114: 1.9486687 | M114: 193207 | N114: 1.894341302 | O114: 196867 | P114: 1.840836707 | Q114: 200491 | R114: 1.787611414 | S114: 204075 | T114: 1.737106456 | U114: 207620 | V114: 1.684808785 | W114: 211118 | X114: 1.635104539 | Y114: 214570 | Z114: 1.587360768 | AA114: 217976 | AB114: 1.540536573 | AC114: 221334 | AD114: 1.496832841 | AE114: 224647 | AF114: 1.452946178 | AG114: 227911 | AH114: 1.411077131 | AI114: 231127
A115: 902 | B115: Quetzaltenango | C115: Salcajá | D115: 3.032230704 | E115: 18653 | F115: 2.637645419 | G115: 19145 | H115: 2.423609297 | I115: 19609 | J115: 2.233668214 | K115: 20047 | L115: 2.05517035 | M115: 20459 | N115: 1.916027176 | O115: 20851 | P115: 1.779291161 | Q115: 21222 | R115: 1.672792385 | S115: 21577 | T115: 1.575751958 | U115: 21917 | V115: 1.491992517 | W115: 22244 | X115: 1.411616616 | Y115: 22558 | Z115: 1.343204185 | AA115: 22861 | AB115: 1.286032982 | AC115: 23155 | AD115: 1.230835673 | AE115: 23440 | AF115: 1.16894198 | AG115: 23714 | AH115: 1.130134098 | AI115: 23982
A116: 903 | B116: Quetzaltenango | C116: San Juan Olintepeque | D116: 7.019766853 | E116: 34844 | F116: 2.264378372 | G116: 35633 | H116: 1.967277524 | I116: 36334 | J116: 1.799966973 | K116: 36988 | L116: 1.695144371 | M116: 37615 | N116: 1.60574239 | O116: 38219 | P116: 1.541118292 | Q116: 38808 | R116: 1.481653267 | S116: 39383 | T116: 1.424472488 | U116: 39944 | V116: 1.374424194 | W116: 40493 | X116: 1.321216013 | Y116: 41028 | Z116: 1.277176562 | AA116: 41552 | AB116: 1.227377744 | AC116: 42062 | AD116: 1.183966526 | AE116: 42560 | AF116: 1.144266917 | AG116: 43047 | AH116: 1.098798987 | AI116: 43520
A117: 904 | B117: Quetzaltenango | C117: San Carlos Sija | D117: 15.20036155 | E117: 31919 | F117: 1.845295905 | G117: 32508 | H117: 1.824166359 | I117: 33101 | J117: 1.794507719 | K117: 33695 | L117: 1.748033833 | M117: 34284 | N117: 1.697584879 | O117: 34866 | P117: 1.637698618 | Q117: 35437 | R117: 1.591556847 | S117: 36001 | T117: 1.536068443 | U117: 36554 | V117: 1.485473546 | W117: 37097 | X117: 1.439469499 | Y117: 37631 | Z117: 1.387154208 | AA117: 38153 | AB117: 1.344586271 | AC117: 38666 | AD117: 1.300884498 | AE117: 39169 | AF117: 1.253542342 | AG117: 39660 | AH117: 1.215330308 | AI117: 40142
A118: 905 | B118: Quetzaltenango | C118: Sibilia | D118: 3.717277487 | E118: 7984 | F118: 1.953907816 | G118: 8140 | H118: 1.941031941 | I118: 8298 | J118: 1.892022174 | K118: 8455 | L118: 1.856889415 | M118: 8612 | N118: 1.788202508 | O118: 8766 | P118: 1.756787588 | Q118: 8920 | R118: 1.692825112 | S118: 9071 | T118: 1.642597288 | U118: 9220 | V118: 1.594360087 | W118: 9367 | X118: 1.537311839 | Y118: 9511 | Z118: 1.503522237 | AA118: 9654 | AB118: 1.450176093 | AC118: 9794 | AD118: 1.398815601 | AE118: 9931 | AF118: 1.35937972 | AG118: 10066 | AH118: 1.321279555 | AI118: 10199
A119: 906 | B119: Quetzaltenango | C119: Cabricán | D119: 10.2622577 | E119: 25156 | F119: 1.717284147 | G119: 25588 | H119: 1.700015632 | I119: 26023 | J119: 1.663912693 | K119: 26456 | L119: 1.621560327 | M119: 26885 | N119: 1.569648503 | O119: 27307 | P119: 1.51243271 | Q119: 27720 | R119: 1.457431457 | S119: 28124 | T119: 1.415161428 | U119: 28522 | V119: 1.360353411 | W119: 28910 | X119: 1.307506053 | Y119: 29288 | Z119: 1.259901666 | AA119: 29657 | AB119: 1.217250565 | AC119: 30018 | AD119: 1.172629755 | AE119: 30370 | AF119: 1.13269674 | AG119: 30714 | AH119: 1.087451976 | AI119: 31048
A120: 907 | B120: Quetzaltenango | C120: Cajolá | D120: 6.755829904 | E120: 17791 | F120: 1.214097015 | G120: 18007 | H120: 1.221747098 | I120: 18227 | J120: 1.234432435 | K120: 18452 | L120: 1.20854108 | M120: 18675 | N120: 1.183400268 | O120: 18896 | P120: 1.16426757 | Q120: 19116 | R120: 1.135174723 | S120: 19333 | T120: 1.106915636 | U120: 19547 | V120: 1.074333657 | W120: 19757 | X120: 1.047729919 | Y120: 19964 | Z120: 1.021839311 | AA120: 20168 | AB120: 0.9867116224 | AC120: 20367 | AD120: 0.9672509452 | AE120: 20564 | AF120: 0.9336704921 | AG120: 20756 | AH120: 0.9105800732 | AI120: 20945
A121: 908 | B121: Quetzaltenango | C121: San Miguel Siguilá | D121: 7.728813559 | E121: 8912 | F121: 1.570915619 | G121: 9052 | H121: 1.557666814 | I121: 9193 | J121: 1.522897857 | K121: 9333 | L121: 1.478624237 | M121: 9471 | N121: 1.435962412 | O121: 9607 | P121: 1.373998126 | Q121: 9739 | R121: 1.334839306 | S121: 9869 | T121: 1.276725099 | U121: 9995 | V121: 1.24062031 | W121: 10119 | X121: 1.185887934 | Y121: 10239 | Z121: 1.142689716 | AA121: 10356 | AB121: 1.110467362 | AC121: 10471 | AD121: 1.050520485 | AE121: 10581 | AF121: 1.020697477 | AG121: 10689 | AH121: 0.9823182711 | AI121: 10794
A122: 909 | B122: Quetzaltenango | C122: San Juan Ostuncalco | D122: 11.78280723 | E122: 59311 | F122: 0.387786414 | G122: 59541 | H122: 0.4568280681 | I122: 59813 | J122: 0.5099225921 | K122: 60118 | L122: 0.5472570611 | M122: 60447 | N122: 0.5690935861 | O122: 60791 | P122: 0.5872579823 | Q122: 61148 | R122: 0.6034539151 | S122: 61517 | T122: 0.6160898613 | U122: 61896 | V122: 0.6236267287 | W122: 62282 | X122: 0.6293953309 | Y122: 62674 | Z122: 0.6334365127 | AA122: 63071 | AB122: 0.6357914097 | AC122: 63472 | AD122: 0.6380766322 | AE122: 63877 | AF122: 0.6340310284 | AG122: 64282 | AH122: 0.633147693 | AI122: 64689
A123: 910 | B123: Quetzaltenango | C123: San Mateo | D123: 2.155887231 | E123: 7682 | F123: 3.189273627 | G123: 7927 | H123: 2.699634162 | I123: 8141 | J123: 2.309298612 | K123: 8329 | L123: 2.053067595 | M123: 8500 | N123: 1.858823529 | O123: 8658 | P123: 1.709401709 | Q123: 8806 | R123: 1.589825119 | S123: 8946 | T123: 1.509054326 | U123: 9081 | V123: 1.409536395 | W123: 9209 | X123: 1.357367792 | Y123: 9334 | Z123: 1.307049496 | AA123: 9456 | AB123: 1.237309645 | AC123: 9573 | AD123: 1.190849264 | AE123: 9687 | AF123: 1.145865593 | AG123: 9798 | AH123: 1.102265769 | AI123: 9906
A124: 911 | B124: Quetzaltenango | C124: Concepción Chiquirichapa | D124: 0.5353620738 | E124: 18499 | F124: 1.886588464 | G124: 18848 | H124: 1.862266553 | I124: 19199 | J124: 1.833428824 | K124: 19551 | L124: 1.785074932 | M124: 19900 | N124: 1.733668342 | O124: 20245 | P124: 1.679427019 | Q124: 20585 | R124: 1.627398591 | S124: 20920 | T124: 1.572657744 | U124: 21249 | V124: 1.524777637 | W124: 21573 | X124: 1.474064803 | Y124: 21891 | Z124: 1.425243251 | AA124: 22203 | AB124: 1.382696032 | AC124: 22510 | AD124: 1.337183474 | AE124: 22811 | AF124: 1.29323572 | AG124: 23106 | AH124: 1.255085259 | AI124: 23396
A125: 912 | B125: Quetzaltenango | C125: San Martín Sacatepéquez | D125: 3.696168193 | E125: 30040 | F125: 1.817576565 | G125: 30586 | H125: 1.798208331 | I125: 31136 | J125: 1.766443988 | K125: 31686 | L125: 1.723158493 | M125: 32232 | N125: 1.672251179 | O125: 32771 | P125: 1.623386531 | Q125: 33303 | R125: 1.57042909 | S125: 33826 | T125: 1.522497487 | U125: 34341 | V125: 1.473457383 | W125: 34847 | X125: 1.429104371 | Y125: 35345 | Z125: 1.377846937 | AA125: 35832 | AB125: 1.336793927 | AC125: 36311 | AD125: 1.297127592 | AE125: 36782 | AF125: 1.256049154 | AG125: 37244 | AH125: 1.213618301 | AI125: 37696
A126: 913 | B126: Quetzaltenango | C126: Almolonga | D126: 1.422475107 | E126: 15087 | F126: 2.087890237 | G126: 15402 | H126: 2.07115959 | I126: 15721 | J126: 2.041854844 | K126: 16042 | L126: 1.994763745 | M126: 16362 | N126: 1.937415964 | O126: 16679 | P126: 1.882606871 | Q126: 16993 | R126: 1.836050138 | S126: 17305 | T126: 1.779832418 | U126: 17613 | V126: 1.731675467 | W126: 17918 | X126: 1.679874986 | Y126: 18219 | Z126: 1.635655085 | AA126: 18517 | AB126: 1.587730194 | AC126: 18811 | AD126: 1.541651162 | AE126: 19101 | AF126: 1.497303806 | AG126: 19387 | AH126: 1.459741064 | AI126: 19670
A127: 914 | B127: Quetzaltenango | C127: Cantel | D127: 7.426674045 | E127: 39421 | F127: 3.335785495 | G127: 40736 | H127: 3.026806756 | I127: 41969 | J127: 2.756796683 | K127: 43126 | L127: 2.518202476 | M127: 44212 | N127: 2.300280467 | O127: 45229 | P127: 2.115899091 | Q127: 46186 | R127: 1.950807604 | S127: 47087 | T127: 1.813664069 | U127: 47941 | V127: 1.689576771 | W127: 48751 | X127: 1.57945478 | Y127: 49521 | Z127: 1.484218816 | AA127: 50256 | AB127: 1.39883795 | AC127: 50959 | AD127: 1.324594282 | AE127: 51634 | AF127: 1.253050316 | AG127: 52281 | AH127: 1.191637497 | AI127: 52904
A128: 915 | B128: Quetzaltenango | C128: Huitán | D128: 8.597830454 | E128: 13952 | F128: 0.5017201835 | G128: 14022 | H128: 0.6989017259 | I128: 14120 | J128: 0.842776204 | K128: 14239 | L128: 0.9481002879 | M128: 14374 | N128: 1.029636844 | O128: 14522 | P128: 1.067346096 | Q128: 14677 | R128: 1.1037678 | S128: 14839 | T128: 1.125412764 | U128: 15006 | V128: 1.12621618 | W128: 15175 | X128: 1.120263591 | Y128: 15345 | Z128: 1.114369501 | AA128: 15516 | AB128: 1.095643207 | AC128: 15686 | AD128: 1.071018743 | AE128: 15854 | AF128: 1.059669484 | AG128: 16022 | AH128: 1.029833978 | AI128: 16187
